Workbook

Sheet Menu
Z1: 2
Z4: 2
A6: Southwest Extension District - 10
D8: Budgets
D11: Forage Crops
D13: =+CoastalPastureDryland!A3 -> Dryland Coastal Bermudagrass Pasture
D14: =CoastalPastureIrrigated!A3 -> Irrigated Coastal Bermudagrass Pasture
D15: =CoastalHayIrrigated!A3 -> Irrigated Bermudagrass Hay
D16: =CoastalEstablishDryland!A3 -> Dryland Coastal Bermudagrass Establishment
D17: =CoastalEstablishIrrigated!A3 -> Irrigated Coastal Bermudagrass Establishment
B18: Comparative Returns
D19: Field Crops
D21: =CornDryland!A3 -> Dryland Corn
D22: =CornIrrigated!A3 -> Irrigated Corn
D23: =CottonDryland!A3 -> Dryland Cotton
D24: =CottonIrrigated!A3 -> Irrigated Cotton
D25: =PeanutsDryland!A3 -> Dryland Runner Peanuts
D26: =PeanutsIrrigated!A3 -> Irrigated Runner Peanuts
D27: =SesameDryland!A3 -> Dryland Sesame
D28: =SesameIrrigated!A3 -> Irrigated Sesame
D29: =SorghumDryland!A3 -> Dryland Sorghum
D30: =SorghumIrrigated!A3 -> Irrigated Sorghum
D31: =WinterWheatDryland!A3 -> Dryland Winter Wheat
D32: =WinterWheatIrrigated!A3 -> Irrigated Winter Wheat
D33: =CanolaIrrigated!A3 -> Irrigated Canola
D34: =BarleyIrrigated!A3 -> Irrigated Malting Barley
D36: Horticultural Crops
D38: =Cabbage!A3 -> Irrigated Cabbage
D39: =Cucumbers!A3 -> Irrigated Pickling Cucumbers
D40: =Onions!A3 -> Irrigated Onions
D41: =FreshSpinach!A3 -> Fresh Market Spinach
D42: =Pecans!A3 -> Pecan, Drip Irrigated Years 10-20
D43: =Peaches!A3 -> Peaches, Drip Irrigated, Years 5-20
D45: Livestock
D47: =+CowCalfWest!A3 -> Cow-Calf Enterprise, 35 ac. per AU, West of Texas Highway 16
D48: =CowCalfEast!A3 -> Cow-Calf Enterprise, 20 ac. per AU, East of Texas Highway 16
D49: =MeatGoatsRange!A3 -> Meat Goats, 6 Head per AU, Western Range Budget
D50: =MeatGoatsFarm!A3 -> Meat Goats, 6 Head per AU, Western Farm Flock Budget
D51: =Angoras!A3 -> Angora Goats, 7 Head per AU
D52: =SheepWool!A3 -> Wool Sheep, 5 Head per AU
D53: =SheepHair!A3 -> Hair Sheep, 5 Head per AU
D54: =+StockersSummer!A3 -> Stocker Steers - Summer Growth, 0.6 AU per Head
D55: =+StockersWinter!A3 -> Stocker Steers - Winter Growth, 0.45 AU per Head
D57: Other Budgets
D59: ='Livestock Budget'!A3 -> Livestock Enterprise
D60: ='Crop Budget'!A3 -> Crop Enterprise
A79: Developed by Rob Hogan, Associate Professor and Extension Economist, Texas A&M AgriLife Extension, 830-278-9151.

Sheet CoastalPastureDryland
A1: Projections for Planning Purposes Only -- Not to be Used without Updating
A2: 2018 Estimated Costs and Returns per Acre
A3: Dryland Coastal Bermudagrass Pasture
A4: Enter your name for this budget in the cell above.
A5: Enter Your Values in the cells highlighed in MAROON.
E6: Your Acres | R6: Your
C7: Crop Acres | D7: 100 | L7: Your | Q7: Enterprise | R7: Enterprise
E8: Your | H8: Your | I8: Cash | J8: Your | K8: Landlord | L8: Landlord | N8: Your | P8: Your | Q8: Total | R8: Total
A9: REVENUE | D9: Quantity | E9: Quantity | F9: Units | G9: $/Unit | H9: $/Unit | I9: Total | J9: Total | K9: Share | L9: Share | M9: Landlord | N9: Landlord | O9: Tenant | P9: Tenant | Q9: (100 acres) | R9: ="(" & E7 & " acres)" -> ( acres)
B10: AUM Grazing Lease | D10: 5 | F10: AUM | G10: 13.17 | I10: 65.85 | J10: =E10*H10 -> 0 | K10: 0 | M10: 0 | N10: =J10*L10 -> 0 | O10: 65.85 | P10: =+J10-N10 -> 0 | Q10: 6585 | R10: =+J10*E$7 -> 0
D11: 0 | G11: 0 | I11: 0 | J11: 0 | K11: 0 | M11: 0 | N11: 0 | O11: 0 | P11: 0 | Q11: 0 | R11: 0
D12: 0 | G12: 0 | I12: 0 | J12: 0 | K12: 0 | M12: 0 | N12: 0 | O12: 0 | P12: 0 | Q12: 0 | R12: 0
A13: Total Revenue | I13: 65.85 | J13: =SUM(J10:J12) -> 0 | M13: 0 | N13: =SUM(N10:N12) -> 0 | O13: 65.85 | P13: =SUM(P10:P12) -> 0 | Q13: 6585 | R13: =SUM(R10:R12) -> 0
Q14: Enterprise | R14: Enterprise
A15: VARIABLE COSTS | D15: Quantity | E15: Quantity | F15: Units | G15: $/Unit | H15: $/Unit | I15: Total | J15: Total | K15: Share | L15: Share | M15: Landlord | N15: Landlord | O15: Tenant | P15: Tenant | Q15: Total | R15: Total
A16: Production Costs
B17: Fertilizer
C18: Fertilizer 22-6-17 | D18: 772 | F18: Pound | G18: 0.2 | I18: 154.4 | J18: =E18*H18 -> 0 | K18: 0 | M18: 0 | N18: =J18*L18 -> 0 | O18: 154.4 | P18: =+J18-N18 -> 0 | Q18: 15440 | R18: =+J18*E$7 -> 0
B19: Herbicide
C20: Prowl H2O | D20: 4 | F20: Pint | G20: 5.63 | I20: 22.52 | J20: 0 | K20: 0 | M20: 0 | N20: 0 | O20: 22.52 | P20: 0 | Q20: 2252 | R20: 0
B21: Miscellaneous
C22: Miscellaneous Forage Overhead | D22: 1 | F22: Acre | G22: 4 | I22: 4 | J22: 0 | K22: 0 | M22: 0 | N22: 0 | O22: 4 | P22: 0 | Q22: 400 | R22: 0
D23: 0 | G23: 0 | I23: 0 | J23: 0 | K23: 0 | M23: 0 | N23: 0 | O23: 0 | P23: 0 | Q23: 0 | R23: 0
D24: 0 | G24: 0 | I24: 0 | J24: 0 | K24: 0 | M24: 0 | N24: 0 | O24: 0 | P24: 0 | Q24: 0 | R24: 0
D25: 0 | G25: 0 | I25: 0 | J25: =E25*H25 -> 0 | K25: 0 | M25: 0 | N25: =J25*L25 -> 0 | O25: 0 | P25: =+J25-N25 -> 0 | Q25: 0 | R25: =+J25*E$7 -> 0
B26: Machinery Labor
C27: Tractors/Self-Propelled | D27: 0.27 | F27: Hour | G27: 12 | I27: 3.24 | J27: =E27*H27 -> 0 | K27: 0 | M27: 0 | N27: =J27*L27 -> 0 | O27: 3.24 | P27: =+J27-N27 -> 0 | Q27: 324 | R27: =+J27*E$7 -> 0
C28: Other Labor | D28: 0 | F28: Hour | G28: 8.5 | I28: 0 | J28: =E28*H28 -> 0 | K28: 0 | M28: 0 | N28: =J28*L28 -> 0 | O28: 0 | P28: =+J28-N28 -> 0 | Q28: 0 | R28: =+J28*E$7 -> 0
B30: Diesel Fuel
C31: Pickup/General Use Equipment | D31: 1 | F31: Acre | G31: 0 | I31: 0 | J31: =E31*H31 -> 0 | K31: 0 | M31: 0 | N31: =J31*L31 -> 0 | O31: 0 | P31: =+J31-N31 -> 0 | Q31: 0 | R31: =+J31*E$7 -> 0
C32: Tractors/Self-Propelled | D32: 1.39 | F32: Gallon | G32: 2.14 | I32: 2.9746 | J32: =E32*H32 -> 0 | K32: 0 | M32: 0 | N32: =J32*L32 -> 0 | O32: 2.9746 | P32: =+J32-N32 -> 0 | Q32: 297.46 | R32: =+J32*E$7 -> 0
B34: Gasoline
C35: Pickup/General Use Equipment | D35: 1 | F35: Acre | G35: 23.62116013 | I35: 23.62116013 | J35: =E35*H35 -> 0 | K35: 0 | M35: 0 | N35: =J35*L35 -> 0 | O35: 23.62116013 | P35: =+J35-N35 -> 0 | Q35: 2362.116013 | R35: =+J35*E$7 -> 0
C36: Tractors/Self-Propelled | D36: 0 | F36: Gallon | G36: 2.39 | I36: 0 | J36: =E36*H36 -> 0 | K36: 0 | M36: 0 | N36: =J36*L36 -> 0 | O36: 0 | P36: =+J36-N36 -> 0 | Q36: 0 | R36: =+J36*E$7 -> 0
B38: Repairs & Maintenance
C39: Pickup/General Use Equipment | D39: 1 | F39: Acre | G39: 4.2 | I39: 4.2 | J39: =E39*H39 -> 0 | K39: 0 | M39: 0 | N39: =J39*L39 -> 0 | O39: 4.2 | P39: =+J39-N39 -> 0 | Q39: 420 | R39: =+J39*E$7 -> 0
C40: Irrigation Equipment | D40: 1 | F40: Acre | G40: 0 | I40: 0 | J40: 0 | K40: 0 | M40: 0 | N40: 0 | O40: 0 | P40: 0 | Q40: 0 | R40: 0
C41: Tractors/Self-Propelled | D41: 1 | F41: Acre | G41: 1.800993321 | I41: 1.800993321 | J41: 0 | K41: 0 | M41: 0 | N41: 0 | O41: 1.800993321 | P41: 0 | Q41: 180.0993321 | R41: 0
C42: Implements | D42: 1 | F42: Acre | G42: 0.8106567638 | I42: 0.8106567638 | J42: 0 | K42: 0 | M42: 0 | N42: 0 | O42: 0.8106567638 | P42: 0 | Q42: 81.06567638 | R42: 0
I43: 0 | J43: 0 | K43: 0 | M43: 0 | N43: 0 | O43: 0 | P43: 0 | Q43: 0 | R43: =+J43*E$7 -> 0
I44: 0 | J44: 0 | K44: 0 | M44: 0 | N44: 0 | O44: 0 | P44: 0 | Q44: 0 | R44: 0
B45: Interest on Credit Line | G45: 0.065 | I45: 3.615418519 | J45: =+SUM(J17:J44)/2*H45 -> 0 | M45: 0 | N45: =+SUM(N17:N44)/2*L45 -> 0 | O45: 3.615418519 | P45: =+SUM(P17:P44)/2*L45 -> 0 | Q45: 361.5418519 | R45: =+J45*E$7 -> 0
A46: Total Variable Costs | I46: 221.1828287 | J46: =SUM(J18:J45) -> 0 | M46: 0 | N46: =SUM(N18:N45) -> 0 | O46: 221.1828287 | P46: =SUM(P18:P45) -> 0 | Q46: 22118.28287 | R46: =SUM(R18:R45) -> 0
A47: Planned Returns Above Variable Costs: | I47: -155.3328287 | J47: =+J13-J46 -> 0 | M47: 0 | N47: =+N13-N46 -> 0 | O47: -155.3328287 | P47: =+P13-P46 -> 0 | Q47: -15533.28287 | R47: =+R13-R46 -> 0
B48: Breakeven Price to Cover Variable Costs | G48: 44.23656575 | H48: =IF(E10=0,"n/a",(YVarExp-(YTotExp+YTotRet-J10))/E10) -> n/a | I48: AUM
Q49: Enterprise | R49: Enterprise
A50: FIXED COSTS | D50: Quantity | E50: Quantity | F50: Units | G50: $/Unit | H50: $/Unit | J50: Total | K50: Share | L50: Share | M50: Landlord | N50: Landlord | O50: Tenant | P50: Tenant | Q50: Total | R50: Total
B51: Machinery Depreciation
C52: Pickup/General Use Equipment | D52: 1 | F52: Acre | G52: 25.74 | I52: 25.74 | J52: =E52*H52 -> 0 | K52: 0 | M52: 0 | N52: =J52*L52 -> 0 | O52: 25.74 | P52: =+J52-N52 -> 0 | Q52: 2574 | R52: =+J52*E$7 -> 0
C53: Tractors/Self-Propelled | D53: 1 | F53: Acre | G53: 2.725025143 | I53: 2.725025143 | J53: 0 | K53: 0 | M53: 0 | N53: =J53*L53 -> 0 | O53: 2.725025143 | P53: 0 | Q53: 272.5025143 | R53: 0
C54: Implements | D54: 1 | F54: Acre | G54: 0.711186085 | I54: 0.711186085 | J54: 0 | K54: 0 | M54: 0 | N54: =J54*L54 -> 0 | O54: 0.711186085 | P54: 0 | Q54: 71.1186085 | R54: 0
B55: Equipment Investment
C56: Pickup/General Use Equipment | D56: 107.25 | F56: Dollars | G56: 0.065 | I56: 6.97125 | J56: =E56*H56 -> 0 | K56: 0 | M56: 0 | N56: =J56*L56 -> 0 | O56: 6.97125 | P56: =+J56-N56 -> 0 | Q56: 697.125 | R56: =+J56*E$7 -> 0
C57: Tractors/Self-Propelled | D57: 20.78613525 | F57: Dollars | G57: 0.065 | I57: 1.351098791 | J57: 0 | K57: 0 | M57: 0 | N57: =J57*L57 -> 0 | O57: 1.351098791 | P57: 0 | Q57: 135.1098791 | R57: 0
C58: Implements | D58: 8.561242891 | F58: Dollars | G58: 0.065 | I58: 0.5564807879 | J58: 0 | K58: 0 | M58: 0 | N58: =J58*L58 -> 0 | O58: 0.5564807879 | P58: 0 | Q58: 55.64807879 | R58: 0
B59: Salaried Labor | D59: 1 | F59: Acre | G59: 0 | I59: 0 | J59: 0 | K59: 0 | M59: 0 | N59: =J59*L59 -> 0 | O59: 0 | P59: =+J59-N59 -> 0 | Q59: 0 | R59: =+J59*E$7 -> 0
B60: Management Fee, Owner/Operator Labor | D60: 1 | F60: Acre | G60: 0 | I60: 0 | J60: 0 | K60: 0 | M60: 0 | N60: 0 | O60: 0 | P60: 0 | Q60: 0 | R60: 0
B61: Allocated Establishment Cost | D61: 1 | F61: Acre | G61: 0 | I61: 0 | J61: 0 | K61: 0 | M61: 0 | N61: 0 | O61: 0 | P61: 0 | Q61: 0 | R61: 0
B62: Dryland Winter Garden Rent | D62: 1 | F62: Acre | G62: 20 | I62: 20 | J62: 0 | K62: 0 | M62: 0 | N62: 0 | O62: 20 | P62: 0 | Q62: 2000 | R62: 0
B63: Property Taxes | D63: 1 | F63: Acre | G63: 0 | I63: 0 | J63: =E63*H63 -> 0 | K63: 0 | M63: 0 | N63: 0 | O63: 0 | P63: 0 | Q63: 0 | R63: =+J63*E$7 -> 0
B64: Whole Farm Insurance | D64: 1 | F64: Acre | G64: 0 | I64: 0 | J64: 0 | K64: 0 | M64: 0 | N64: 0 | O64: 0 | P64: 0 | Q64: 0 | R64: 0
D65: 1 | G65: 0 | I65: 0 | J65: 0 | K65: 0 | M65: 0 | N65: 0 | O65: 0 | P65: 0 | Q65: 0 | R65: 0
D66: 1 | G66: 0 | I66: 0 | J66: 0 | K66: 0 | M66: 0 | N66: 0 | O66: 0 | P66: 0 | Q66: 0 | R66: 0
A67: Total Fixed Costs | I67: 58.05504081 | J67: =+SUM(J52:J66) -> 0 | M67: 0 | N67: =+SUM(N52:N66) -> 0 | O67: 58.05504081 | P67: =+SUM(P52:P66) -> 0 | Q67: 5805.504081 | R67: =+SUM(R52:R66) -> 0
A68: Total Specified Costs | I68: 279.2378695 | J68: =+J46+J67 -> 0 | M68: 0 | N68: =+N46+N67 -> 0 | O68: 279.2378695 | P68: =+P46+P67 -> 0 | Q68: 27923.78695 | R68: =+R46+R67 -> 0
A70: Returns Above Specified Costs | I70: -213.3878695 | J70: =+J13-J68 -> 0 | M70: 0 | N70: =+N13-N68 -> 0 | O70: -213.3878695 | P70: =+P13-P68 -> 0 | Q70: -21338.78695 | R70: =+R13-R68 -> 0
A72: Breakeven Price to Cover Total Costs | G72: 55.84757391 | H72: =IF(E10=0,"n/a",(YTotExp-(YTotExp+YTotRet-J10))/E10) -> n/a | I72: AUM
D74: Example Breakeven Prices
B75: Example | C75: Example | D75: To Cover | G75: To Cover
B76: Yield | C76: Yield | D76: Variable | G76: Total
B77: Percent | C77: AUM | D77: Costs | G77: Costs
B78: 0.75 | C78: 3.75 | D78: 58.98208766 | G78: 74.46343188
B79: 0.9 | C79: 4.5 | D79: 49.15173972 | G79: 62.0528599
B80: 1 | C80: 5 | D80: 44.23656575 | G80: 55.84757391
B81: 1.1 | C81: 5.5 | D81: 40.21505977 | G81: 50.77052174
B82: 1.25 | C82: 6.25 | D82: 35.3892526 | G82: 44.67805913
D84: Your Breakeven Prices
B85: Your | C85: Your | E85: To Cover | H85: To Cover
B86: Yield | C86: Yield | E86: Variable | H86: Total
B87: Percent | C87: AUM | E87: Costs | H87: Costs
B88: 0.75 | C88: =E10*YPER1 -> 0 | E88: =IF($E$10=0,0,(YVarExp-(YTotExp+YTotRet-J10))/($E$10*YPER1)) -> 0 | H88: =IF($E$10=0,0,(YTotExp-(YTotExp+YTotRet-J10))/($E$10*YPER1)) -> 0
B89: 0.9 | C89: =E10*YPER2 -> 0 | E89: =IF($E$10=0,0,(YVarExp-(YTotExp+YTotRet-J10))/($E$10*YPER2)) -> 0 | H89: =IF($E$10=0,0,(YTotExp-(YTotExp+YTotRet-J10))/($E$10*YPER2)) -> 0
B90: 1 | C90: =+E10 -> 0 | E90: =IF($E$10=0,0,(YVarExp-(YTotExp+YTotRet-J10))/($E$10*YPER3)) -> 0 | H90: =IF($E$10=0,0,(YTotExp-(YTotExp+YTotRet-J10))/($E$10*YPER3)) -> 0
B91: 1.1 | C91: =E10*YPER4 -> 0 | E91: =IF($E$10=0,0,(YVarExp-(YTotExp+YTotRet-J10))/($E$10*YPER4)) -> 0 | H91: =IF($E$10=0,0,(YTotExp-(YTotExp+YTotRet-J10))/($E$10*YPER4)) -> 0
B92: 1.25 | C92: =E10*YPER5 -> 0 | E92: =IF($E$10=0,0,(YVarExp-(YTotExp+YTotRet-J10))/($E$10*YPER5)) -> 0 | H92: =IF($E$10=0,0,(YTotExp-(YTotExp+YTotRet-J10))/($E$10*YPER5)) -> 0
A94: Developed by Rob Hogan, Associate Professor and Extension Economist, Texas A&M AgriLife Extension, 830-278-9151.
A96: Information presented is prepared solely as a general guide and not intended to recognize or predict the costs and returns from any one operation. Brand names are mentioned only as examples and imply no endorsement.

Sheet CoastalPastureIrrigated
A1: Projections for Planning Purposes Only -- Not to be Used without Updating
A2: 2018 Estimated Costs and Returns per Acre
A3: Irrigated Coastal Bermudagrass Pasture
A4: Enter your name for this budget in the cell above.
A5: Enter Your Values in the cells highlighed in MAROON.
E6: Your Acres | R6: Your
C7: Crop Acres | D7: 100 | L7: Your | Q7: Enterprise | R7: Enterprise
E8: Your | H8: Your | I8: Cash | J8: Your | K8: Landlord | L8: Landlord | N8: Your | P8: Your | Q8: Total | R8: Total
A9: REVENUE | D9: Quantity | E9: Quantity | F9: Units | G9: $/Unit | H9: $/Unit | I9: Total | J9: Total | K9: Share | L9: Share | M9: Landlord | N9: Landlord | O9: Tenant | P9: Tenant | Q9: (100 acres) | R9: ="(" & E7 & " acres)" -> ( acres)
B10: AUM Grazing Lease | D10: 16 | F10: AUM | G10: 13.17 | I10: 210.72 | J10: =E10*H10 -> 0 | K10: 0 | M10: 0 | N10: =J10*L10 -> 0 | O10: 210.72 | P10: =+J10-N10 -> 0 | Q10: 21072 | R10: =+J10*E$7 -> 0
D11: 0 | G11: 0 | I11: 0 | J11: 0 | K11: 0 | M11: 0 | N11: 0 | O11: 0 | P11: =+J11-N11 -> 0 | Q11: 0 | R11: 0
D12: 0 | G12: 0 | I12: 0 | J12: 0 | K12: 0 | M12: 0 | N12: 0 | O12: 0 | P12: 0 | Q12: 0 | R12: 0
A13: Total Revenue | I13: 210.72 | J13: =SUM(J10:J12) -> 0 | M13: 0 | N13: =SUM(N10:N12) -> 0 | O13: 210.72 | P13: =SUM(P10:P12) -> 0 | Q13: 21072 | R13: =SUM(R10:R12) -> 0
Q14: Enterprise | R14: Enterprise
A15: VARIABLE COSTS | D15: Quantity | E15: Quantity | F15: Units | G15: $/Unit | H15: $/Unit | I15: Total | J15: Total | K15: Share | L15: Share | M15: Landlord | N15: Landlord | O15: Tenant | P15: Tenant | Q15: Total | R15: Total
A16: Production Costs
B17: Fertilizer
C18: Fertilizer 22-6-17 | D18: 1816 | F18: Pound | G18: 0.2 | I18: 363.2 | J18: =E18*H18 -> 0 | K18: 0 | M18: 0 | N18: =J18*L18 -> 0 | O18: 363.2 | P18: =+J18-N18 -> 0 | Q18: 36320 | R18: =+J18*E$7 -> 0
B19: Herbicide
C20: Prowl H2O | D20: 4 | F20: Pint | G20: 5.63 | I20: 22.52 | J20: 0 | K20: 0 | M20: 0 | N20: 0 | O20: 22.52 | P20: 0 | Q20: 2252 | R20: 0
B21: Miscellaneous
C22: Miscellaneous Forage Overhead | D22: 1 | F22: Acre | G22: 4 | I22: 4 | J22: 0 | K22: 0 | M22: 0 | N22: 0 | O22: 4 | P22: 0 | Q22: 400 | R22: 0
D23: 0 | G23: 0 | I23: 0 | J23: 0 | K23: 0 | M23: 0 | N23: 0 | O23: 0 | P23: 0 | Q23: 0 | R23: 0
D24: 0 | G24: 0 | I24: 0 | J24: 0 | K24: 0 | M24: 0 | N24: 0 | O24: 0 | P24: 0 | Q24: 0 | R24: 0
D25: 0 | G25: 0 | I25: 0 | J25: =E25*H25 -> 0 | K25: 0 | M25: 0 | N25: =J25*L25 -> 0 | O25: 0 | P25: =+J25-N25 -> 0 | Q25: 0 | R25: =+J25*E$7 -> 0
B26: Irrigation
C27: Energy Cost | D27: 2990 | F27: kWh | G27: 0.17 | I27: 508.3 | J27: =E27*H27 -> 0 | K27: 0 | M27: 0 | N27: =J27*L27 -> 0 | O27: 508.3 | P27: =+J27-N27 -> 0 | Q27: 50830 | R27: =+J27*E$7 -> 0
B28: Machinery Labor
C29: Tractors/Self-Propelled | D29: 0.5 | F29: Hour | G29: 12 | I29: 6 | J29: =E29*H29 -> 0 | K29: 0 | M29: 0 | N29: =J29*L29 -> 0 | O29: 6 | P29: =+J29-N29 -> 0 | Q29: 600 | R29: =+J29*E$7 -> 0
C30: Other Labor | D30: 0 | F30: Hour | G30: 8.5 | I30: 0 | J30: =E30*H30 -> 0 | K30: 0 | M30: 0 | N30: =J30*L30 -> 0 | O30: 0 | P30: =+J30-N30 -> 0 | Q30: 0 | R30: =+J30*E$7 -> 0
B32: Diesel Fuel
C33: Pickup/General Use Equipment | D33: 1 | F33: Acre | G33: 0 | I33: 0 | J33: =E33*H33 -> 0 | K33: 0 | M33: 0 | N33: =J33*L33 -> 0 | O33: 0 | P33: =+J33-N33 -> 0 | Q33: 0 | R33: =+J33*E$7 -> 0
C34: Tractors/Self-Propelled | D34: 2.48 | F34: Gallon | G34: 2.14 | I34: 5.3072 | J34: =E34*H34 -> 0 | K34: 0 | M34: 0 | N34: =J34*L34 -> 0 | O34: 5.3072 | P34: =+J34-N34 -> 0 | Q34: 530.72 | R34: =+J34*E$7 -> 0
B36: Gasoline
C37: Pickup/General Use Equipment | D37: 1 | F37: Acre | G37: 23.62116013 | I37: 23.62116013 | J37: =E37*H37 -> 0 | K37: 0 | M37: 0 | N37: =J37*L37 -> 0 | O37: 23.62116013 | P37: =+J37-N37 -> 0 | Q37: 2362.116013 | R37: =+J37*E$7 -> 0
C38: Tractors/Self-Propelled | D38: 0 | F38: Gallon | G38: 2.39 | I38: 0 | J38: =E38*H38 -> 0 | K38: 0 | M38: 0 | N38: =J38*L38 -> 0 | O38: 0 | P38: =+J38-N38 -> 0 | Q38: 0 | R38: =+J38*E$7 -> 0
B40: Repairs & Maintenance
C41: Pickup/General Use Equipment | D41: 1 | F41: Acre | G41: 4.94208 | I41: 4.94208 | J41: =E41*H41 -> 0 | K41: 0 | M41: 0 | N41: =J41*L41 -> 0 | O41: 4.94208 | P41: =+J41-N41 -> 0 | Q41: 494.208 | R41: =+J41*E$7 -> 0
C42: Irrigation Equipment | D42: 1 | F42: Acre | G42: 31.096 | I42: 31.096 | J42: 0 | K42: 0 | M42: 0 | N42: 0 | O42: 31.096 | P42: 0 | Q42: 3109.6 | R42: 0
C43: Tractors/Self-Propelled | D43: 1 | F43: Acre | G43: 3.339756463 | I43: 3.339756463 | J43: 0 | K43: 0 | M43: 0 | N43: 0 | O43: 3.339756463 | P43: 0 | Q43: 333.9756463 | R43: 0
C44: Implements | D44: 1 | F44: Acre | G44: 1.621313528 | I44: 1.621313528 | J44: 0 | K44: 0 | M44: 0 | N44: 0 | O44: 1.621313528 | P44: 0 | Q44: 162.1313528 | R44: 0
I45: 0 | J45: 0 | K45: 0 | M45: 0 | N45: 0 | O45: 0 | P45: 0 | Q45: 0 | R45: 0
I46: 0 | J46: 0 | K46: 0 | M46: 0 | N46: 0 | O46: 0 | P46: 0 | Q46: 0 | R46: 0
B47: Interest on Credit Line | G47: 0.065 | I47: 2.486532097 | J47: =+SUM(J17:J46)/2*H47 -> 0 | M47: 0 | N47: =+SUM(N17:N46)/2*L47 -> 0 | O47: 2.486532097 | P47: =+SUM(P17:P46)/2*L47 -> 0 | Q47: 248.6532097 | R47: =+J47*E$7 -> 0
A48: Total Variable Costs | I48: 976.4340422 | J48: =SUM(J18:J47) -> 0 | M48: 0 | N48: =SUM(N18:N47) -> 0 | O48: 976.4340422 | P48: =SUM(P18:P47) -> 0 | Q48: 97643.40422 | R48: =SUM(R18:R47) -> 0
A49: Planned Returns Above Variable Costs: | I49: -765.7140422 | J49: =+J13-J48 -> 0 | M49: 0 | N49: =+N13-N48 -> 0 | O49: -765.7140422 | P49: =+P13-P48 -> 0 | Q49: -76571.40422 | R49: =+R13-R48 -> 0
B50: Breakeven Price to Cover Variable Costs | G50: 61.02712764 | H50: =IF(E10=0,"n/a",(YVarExp-(YTotExp+YTotRet-J10))/E10) -> n/a | I50: AUM
Q51: Enterprise | R51: Enterprise
A52: FIXED COSTS | D52: Quantity | E52: Quantity | F52: Units | G52: $/Unit | H52: $/Unit | I52: Total | J52: Total | K52: Share | L52: Share | M52: Landlord | N52: Landlord | O52: Tenant | P52: Tenant | Q52: Total | R52: Total
B53: Machinery Depreciation
C54: Pickup/General Use Equipment | D54: 1 | F54: Acre | G54: 25.74 | I54: 25.74 | J54: =E54*H54 -> 0 | K54: 0 | M54: 0 | N54: =J54*L54 -> 0 | O54: 25.74 | P54: =+J54-N54 -> 0 | Q54: 2574 | R54: =+J54*E$7 -> 0
C55: Irrigation Equipment | D55: 1 | F55: Acre | G55: 48.5331 | I55: 48.5331 | J55: 0 | K55: 0 | M55: 0 | N55: =J55*L55 -> 0 | O55: 48.5331 | P55: 0 | Q55: 4853.31 | R55: 0
C56: Tractors/Self-Propelled | D56: 1 | F56: Acre | G56: 4.226309457 | I56: 4.226309457 | J56: 0 | K56: 0 | M56: 0 | N56: =J56*L56 -> 0 | O56: 4.226309457 | P56: 0 | Q56: 422.6309457 | R56: 0
C57: Implements | D57: 1 | F57: Acre | G57: 1.42237217 | I57: 1.42237217 | J57: 0 | K57: 0 | M57: 0 | N57: =J57*L57 -> 0 | O57: 1.42237217 | P57: 0 | Q57: 142.237217 | R57: 0
B58: Equipment Investment
C59: Pickup/General Use Equipment | D59: 107.25 | F59: Dollars | G59: 0.065 | I59: 6.97125 | J59: =E59*H59 -> 0 | K59: 0 | M59: 0 | N59: =J59*L59 -> 0 | O59: 6.97125 | P59: =+J59-N59 -> 0 | Q59: 697.125 | R59: =+J59*E$7 -> 0
C60: Irrigation Equipment | D60: 363.99825 | F60: Dollars | G60: 0.065 | I60: 23.65988625 | J60: 0 | K60: 0 | M60: 0 | N60: =J60*L60 -> 0 | O60: 23.65988625 | P60: 0 | Q60: 2365.988625 | R60: 0
C61: Tractors/Self-Propelled | D61: 32.48162434 | F61: Dollars | G61: 0.065 | I61: 2.111305582 | J61: 0 | K61: 0 | M61: 0 | N61: =J61*L61 -> 0 | O61: 2.111305582 | P61: 0 | Q61: 211.1305582 | R61: 0
C62: Implements | D62: 17.12248578 | F62: Dollars | G62: 0.065 | I62: 1.112961576 | J62: 0 | K62: 0 | M62: 0 | N62: =J62*L62 -> 0 | O62: 1.112961576 | P62: 0 | Q62: 111.2961576 | R62: 0
B63: Salaried Labor | D63: 1 | F63: Acre | G63: 0 | I63: 0 | J63: 0 | K63: 0 | M63: 0 | N63: =J63*L63 -> 0 | O63: 0 | P63: =+J63-N63 -> 0 | Q63: 0 | R63: =+J63*E$7 -> 0
B64: Management Fee, Owner/Operator Labor | D64: 1 | F64: Acre | G64: 0 | I64: 0 | J64: 0 | K64: 0 | M64: 0 | N64: 0 | O64: 0 | P64: 0 | Q64: 0 | R64: 0
B65: Allocated Establishment Cost | D65: 1 | F65: Acre | G65: 0 | I65: 0 | J65: 0 | K65: 0 | M65: 0 | N65: 0 | O65: 0 | P65: 0 | Q65: 0 | R65: 0
B66: Irrigated Winter Garden Rent | D66: 1 | F66: Acre | G66: 50 | I66: 50 | J66: 0 | K66: 0 | M66: 0 | N66: 0 | O66: 50 | P66: 0 | Q66: 5000 | R66: 0
B67: Property Taxes | D67: 1 | F67: Acre | G67: 0 | I67: 0 | J67: 0 | K67: 0 | M67: 0 | N67: 0 | O67: 0 | P67: 0 | Q67: 0 | R67: 0
B68: Whole Farm Insurance | D68: 1 | F68: Acre | G68: 0 | I68: 0 | J68: 0 | K68: 0 | M68: 0 | N68: 0 | O68: 0 | P68: 0 | Q68: 0 | R68: 0
D69: 1 | G69: 0 | I69: 0 | J69: 0 | K69: 0 | M69: 0 | N69: 0 | O69: 0 | P69: 0 | Q69: 0 | R69: 0
D70: 1 | G70: 0 | I70: 0 | J70: =E70*H70 -> 0 | K70: 0 | M70: 0 | N70: 0 | O70: 0 | P70: 0 | Q70: 0 | R70: 0
A71: Total Fixed Costs | I71: 163.777185 | J71: =+SUM(J54:J70) -> 0 | M71: 0 | N71: =+SUM(N54:N70) -> 0 | O71: 163.777185 | P71: =+SUM(P54:P70) -> 0 | Q71: 16377.7185 | R71: =+SUM(R54:R70) -> 0
A72: Total Specified Costs | I72: 1140.211227 | J72: =+J48+J71 -> 0 | M72: 0 | N72: =+N48+N71 -> 0 | O72: 1140.211227 | P72: =+P48+P71 -> 0 | Q72: 114021.1227 | R72: =+R48+R71 -> 0
A74: Returns Above Specified Costs | I74: -929.4912273 | J74: =+J13-J72 -> 0 | M74: 0 | N74: =+N13-N72 -> 0 | O74: -929.4912273 | P74: =+P13-P72 -> 0 | Q74: -92949.12273 | R74: =+R13-R72 -> 0
A76: Breakeven Price to Cover Total Costs | G76: 71.2632017 | H76: =IF(E10=0,"n/a",(YTotExp-(YTotExp+YTotRet-J10))/E10) -> n/a | I76: AUM
D78: Example Breakeven Prices
B79: Example | C79: Example | D79: To Cover | G79: To Cover
B80: Yield | C80: Yield | D80: Variable | G80: Total
B81: Percent | C81: AUM | D81: Costs | G81: Costs
B82: 0.75 | C82: 12 | D82: 81.36950352 | G82: 95.01760227
B83: 0.9 | C83: 14.4 | D83: 67.8079196 | G83: 79.18133523
B84: 1 | C84: 16 | D84: 61.02712764 | G84: 71.2632017
B85: 1.1 | C85: 17.6 | D85: 55.47920694 | G85: 64.78472882
B86: 1.25 | C86: 20 | D86: 48.82170211 | G86: 57.01056136
D88: Your Breakeven Prices
B89: Your | C89: Your | E89: To Cover | H89: To Cover
B90: Yield | C90: Yield | E90: Variable | H90: Total
B91: Percent | C91: AUM | E91: Costs | H91: Costs
B92: 0.75 | C92: =E10*YPER1 -> 0 | E92: =IF($E$10=0,0,(YVarExp-(YTotExp+YTotRet-J10))/($E$10*YPER1)) -> 0 | H92: =IF($E$10=0,0,(YTotExp-(YTotExp+YTotRet-J10))/($E$10*YPER1)) -> 0
B93: 0.9 | C93: =E10*YPER2 -> 0 | E93: =IF($E$10=0,0,(YVarExp-(YTotExp+YTotRet-J10))/($E$10*YPER2)) -> 0 | H93: =IF($E$10=0,0,(YTotExp-(YTotExp+YTotRet-J10))/($E$10*YPER2)) -> 0
B94: 1 | C94: =+E10 -> 0 | E94: =IF($E$10=0,0,(YVarExp-(YTotExp+YTotRet-J10))/($E$10*YPER3)) -> 0 | H94: =IF($E$10=0,0,(YTotExp-(YTotExp+YTotRet-J10))/($E$10*YPER3)) -> 0
B95: 1.1 | C95: =E10*YPER4 -> 0 | E95: =IF($E$10=0,0,(YVarExp-(YTotExp+YTotRet-J10))/($E$10*YPER4)) -> 0 | H95: =IF($E$10=0,0,(YTotExp-(YTotExp+YTotRet-J10))/($E$10*YPER4)) -> 0
B96: 1.25 | C96: =E10*YPER5 -> 0 | E96: =IF($E$10=0,0,(YVarExp-(YTotExp+YTotRet-J10))/($E$10*YPER5)) -> 0 | H96: =IF($E$10=0,0,(YTotExp-(YTotExp+YTotRet-J10))/($E$10*YPER5)) -> 0
A98: Developed by Rob Hogan, Associate Professor and Extension Economist, Texas A&M AgriLife Extension, 830-278-9151.
A100: Information presented is prepared solely as a general guide and not intended to recognize or predict the costs and returns from any one operation. Brand names are mentioned only as examples and imply no endorsement.

Sheet CoastalHayIrrigated
A1: Projections for Planning Purposes Only -- Not to be Used without Updating
A2: 2018 Estimated Costs and Returns per Acre
A3: Irrigated Bermudagrass Hay
A4: Enter your name for this budget in the cell above.
A5: Enter Your Values in the cells highlighed in MAROON.
E6: Your Acres | R6: Your
C7: Crop Acres | D7: 100 | L7: Your | Q7: Enterprise | R7: Enterprise
E8: Your | H8: Your | I8: Cash | J8: Your | K8: Landlord | L8: Landlord | N8: Your | P8: Your | Q8: Total | R8: Total
A9: REVENUE | D9: Quantity | E9: Quantity | F9: Units | G9: $/Unit | H9: $/Unit | I9: Total | J9: Total | K9: Share | L9: Share | M9: Landlord | N9: Landlord | O9: Tenant | P9: Tenant | Q9: (100 acres) | R9: ="(" & E7 & " acres)" -> ( acres)
B10: Bermuda Hay | D10: 12 | F10: Ton | G10: 250 | I10: 3000 | J10: =E10*H10 -> 0 | K10: 0 | M10: 0 | N10: =J10*L10 -> 0 | O10: 3000 | P10: =+J10-N10 -> 0 | Q10: 300000 | R10: =+J10*E$7 -> 0
D11: 0 | G11: 0 | I11: 0 | J11: 0 | K11: 0 | M11: 0 | N11: 0 | O11: 0 | P11: =+J11-N11 -> 0 | Q11: 0 | R11: 0
D12: 0 | G12: 0 | I12: 0 | J12: 0 | K12: 0 | M12: 0 | N12: 0 | O12: 0 | P12: 0 | Q12: 0 | R12: 0
A13: Total Revenue | I13: 3000 | J13: =SUM(J10:J12) -> 0 | M13: 0 | N13: =SUM(N10:N12) -> 0 | O13: 3000 | P13: =SUM(P10:P12) -> 0 | Q13: 300000 | R13: =SUM(R10:R12) -> 0
Q14: Enterprise | R14: Enterprise
A15: VARIABLE COSTS | D15: Quantity | E15: Quantity | F15: Units | G15: $/Unit | H15: $/Unit | I15: Total | J15: Total | K15: Share | L15: Share | M15: Landlord | N15: Landlord | O15: Tenant | P15: Tenant | Q15: Total | R15: Total
A16: Production Costs
B17: Fertilizer
C18: Fertilizer 22-6-17 | D18: 1816 | F18: Pound | G18: 0.2 | I18: 363.2 | J18: =E18*H18 -> 0 | K18: 0 | M18: 0 | N18: =J18*L18 -> 0 | O18: 363.2 | P18: =+J18-N18 -> 0 | Q18: 36320 | R18: =+J18*E$7 -> 0
B19: Herbicide
C20: Prowl H2O | D20: 4 | F20: Pint | G20: 5.63 | I20: 22.52 | J20: 0 | K20: 0 | M20: 0 | N20: 0 | O20: 22.52 | P20: 0 | Q20: 2252 | R20: 0
B21: Miscellaneous
C22: Miscellaneous Forage Overhead | D22: 1 | F22: Acre | G22: 4 | I22: 4 | J22: 0 | K22: 0 | M22: 0 | N22: 0 | O22: 4 | P22: 0 | Q22: 400 | R22: 0
D23: 0 | G23: 0 | I23: 0 | J23: 0 | K23: 0 | M23: 0 | N23: 0 | O23: 0 | P23: 0 | Q23: 0 | R23: 0
D24: 0 | G24: 0 | I24: 0 | J24: 0 | K24: 0 | M24: 0 | N24: 0 | O24: 0 | P24: 0 | Q24: 0 | R24: 0
D25: 0 | G25: 0 | I25: 0 | J25: =E25*H25 -> 0 | K25: 0 | M25: 0 | N25: =J25*L25 -> 0 | O25: 0 | P25: =+J25-N25 -> 0 | Q25: 0 | R25: =+J25*E$7 -> 0
B26: Irrigation
C27: Energy Cost | D27: 2990 | F27: kWh | G27: 0.17 | I27: 508.3 | J27: =E27*H27 -> 0 | K27: 0 | M27: 0 | N27: =J27*L27 -> 0 | O27: 508.3 | P27: =+J27-N27 -> 0 | Q27: 50830 | R27: =+J27*E$7 -> 0
C28: Irrigation Labor | D28: 0.184 | F28: Hour | G28: 11 | I28: 2.024 | J28: 0 | K28: 0 | M28: 0 | N28: 0 | O28: 2.024 | P28: 0 | Q28: 202.4 | R28: 0
B29: Machinery Labor
C30: Tractors/Self-Propelled | D30: 4.09 | F30: Hour | G30: 12 | I30: 49.08 | J30: =E30*H30 -> 0 | K30: 0 | M30: 0 | N30: =J30*L30 -> 0 | O30: 49.08 | P30: =+J30-N30 -> 0 | Q30: 4908 | R30: =+J30*E$7 -> 0
C31: Other Labor | D31: 0 | F31: Hour | G31: 8.5 | I31: 0 | J31: =E31*H31 -> 0 | K31: 0 | M31: 0 | N31: =J31*L31 -> 0 | O31: 0 | P31: =+J31-N31 -> 0 | Q31: 0 | R31: =+J31*E$7 -> 0
B33: Diesel Fuel
C34: Pickup/General Use Equipment | D34: 1 | F34: Acre | G34: 0 | I34: 0 | J34: =E34*H34 -> 0 | K34: 0 | M34: 0 | N34: =J34*L34 -> 0 | O34: 0 | P34: =+J34-N34 -> 0 | Q34: 0 | R34: =+J34*E$7 -> 0
C35: Tractors/Self-Propelled | D35: 17.89 | F35: Gallon | G35: 2.14 | I35: 38.2846 | J35: =E35*H35 -> 0 | K35: 0 | M35: 0 | N35: =J35*L35 -> 0 | O35: 38.2846 | P35: =+J35-N35 -> 0 | Q35: 3828.46 | R35: =+J35*E$7 -> 0
B37: Gasoline
C38: Pickup/General Use Equipment | D38: 1 | F38: Acre | G38: 23.62116013 | I38: 23.62116013 | J38: =E38*H38 -> 0 | K38: 0 | M38: 0 | N38: =J38*L38 -> 0 | O38: 23.62116013 | P38: =+J38-N38 -> 0 | Q38: 2362.116013 | R38: =+J38*E$7 -> 0
C39: Tractors/Self-Propelled | D39: 0 | F39: Gallon | G39: 2.39 | I39: 0 | J39: =E39*H39 -> 0 | K39: 0 | M39: 0 | N39: =J39*L39 -> 0 | O39: 0 | P39: =+J39-N39 -> 0 | Q39: 0 | R39: =+J39*E$7 -> 0
B41: Repairs & Maintenance
C42: Pickup/General Use Equipment | D42: 1 | F42: Acre | G42: 13.44 | I42: 13.44 | J42: =E42*H42 -> 0 | K42: 0 | M42: 0 | N42: =J42*L42 -> 0 | O42: 13.44 | P42: =+J42-N42 -> 0 | Q42: 1344 | R42: =+J42*E$7 -> 0
C43: Irrigation Equipment | D43: 1 | F43: Acre | G43: 31.096 | I43: 31.096 | J43: 0 | K43: 0 | M43: 0 | N43: 0 | O43: 31.096 | P43: 0 | Q43: 3109.6 | R43: 0
C44: Tractors/Self-Propelled | D44: 1 | F44: Acre | G44: 25.00982923 | I44: 25.00982923 | J44: 0 | K44: 0 | M44: 0 | N44: 0 | O44: 25.00982923 | P44: 0 | Q44: 2500.982923 | R44: 0
C45: Implements | D45: 1 | F45: Acre | G45: 14.89580715 | I45: 14.89580715 | J45: 0 | K45: 0 | M45: 0 | N45: 0 | O45: 14.89580715 | P45: 0 | Q45: 1489.580715 | R45: 0
I46: 0 | J46: 0 | K46: 0 | M46: 0 | N46: 0 | O46: 0 | P46: 0 | Q46: 0 | R46: 0
I47: 0 | J47: 0 | K47: 0 | M47: 0 | N47: 0 | O47: 0 | P47: 0 | Q47: 0 | R47: 0
B48: Interest on Credit Line | G48: 0.065 | I48: 10.78415217 | J48: =+SUM(J17:J47)/2*H48 -> 0 | M48: 0 | N48: =+SUM(N17:N47)/2*L48 -> 0 | O48: 10.78415217 | P48: =+SUM(P17:P47)/2*L48 -> 0 | Q48: 1078.415217 | R48: =+J48*E$7 -> 0
A49: Total Variable Costs | I49: 1106.255549 | J49: =SUM(J18:J48) -> 0 | M49: 0 | N49: =SUM(N18:N48) -> 0 | O49: 1106.255549 | P49: =SUM(P18:P48) -> 0 | Q49: 110625.5549 | R49: =SUM(R18:R48) -> 0
A50: Planned Returns Above Variable Costs: | I50: 1893.744451 | J50: =+J13-J49 -> 0 | M50: 0 | N50: =+N13-N49 -> 0 | O50: 1893.744451 | P50: =+P13-P49 -> 0 | Q50: 189374.4451 | R50: =+R13-R49 -> 0
B51: Breakeven Price to Cover Variable Costs | G51: 92.18796239 | H51: =IF(E10=0,"n/a",(YVarExp-(YTotExp+YTotRet-J10))/E10) -> n/a | I51: Ton
Q52: Enterprise | R52: Enterprise
A53: FIXED COSTS | D53: Quantity | E53: Quantity | F53: Units | G53: $/Unit | H53: $/Unit | I53: Total | J53: Total | K53: Share | L53: Share | M53: Landlord | N53: Landlord | O53: Tenant | P53: Tenant | Q53: Total | R53: Total
B54: Machinery Depreciation
C55: Pickup/General Use Equipment | D55: 1 | F55: Acre | G55: 25.74 | I55: 25.74 | J55: =E55*H55 -> 0 | K55: 0 | M55: 0 | N55: =J55*L55 -> 0 | O55: 25.74 | P55: =+J55-N55 -> 0 | Q55: 2574 | R55: =+J55*E$7 -> 0
C56: Irrigation Equipment | D56: 1 | F56: Acre | G56: 48.5331 | I56: 48.5331 | J56: 0 | K56: 0 | M56: 0 | N56: =J56*L56 -> 0 | O56: 48.5331 | P56: 0 | Q56: 4853.31 | R56: 0
C57: Tractors/Self-Propelled | D57: 1 | F57: Acre | G57: 25.01729034 | I57: 25.01729034 | J57: 0 | K57: 0 | M57: 0 | N57: =J57*L57 -> 0 | O57: 25.01729034 | P57: 0 | Q57: 2501.729034 | R57: 0
C58: Implements | D58: 1 | F58: Acre | G58: 20.47784656 | I58: 20.47784656 | J58: 0 | K58: 0 | M58: 0 | N58: =J58*L58 -> 0 | O58: 20.47784656 | P58: 0 | Q58: 2047.784656 | R58: 0
B59: Equipment Investment
C60: Pickup/General Use Equipment | D60: 107.25 | F60: Dollars | G60: 0.065 | I60: 6.97125 | J60: =E60*H60 -> 0 | K60: 0 | M60: 0 | N60: =J60*L60 -> 0 | O60: 6.97125 | P60: =+J60-N60 -> 0 | Q60: 697.125 | R60: =+J60*E$7 -> 0
C61: Irrigation Equipment | D61: 363.99825 | F61: Dollars | G61: 0.065 | I61: 23.65988625 | J61: 0 | K61: 0 | M61: 0 | N61: =J61*L61 -> 0 | O61: 23.65988625 | P61: 0 | Q61: 2365.988625 | R61: 0
C62: Tractors/Self-Propelled | D62: 194.4500722 | F62: Dollars | G62: 0.065 | I62: 12.63925469 | J62: 0 | K62: 0 | M62: 0 | N62: =J62*L62 -> 0 | O62: 12.63925469 | P62: 0 | Q62: 1263.925469 | R62: 0
C63: Implements | D63: 149.8406499 | F63: Dollars | G63: 0.065 | I63: 9.739642242 | J63: 0 | K63: 0 | M63: 0 | N63: =J63*L63 -> 0 | O63: 9.739642242 | P63: 0 | Q63: 973.9642242 | R63: 0
B64: Salaried Labor | D64: 1 | F64: Acre | G64: 0 | I64: 0 | J64: 0 | K64: 0 | M64: 0 | N64: =J64*L64 -> 0 | O64: 0 | P64: =+J64-N64 -> 0 | Q64: 0 | R64: =+J64*E$7 -> 0
B65: Management Fee, Owner/Operator Labor | D65: 1 | F65: Acre | G65: 0 | I65: 0 | J65: 0 | K65: 0 | M65: 0 | N65: 0 | O65: 0 | P65: 0 | Q65: 0 | R65: 0
B66: Allocated Establishment Cost | D66: 1 | F66: Acre | G66: 0 | I66: 0 | J66: 0 | K66: 0 | M66: 0 | N66: 0 | O66: 0 | P66: 0 | Q66: 0 | R66: 0
B67: Irrigated Winter Garden Rent | D67: 1 | F67: Acre | G67: 50 | I67: 50 | J67: 0 | K67: 0 | M67: 0 | N67: 0 | O67: 50 | P67: 0 | Q67: 5000 | R67: 0
B68: Property Taxes | D68: 1 | F68: Acre | G68: 0 | I68: 0 | J68: 0 | K68: 0 | M68: 0 | N68: 0 | O68: 0 | P68: 0 | Q68: 0 | R68: 0
B69: Whole Farm Insurance | D69: 1 | F69: Acre | G69: 0 | I69: 0 | J69: 0 | K69: 0 | M69: 0 | N69: 0 | O69: 0 | P69: 0 | Q69: 0 | R69: 0
D70: 1 | G70: 0 | I70: 0 | J70: 0 | K70: 0 | M70: 0 | N70: 0 | O70: 0 | P70: 0 | Q70: 0 | R70: 0
D71: 1 | G71: 0 | I71: 0 | J71: =E71*H71 -> 0 | K71: 0 | M71: 0 | N71: 0 | O71: 0 | P71: 0 | Q71: 0 | R71: 0
A72: Total Fixed Costs | I72: 222.7782701 | J72: =+SUM(J55:J71) -> 0 | M72: 0 | N72: =+SUM(N55:N71) -> 0 | O72: 222.7782701 | P72: =+SUM(P55:P71) -> 0 | Q72: 22277.82701 | R72: =+SUM(R55:R71) -> 0
A73: Total Specified Costs | I73: 1329.033819 | J73: =+J49+J72 -> 0 | M73: 0 | N73: =+N49+N72 -> 0 | O73: 1329.033819 | P73: =+P49+P72 -> 0 | Q73: 132903.3819 | R73: =+R49+R72 -> 0
A75: Returns Above Specified Costs | I75: 1670.966181 | J75: =+J13-J73 -> 0 | M75: 0 | N75: =+N13-N73 -> 0 | O75: 1670.966181 | P75: =+P13-P73 -> 0 | Q75: 167096.6181 | R75: =+R13-R73 -> 0
A77: Breakeven Price to Cover Total Costs | G77: 110.7528182 | H77: =IF(E10=0,"n/a",(YTotExp-(YTotExp+YTotRet-J10))/E10) -> n/a | I77: Ton
D79: Example Breakeven Prices
B80: Example | C80: Example | D80: To Cover | G80: To Cover
B81: Yield | C81: Yield | D81: Variable | G81: Total
B82: Percent | C82: Ton | D82: Costs | G82: Costs
B83: 0.75 | C83: 9 | D83: 122.9172832 | G83: 147.6704243
B84: 0.9 | C84: 10.8 | D84: 102.4310693 | G84: 123.0586869
B85: 1 | C85: 12 | D85: 92.18796239 | G85: 110.7528182
B86: 1.1 | C86: 13.2 | D86: 83.80723854 | G86: 100.6843802
B87: 1.25 | C87: 15 | D87: 73.75036991 | G87: 88.60225459
D89: Your Breakeven Prices
B90: Your | C90: Your | E90: To Cover | H90: To Cover
B91: Yield | C91: Yield | E91: Variable | H91: Total
B92: Percent | C92: Ton | E92: Costs | H92: Costs
B93: 0.75 | C93: =E10*YPER1 -> 0 | E93: =IF($E$10=0,0,(YVarExp-(YTotExp+YTotRet-J10))/($E$10*YPER1)) -> 0 | H93: =IF($E$10=0,0,(YTotExp-(YTotExp+YTotRet-J10))/($E$10*YPER1)) -> 0
B94: 0.9 | C94: =E10*YPER2 -> 0 | E94: =IF($E$10=0,0,(YVarExp-(YTotExp+YTotRet-J10))/($E$10*YPER2)) -> 0 | H94: =IF($E$10=0,0,(YTotExp-(YTotExp+YTotRet-J10))/($E$10*YPER2)) -> 0
B95: 1 | C95: =+E10 -> 0 | E95: =IF($E$10=0,0,(YVarExp-(YTotExp+YTotRet-J10))/($E$10*YPER3)) -> 0 | H95: =IF($E$10=0,0,(YTotExp-(YTotExp+YTotRet-J10))/($E$10*YPER3)) -> 0
B96: 1.1 | C96: =E10*YPER4 -> 0 | E96: =IF($E$10=0,0,(YVarExp-(YTotExp+YTotRet-J10))/($E$10*YPER4)) -> 0 | H96: =IF($E$10=0,0,(YTotExp-(YTotExp+YTotRet-J10))/($E$10*YPER4)) -> 0
B97: 1.25 | C97: =E10*YPER5 -> 0 | E97: =IF($E$10=0,0,(YVarExp-(YTotExp+YTotRet-J10))/($E$10*YPER5)) -> 0 | H97: =IF($E$10=0,0,(YTotExp-(YTotExp+YTotRet-J10))/($E$10*YPER5)) -> 0
A99: Developed by Rob Hogan, Associate Professor and Extension Economist, Texas A&M AgriLife Extension, 830-278-9151.
A101: Information presented is prepared solely as a general guide and not intended to recognize or predict the costs and returns from any one operation. Brand names are mentioned only as examples and imply no endorsement.

Sheet CoastalEstablishDryland
A1: Projections for Planning Purposes Only -- Not to be Used without Updating
A2: 2018 Estimated Costs and Returns per Acre
A3: Dryland Coastal Bermudagrass Establishment
A4: Enter your name for this budget in the cell above.
A5: Enter Your Values in the cells highlighed in MAROON.
E6: Your Acres | R6: Your
C7: Crop Acres | D7: 100 | L7: Your | Q7: Enterprise | R7: Enterprise
E8: Your | H8: Your | I8: Cash | J8: Your | K8: Landlord | L8: Landlord | N8: Your | P8: Your | Q8: Total | R8: Total
A9: REVENUE | D9: Quantity | E9: Quantity | F9: Units | G9: $/Unit | H9: $/Unit | I9: Total | J9: Total | K9: Share | L9: Share | M9: Landlord | N9: Landlord | O9: Tenant | P9: Tenant | Q9: (100 acres) | R9: ="(" & E7 & " acres)" -> ( acres)
B10: 0 | D10: 0 | G10: 0 | I10: 0 | J10: =E10*H10 -> 0 | K10: 0 | M10: 0 | N10: =J10*L10 -> 0 | O10: 0 | P10: =+J10-N10 -> 0 | Q10: 0 | R10: =+J10*E$7 -> 0
D11: 0 | G11: 0 | I11: 0 | J11: 0 | K11: 0 | M11: 0 | N11: 0 | O11: 0 | P11: =+J11-N11 -> 0 | Q11: 0 | R11: 0
D12: 0 | G12: 0 | I12: 0 | J12: 0 | K12: 0 | M12: 0 | N12: 0 | O12: 0 | P12: 0 | Q12: 0 | R12: 0
A13: Total Revenue | I13: 0 | J13: =SUM(J10:J12) -> 0 | M13: 0 | N13: =SUM(N10:N12) -> 0 | O13: 0 | P13: =SUM(P10:P12) -> 0 | Q13: 0 | R13: =SUM(R10:R12) -> 0
Q14: Enterprise | R14: Enterprise
A15: VARIABLE COSTS | D15: Quantity | E15: Quantity | F15: Units | G15: $/Unit | H15: $/Unit | I15: Total | J15: Total | K15: Share | L15: Share | M15: Landlord | N15: Landlord | O15: Tenant | P15: Tenant | Q15: Total | R15: Total
A16: Production Costs
B17: Fertilizer
C18: Fertilizer 22-6-17 | D18: 353 | F18: Pound | G18: 0.2 | I18: 70.6 | J18: =E18*H18 -> 0 | K18: 0 | M18: 0 | N18: =J18*L18 -> 0 | O18: 70.6 | P18: =+J18-N18 -> 0 | Q18: 7060 | R18: =+J18*E$7 -> 0
B19: Custom
C20: Custom Sprigging | D20: 1 | F20: Acre | G20: 100 | I20: 100 | J20: 0 | K20: 0 | M20: 0 | N20: 0 | O20: 100 | P20: 0 | Q20: 10000 | R20: 0
B21: Seed
C22: Coastal Bermudagrass Sprigs | D22: 30 | F22: Bushel | G22: 0.75 | I22: 22.5 | J22: 0 | K22: 0 | M22: 0 | N22: 0 | O22: 22.5 | P22: 0 | Q22: 2250 | R22: 0
B23: Herbicide
C24: Prowl H2O | D24: 4 | F24: Pint | G24: 5.63 | I24: 22.52 | J24: 0 | K24: 0 | M24: 0 | N24: 0 | O24: 22.52 | P24: 0 | Q24: 2252 | R24: 0
D25: 0 | G25: 0 | I25: 0 | J25: 0 | K25: 0 | M25: 0 | N25: 0 | O25: 0 | P25: 0 | Q25: 0 | R25: 0
D26: 0 | G26: 0 | I26: 0 | J26: 0 | K26: 0 | M26: 0 | N26: 0 | O26: 0 | P26: 0 | Q26: 0 | R26: 0
D27: 0 | G27: 0 | I27: 0 | J27: =E27*H27 -> 0 | K27: 0 | M27: 0 | N27: =J27*L27 -> 0 | O27: 0 | P27: =+J27-N27 -> 0 | Q27: 0 | R27: =+J27*E$7 -> 0
B28: Machinery Labor
C29: Tractors/Self-Propelled | D29: 0.39 | F29: Hour | G29: 12 | I29: 4.68 | J29: =E29*H29 -> 0 | K29: 0 | M29: 0 | N29: =J29*L29 -> 0 | O29: 4.68 | P29: =+J29-N29 -> 0 | Q29: 468 | R29: =+J29*E$7 -> 0
C30: Other Labor | D30: 0 | F30: Hour | G30: 8.5 | I30: 0 | J30: =E30*H30 -> 0 | K30: 0 | M30: 0 | N30: =J30*L30 -> 0 | O30: 0 | P30: =+J30-N30 -> 0 | Q30: 0 | R30: =+J30*E$7 -> 0
B32: Diesel Fuel
C33: Pickup/General Use Equipment | D33: 1 | F33: Acre | G33: 0 | I33: 0 | J33: =E33*H33 -> 0 | K33: 0 | M33: 0 | N33: =J33*L33 -> 0 | O33: 0 | P33: =+J33-N33 -> 0 | Q33: 0 | R33: =+J33*E$7 -> 0
C34: Tractors/Self-Propelled | D34: 2.88 | F34: Gallon | G34: 2.14 | I34: 6.1632 | J34: =E34*H34 -> 0 | K34: 0 | M34: 0 | N34: =J34*L34 -> 0 | O34: 6.1632 | P34: =+J34-N34 -> 0 | Q34: 616.32 | R34: =+J34*E$7 -> 0
B36: Gasoline
C37: Pickup/General Use Equipment | D37: 1 | F37: Acre | G37: 23.62116013 | I37: 23.62116013 | J37: =E37*H37 -> 0 | K37: 0 | M37: 0 | N37: =J37*L37 -> 0 | O37: 23.62116013 | P37: =+J37-N37 -> 0 | Q37: 2362.116013 | R37: =+J37*E$7 -> 0
C38: Tractors/Self-Propelled | D38: 0 | F38: Gallon | G38: 2.39 | I38: 0 | J38: =E38*H38 -> 0 | K38: 0 | M38: 0 | N38: =J38*L38 -> 0 | O38: 0 | P38: =+J38-N38 -> 0 | Q38: 0 | R38: =+J38*E$7 -> 0
B40: Repairs & Maintenance
C41: Pickup/General Use Equipment | D41: 1 | F41: Acre | G41: 13.44 | I41: 13.44 | J41: =E41*H41 -> 0 | K41: 0 | M41: 0 | N41: =J41*L41 -> 0 | O41: 13.44 | P41: =+J41-N41 -> 0 | Q41: 1344 | R41: =+J41*E$7 -> 0
C42: Irrigation Equipment | D42: 1 | F42: Acre | G42: 0 | I42: 0 | J42: 0 | K42: 0 | M42: 0 | N42: 0 | O42: 0 | P42: 0 | Q42: 0 | R42: 0
C43: Tractors/Self-Propelled | D43: 1 | F43: Acre | G43: 6.136333717 | I43: 6.136333717 | J43: 0 | K43: 0 | M43: 0 | N43: 0 | O43: 6.136333717 | P43: 0 | Q43: 613.6333717 | R43: 0
C44: Implements | D44: 1 | F44: Acre | G44: 6.047651793 | I44: 6.047651793 | J44: 0 | K44: 0 | M44: 0 | N44: 0 | O44: 6.047651793 | P44: 0 | Q44: 604.7651793 | R44: 0
I45: 0 | J45: 0 | K45: 0 | M45: 0 | N45: 0 | O45: 0 | P45: 0 | Q45: 0 | R45: 0
I46: 0 | J46: 0 | K46: 0 | M46: 0 | N46: 0 | O46: 0 | P46: 0 | Q46: 0 | R46: 0
B47: Interest on Credit Line | G47: 0.065 | I47: 10.69412676 | J47: =+SUM(J17:J46)/2*H47 -> 0 | M47: 0 | N47: =+SUM(N17:N46)/2*L47 -> 0 | O47: 10.69412676 | P47: =+SUM(P17:P46)/2*L47 -> 0 | Q47: 1069.412676 | R47: =+J47*E$7 -> 0
A48: Total Variable Costs | I48: 286.4024724 | J48: =SUM(J18:J47) -> 0 | M48: 0 | N48: =SUM(N18:N47) -> 0 | O48: 286.4024724 | P48: =SUM(P18:P47) -> 0 | Q48: 28640.24724 | R48: =SUM(R18:R47) -> 0
A49: Planned Returns Above Variable Costs: | I49: -286.4024724 | J49: =+J13-J48 -> 0 | M49: 0 | N49: =+N13-N48 -> 0 | O49: -286.4024724 | P49: =+P13-P48 -> 0 | Q49: -28640.24724 | R49: =+R13-R48 -> 0
B50: Breakeven Price to Cover Variable Costs | G50: n/a | H50: =IF(E10=0,"n/a",(YVarExp-(YTotExp+YTotRet-J10))/E10) -> n/a
Q51: Enterprise | R51: Enterprise
A52: FIXED COSTS | D52: Quantity | E52: Quantity | F52: Units | G52: $/Unit | H52: $/Unit | I52: Total | J52: Total | K52: Share | L52: Share | M52: Landlord | N52: Landlord | O52: Tenant | P52: Tenant | Q52: Total | R52: Total
B53: Machinery Depreciation
C54: Pickup/General Use Equipment | D54: 1 | F54: Acre | G54: 25.74 | I54: 25.74 | J54: =E54*H54 -> 0 | K54: 0 | M54: 0 | N54: =J54*L54 -> 0 | O54: 25.74 | P54: =+J54-N54 -> 0 | Q54: 2574 | R54: =+J54*E$7 -> 0
C55: Tractors/Self-Propelled | D55: 1 | F55: Acre | G55: 7.249262353 | I55: 7.249262353 | J55: 0 | K55: 0 | M55: 0 | N55: =J55*L55 -> 0 | O55: 7.249262353 | P55: 0 | Q55: 724.9262353 | R55: 0
C56: Implements | D56: 1 | F56: Acre | G56: 7.269874679 | I56: 7.269874679 | J56: 0 | K56: 0 | M56: 0 | N56: =J56*L56 -> 0 | O56: 7.269874679 | P56: 0 | Q56: 726.9874679 | R56: 0
B57: Equipment Investment
C58: Pickup/General Use Equipment | D58: 107.25 | F58: Dollars | G58: 0.065 | I58: 6.97125 | J58: =E58*H58 -> 0 | K58: 0 | M58: 0 | N58: =J58*L58 -> 0 | O58: 6.97125 | P58: =+J58-N58 -> 0 | Q58: 697.125 | R58: =+J58*E$7 -> 0
C59: Tractors/Self-Propelled | D59: 56.03140255 | F59: Dollars | G59: 0.065 | I59: 3.642041166 | J59: 0 | K59: 0 | M59: 0 | N59: =J59*L59 -> 0 | O59: 3.642041166 | P59: 0 | Q59: 364.2041166 | R59: 0
C60: Implements | D60: 32.98011883 | F60: Dollars | G60: 0.065 | I60: 2.143707724 | J60: 0 | K60: 0 | M60: 0 | N60: =J60*L60 -> 0 | O60: 2.143707724 | P60: 0 | Q60: 214.3707724 | R60: 0
B61: Salaried Labor | D61: 1 | F61: Acre | G61: 0 | I61: 0 | J61: 0 | K61: 0 | M61: 0 | N61: =J61*L61 -> 0 | O61: 0 | P61: =+J61-N61 -> 0 | Q61: 0 | R61: =+J61*E$7 -> 0
B62: Management Fee, Owner/Operator Labor | D62: 1 | F62: Acre | G62: 0 | I62: 0 | J62: 0 | K62: 0 | M62: 0 | N62: 0 | O62: 0 | P62: 0 | Q62: 0 | R62: 0
B63: Allocated Establishment Cost | D63: 1 | F63: Acre | G63: 0 | I63: 0 | J63: 0 | K63: 0 | M63: 0 | N63: 0 | O63: 0 | P63: 0 | Q63: 0 | R63: 0
B64: Dryland Winter Garden Rent | D64: 1 | F64: Acre | G64: 20 | I64: 20 | J64: 0 | K64: 0 | M64: 0 | N64: 0 | O64: 20 | P64: 0 | Q64: 2000 | R64: 0
B65: Property Taxes | D65: 1 | F65: Acre | G65: 0 | I65: 0 | J65: 0 | K65: 0 | M65: 0 | N65: 0 | O65: 0 | P65: 0 | Q65: 0 | R65: 0
B66: Whole Farm Insurance | D66: 1 | F66: Acre | G66: 0 | I66: 0 | J66: 0 | K66: 0 | M66: 0 | N66: 0 | O66: 0 | P66: 0 | Q66: 0 | R66: 0
D67: 1 | G67: 0 | I67: 0 | J67: 0 | K67: 0 | M67: 0 | N67: 0 | O67: 0 | P67: 0 | Q67: 0 | R67: 0
D68: 1 | G68: 0 | I68: 0 | J68: =E68*H68 -> 0 | K68: 0 | M68: 0 | N68: 0 | O68: 0 | P68: 0 | Q68: 0 | R68: 0
A69: Total Fixed Costs | I69: 73.01613592 | J69: =+SUM(J54:J68) -> 0 | M69: 0 | N69: =+SUM(N54:N68) -> 0 | O69: 73.01613592 | P69: =+SUM(P54:P68) -> 0 | Q69: 7301.613592 | R69: =+SUM(R54:R68) -> 0
A70: Total Specified Costs | I70: 359.4186083 | J70: =+J48+J69 -> 0 | M70: 0 | N70: =+N48+N69 -> 0 | O70: 359.4186083 | P70: =+P48+P69 -> 0 | Q70: 35941.86083 | R70: =+R48+R69 -> 0
A72: Returns Above Specified Costs | I72: -359.4186083 | J72: =+J13-J70 -> 0 | M72: 0 | N72: =+N13-N70 -> 0 | O72: -359.4186083 | P72: =+P13-P70 -> 0 | Q72: -35941.86083 | R72: =+R13-R70 -> 0
A74: Breakeven Price to Cover Total Costs | G74: n/a | H74: =IF(E10=0,"n/a",(YTotExp-(YTotExp+YTotRet-J10))/E10) -> n/a
D76: Example Breakeven Prices
B77: Example | C77: Example | D77: To Cover | G77: To Cover
B78: Yield | C78: Yield | D78: Variable | G78: Total
B79: Percent | D79: Costs | G79: Costs
B80: 0.75 | C80: 0 | D80: 0 | G80: 0
B81: 0.9 | C81: 0 | D81: 0 | G81: 0
B82: 1 | C82: 0 | D82: 0 | G82: 0
B83: 1.1 | C83: 0 | D83: 0 | G83: 0
B84: 1.25 | C84: 0 | D84: 0 | G84: 0
D86: Your Breakeven Prices
B87: Your | C87: Your | E87: To Cover | H87: To Cover
B88: Yield | C88: Yield | E88: Variable | H88: Total
B89: Percent | E89: Costs | H89: Costs
B90: 0.75 | C90: =E10*YPER1 -> 0 | E90: =IF($E$10=0,0,(YVarExp-(YTotExp+YTotRet-J10))/($E$10*YPER1)) -> 0 | H90: =IF($E$10=0,0,(YTotExp-(YTotExp+YTotRet-J10))/($E$10*YPER1)) -> 0
B91: 0.9 | C91: =E10*YPER2 -> 0 | E91: =IF($E$10=0,0,(YVarExp-(YTotExp+YTotRet-J10))/($E$10*YPER2)) -> 0 | H91: =IF($E$10=0,0,(YTotExp-(YTotExp+YTotRet-J10))/($E$10*YPER2)) -> 0
B92: 1 | C92: =+E10 -> 0 | E92: =IF($E$10=0,0,(YVarExp-(YTotExp+YTotRet-J10))/($E$10*YPER3)) -> 0 | H92: =IF($E$10=0,0,(YTotExp-(YTotExp+YTotRet-J10))/($E$10*YPER3)) -> 0
B93: 1.1 | C93: =E10*YPER4 -> 0 | E93: =IF($E$10=0,0,(YVarExp-(YTotExp+YTotRet-J10))/($E$10*YPER4)) -> 0 | H93: =IF($E$10=0,0,(YTotExp-(YTotExp+YTotRet-J10))/($E$10*YPER4)) -> 0
B94: 1.25 | C94: =E10*YPER5 -> 0 | E94: =IF($E$10=0,0,(YVarExp-(YTotExp+YTotRet-J10))/($E$10*YPER5)) -> 0 | H94: =IF($E$10=0,0,(YTotExp-(YTotExp+YTotRet-J10))/($E$10*YPER5)) -> 0
A96: Developed by Rob Hogan, Associate Professor and Extension Economist, Texas A&M AgriLife Extension, 830-278-9151.
A98: Information presented is prepared solely as a general guide and not intended to recognize or predict the costs and returns from any one operation. Brand names are mentioned only as examples and imply no endorsement.

Sheet CoastalEstablishIrrigated
A1: Projections for Planning Purposes Only -- Not to be Used without Updating
A2: 2018 Estimated Costs and Returns per Acre
A3: Irrigated Coastal Bermudagrass Establishment
A4: Enter your name for this budget in the cell above.
A5: Enter Your Values in the cells highlighed in MAROON.
E6: Your Acres | R6: Your
C7: Crop Acres | D7: 100 | L7: Your | Q7: Enterprise | R7: Enterprise
E8: Your | H8: Your | I8: Cash | J8: Your | K8: Landlord | L8: Landlord | N8: Your | P8: Your | Q8: Total | R8: Total
A9: REVENUE | D9: Quantity | E9: Quantity | F9: Units | G9: $/Unit | H9: $/Unit | I9: Total | J9: Total | K9: Share | L9: Share | M9: Landlord | N9: Landlord | O9: Tenant | P9: Tenant | Q9: (100 acres) | R9: ="(" & E7 & " acres)" -> ( acres)
B10: 0 | D10: 0 | G10: 0 | I10: 0 | J10: =E10*H10 -> 0 | K10: 0 | M10: 0 | N10: =J10*L10 -> 0 | O10: 0 | P10: =+J10-N10 -> 0 | Q10: 0 | R10: =+J10*E$7 -> 0
D11: 0 | G11: 0 | I11: 0 | J11: 0 | K11: 0 | M11: 0 | N11: 0 | O11: 0 | P11: =+J11-N11 -> 0 | Q11: 0 | R11: 0
D12: 0 | G12: 0 | I12: 0 | J12: 0 | K12: 0 | M12: 0 | N12: 0 | O12: 0 | P12: 0 | Q12: 0 | R12: 0
A13: Total Revenue | I13: 0 | J13: =SUM(J10:J12) -> 0 | M13: 0 | N13: =SUM(N10:N12) -> 0 | O13: 0 | P13: =SUM(P10:P12) -> 0 | Q13: 0 | R13: =SUM(R10:R12) -> 0
Q14: Enterprise | R14: Enterprise
A15: VARIABLE COSTS | D15: Quantity | E15: Quantity | F15: Units | G15: $/Unit | H15: $/Unit | I15: Total | J15: Total | K15: Share | L15: Share | M15: Landlord | N15: Landlord | O15: Tenant | P15: Tenant | Q15: Total | R15: Total
A16: Production Costs
B17: Fertilizer
C18: Fertilizer 22-6-17 | D18: 353 | F18: Pound | G18: 0.2 | I18: 70.6 | J18: =E18*H18 -> 0 | K18: 0 | M18: 0 | N18: =J18*L18 -> 0 | O18: 70.6 | P18: =+J18-N18 -> 0 | Q18: 7060 | R18: =+J18*E$7 -> 0
B19: Custom
C20: Custom Sprigging | D20: 1 | F20: Acre | G20: 100 | I20: 100 | J20: 0 | K20: 0 | M20: 0 | N20: 0 | O20: 100 | P20: 0 | Q20: 10000 | R20: 0
B21: Herbicide
C22: Prowl H2O | D22: 4 | F22: Pint | G22: 5.63 | I22: 22.52 | J22: 0 | K22: 0 | M22: 0 | N22: 0 | O22: 22.52 | P22: 0 | Q22: 2252 | R22: 0
B23: Seed
C24: Coastal Bermudagrass Sprigs | D24: 30 | F24: Bushel | G24: 0.75 | I24: 22.5 | J24: 0 | K24: 0 | M24: 0 | N24: 0 | O24: 22.5 | P24: 0 | Q24: 2250 | R24: 0
D25: 0 | G25: 0 | I25: 0 | J25: 0 | K25: 0 | M25: 0 | N25: 0 | O25: 0 | P25: 0 | Q25: 0 | R25: 0
D26: 0 | G26: 0 | I26: 0 | J26: 0 | K26: 0 | M26: 0 | N26: 0 | O26: 0 | P26: 0 | Q26: 0 | R26: 0
D27: 0 | G27: 0 | I27: 0 | J27: =E27*H27 -> 0 | K27: 0 | M27: 0 | N27: =J27*L27 -> 0 | O27: 0 | P27: =+J27-N27 -> 0 | Q27: 0 | R27: =+J27*E$7 -> 0
B28: Irrigation
C29: Energy Cost | D29: 585 | F29: kWh | G29: 0.17 | I29: 99.45 | J29: =E29*H29 -> 0 | K29: 0 | M29: 0 | N29: =J29*L29 -> 0 | O29: 99.45 | P29: =+J29-N29 -> 0 | Q29: 9945 | R29: =+J29*E$7 -> 0
B30: Machinery Labor
C31: Tractors/Self-Propelled | D31: 0.39 | F31: Hour | G31: 12 | I31: 4.68 | J31: =E31*H31 -> 0 | K31: 0 | M31: 0 | N31: =J31*L31 -> 0 | O31: 4.68 | P31: =+J31-N31 -> 0 | Q31: 468 | R31: =+J31*E$7 -> 0
C32: Other Labor | D32: 0 | F32: Hour | G32: 8.5 | I32: 0 | J32: =E32*H32 -> 0 | K32: 0 | M32: 0 | N32: =J32*L32 -> 0 | O32: 0 | P32: =+J32-N32 -> 0 | Q32: 0 | R32: =+J32*E$7 -> 0
B34: Diesel Fuel
C35: Pickup/General Use Equipment | D35: 1 | F35: Acre | G35: 0 | I35: 0 | J35: =E35*H35 -> 0 | K35: 0 | M35: 0 | N35: =J35*L35 -> 0 | O35: 0 | P35: =+J35-N35 -> 0 | Q35: 0 | R35: =+J35*E$7 -> 0
C36: Tractors/Self-Propelled | D36: 2.88 | F36: Gallon | G36: 2.14 | I36: 6.1632 | J36: =E36*H36 -> 0 | K36: 0 | M36: 0 | N36: =J36*L36 -> 0 | O36: 6.1632 | P36: =+J36-N36 -> 0 | Q36: 616.32 | R36: =+J36*E$7 -> 0
B38: Gasoline
C39: Pickup/General Use Equipment | D39: 1 | F39: Acre | G39: 23.62116013 | I39: 23.62116013 | J39: =E39*H39 -> 0 | K39: 0 | M39: 0 | N39: =J39*L39 -> 0 | O39: 23.62116013 | P39: =+J39-N39 -> 0 | Q39: 2362.116013 | R39: =+J39*E$7 -> 0
C40: Tractors/Self-Propelled | D40: 0 | F40: Gallon | G40: 2.39 | I40: 0 | J40: =E40*H40 -> 0 | K40: 0 | M40: 0 | N40: =J40*L40 -> 0 | O40: 0 | P40: =+J40-N40 -> 0 | Q40: 0 | R40: =+J40*E$7 -> 0
B42: Repairs & Maintenance
C43: Pickup/General Use Equipment | D43: 1 | F43: Acre | G43: 13.44 | I43: 13.44 | J43: =E43*H43 -> 0 | K43: 0 | M43: 0 | N43: =J43*L43 -> 0 | O43: 13.44 | P43: =+J43-N43 -> 0 | Q43: 1344 | R43: =+J43*E$7 -> 0
C44: Irrigation Equipment | D44: 1 | F44: Acre | G44: 6.084 | I44: 6.084 | J44: 0 | K44: 0 | M44: 0 | N44: 0 | O44: 6.084 | P44: 0 | Q44: 608.4 | R44: 0
C45: Tractors/Self-Propelled | D45: 1 | F45: Acre | G45: 6.136333717 | I45: 6.136333717 | J45: 0 | K45: 0 | M45: 0 | N45: 0 | O45: 6.136333717 | P45: 0 | Q45: 613.6333717 | R45: 0
C46: Implements | D46: 1 | F46: Acre | G46: 6.047651793 | I46: 6.047651793 | J46: 0 | K46: 0 | M46: 0 | N46: 0 | O46: 6.047651793 | P46: 0 | Q46: 604.7651793 | R46: 0
I47: 0 | J47: 0 | K47: 0 | M47: 0 | N47: 0 | O47: 0 | P47: 0 | Q47: 0 | R47: 0
I48: 0 | J48: 0 | K48: 0 | M48: 0 | N48: 0 | O48: 0 | P48: 0 | Q48: 0 | R48: 0
B49: Interest on Credit Line | G49: 0.065 | I49: 13.96185482 | J49: =+SUM(J17:J48)/2*H49 -> 0 | M49: 0 | N49: =+SUM(N17:N48)/2*L49 -> 0 | O49: 13.96185482 | P49: =+SUM(P17:P48)/2*L49 -> 0 | Q49: 1396.185482 | R49: =+J49*E$7 -> 0
A50: Total Variable Costs | I50: 395.2042005 | J50: =SUM(J18:J49) -> 0 | M50: 0 | N50: =SUM(N18:N49) -> 0 | O50: 395.2042005 | P50: =SUM(P18:P49) -> 0 | Q50: 39520.42005 | R50: =SUM(R18:R49) -> 0
A51: Planned Returns Above Variable Costs: | I51: -395.2042005 | J51: =+J13-J50 -> 0 | M51: 0 | N51: =+N13-N50 -> 0 | O51: -395.2042005 | P51: =+P13-P50 -> 0 | Q51: -39520.42005 | R51: =+R13-R50 -> 0
B52: Breakeven Price to Cover Variable Costs | G52: n/a | H52: =IF(E10=0,"n/a",(YVarExp-(YTotExp+YTotRet-J10))/E10) -> n/a
Q53: Enterprise | R53: Enterprise
A54: FIXED COSTS | D54: Quantity | E54: Quantity | F54: Units | G54: $/Unit | H54: $/Unit | I54: Total | J54: Total | K54: Share | L54: Share | M54: Landlord | N54: Landlord | O54: Tenant | P54: Tenant | Q54: Total | R54: Total
B55: Machinery Depreciation
C56: Pickup/General Use Equipment | D56: 1 | F56: Acre | G56: 25.74 | I56: 25.74 | J56: =E56*H56 -> 0 | K56: 0 | M56: 0 | N56: =J56*L56 -> 0 | O56: 25.74 | P56: =+J56-N56 -> 0 | Q56: 2574 | R56: =+J56*E$7 -> 0
C57: Irrigation Equipment | D57: 1 | F57: Acre | G57: 48.5331 | I57: 48.5331 | J57: 0 | K57: 0 | M57: 0 | N57: =J57*L57 -> 0 | O57: 48.5331 | P57: 0 | Q57: 4853.31 | R57: 0
C58: Tractors/Self-Propelled | D58: 1 | F58: Acre | G58: 7.249262353 | I58: 7.249262353 | J58: 0 | K58: 0 | M58: 0 | N58: =J58*L58 -> 0 | O58: 7.249262353 | P58: 0 | Q58: 724.9262353 | R58: 0
C59: Implements | D59: 1 | F59: Acre | G59: 7.269874679 | I59: 7.269874679 | J59: 0 | K59: 0 | M59: 0 | N59: =J59*L59 -> 0 | O59: 7.269874679 | P59: 0 | Q59: 726.9874679 | R59: 0
B60: Equipment Investment
C61: Pickup/General Use Equipment | D61: 107.25 | F61: Dollars | G61: 0.065 | I61: 6.97125 | J61: =E61*H61 -> 0 | K61: 0 | M61: 0 | N61: =J61*L61 -> 0 | O61: 6.97125 | P61: =+J61-N61 -> 0 | Q61: 697.125 | R61: =+J61*E$7 -> 0
C62: Irrigation Equipment | D62: 363.99825 | F62: Dollars | G62: 0.065 | I62: 23.65988625 | J62: 0 | K62: 0 | M62: 0 | N62: =J62*L62 -> 0 | O62: 23.65988625 | P62: 0 | Q62: 2365.988625 | R62: 0
C63: Tractors/Self-Propelled | D63: 56.03140255 | F63: Dollars | G63: 0.065 | I63: 3.642041166 | J63: 0 | K63: 0 | M63: 0 | N63: =J63*L63 -> 0 | O63: 3.642041166 | P63: 0 | Q63: 364.2041166 | R63: 0
C64: Implements | D64: 32.98011883 | F64: Dollars | G64: 0.065 | I64: 2.143707724 | J64: 0 | K64: 0 | M64: 0 | N64: =J64*L64 -> 0 | O64: 2.143707724 | P64: 0 | Q64: 214.3707724 | R64: 0
B65: Salaried Labor | D65: 1 | F65: Acre | G65: 0 | I65: 0 | J65: 0 | K65: 0 | M65: 0 | N65: =J65*L65 -> 0 | O65: 0 | P65: =+J65-N65 -> 0 | Q65: 0 | R65: =+J65*E$7 -> 0
B66: Management Fee, Owner/Operator Labor | D66: 1 | F66: Acre | G66: 0 | I66: 0 | J66: 0 | K66: 0 | M66: 0 | N66: 0 | O66: 0 | P66: 0 | Q66: 0 | R66: 0
B67: Allocated Establishment Cost | D67: 1 | F67: Acre | G67: 0 | I67: 0 | J67: 0 | K67: 0 | M67: 0 | N67: 0 | O67: 0 | P67: 0 | Q67: 0 | R67: 0
B68: Irrigated Winter Garden Rent | D68: 1 | F68: Acre | G68: 50 | I68: 50 | J68: 0 | K68: 0 | M68: 0 | N68: 0 | O68: 50 | P68: 0 | Q68: 5000 | R68: 0
B69: Property Taxes | D69: 1 | F69: Acre | G69: 0 | I69: 0 | J69: 0 | K69: 0 | M69: 0 | N69: 0 | O69: 0 | P69: 0 | Q69: 0 | R69: 0
B70: Whole Farm Insurance | D70: 1 | F70: Acre | G70: 0 | I70: 0 | J70: 0 | K70: 0 | M70: 0 | N70: 0 | O70: 0 | P70: 0 | Q70: 0 | R70: 0
D71: 1 | G71: 0 | I71: 0 | J71: 0 | K71: 0 | M71: 0 | N71: 0 | O71: 0 | P71: 0 | Q71: 0 | R71: 0
D72: 1 | G72: 0 | I72: 0 | J72: =E72*H72 -> 0 | K72: 0 | M72: 0 | N72: 0 | O72: 0 | P72: 0 | Q72: 0 | R72: 0
A73: Total Fixed Costs | I73: 175.2091222 | J73: =+SUM(J56:J72) -> 0 | M73: 0 | N73: =+SUM(N56:N72) -> 0 | O73: 175.2091222 | P73: =+SUM(P56:P72) -> 0 | Q73: 17520.91222 | R73: =+SUM(R56:R72) -> 0
A74: Total Specified Costs | I74: 570.4133226 | J74: =+J50+J73 -> 0 | M74: 0 | N74: =+N50+N73 -> 0 | O74: 570.4133226 | P74: =+P50+P73 -> 0 | Q74: 57041.33226 | R74: =+R50+R73 -> 0
A76: Returns Above Specified Costs | I76: -570.4133226 | J76: =+J13-J74 -> 0 | M76: 0 | N76: =+N13-N74 -> 0 | O76: -570.4133226 | P76: =+P13-P74 -> 0 | Q76: -57041.33226 | R76: =+R13-R74 -> 0
A78: Breakeven Price to Cover Total Costs | G78: n/a | H78: =IF(E10=0,"n/a",(YTotExp-(YTotExp+YTotRet-J10))/E10) -> n/a
D80: Example Breakeven Prices
B81: Example | C81: Example | D81: To Cover | G81: To Cover
B82: Yield | C82: Yield | D82: Variable | G82: Total
B83: Percent | D83: Costs | G83: Costs
B84: 0.75 | C84: 0 | D84: 0 | G84: 0
B85: 0.9 | C85: 0 | D85: 0 | G85: 0
B86: 1 | C86: 0 | D86: 0 | G86: 0
B87: 1.1 | C87: 0 | D87: 0 | G87: 0
B88: 1.25 | C88: 0 | D88: 0 | G88: 0
D90: Your Breakeven Prices
B91: Your | C91: Your | E91: To Cover | H91: To Cover
B92: Yield | C92: Yield | E92: Variable | H92: Total
B93: Percent | E93: Costs | H93: Costs
B94: 0.75 | C94: =E10*YPER1 -> 0 | E94: =IF($E$10=0,0,(YVarExp-(YTotExp+YTotRet-J10))/($E$10*YPER1)) -> 0 | H94: =IF($E$10=0,0,(YTotExp-(YTotExp+YTotRet-J10))/($E$10*YPER1)) -> 0
B95: 0.9 | C95: =E10*YPER2 -> 0 | E95: =IF($E$10=0,0,(YVarExp-(YTotExp+YTotRet-J10))/($E$10*YPER2)) -> 0 | H95: =IF($E$10=0,0,(YTotExp-(YTotExp+YTotRet-J10))/($E$10*YPER2)) -> 0
B96: 1 | C96: =+E10 -> 0 | E96: =IF($E$10=0,0,(YVarExp-(YTotExp+YTotRet-J10))/($E$10*YPER3)) -> 0 | H96: =IF($E$10=0,0,(YTotExp-(YTotExp+YTotRet-J10))/($E$10*YPER3)) -> 0
B97: 1.1 | C97: =E10*YPER4 -> 0 | E97: =IF($E$10=0,0,(YVarExp-(YTotExp+YTotRet-J10))/($E$10*YPER4)) -> 0 | H97: =IF($E$10=0,0,(YTotExp-(YTotExp+YTotRet-J10))/($E$10*YPER4)) -> 0
B98: 1.25 | C98: =E10*YPER5 -> 0 | E98: =IF($E$10=0,0,(YVarExp-(YTotExp+YTotRet-J10))/($E$10*YPER5)) -> 0 | H98: =IF($E$10=0,0,(YTotExp-(YTotExp+YTotRet-J10))/($E$10*YPER5)) -> 0
A100: Developed by Rob Hogan, Associate Professor and Extension Economist, Texas A&M AgriLife Extension, 830-278-9151.
A102: Information presented is prepared solely as a general guide and not intended to recognize or predict the costs and returns from any one operation. Brand names are mentioned only as examples and imply no endorsement.

Sheet CornDryland
A1: Projections for Planning Purposes Only -- Not to be Used without Updating
A2: 2018 Estimated Costs and Returns per Acre
A3: Dryland Corn
A4: Enter your name for this budget in the cell above.
A5: Enter Your Values in the cells highlighed in MAROON.
E6: Your Acres | R6: Your
C7: Crop Acres | D7: 100 | L7: Your | Q7: Enterprise | R7: Enterprise
E8: Your | H8: Your | I8: Cash | J8: Your | K8: Landlord | L8: Landlord | N8: Your | P8: Your | Q8: Total | R8: Total
A9: REVENUE | D9: Quantity | E9: Quantity | F9: Units | G9: $/Unit | H9: $/Unit | I9: Total | J9: Total | K9: Share | L9: Share | M9: Landlord | N9: Landlord | O9: Tenant | P9: Tenant | Q9: (100 acres) | R9: ="(" & E7 & " acres)" -> ( acres)
B10: Corn | D10: 55 | F10: Bushel | G10: 3.82 | I10: 210.1 | J10: =E10*H10 -> 0 | K10: 0 | M10: 0 | N10: =J10*L10 -> 0 | O10: 210.1 | P10: =+J10-N10 -> 0 | Q10: 21010 | R10: =+J10*E$7 -> 0
D11: 0 | G11: 0 | I11: 0 | J11: 0 | K11: 0 | M11: 0 | N11: 0 | O11: 0 | P11: =+J11-N11 -> 0 | Q11: 0 | R11: 0
D12: 0 | G12: 0 | I12: 0 | J12: 0 | K12: 0 | M12: 0 | N12: 0 | O12: 0 | P12: 0 | Q12: 0 | R12: 0
A13: Total Revenue | I13: 210.1 | J13: =SUM(J10:J12) -> 0 | M13: 0 | N13: =SUM(N10:N12) -> 0 | O13: 210.1 | P13: =SUM(P10:P12) -> 0 | Q13: 21010 | R13: =SUM(R10:R12) -> 0
Q14: Enterprise | R14: Enterprise
A15: VARIABLE COSTS | D15: Quantity | E15: Quantity | F15: Units | G15: $/Unit | H15: $/Unit | I15: Total | J15: Total | K15: Share | L15: Share | M15: Landlord | N15: Landlord | O15: Tenant | P15: Tenant | Q15: Total | R15: Total
A16: Production Costs
B17: Custom
C18: Haul Corn | D18: 55 | F18: Bushel | G18: 0.16 | I18: 8.8 | J18: =E18*H18 -> 0 | K18: 0 | M18: 0 | N18: =J18*L18 -> 0 | O18: 8.8 | P18: =+J18-N18 -> 0 | Q18: 880 | R18: =+J18*E$7 -> 0
B19: Fertilizer
C20: UAN(32% N) | D20: 1.375 | F20: CWT | G20: 17 | I20: 23.375 | J20: 0 | K20: 0 | M20: 0 | N20: 0 | O20: 23.375 | P20: 0 | Q20: 2337.5 | R20: 0
C21: Fertilizer 18-46-0 | D21: 87 | F21: Pound | G21: 0.24 | I21: 20.88 | J21: 0 | K21: 0 | M21: 0 | N21: 0 | O21: 20.88 | P21: 0 | Q21: 2088 | R21: 0
B22: Herbicide
C23: Glyphosate | D23: 4.4 | F23: Pint | G23: 2.25 | I23: 9.9 | J23: 0 | K23: 0 | M23: 0 | N23: 0 | O23: 9.9 | P23: 0 | Q23: 990 | R23: 0
B24: Miscellaneous
C25: Crop Insurance - Cotton Dry | D25: 1 | F25: Acre | G25: 19 | I25: 19 | J25: 0 | K25: 0 | M25: 0 | N25: 0 | O25: 19 | P25: 0 | Q25: 1900 | R25: 0
C26: Miscellaneous Corn Overhead | D26: 1 | F26: Acre | G26: 4 | I26: 4 | J26: 0 | K26: 0 | M26: 0 | N26: 0 | O26: 4 | P26: 0 | Q26: 400 | R26: 0
B27: Seed
C28: Corn Seed BtRR | D28: 20 | F28: Thousand | G28: 4.23 | I28: 84.6 | J28: 0 | K28: 0 | M28: 0 | N28: 0 | O28: 84.6 | P28: 0 | Q28: 8460 | R28: 0
D29: 0 | G29: 0 | I29: 0 | J29: 0 | K29: 0 | M29: 0 | N29: 0 | O29: 0 | P29: 0 | Q29: 0 | R29: 0
D30: 0 | G30: 0 | I30: 0 | J30: 0 | K30: 0 | M30: 0 | N30: 0 | O30: 0 | P30: 0 | Q30: 0 | R30: 0
D31: 0 | G31: 0 | I31: 0 | J31: =E31*H31 -> 0 | K31: 0 | M31: 0 | N31: =J31*L31 -> 0 | O31: 0 | P31: =+J31-N31 -> 0 | Q31: 0 | R31: =+J31*E$7 -> 0
B32: Machinery Labor
C33: Tractors/Self-Propelled | D33: 0.83 | F33: Hour | G33: 12 | I33: 9.96 | J33: =E33*H33 -> 0 | K33: 0 | M33: 0 | N33: =J33*L33 -> 0 | O33: 9.96 | P33: =+J33-N33 -> 0 | Q33: 996 | R33: =+J33*E$7 -> 0
C34: Other Labor | D34: 0.28 | F34: Hour | G34: 8.5 | I34: 2.38 | J34: =E34*H34 -> 0 | K34: 0 | M34: 0 | N34: =J34*L34 -> 0 | O34: 2.38 | P34: =+J34-N34 -> 0 | Q34: 238 | R34: =+J34*E$7 -> 0
B36: Diesel Fuel
C37: Pickup/General Use Equipment | D37: 1 | F37: Acre | G37: 0 | I37: 0 | J37: =E37*H37 -> 0 | K37: 0 | M37: 0 | N37: =J37*L37 -> 0 | O37: 0 | P37: =+J37-N37 -> 0 | Q37: 0 | R37: =+J37*E$7 -> 0
C38: Tractors/Self-Propelled | D38: 7.29 | F38: Gallon | G38: 2.14 | I38: 15.6006 | J38: =E38*H38 -> 0 | K38: 0 | M38: 0 | N38: =J38*L38 -> 0 | O38: 15.6006 | P38: =+J38-N38 -> 0 | Q38: 1560.06 | R38: =+J38*E$7 -> 0
B40: Gasoline
C41: Pickup/General Use Equipment | D41: 1 | F41: Acre | G41: 23.12561132 | I41: 23.12561132 | J41: =E41*H41 -> 0 | K41: 0 | M41: 0 | N41: =J41*L41 -> 0 | O41: 23.12561132 | P41: =+J41-N41 -> 0 | Q41: 2312.561132 | R41: =+J41*E$7 -> 0
C42: Tractors/Self-Propelled | D42: 0 | F42: Gallon | G42: 2.39 | I42: 0 | J42: =E42*H42 -> 0 | K42: 0 | M42: 0 | N42: =J42*L42 -> 0 | O42: 0 | P42: =+J42-N42 -> 0 | Q42: 0 | R42: =+J42*E$7 -> 0
B44: Repairs & Maintenance
C45: Pickup/General Use Equipment | D45: 1 | F45: Acre | G45: 4.8384 | I45: 4.8384 | J45: =E45*H45 -> 0 | K45: 0 | M45: 0 | N45: =J45*L45 -> 0 | O45: 4.8384 | P45: =+J45-N45 -> 0 | Q45: 483.84 | R45: =+J45*E$7 -> 0
C46: Irrigation Equipment | D46: 1 | F46: Acre | G46: 0 | I46: 0 | J46: 0 | K46: 0 | M46: 0 | N46: 0 | O46: 0 | P46: 0 | Q46: 0 | R46: 0
C47: Tractors/Self-Propelled | D47: 1 | F47: Acre | G47: 23.49245323 | I47: 23.49245323 | J47: 0 | K47: 0 | M47: 0 | N47: 0 | O47: 23.49245323 | P47: 0 | Q47: 2349.245323 | R47: 0
C48: Implements | D48: 1 | F48: Acre | G48: 13.6739814 | I48: 13.6739814 | J48: 0 | K48: 0 | M48: 0 | N48: 0 | O48: 13.6739814 | P48: 0 | Q48: 1367.39814 | R48: 0
I49: 0 | J49: 0 | K49: 0 | M49: 0 | N49: 0 | O49: 0 | P49: 0 | Q49: 0 | R49: 0
I50: 0 | J50: 0 | K50: 0 | M50: 0 | N50: 0 | O50: 0 | P50: 0 | Q50: 0 | R50: 0
B51: Interest on Credit Line | G51: 0.065 | I51: 9.871769032 | J51: =+SUM(J17:J50)/2*H51 -> 0 | M51: 0 | N51: =+SUM(N17:N50)/2*L51 -> 0 | O51: 9.871769032 | P51: =+SUM(P17:P50)/2*L51 -> 0 | Q51: 987.1769032 | R51: =+J51*E$7 -> 0
A52: Total Variable Costs | I52: 273.497815 | J52: =SUM(J18:J51) -> 0 | M52: 0 | N52: =SUM(N18:N51) -> 0 | O52: 273.497815 | P52: =SUM(P18:P51) -> 0 | Q52: 27349.7815 | R52: =SUM(R18:R51) -> 0
A53: Planned Returns Above Variable Costs: | I53: -63.39781498 | J53: =+J13-J52 -> 0 | M53: 0 | N53: =+N13-N52 -> 0 | O53: -63.39781498 | P53: =+P13-P52 -> 0 | Q53: -6339.781498 | R53: =+R13-R52 -> 0
B54: Breakeven Price to Cover Variable Costs | G54: 4.972687545 | H54: =IF(E10=0,"n/a",(YVarExp-(YTotExp+YTotRet-J10))/E10) -> n/a | I54: Bushel
Q55: Enterprise | R55: Enterprise
A56: FIXED COSTS | D56: Quantity | E56: Quantity | F56: Units | G56: $/Unit | H56: $/Unit | I56: Total | J56: Total | K56: Share | L56: Share | M56: Landlord | N56: Landlord | O56: Tenant | P56: Tenant | Q56: Total | R56: Total
B57: Machinery Depreciation
C58: Pickup/General Use Equipment | D58: 1 | F58: Acre | G58: 25.2 | I58: 25.2 | J58: =E58*H58 -> 0 | K58: 0 | M58: 0 | N58: =J58*L58 -> 0 | O58: 25.2 | P58: =+J58-N58 -> 0 | Q58: 2520 | R58: =+J58*E$7 -> 0
C59: Tractors/Self-Propelled | D59: 1 | F59: Acre | G59: 23.33049218 | I59: 23.33049218 | J59: 0 | K59: 0 | M59: 0 | N59: =J59*L59 -> 0 | O59: 23.33049218 | P59: 0 | Q59: 2333.049218 | R59: 0
C60: Implements | D60: 1 | F60: Acre | G60: 16.93597145 | I60: 16.93597145 | J60: 0 | K60: 0 | M60: 0 | N60: =J60*L60 -> 0 | O60: 16.93597145 | P60: 0 | Q60: 1693.597145 | R60: 0
B61: Equipment Investment
C62: Pickup/General Use Equipment | D62: 105 | F62: Dollars | G62: 0.065 | I62: 6.825 | J62: =E62*H62 -> 0 | K62: 0 | M62: 0 | N62: =J62*L62 -> 0 | O62: 6.825 | P62: =+J62-N62 -> 0 | Q62: 682.5 | R62: =+J62*E$7 -> 0
C63: Tractors/Self-Propelled | D63: 177.6040898 | F63: Dollars | G63: 0.065 | I63: 11.54426583 | J63: 0 | K63: 0 | M63: 0 | N63: =J63*L63 -> 0 | O63: 11.54426583 | P63: 0 | Q63: 1154.426583 | R63: 0
C64: Implements | D64: 81.32551901 | F64: Dollars | G64: 0.065 | I64: 5.286158735 | J64: 0 | K64: 0 | M64: 0 | N64: =J64*L64 -> 0 | O64: 5.286158735 | P64: 0 | Q64: 528.6158735 | R64: 0
B65: Salaried Labor | D65: 1 | F65: Acre | G65: 0 | I65: 0 | J65: 0 | K65: 0 | M65: 0 | N65: =J65*L65 -> 0 | O65: 0 | P65: =+J65-N65 -> 0 | Q65: 0 | R65: =+J65*E$7 -> 0
B66: Management Fee, Owner/Operator Labor | D66: 1 | F66: Acre | G66: 0 | I66: 0 | J66: 0 | K66: 0 | M66: 0 | N66: 0 | O66: 0 | P66: 0 | Q66: 0 | R66: 0
B67: Allocated Establishment Cost | D67: 1 | F67: Acre | G67: 0 | I67: 0 | J67: 0 | K67: 0 | M67: 0 | N67: 0 | O67: 0 | P67: 0 | Q67: 0 | R67: 0
B68: Dryland Winter Garden Rent | D68: 1 | F68: Acre | G68: 20 | I68: 20 | J68: 0 | K68: 0 | M68: 0 | N68: 0 | O68: 20 | P68: 0 | Q68: 2000 | R68: 0
B69: Property Taxes | D69: 1 | F69: Acre | G69: 0 | I69: 0 | J69: 0 | K69: 0 | M69: 0 | N69: 0 | O69: 0 | P69: 0 | Q69: 0 | R69: 0
B70: Whole Farm Insurance | D70: 1 | F70: Acre | G70: 0 | I70: 0 | J70: 0 | K70: 0 | M70: 0 | N70: 0 | O70: 0 | P70: 0 | Q70: 0 | R70: 0
D71: 1 | G71: 0 | I71: 0 | J71: 0 | K71: 0 | M71: 0 | N71: 0 | O71: 0 | P71: 0 | Q71: 0 | R71: 0
D72: 1 | G72: 0 | I72: 0 | J72: =E72*H72 -> 0 | K72: 0 | M72: 0 | N72: 0 | O72: 0 | P72: 0 | Q72: 0 | R72: 0
A73: Total Fixed Costs | I73: 109.1218882 | J73: =+SUM(J58:J72) -> 0 | M73: 0 | N73: =+SUM(N58:N72) -> 0 | O73: 109.1218882 | P73: =+SUM(P58:P72) -> 0 | Q73: 10912.18882 | R73: =+SUM(R58:R72) -> 0
A74: Total Specified Costs | I74: 382.6197032 | J74: =+J52+J73 -> 0 | M74: 0 | N74: =+N52+N73 -> 0 | O74: 382.6197032 | P74: =+P52+P73 -> 0 | Q74: 38261.97032 | R74: =+R52+R73 -> 0
A76: Returns Above Specified Costs | I76: -172.5197032 | J76: =+J13-J74 -> 0 | M76: 0 | N76: =+N13-N74 -> 0 | O76: -172.5197032 | P76: =+P13-P74 -> 0 | Q76: -17251.97032 | R76: =+R13-R74 -> 0
A78: Breakeven Price to Cover Total Costs | G78: 6.956721876 | H78: =IF(E10=0,"n/a",(YTotExp-(YTotExp+YTotRet-J10))/E10) -> n/a | I78: Bushel
D80: Example Breakeven Prices
B81: Example | C81: Example | D81: To Cover | G81: To Cover
B82: Yield | C82: Yield | D82: Variable | G82: Total
B83: Percent | C83: Bushel | D83: Costs | G83: Costs
B84: 0.75 | C84: 41.25 | D84: 6.63025006 | G84: 9.275629168
B85: 0.9 | C85: 49.5 | D85: 5.525208383 | G85: 7.729690973
B86: 1 | C86: 55 | D86: 4.972687545 | G86: 6.956721876
B87: 1.1 | C87: 60.5 | D87: 4.520625041 | G87: 6.324292614
B88: 1.25 | C88: 68.75 | D88: 3.978150036 | G88: 5.565377501
D90: Your Breakeven Prices
B91: Your | C91: Your | E91: To Cover | H91: To Cover
B92: Yield | C92: Yield | E92: Variable | H92: Total
B93: Percent | C93: Bushel | E93: Costs | H93: Costs
B94: 0.75 | C94: =E10*YPER1 -> 0 | E94: =IF($E$10=0,0,(YVarExp-(YTotExp+YTotRet-J10))/($E$10*YPER1)) -> 0 | H94: =IF($E$10=0,0,(YTotExp-(YTotExp+YTotRet-J10))/($E$10*YPER1)) -> 0
B95: 0.9 | C95: =E10*YPER2 -> 0 | E95: =IF($E$10=0,0,(YVarExp-(YTotExp+YTotRet-J10))/($E$10*YPER2)) -> 0 | H95: =IF($E$10=0,0,(YTotExp-(YTotExp+YTotRet-J10))/($E$10*YPER2)) -> 0
B96: 1 | C96: =+E10 -> 0 | E96: =IF($E$10=0,0,(YVarExp-(YTotExp+YTotRet-J10))/($E$10*YPER3)) -> 0 | H96: =IF($E$10=0,0,(YTotExp-(YTotExp+YTotRet-J10))/($E$10*YPER3)) -> 0
B97: 1.1 | C97: =E10*YPER4 -> 0 | E97: =IF($E$10=0,0,(YVarExp-(YTotExp+YTotRet-J10))/($E$10*YPER4)) -> 0 | H97: =IF($E$10=0,0,(YTotExp-(YTotExp+YTotRet-J10))/($E$10*YPER4)) -> 0
B98: 1.25 | C98: =E10*YPER5 -> 0 | E98: =IF($E$10=0,0,(YVarExp-(YTotExp+YTotRet-J10))/($E$10*YPER5)) -> 0 | H98: =IF($E$10=0,0,(YTotExp-(YTotExp+YTotRet-J10))/($E$10*YPER5)) -> 0
A100: Developed by Rob Hogan, Associate Professor and Extension Economist, Texas A&M AgriLife Extension, 830-278-9151.
A102: Information presented is prepared solely as a general guide and not intended to recognize or predict the costs and returns from any one operation. Brand names are mentioned only as examples and imply no endorsement.

Sheet CornIrrigated
A1: Projections for Planning Purposes Only -- Not to be Used without Updating
A2: 2018 Estimated Costs and Returns per Acre
A3: Irrigated Corn
A4: Enter your name for this budget in the cell above.
A5: Enter Your Values in the cells highlighed in MAROON.
E6: Your Acres | R6: Your
C7: Crop Acres | D7: 122 | L7: Your | Q7: Enterprise | R7: Enterprise
E8: Your | H8: Your | I8: Cash | J8: Your | K8: Landlord | L8: Landlord | N8: Your | P8: Your | Q8: Total | R8: Total
A9: REVENUE | D9: Quantity | E9: Quantity | F9: Units | G9: $/Unit | H9: $/Unit | I9: Total | J9: Total | K9: Share | L9: Share | M9: Landlord | N9: Landlord | O9: Tenant | P9: Tenant | Q9: (122 acres) | R9: ="(" & E7 & " acres)" -> ( acres)
B10: Corn | D10: 140 | F10: Bushel | G10: 3.82 | I10: 534.8 | J10: =E10*H10 -> 0 | K10: 0 | M10: 0 | N10: =J10*L10 -> 0 | O10: 534.8 | P10: =+J10-N10 -> 0 | Q10: 65245.6 | R10: =+J10*E$7 -> 0
D11: 0 | G11: 0 | I11: 0 | J11: 0 | K11: 0 | M11: 0 | N11: 0 | O11: 0 | P11: =+J11-N11 -> 0 | Q11: 0 | R11: 0
D12: 0 | G12: 0 | I12: 0 | J12: 0 | K12: 0 | M12: 0 | N12: 0 | O12: 0 | P12: 0 | Q12: 0 | R12: 0
A13: Total Revenue | I13: 534.8 | J13: =SUM(J10:J12) -> 0 | M13: 0 | N13: =SUM(N10:N12) -> 0 | O13: 534.8 | P13: =SUM(P10:P12) -> 0 | Q13: 65245.6 | R13: =SUM(R10:R12) -> 0
Q14: Enterprise | R14: Enterprise
A15: VARIABLE COSTS | D15: Quantity | E15: Quantity | F15: Units | G15: $/Unit | H15: $/Unit | I15: Total | J15: Total | K15: Share | L15: Share | M15: Landlord | N15: Landlord | O15: Tenant | P15: Tenant | Q15: Total | R15: Total
A16: Production Costs
B17: Custom
C18: Haul Corn | D18: 140 | F18: Bushel | G18: 0.16 | I18: 22.4 | J18: =E18*H18 -> 0 | K18: 0 | M18: 0 | N18: =J18*L18 -> 0 | O18: 22.4 | P18: =+J18-N18 -> 0 | Q18: 2732.8 | R18: =+J18*E$7 -> 0
B19: Fertilizer
C20: UAN(32% N) | D20: 2.75 | F20: CWT | G20: 17 | I20: 46.75 | J20: 0 | K20: 0 | M20: 0 | N20: 0 | O20: 46.75 | P20: 0 | Q20: 5703.5 | R20: 0
C21: Fertilizer 18-46-0 | D21: 174 | F21: Pound | G21: 0.24 | I21: 41.76 | J21: 0 | K21: 0 | M21: 0 | N21: 0 | O21: 41.76 | P21: 0 | Q21: 5094.72 | R21: 0
B22: Herbicide
C23: Glyphosate | D23: 4.4 | F23: Pint | G23: 2.25 | I23: 9.9 | J23: 0 | K23: 0 | M23: 0 | N23: 0 | O23: 9.9 | P23: 0 | Q23: 1207.8 | R23: 0
B24: Insecticide
C25: Oberon 2 SC | D25: 2 | F25: Ounce | G25: 3.19 | I25: 6.38 | J25: 0 | K25: 0 | M25: 0 | N25: 0 | O25: 6.38 | P25: 0 | Q25: 778.36 | R25: 0
B26: Miscellaneous
C27: Crop Insurance - Corn Irrigated | D27: 1 | F27: Acre | G27: 43 | I27: 43 | J27: 0 | K27: 0 | M27: 0 | N27: 0 | O27: 43 | P27: 0 | Q27: 5246 | R27: 0
C28: Miscellaneous Corn Overhead | D28: 1 | F28: Acre | G28: 4 | I28: 4 | J28: 0 | K28: 0 | M28: 0 | N28: 0 | O28: 4 | P28: 0 | Q28: 488 | R28: 0
B29: Seed
C30: Corn Seed BtRR | D30: 30 | F30: Thousand | G30: 4.23 | I30: 126.9 | J30: 0 | K30: 0 | M30: 0 | N30: 0 | O30: 126.9 | P30: 0 | Q30: 15481.8 | R30: 0
D31: 0 | G31: 0 | I31: 0 | J31: 0 | K31: 0 | M31: 0 | N31: 0 | O31: 0 | P31: 0 | Q31: 0 | R31: 0
D32: 0 | G32: 0 | I32: 0 | J32: 0 | K32: 0 | M32: 0 | N32: 0 | O32: 0 | P32: 0 | Q32: 0 | R32: 0
D33: 0 | G33: 0 | I33: 0 | J33: =E33*H33 -> 0 | K33: 0 | M33: 0 | N33: =J33*L33 -> 0 | O33: 0 | P33: =+J33-N33 -> 0 | Q33: 0 | R33: =+J33*E$7 -> 0
B34: Irrigation
C35: Energy Cost | D35: 1625 | F35: kWh | G35: 0.17 | I35: 276.25 | J35: =E35*H35 -> 0 | K35: 0 | M35: 0 | N35: =J35*L35 -> 0 | O35: 276.25 | P35: =+J35-N35 -> 0 | Q35: 33702.5 | R35: =+J35*E$7 -> 0
B36: Machinery Labor
C37: Tractors/Self-Propelled | D37: 0.91 | F37: Hour | G37: 12 | I37: 10.92 | J37: =E37*H37 -> 0 | K37: 0 | M37: 0 | N37: =J37*L37 -> 0 | O37: 10.92 | P37: =+J37-N37 -> 0 | Q37: 1332.24 | R37: =+J37*E$7 -> 0
C38: Other Labor | D38: 0.05 | F38: Hour | G38: 8.5 | I38: 0.425 | J38: =E38*H38 -> 0 | K38: 0 | M38: 0 | N38: =J38*L38 -> 0 | O38: 0.425 | P38: =+J38-N38 -> 0 | Q38: 51.85 | R38: =+J38*E$7 -> 0
B40: Diesel Fuel
C41: Pickup/General Use Equipment | D41: 1 | F41: Acre | G41: 0 | I41: 0 | J41: =E41*H41 -> 0 | K41: 0 | M41: 0 | N41: =J41*L41 -> 0 | O41: 0 | P41: =+J41-N41 -> 0 | Q41: 0 | R41: =+J41*E$7 -> 0
C42: Tractors/Self-Propelled | D42: 8.44 | F42: Gallon | G42: 2.14 | I42: 18.0616 | J42: =E42*H42 -> 0 | K42: 0 | M42: 0 | N42: =J42*L42 -> 0 | O42: 18.0616 | P42: =+J42-N42 -> 0 | Q42: 2203.5152 | R42: =+J42*E$7 -> 0
B44: Gasoline
C45: Pickup/General Use Equipment | D45: 1 | F45: Acre | G45: 23.12899622 | I45: 23.12899622 | J45: =E45*H45 -> 0 | K45: 0 | M45: 0 | N45: =J45*L45 -> 0 | O45: 23.12899622 | P45: =+J45-N45 -> 0 | Q45: 2821.737538 | R45: =+J45*E$7 -> 0
C46: Tractors/Self-Propelled | D46: 0 | F46: Gallon | G46: 2.39 | I46: 0 | J46: =E46*H46 -> 0 | K46: 0 | M46: 0 | N46: =J46*L46 -> 0 | O46: 0 | P46: =+J46-N46 -> 0 | Q46: 0 | R46: =+J46*E$7 -> 0
B48: Repairs & Maintenance
C49: Pickup/General Use Equipment | D49: 1 | F49: Acre | G49: 4.839108197 | I49: 4.839108197 | J49: =E49*H49 -> 0 | K49: 0 | M49: 0 | N49: =J49*L49 -> 0 | O49: 4.839108197 | P49: =+J49-N49 -> 0 | Q49: 590.3712 | R49: =+J49*E$7 -> 0
C50: Irrigation Equipment | D50: 1 | F50: Acre | G50: 16.9 | I50: 16.9 | J50: 0 | K50: 0 | M50: 0 | N50: 0 | O50: 16.9 | P50: 0 | Q50: 2061.8 | R50: 0
C51: Tractors/Self-Propelled | D51: 1 | F51: Acre | G51: 26.64482986 | I51: 26.64482986 | J51: 0 | K51: 0 | M51: 0 | N51: 0 | O51: 26.64482986 | P51: 0 | Q51: 3250.669243 | R51: 0
C52: Implements | D52: 1 | F52: Acre | G52: 16.26113941 | I52: 16.26113941 | J52: 0 | K52: 0 | M52: 0 | N52: 0 | O52: 16.26113941 | P52: 0 | Q52: 1983.859008 | R52: 0
I53: 0 | J53: 0 | K53: 0 | M53: 0 | N53: 0 | O53: 0 | P53: 0 | Q53: 0 | R53: 0
I54: 0 | J54: 0 | K54: 0 | M54: 0 | N54: 0 | O54: 0 | P54: 0 | Q54: 0 | R54: 0
B55: Interest on Credit Line | G55: 0.065 | I55: 26.57678315 | J55: =+SUM(J17:J54)/2*H55 -> 0 | M55: 0 | N55: =+SUM(N17:N54)/2*L55 -> 0 | O55: 26.57678315 | P55: =+SUM(P17:P54)/2*L55 -> 0 | Q55: 3242.367545 | R55: =+J55*E$7 -> 0
A56: Total Variable Costs | I56: 721.0974568 | J56: =SUM(J18:J55) -> 0 | M56: 0 | N56: =SUM(N18:N55) -> 0 | O56: 721.0974568 | P56: =SUM(P18:P55) -> 0 | Q56: 87973.88973 | R56: =SUM(R18:R55) -> 0
A57: Planned Returns Above Variable Costs: | I57: -186.2974568 | J57: =+J13-J56 -> 0 | M57: 0 | N57: =+N13-N56 -> 0 | O57: -186.2974568 | P57: =+P13-P56 -> 0 | Q57: -22728.28973 | R57: =+R13-R56 -> 0
B58: Breakeven Price to Cover Variable Costs | G58: 5.15069612 | H58: =IF(E10=0,"n/a",(YVarExp-(YTotExp+YTotRet-J10))/E10) -> n/a | I58: Bushel
Q59: Enterprise | R59: Enterprise
A60: FIXED COSTS | D60: Quantity | E60: Quantity | F60: Units | G60: $/Unit | H60: $/Unit | I60: Total | J60: Total | K60: Share | L60: Share | M60: Landlord | N60: Landlord | O60: Tenant | P60: Tenant | Q60: Total | R60: Total
B61: Machinery Depreciation
C62: Pickup/General Use Equipment | D62: 1 | F62: Acre | G62: 25.20368852 | I62: 25.20368852 | J62: =E62*H62 -> 0 | K62: 0 | M62: 0 | N62: =J62*L62 -> 0 | O62: 25.20368852 | P62: =+J62-N62 -> 0 | Q62: 3074.85 | R62: =+J62*E$7 -> 0
C63: Irrigation Equipment | D63: 1 | F63: Acre | G63: 46.33374317 | I63: 46.33374317 | J63: 0 | K63: 0 | M63: 0 | N63: =J63*L63 -> 0 | O63: 46.33374317 | P63: 0 | Q63: 5652.716667 | R63: 0
C64: Tractors/Self-Propelled | D64: 1 | F64: Acre | G64: 27.54071768 | I64: 27.54071768 | J64: 0 | K64: 0 | M64: 0 | N64: =J64*L64 -> 0 | O64: 27.54071768 | P64: 0 | Q64: 3359.967556 | R64: 0
C65: Implements | D65: 1 | F65: Acre | G65: 19.20384197 | I65: 19.20384197 | J65: 0 | K65: 0 | M65: 0 | N65: =J65*L65 -> 0 | O65: 19.20384197 | P65: 0 | Q65: 2342.868721 | R65: 0
B66: Equipment Investment
C67: Pickup/General Use Equipment | D67: 105.0153689 | F67: Dollars | G67: 0.065 | I67: 6.825998975 | J67: =E67*H67 -> 0 | K67: 0 | M67: 0 | N67: =J67*L67 -> 0 | O67: 6.825998975 | P67: =+J67-N67 -> 0 | Q67: 832.771875 | R67: =+J67*E$7 -> 0
C68: Irrigation Equipment | D68: 347.5030738 | F68: Dollars | G68: 0.065 | I68: 22.5876998 | J68: 0 | K68: 0 | M68: 0 | N68: =J68*L68 -> 0 | O68: 22.5876998 | P68: 0 | Q68: 2755.699375 | R68: 0
C69: Tractors/Self-Propelled | D69: 209.9604148 | F69: Dollars | G69: 0.065 | I69: 13.64742696 | J69: 0 | K69: 0 | M69: 0 | N69: =J69*L69 -> 0 | O69: 13.64742696 | P69: 0 | Q69: 1664.98609 | R69: 0
C70: Implements | D70: 91.02696514 | F70: Dollars | G70: 0.065 | I70: 5.916752734 | J70: 0 | K70: 0 | M70: 0 | N70: =J70*L70 -> 0 | O70: 5.916752734 | P70: 0 | Q70: 721.8438336 | R70: 0
B71: Salaried Labor | D71: 1 | F71: Acre | G71: 0 | I71: 0 | J71: 0 | K71: 0 | M71: 0 | N71: =J71*L71 -> 0 | O71: 0 | P71: =+J71-N71 -> 0 | Q71: 0 | R71: =+J71*E$7 -> 0
B72: Management Fee, Owner/Operator Labor | D72: 1 | F72: Acre | G72: 0 | I72: 0 | J72: 0 | K72: 0 | M72: 0 | N72: 0 | O72: 0 | P72: 0 | Q72: 0 | R72: 0
B73: Allocated Establishment Cost | D73: 1 | F73: Acre | G73: 0 | I73: 0 | J73: 0 | K73: 0 | M73: 0 | N73: 0 | O73: 0 | P73: 0 | Q73: 0 | R73: 0
B74: Irrigated Winter Garden Rent | D74: 1 | F74: Acre | G74: 50 | I74: 50 | J74: 0 | K74: 0 | M74: 0 | N74: 0 | O74: 50 | P74: 0 | Q74: 6100 | R74: 0
B75: Property Taxes | D75: 1 | F75: Acre | G75: 0 | I75: 0 | J75: 0 | K75: 0 | M75: 0 | N75: 0 | O75: 0 | P75: 0 | Q75: 0 | R75: 0
B76: Whole Farm Insurance | D76: 1 | F76: Acre | G76: 0 | I76: 0 | J76: 0 | K76: 0 | M76: 0 | N76: 0 | O76: 0 | P76: 0 | Q76: 0 | R76: 0
D77: 1 | G77: 0 | I77: 0 | J77: 0 | K77: 0 | M77: 0 | N77: 0 | O77: 0 | P77: 0 | Q77: 0 | R77: 0
D78: 1 | G78: 0 | I78: 0 | J78: =E78*H78 -> 0 | K78: 0 | M78: 0 | N78: 0 | O78: 0 | P78: 0 | Q78: 0 | R78: 0
A79: Total Fixed Costs | I79: 217.2598698 | J79: =+SUM(J62:J78) -> 0 | M79: 0 | N79: =+SUM(N62:N78) -> 0 | O79: 217.2598698 | P79: =+SUM(P62:P78) -> 0 | Q79: 26505.70412 | R79: =+SUM(R62:R78) -> 0
A80: Total Specified Costs | I80: 938.3573266 | J80: =+J56+J79 -> 0 | M80: 0 | N80: =+N56+N79 -> 0 | O80: 938.3573266 | P80: =+P56+P79 -> 0 | Q80: 114479.5939 | R80: =+R56+R79 -> 0
A82: Returns Above Specified Costs | I82: -403.5573266 | J82: =+J13-J80 -> 0 | M82: 0 | N82: =+N13-N80 -> 0 | O82: -403.5573266 | P82: =+P13-P80 -> 0 | Q82: -49233.99385 | R82: =+R13-R80 -> 0
A84: Breakeven Price to Cover Total Costs | G84: 6.702552333 | H84: =IF(E10=0,"n/a",(YTotExp-(YTotExp+YTotRet-J10))/E10) -> n/a | I84: Bushel
D86: Example Breakeven Prices
B87: Example | C87: Example | D87: To Cover | G87: To Cover
B88: Yield | C88: Yield | D88: Variable | G88: Total
B89: Percent | C89: Bushel | D89: Costs | G89: Costs
B90: 0.75 | C90: 105 | D90: 6.867594827 | G90: 8.936736444
B91: 0.9 | C91: 126 | D91: 5.722995689 | G91: 7.44728037
B92: 1 | C92: 140 | D92: 5.15069612 | G92: 6.702552333
B93: 1.1 | C93: 154 | D93: 4.682451018 | G93: 6.093229394
B94: 1.25 | C94: 175 | D94: 4.120556896 | G94: 5.362041867
D96: Your Breakeven Prices
B97: Your | C97: Your | E97: To Cover | H97: To Cover
B98: Yield | C98: Yield | E98: Variable | H98: Total
B99: Percent | C99: Bushel | E99: Costs | H99: Costs
B100: 0.75 | C100: =E10*YPER1 -> 0 | E100: =IF($E$10=0,0,(YVarExp-(YTotExp+YTotRet-J10))/($E$10*YPER1)) -> 0 | H100: =IF($E$10=0,0,(YTotExp-(YTotExp+YTotRet-J10))/($E$10*YPER1)) -> 0
B101: 0.9 | C101: =E10*YPER2 -> 0 | E101: =IF($E$10=0,0,(YVarExp-(YTotExp+YTotRet-J10))/($E$10*YPER2)) -> 0 | H101: =IF($E$10=0,0,(YTotExp-(YTotExp+YTotRet-J10))/($E$10*YPER2)) -> 0
B102: 1 | C102: =+E10 -> 0 | E102: =IF($E$10=0,0,(YVarExp-(YTotExp+YTotRet-J10))/($E$10*YPER3)) -> 0 | H102: =IF($E$10=0,0,(YTotExp-(YTotExp+YTotRet-J10))/($E$10*YPER3)) -> 0
B103: 1.1 | C103: =E10*YPER4 -> 0 | E103: =IF($E$10=0,0,(YVarExp-(YTotExp+YTotRet-J10))/($E$10*YPER4)) -> 0 | H103: =IF($E$10=0,0,(YTotExp-(YTotExp+YTotRet-J10))/($E$10*YPER4)) -> 0
B104: 1.25 | C104: =E10*YPER5 -> 0 | E104: =IF($E$10=0,0,(YVarExp-(YTotExp+YTotRet-J10))/($E$10*YPER5)) -> 0 | H104: =IF($E$10=0,0,(YTotExp-(YTotExp+YTotRet-J10))/($E$10*YPER5)) -> 0
A106: Developed by Rob Hogan, Associate Professor and Extension Economist, Texas A&M AgriLife Extension, 830-278-9151.
A108: Information presented is prepared solely as a general guide and not intended to recognize or predict the costs and returns from any one operation. Brand names are mentioned only as examples and imply no endorsement.

Sheet CottonDryland
A1: Projections for Planning Purposes Only -- Not to be Used without Updating
A2: 2018 Estimated Costs and Returns per Acre
A3: Dryland Cotton
A4: Enter your name for this budget in the cell above.
A5: Enter Your Values in the cells highlighed in MAROON.
E6: Your Acres | R6: Your
C7: Crop Acres | D7: 100 | L7: Your | Q7: Enterprise | R7: Enterprise
E8: Your | H8: Your | I8: Cash | J8: Your | K8: Landlord | L8: Landlord | N8: Your | P8: Your | Q8: Total | R8: Total
A9: REVENUE | D9: Quantity | E9: Quantity | F9: Units | G9: $/Unit | H9: $/Unit | I9: Total | J9: Total | K9: Share | L9: Share | M9: Landlord | N9: Landlord | O9: Tenant | P9: Tenant | Q9: (100 acres) | R9: ="(" & E7 & " acres)" -> ( acres)
B10: Cotton Lint | D10: 400 | F10: Pound | G10: 0.61 | I10: 244 | J10: =E10*H10 -> 0 | K10: 0 | M10: 0 | N10: =J10*L10 -> 0 | O10: 244 | P10: =+J10-N10 -> 0 | Q10: 24400 | R10: =+J10*E$7 -> 0
B11: Cottonseed | D11: 680 | F11: Pound | G11: 0.1 | I11: 68 | J11: 0 | K11: 0 | M11: 0 | N11: 0 | O11: 68 | P11: =+J11-N11 -> 0 | Q11: 6800 | R11: 0
D12: 0 | G12: 0 | I12: 0 | J12: 0 | K12: 0 | M12: 0 | N12: 0 | O12: 0 | P12: 0 | Q12: 0 | R12: 0
D13: 0 | G13: 0 | I13: 0 | J13: 0 | K13: 0 | M13: 0 | N13: 0 | O13: 0 | P13: 0 | Q13: 0 | R13: 0
A14: Total Revenue | I14: 312 | J14: =SUM(J10:J13) -> 0 | M14: 0 | N14: =SUM(N10:N13) -> 0 | O14: 312 | P14: =SUM(P10:P13) -> 0 | Q14: 31200 | R14: =SUM(R10:R13) -> 0
Q15: Enterprise | R15: Enterprise
A16: VARIABLE COSTS | D16: Quantity | E16: Quantity | F16: Units | G16: $/Unit | H16: $/Unit | I16: Total | J16: Total | K16: Share | L16: Share | M16: Landlord | N16: Landlord | O16: Tenant | P16: Tenant | Q16: Total | R16: Total
A17: Production Costs
B18: Custom
C19: Custom Apply Fertilizer | D19: 1 | F19: Acre | G19: 4 | I19: 4 | J19: =E19*H19 -> 0 | K19: 0 | M19: 0 | N19: =J19*L19 -> 0 | O19: 4 | P19: =+J19-N19 -> 0 | Q19: 400 | R19: =+J19*E$7 -> 0
C20: Gin, Bag, Tie - CWT | D20: 10.8 | F20: CWT | G20: 3 | I20: 32.4 | J20: 0 | K20: 0 | M20: 0 | N20: 0 | O20: 32.4 | P20: 0 | Q20: 3240 | R20: 0
B21: Fertilizer
C22: UAN(32% N) | D22: 1.26 | F22: CWT | G22: 17 | I22: 21.42 | J22: 0 | K22: 0 | M22: 0 | N22: 0 | O22: 21.42 | P22: 0 | Q22: 2142 | R22: 0
C23: Fertilizer 18-46-0 | D23: 54 | F23: Pound | G23: 0.24 | I23: 12.96 | J23: 0 | K23: 0 | M23: 0 | N23: 0 | O23: 12.96 | P23: 0 | Q23: 1296 | R23: 0
B24: Herbicide
C25: Glyphosate | D25: 1.4 | F25: Pint | G25: 2.25 | I25: 3.15 | J25: 0 | K25: 0 | M25: 0 | N25: 0 | O25: 3.15 | P25: 0 | Q25: 315 | R25: 0
C26: Prowl H2O | D26: 2 | F26: Pint | G26: 5.63 | I26: 11.26 | J26: 0 | K26: 0 | M26: 0 | N26: 0 | O26: 11.26 | P26: 0 | Q26: 1126 | R26: 0
B27: Insecticide
C28: Karate Z | D28: 1 | F28: Ounce | G28: 0.81 | I28: 0.81 | J28: 0 | K28: 0 | M28: 0 | N28: 0 | O28: 0.81 | P28: 0 | Q28: 81 | R28: 0
B29: Miscellaneous
C30: Crop Insurance - Cotton Dry | D30: 1 | F30: Acre | G30: 19 | I30: 19 | J30: 0 | K30: 0 | M30: 0 | N30: 0 | O30: 19 | P30: 0 | Q30: 1900 | R30: 0
C31: Boll Weevil Eradication Program | D31: 1 | F31: Acre | G31: 7 | I31: 7 | J31: 0 | K31: 0 | M31: 0 | N31: 0 | O31: 7 | P31: 0 | Q31: 700 | R31: 0
B32: Seed
C33: Cotton Seed BIIRRF | D33: 35 | F33: Thousand | G33: 2.11 | I33: 73.85 | J33: 0 | K33: 0 | M33: 0 | N33: 0 | O33: 73.85 | P33: 0 | Q33: 7385 | R33: 0
B34: Other Chemicals
C35: Gramoxone SL | D35: 24 | F35: Ounce | G35: 0.24 | I35: 5.76 | J35: 0 | K35: 0 | M35: 0 | N35: 0 | O35: 5.76 | P35: 0 | Q35: 576 | R35: 0
C36: Aim | D36: 0.75 | F36: Ounce | G36: 4.84 | I36: 3.63 | J36: 0 | K36: 0 | M36: 0 | N36: 0 | O36: 3.63 | P36: 0 | Q36: 363 | R36: 0
C37: Crop Oil Concentrate | D37: 0.25 | F37: Pint | G37: 2.53 | I37: 0.6325 | J37: 0 | K37: 0 | M37: 0 | N37: 0 | O37: 0.6325 | P37: 0 | Q37: 63.25 | R37: 0
D38: 0 | G38: 0 | I38: 0 | J38: 0 | K38: 0 | M38: 0 | N38: 0 | O38: 0 | P38: 0 | Q38: 0 | R38: 0
D39: 0 | G39: 0 | I39: 0 | J39: 0 | K39: 0 | M39: 0 | N39: 0 | O39: 0 | P39: 0 | Q39: 0 | R39: 0
D40: 0 | G40: 0 | I40: 0 | J40: =E40*H40 -> 0 | K40: 0 | M40: 0 | N40: =J40*L40 -> 0 | O40: 0 | P40: =+J40-N40 -> 0 | Q40: 0 | R40: =+J40*E$7 -> 0
B41: Machinery Labor
C42: Tractors/Self-Propelled | D42: 1.55 | F42: Hour | G42: 12 | I42: 18.6 | J42: =E42*H42 -> 0 | K42: 0 | M42: 0 | N42: =J42*L42 -> 0 | O42: 18.6 | P42: =+J42-N42 -> 0 | Q42: 1860 | R42: =+J42*E$7 -> 0
C43: Other Labor | D43: 0.5 | F43: Hour | G43: 8.5 | I43: 4.25 | J43: =E43*H43 -> 0 | K43: 0 | M43: 0 | N43: =J43*L43 -> 0 | O43: 4.25 | P43: =+J43-N43 -> 0 | Q43: 425 | R43: =+J43*E$7 -> 0
B45: Diesel Fuel
C46: Pickup/General Use Equipment | D46: 1 | F46: Acre | G46: 0 | I46: 0 | J46: =E46*H46 -> 0 | K46: 0 | M46: 0 | N46: =J46*L46 -> 0 | O46: 0 | P46: =+J46-N46 -> 0 | Q46: 0 | R46: =+J46*E$7 -> 0
C47: Tractors/Self-Propelled | D47: 12.97 | F47: Gallon | G47: 2.14 | I47: 27.7558 | J47: =E47*H47 -> 0 | K47: 0 | M47: 0 | N47: =J47*L47 -> 0 | O47: 27.7558 | P47: =+J47-N47 -> 0 | Q47: 2775.58 | R47: =+J47*E$7 -> 0
B49: Gasoline
C50: Pickup/General Use Equipment | D50: 1 | F50: Acre | G50: 23.12561132 | I50: 23.12561132 | J50: =E50*H50 -> 0 | K50: 0 | M50: 0 | N50: =J50*L50 -> 0 | O50: 23.12561132 | P50: =+J50-N50 -> 0 | Q50: 2312.561132 | R50: =+J50*E$7 -> 0
C51: Tractors/Self-Propelled | D51: 0 | F51: Gallon | G51: 2.39 | I51: 0 | J51: =E51*H51 -> 0 | K51: 0 | M51: 0 | N51: =J51*L51 -> 0 | O51: 0 | P51: =+J51-N51 -> 0 | Q51: 0 | R51: =+J51*E$7 -> 0
B53: Repairs & Maintenance
C54: Pickup/General Use Equipment | D54: 1 | F54: Acre | G54: 4.8384 | I54: 4.8384 | J54: =E54*H54 -> 0 | K54: 0 | M54: 0 | N54: =J54*L54 -> 0 | O54: 4.8384 | P54: =+J54-N54 -> 0 | Q54: 483.84 | R54: =+J54*E$7 -> 0
C55: Irrigation Equipment | D55: 1 | F55: Acre | G55: 0 | I55: 0 | J55: 0 | K55: 0 | M55: 0 | N55: 0 | O55: 0 | P55: 0 | Q55: 0 | R55: 0
C56: Tractors/Self-Propelled | D56: 1 | F56: Acre | G56: 28.45452783 | I56: 28.45452783 | J56: 0 | K56: 0 | M56: 0 | N56: 0 | O56: 28.45452783 | P56: 0 | Q56: 2845.452783 | R56: 0
C57: Implements | D57: 1 | F57: Acre | G57: 15.60677937 | I57: 15.60677937 | J57: 0 | K57: 0 | M57: 0 | N57: 0 | O57: 15.60677937 | P57: 0 | Q57: 1560.677937 | R57: 0
I58: 0 | J58: 0 | K58: 0 | M58: 0 | N58: 0 | O58: 0 | P58: 0 | Q58: 0 | R58: 0
I59: 0 | J59: 0 | K59: 0 | M59: 0 | N59: 0 | O59: 0 | P59: 0 | Q59: 0 | R59: 0
B60: Interest on Credit Line | G60: 0.065 | I60: 9.113552275 | J60: =+SUM(J18:J59)/2*H60 -> 0 | M60: 0 | N60: =+SUM(N18:N59)/2*L60 -> 0 | O60: 9.113552275 | P60: =+SUM(P18:P59)/2*L60 -> 0 | Q60: 911.3552275 | R60: =+J60*E$7 -> 0
A61: Total Variable Costs | I61: 327.6171708 | J61: =SUM(J19:J60) -> 0 | M61: 0 | N61: =SUM(N19:N60) -> 0 | O61: 327.6171708 | P61: =SUM(P19:P60) -> 0 | Q61: 32761.71708 | R61: =SUM(R19:R60) -> 0
A62: Planned Returns Above Variable Costs: | I62: -15.61717079 | J62: =+J14-J61 -> 0 | M62: 0 | N62: =+N14-N61 -> 0 | O62: -15.61717079 | P62: =+P14-P61 -> 0 | Q62: -1561.717079 | R62: =+R14-R61 -> 0
B63: Breakeven Price to Cover Variable Costs | G63: 0.649042927 | H63: =IF(E10=0,"n/a",(YVarExp-(YTotExp+YTotRet-J10))/E10) -> n/a | I63: Pound
Q64: Enterprise | R64: Enterprise
A65: FIXED COSTS | D65: Quantity | E65: Quantity | F65: Units | G65: $/Unit | H65: $/Unit | I65: Total | J65: Total | K65: Share | L65: Share | M65: Landlord | N65: Landlord | O65: Tenant | P65: Tenant | Q65: Total | R65: Total
B66: Machinery Depreciation
C67: Pickup/General Use Equipment | D67: 1 | F67: Acre | G67: 25.2 | I67: 25.2 | J67: =E67*H67 -> 0 | K67: 0 | M67: 0 | N67: =J67*L67 -> 0 | O67: 25.2 | P67: =+J67-N67 -> 0 | Q67: 2520 | R67: =+J67*E$7 -> 0
C68: Tractors/Self-Propelled | D68: 1 | F68: Acre | G68: 34.95264926 | I68: 34.95264926 | J68: 0 | K68: 0 | M68: 0 | N68: =J68*L68 -> 0 | O68: 34.95264926 | P68: 0 | Q68: 3495.264926 | R68: 0
C69: Implements | D69: 1 | F69: Acre | G69: 20.06028043 | I69: 20.06028043 | J69: 0 | K69: 0 | M69: 0 | N69: =J69*L69 -> 0 | O69: 20.06028043 | P69: 0 | Q69: 2006.028043 | R69: 0
B70: Equipment Investment
C71: Pickup/General Use Equipment | D71: 105 | F71: Dollars | G71: 0.065 | I71: 6.825 | J71: =E71*H71 -> 0 | K71: 0 | M71: 0 | N71: =J71*L71 -> 0 | O71: 6.825 | P71: =+J71-N71 -> 0 | Q71: 682.5 | R71: =+J71*E$7 -> 0
C72: Tractors/Self-Propelled | D72: 304.4974256 | F72: Dollars | G72: 0.065 | I72: 19.79233266 | J72: 0 | K72: 0 | M72: 0 | N72: =J72*L72 -> 0 | O72: 19.79233266 | P72: 0 | Q72: 1979.233266 | R72: 0
C73: Implements | D73: 122.1017276 | F73: Dollars | G73: 0.065 | I73: 7.936612293 | J73: 0 | K73: 0 | M73: 0 | N73: =J73*L73 -> 0 | O73: 7.936612293 | P73: 0 | Q73: 793.6612293 | R73: 0
B74: Salaried Labor | D74: 1 | F74: Acre | G74: 0 | I74: 0 | J74: 0 | K74: 0 | M74: 0 | N74: =J74*L74 -> 0 | O74: 0 | P74: =+J74-N74 -> 0 | Q74: 0 | R74: =+J74*E$7 -> 0
B75: Management Fee, Owner/Operator Labor | D75: 1 | F75: Acre | G75: 0 | I75: 0 | J75: 0 | K75: 0 | M75: 0 | N75: 0 | O75: 0 | P75: 0 | Q75: 0 | R75: 0
B76: Allocated Establishment Cost | D76: 1 | F76: Acre | G76: 0 | I76: 0 | J76: 0 | K76: 0 | M76: 0 | N76: 0 | O76: 0 | P76: 0 | Q76: 0 | R76: 0
B77: Dryland Winter Garden Rent | D77: 1 | F77: Acre | G77: 20 | I77: 20 | J77: 0 | K77: 0 | M77: 0 | N77: 0 | O77: 20 | P77: 0 | Q77: 2000 | R77: 0
B78: Property Taxes | D78: 1 | F78: Acre | G78: 0 | I78: 0 | J78: 0 | K78: 0 | M78: 0 | N78: 0 | O78: 0 | P78: 0 | Q78: 0 | R78: 0
B79: Whole Farm Insurance | D79: 1 | F79: Acre | G79: 0 | I79: 0 | J79: 0 | K79: 0 | M79: 0 | N79: 0 | O79: 0 | P79: 0 | Q79: 0 | R79: 0
D80: 1 | G80: 0 | I80: 0 | J80: 0 | K80: 0 | M80: 0 | N80: 0 | O80: 0 | P80: 0 | Q80: 0 | R80: 0
D81: 1 | G81: 0 | I81: 0 | J81: =E81*H81 -> 0 | K81: 0 | M81: 0 | N81: 0 | O81: 0 | P81: 0 | Q81: 0 | R81: 0
A82: Total Fixed Costs | I82: 134.7668746 | J82: =+SUM(J67:J81) -> 0 | M82: 0 | N82: =+SUM(N67:N81) -> 0 | O82: 134.7668746 | P82: =+SUM(P67:P81) -> 0 | Q82: 13476.68746 | R82: =+SUM(R67:R81) -> 0
A83: Total Specified Costs | I83: 462.3840454 | J83: =+J61+J82 -> 0 | M83: 0 | N83: =+N61+N82 -> 0 | O83: 462.3840454 | P83: =+P61+P82 -> 0 | Q83: 46238.40454 | R83: =+R61+R82 -> 0
A85: Returns Above Specified Costs | I85: -150.3840454 | J85: =+J14-J83 -> 0 | M85: 0 | N85: =+N14-N83 -> 0 | O85: -150.3840454 | P85: =+P14-P83 -> 0 | Q85: -15038.40454 | R85: =+R14-R83 -> 0
A87: Breakeven Price to Cover Total Costs | G87: 0.9859601136 | H87: =IF(E10=0,"n/a",(YTotExp-(YTotExp+YTotRet-J10))/E10) -> n/a | I87: Pound
D89: Example Breakeven Prices
B90: Example | C90: Example | D90: To Cover | G90: To Cover
B91: Yield | C91: Yield | D91: Variable | G91: Total
B92: Percent | C92: Pound | D92: Costs | G92: Costs
B93: 0.75 | C93: 300 | D93: 0.8653905693 | G93: 1.314613485
B94: 0.9 | C94: 360 | D94: 0.7211588077 | G94: 1.095511237
B95: 1 | C95: 400 | D95: 0.649042927 | G95: 0.9859601136
B96: 1.1 | C96: 440 | D96: 0.5900390245 | G96: 0.896327376
B97: 1.25 | C97: 500 | D97: 0.5192343416 | G97: 0.7887680909
D99: Your Breakeven Prices
B100: Your | C100: Your | E100: To Cover | H100: To Cover
B101: Yield | C101: Yield | E101: Variable | H101: Total
B102: Percent | C102: Pound | E102: Costs | H102: Costs
B103: 0.75 | C103: =E10*YPER1 -> 0 | E103: =IF($E$10=0,0,(YVarExp-(YTotExp+YTotRet-J10))/($E$10*YPER1)) -> 0 | H103: =IF($E$10=0,0,(YTotExp-(YTotExp+YTotRet-J10))/($E$10*YPER1)) -> 0
B104: 0.9 | C104: =E10*YPER2 -> 0 | E104: =IF($E$10=0,0,(YVarExp-(YTotExp+YTotRet-J10))/($E$10*YPER2)) -> 0 | H104: =IF($E$10=0,0,(YTotExp-(YTotExp+YTotRet-J10))/($E$10*YPER2)) -> 0
B105: 1 | C105: =+E10 -> 0 | E105: =IF($E$10=0,0,(YVarExp-(YTotExp+YTotRet-J10))/($E$10*YPER3)) -> 0 | H105: =IF($E$10=0,0,(YTotExp-(YTotExp+YTotRet-J10))/($E$10*YPER3)) -> 0
B106: 1.1 | C106: =E10*YPER4 -> 0 | E106: =IF($E$10=0,0,(YVarExp-(YTotExp+YTotRet-J10))/($E$10*YPER4)) -> 0 | H106: =IF($E$10=0,0,(YTotExp-(YTotExp+YTotRet-J10))/($E$10*YPER4)) -> 0
B107: 1.25 | C107: =E10*YPER5 -> 0 | E107: =IF($E$10=0,0,(YVarExp-(YTotExp+YTotRet-J10))/($E$10*YPER5)) -> 0 | H107: =IF($E$10=0,0,(YTotExp-(YTotExp+YTotRet-J10))/($E$10*YPER5)) -> 0
A109: Developed by Rob Hogan, Associate Professor and Extension Economist, Texas A&M AgriLife Extension, 830-278-9151.
A111: Information presented is prepared solely as a general guide and not intended to recognize or predict the costs and returns from any one operation. Brand names are mentioned only as examples and imply no endorsement.

Sheet CottonIrrigated
A1: Projections for Planning Purposes Only -- Not to be Used without Updating
A2: 2018 Estimated Costs and Returns per Acre
A3: Irrigated Cotton
A4: Enter your name for this budget in the cell above.
A5: Enter Your Values in the cells highlighed in MAROON.
E6: Your Acres | R6: Your
C7: Crop Acres | D7: 122 | L7: Your | Q7: Enterprise | R7: Enterprise
E8: Your | H8: Your | I8: Cash | J8: Your | K8: Landlord | L8: Landlord | N8: Your | P8: Your | Q8: Total | R8: Total
A9: REVENUE | D9: Quantity | E9: Quantity | F9: Units | G9: $/Unit | H9: $/Unit | I9: Total | J9: Total | K9: Share | L9: Share | M9: Landlord | N9: Landlord | O9: Tenant | P9: Tenant | Q9: (122 acres) | R9: ="(" & E7 & " acres)" -> ( acres)
B10: Cotton Lint | D10: 1250 | F10: Pound | G10: 0.61 | I10: 762.5 | J10: =E10*H10 -> 0 | K10: 0 | M10: 0 | N10: =J10*L10 -> 0 | O10: 762.5 | P10: =+J10-N10 -> 0 | Q10: 93025 | R10: =+J10*E$7 -> 0
B11: Cottonseed | D11: 2120 | F11: Pound | G11: 0.1 | I11: 212 | J11: 0 | K11: 0 | M11: 0 | N11: 0 | O11: 212 | P11: =+J11-N11 -> 0 | Q11: 25864 | R11: 0
D12: 0 | G12: 0 | I12: 0 | J12: 0 | K12: 0 | M12: 0 | N12: 0 | O12: 0 | P12: 0 | Q12: 0 | R12: 0
D13: 0 | G13: 0 | I13: 0 | J13: 0 | K13: 0 | M13: 0 | N13: 0 | O13: 0 | P13: 0 | Q13: 0 | R13: 0
A14: Total Revenue | I14: 974.5 | J14: =SUM(J10:J13) -> 0 | M14: 0 | N14: =SUM(N10:N13) -> 0 | O14: 974.5 | P14: =SUM(P10:P13) -> 0 | Q14: 118889 | R14: =SUM(R10:R13) -> 0
Q15: Enterprise | R15: Enterprise
A16: VARIABLE COSTS | D16: Quantity | E16: Quantity | F16: Units | G16: $/Unit | H16: $/Unit | I16: Total | J16: Total | K16: Share | L16: Share | M16: Landlord | N16: Landlord | O16: Tenant | P16: Tenant | Q16: Total | R16: Total
A17: Production Costs
B18: Custom
C19: Custom Apply Fertilizer | D19: 1 | F19: Acre | G19: 4 | I19: 4 | J19: =E19*H19 -> 0 | K19: 0 | M19: 0 | N19: =J19*L19 -> 0 | O19: 4 | P19: =+J19-N19 -> 0 | Q19: 488 | R19: =+J19*E$7 -> 0
C20: Gin, Bag, Tie - CWT | D20: 33.7 | F20: CWT | G20: 3 | I20: 101.1 | J20: 0 | K20: 0 | M20: 0 | N20: 0 | O20: 101.1 | P20: 0 | Q20: 12334.2 | R20: 0
B21: Fertilizer
C22: UAN(32% N) | D22: 5 | F22: CWT | G22: 17 | I22: 85 | J22: 0 | K22: 0 | M22: 0 | N22: 0 | O22: 85 | P22: 0 | Q22: 10370 | R22: 0
C23: Fertilizer 18-46-0 | D23: 217 | F23: Pound | G23: 0.24 | I23: 52.08 | J23: 0 | K23: 0 | M23: 0 | N23: 0 | O23: 52.08 | P23: 0 | Q23: 6353.76 | R23: 0
B24: Herbicide
C25: Glyphosate | D25: 4.2 | F25: Pint | G25: 2.25 | I25: 9.45 | J25: 0 | K25: 0 | M25: 0 | N25: 0 | O25: 9.45 | P25: 0 | Q25: 1152.9 | R25: 0
C26: Prowl H2O | D26: 2 | F26: Pint | G26: 5.63 | I26: 11.26 | J26: 0 | K26: 0 | M26: 0 | N26: 0 | O26: 11.26 | P26: 0 | Q26: 1373.72 | R26: 0
B27: Insecticide
C28: Karate Z | D28: 1 | F28: Ounce | G28: 0.81 | I28: 0.81 | J28: 0 | K28: 0 | M28: 0 | N28: 0 | O28: 0.81 | P28: 0 | Q28: 98.82 | R28: 0
B29: Miscellaneous
C30: Crop Insurance - Cotton Irrigated | D30: 1 | F30: Acre | G30: 28 | I30: 28 | J30: 0 | K30: 0 | M30: 0 | N30: 0 | O30: 28 | P30: 0 | Q30: 3416 | R30: 0
C31: Boll Weevil Eradication Program | D31: 1 | F31: Acre | G31: 7 | I31: 7 | J31: 0 | K31: 0 | M31: 0 | N31: 0 | O31: 7 | P31: 0 | Q31: 854 | R31: 0
B32: Seed
C33: Cotton Seed BIIRRF | D33: 52 | F33: Thousand | G33: 2.11 | I33: 109.72 | J33: 0 | K33: 0 | M33: 0 | N33: 0 | O33: 109.72 | P33: 0 | Q33: 13385.84 | R33: 0
B34: Other Chemicals
C35: GinStar | D35: 5 | F35: Ounce | G35: 1.33 | I35: 6.65 | J35: 0 | K35: 0 | M35: 0 | N35: 0 | O35: 6.65 | P35: 0 | Q35: 811.3 | R35: 0
C36: Ethephon 6 | D36: 24 | F36: Ounce | G36: 0.16 | I36: 3.84 | J36: 0 | K36: 0 | M36: 0 | N36: 0 | O36: 3.84 | P36: 0 | Q36: 468.48 | R36: 0
C37: Surfactant | D37: 1 | F37: Ounce | G37: 0.219 | I37: 0.219 | J37: 0 | K37: 0 | M37: 0 | N37: 0 | O37: 0.219 | P37: 0 | Q37: 26.718 | R37: 0
C38: Gramoxone SL | D38: 24 | F38: Ounce | G38: 0.24 | I38: 5.76 | J38: 0 | K38: 0 | M38: 0 | N38: 0 | O38: 5.76 | P38: 0 | Q38: 702.72 | R38: 0
C39: Crop Oil Concentrate | D39: 0.25 | F39: Pint | G39: 2.53 | I39: 0.6325 | J39: 0 | K39: 0 | M39: 0 | N39: 0 | O39: 0.6325 | P39: 0 | Q39: 77.165 | R39: 0
D40: 0 | G40: 0 | I40: 0 | J40: 0 | K40: 0 | M40: 0 | N40: 0 | O40: 0 | P40: 0 | Q40: 0 | R40: 0
D41: 0 | G41: 0 | I41: 0 | J41: 0 | K41: 0 | M41: 0 | N41: 0 | O41: 0 | P41: 0 | Q41: 0 | R41: 0
D42: 0 | G42: 0 | I42: 0 | J42: =E42*H42 -> 0 | K42: 0 | M42: 0 | N42: =J42*L42 -> 0 | O42: 0 | P42: =+J42-N42 -> 0 | Q42: 0 | R42: =+J42*E$7 -> 0
B43: Irrigation
C44: Energy Cost | D44: 975 | F44: kWh | G44: 0.17 | I44: 165.75 | J44: =E44*H44 -> 0 | K44: 0 | M44: 0 | N44: =J44*L44 -> 0 | O44: 165.75 | P44: =+J44-N44 -> 0 | Q44: 20221.5 | R44: =+J44*E$7 -> 0
B45: Machinery Labor
C46: Tractors/Self-Propelled | D46: 2.1 | F46: Hour | G46: 12 | I46: 25.2 | J46: =E46*H46 -> 0 | K46: 0 | M46: 0 | N46: =J46*L46 -> 0 | O46: 25.2 | P46: =+J46-N46 -> 0 | Q46: 3074.4 | R46: =+J46*E$7 -> 0
C47: Other Labor | D47: 0.5 | F47: Hour | G47: 8.5 | I47: 4.25 | J47: =E47*H47 -> 0 | K47: 0 | M47: 0 | N47: =J47*L47 -> 0 | O47: 4.25 | P47: =+J47-N47 -> 0 | Q47: 518.5 | R47: =+J47*E$7 -> 0
B49: Diesel Fuel
C50: Pickup/General Use Equipment | D50: 1 | F50: Acre | G50: 0 | I50: 0 | J50: =E50*H50 -> 0 | K50: 0 | M50: 0 | N50: =J50*L50 -> 0 | O50: 0 | P50: =+J50-N50 -> 0 | Q50: 0 | R50: =+J50*E$7 -> 0
C51: Tractors/Self-Propelled | D51: 17.07 | F51: Gallon | G51: 2.14 | I51: 36.5298 | J51: =E51*H51 -> 0 | K51: 0 | M51: 0 | N51: =J51*L51 -> 0 | O51: 36.5298 | P51: =+J51-N51 -> 0 | Q51: 4456.6356 | R51: =+J51*E$7 -> 0
B53: Gasoline
C54: Pickup/General Use Equipment | D54: 1 | F54: Acre | G54: 23.12899622 | I54: 23.12899622 | J54: =E54*H54 -> 0 | K54: 0 | M54: 0 | N54: =J54*L54 -> 0 | O54: 23.12899622 | P54: =+J54-N54 -> 0 | Q54: 2821.737538 | R54: =+J54*E$7 -> 0
C55: Tractors/Self-Propelled | D55: 0 | F55: Gallon | G55: 2.39 | I55: 0 | J55: =E55*H55 -> 0 | K55: 0 | M55: 0 | N55: =J55*L55 -> 0 | O55: 0 | P55: =+J55-N55 -> 0 | Q55: 0 | R55: =+J55*E$7 -> 0
B57: Repairs & Maintenance
C58: Pickup/General Use Equipment | D58: 1 | F58: Acre | G58: 4.839108197 | I58: 4.839108197 | J58: =E58*H58 -> 0 | K58: 0 | M58: 0 | N58: =J58*L58 -> 0 | O58: 4.839108197 | P58: =+J58-N58 -> 0 | Q58: 590.3712 | R58: =+J58*E$7 -> 0
C59: Irrigation Equipment | D59: 1 | F59: Acre | G59: 10.14 | I59: 10.14 | J59: 0 | K59: 0 | M59: 0 | N59: 0 | O59: 10.14 | P59: 0 | Q59: 1237.08 | R59: 0
C60: Tractors/Self-Propelled | D60: 1 | F60: Acre | G60: 37.63281295 | I60: 37.63281295 | J60: 0 | K60: 0 | M60: 0 | N60: 0 | O60: 37.63281295 | P60: 0 | Q60: 4591.20318 | R60: 0
C61: Implements | D61: 1 | F61: Acre | G61: 23.15655634 | I61: 23.15655634 | J61: 0 | K61: 0 | M61: 0 | N61: 0 | O61: 23.15655634 | P61: 0 | Q61: 2825.099873 | R61: 0
I62: 0 | J62: 0 | K62: 0 | M62: 0 | N62: 0 | O62: 0 | P62: 0 | Q62: 0 | R62: 0
I63: 0 | J63: 0 | K63: 0 | M63: 0 | N63: 0 | O63: 0 | P63: 0 | Q63: 0 | R63: 0
B64: Interest on Credit Line | G64: 0.065 | I64: 21.82035839 | J64: =+SUM(J18:J63)/2*H64 -> 0 | M64: 0 | N64: =+SUM(N18:N63)/2*L64 -> 0 | O64: 21.82035839 | P64: =+SUM(P18:P63)/2*L64 -> 0 | Q64: 2662.083724 | R64: =+J64*E$7 -> 0
A65: Total Variable Costs | I65: 777.9691321 | J65: =SUM(J19:J64) -> 0 | M65: 0 | N65: =SUM(N19:N64) -> 0 | O65: 777.9691321 | P65: =SUM(P19:P64) -> 0 | Q65: 94912.23412 | R65: =SUM(R19:R64) -> 0
A66: Planned Returns Above Variable Costs: | I66: 196.5308679 | J66: =+J14-J65 -> 0 | M66: 0 | N66: =+N14-N65 -> 0 | O66: 196.5308679 | P66: =+P14-P65 -> 0 | Q66: 23976.76588 | R66: =+R14-R65 -> 0
B67: Breakeven Price to Cover Variable Costs | G67: 0.4527753057 | H67: =IF(E10=0,"n/a",(YVarExp-(YTotExp+YTotRet-J10))/E10) -> n/a | I67: Pound
Q68: Enterprise | R68: Enterprise
A69: FIXED COSTS | D69: Quantity | E69: Quantity | F69: Units | G69: $/Unit | H69: $/Unit | I69: Total | J69: Total | K69: Share | L69: Share | M69: Landlord | N69: Landlord | O69: Tenant | P69: Tenant | Q69: Total | R69: Total
B70: Machinery Depreciation
C71: Pickup/General Use Equipment | D71: 1 | F71: Acre | G71: 25.20368852 | I71: 25.20368852 | J71: =E71*H71 -> 0 | K71: 0 | M71: 0 | N71: =J71*L71 -> 0 | O71: 25.20368852 | P71: =+J71-N71 -> 0 | Q71: 3074.85 | R71: =+J71*E$7 -> 0
C72: Irrigation Equipment | D72: 1 | F72: Acre | G72: 46.33374317 | I72: 46.33374317 | J72: 0 | K72: 0 | M72: 0 | N72: =J72*L72 -> 0 | O72: 46.33374317 | P72: 0 | Q72: 5652.716667 | R72: 0
C73: Tractors/Self-Propelled | D73: 1 | F73: Acre | G73: 45.38964687 | I73: 45.38964687 | J73: 0 | K73: 0 | M73: 0 | N73: =J73*L73 -> 0 | O73: 45.38964687 | P73: 0 | Q73: 5537.536919 | R73: 0
C74: Implements | D74: 1 | F74: Acre | G74: 28.96750408 | I74: 28.96750408 | J74: 0 | K74: 0 | M74: 0 | N74: =J74*L74 -> 0 | O74: 28.96750408 | P74: 0 | Q74: 3534.035498 | R74: 0
B75: Equipment Investment
C76: Pickup/General Use Equipment | D76: 105.0153689 | F76: Dollars | G76: 0.065 | I76: 6.825998975 | J76: =E76*H76 -> 0 | K76: 0 | M76: 0 | N76: =J76*L76 -> 0 | O76: 6.825998975 | P76: =+J76-N76 -> 0 | Q76: 832.771875 | R76: =+J76*E$7 -> 0
C77: Irrigation Equipment | D77: 347.5030738 | F77: Dollars | G77: 0.065 | I77: 22.5876998 | J77: 0 | K77: 0 | M77: 0 | N77: =J77*L77 -> 0 | O77: 22.5876998 | P77: 0 | Q77: 2755.699375 | R77: 0
C78: Tractors/Self-Propelled | D78: 385.3623141 | F78: Dollars | G78: 0.065 | I78: 25.04855041 | J78: 0 | K78: 0 | M78: 0 | N78: =J78*L78 -> 0 | O78: 25.04855041 | P78: 0 | Q78: 3055.923151 | R78: 0
C79: Implements | D79: 160.204851 | F79: Dollars | G79: 0.065 | I79: 10.41331532 | J79: 0 | K79: 0 | M79: 0 | N79: =J79*L79 -> 0 | O79: 10.41331532 | P79: 0 | Q79: 1270.424468 | R79: 0
B80: Salaried Labor | D80: 1 | F80: Acre | G80: 0 | I80: 0 | J80: 0 | K80: 0 | M80: 0 | N80: =J80*L80 -> 0 | O80: 0 | P80: =+J80-N80 -> 0 | Q80: 0 | R80: =+J80*E$7 -> 0
B81: Management Fee, Owner/Operator Labor | D81: 1 | F81: Acre | G81: 0 | I81: 0 | J81: 0 | K81: 0 | M81: 0 | N81: 0 | O81: 0 | P81: 0 | Q81: 0 | R81: 0
B82: Allocated Establishment Cost | D82: 1 | F82: Acre | G82: 0 | I82: 0 | J82: 0 | K82: 0 | M82: 0 | N82: 0 | O82: 0 | P82: 0 | Q82: 0 | R82: 0
B83: Irrigated Winter Garden Rent | D83: 1 | F83: Acre | G83: 50 | I83: 50 | J83: 0 | K83: 0 | M83: 0 | N83: 0 | O83: 50 | P83: 0 | Q83: 6100 | R83: 0
B84: Property Taxes | D84: 1 | F84: Acre | G84: 0 | I84: 0 | J84: 0 | K84: 0 | M84: 0 | N84: 0 | O84: 0 | P84: 0 | Q84: 0 | R84: 0
B85: Whole Farm Insurance | D85: 1 | F85: Acre | G85: 0 | I85: 0 | J85: 0 | K85: 0 | M85: 0 | N85: 0 | O85: 0 | P85: 0 | Q85: 0 | R85: 0
D86: 1 | G86: 0 | I86: 0 | J86: 0 | K86: 0 | M86: 0 | N86: 0 | O86: 0 | P86: 0 | Q86: 0 | R86: 0
D87: 1 | G87: 0 | I87: 0 | J87: =E87*H87 -> 0 | K87: 0 | M87: 0 | N87: 0 | O87: 0 | P87: 0 | Q87: 0 | R87: 0
A88: Total Fixed Costs | I88: 260.7701472 | J88: =+SUM(J71:J87) -> 0 | M88: 0 | N88: =+SUM(N71:N87) -> 0 | O88: 260.7701472 | P88: =+SUM(P71:P87) -> 0 | Q88: 31813.95795 | R88: =+SUM(R71:R87) -> 0
A89: Total Specified Costs | I89: 1038.739279 | J89: =+J65+J88 -> 0 | M89: 0 | N89: =+N65+N88 -> 0 | O89: 1038.739279 | P89: =+P65+P88 -> 0 | Q89: 126726.1921 | R89: =+R65+R88 -> 0
A91: Returns Above Specified Costs | I91: -64.23927924 | J91: =+J14-J89 -> 0 | M91: 0 | N91: =+N14-N89 -> 0 | O91: -64.23927924 | P91: =+P14-P89 -> 0 | Q91: -7837.192068 | R91: =+R14-R89 -> 0
A93: Breakeven Price to Cover Total Costs | G93: 0.6613914234 | H93: =IF(E10=0,"n/a",(YTotExp-(YTotExp+YTotRet-J10))/E10) -> n/a | I93: Pound
D95: Example Breakeven Prices
B96: Example | C96: Example | D96: To Cover | G96: To Cover
B97: Yield | C97: Yield | D97: Variable | G97: Total
B98: Percent | C98: Pound | D98: Costs | G98: Costs
B99: 0.75 | C99: 937.5 | D99: 0.6037004076 | G99: 0.8818552312
B100: 0.9 | C100: 1125 | D100: 0.503083673 | G100: 0.7348793593
B101: 1 | C101: 1250 | D101: 0.4527753057 | G101: 0.6613914234
B102: 1.1 | C102: 1375 | D102: 0.4116139142 | G102: 0.6012649304
B103: 1.25 | C103: 1562.5 | D103: 0.3622202445 | G103: 0.5291131387
D105: Your Breakeven Prices
B106: Your | C106: Your | E106: To Cover | H106: To Cover
B107: Yield | C107: Yield | E107: Variable | H107: Total
B108: Percent | C108: Pound | E108: Costs | H108: Costs
B109: 0.75 | C109: =E10*YPER1 -> 0 | E109: =IF($E$10=0,0,(YVarExp-(YTotExp+YTotRet-J10))/($E$10*YPER1)) -> 0 | H109: =IF($E$10=0,0,(YTotExp-(YTotExp+YTotRet-J10))/($E$10*YPER1)) -> 0
B110: 0.9 | C110: =E10*YPER2 -> 0 | E110: =IF($E$10=0,0,(YVarExp-(YTotExp+YTotRet-J10))/($E$10*YPER2)) -> 0 | H110: =IF($E$10=0,0,(YTotExp-(YTotExp+YTotRet-J10))/($E$10*YPER2)) -> 0
B111: 1 | C111: =+E10 -> 0 | E111: =IF($E$10=0,0,(YVarExp-(YTotExp+YTotRet-J10))/($E$10*YPER3)) -> 0 | H111: =IF($E$10=0,0,(YTotExp-(YTotExp+YTotRet-J10))/($E$10*YPER3)) -> 0
B112: 1.1 | C112: =E10*YPER4 -> 0 | E112: =IF($E$10=0,0,(YVarExp-(YTotExp+YTotRet-J10))/($E$10*YPER4)) -> 0 | H112: =IF($E$10=0,0,(YTotExp-(YTotExp+YTotRet-J10))/($E$10*YPER4)) -> 0
B113: 1.25 | C113: =E10*YPER5 -> 0 | E113: =IF($E$10=0,0,(YVarExp-(YTotExp+YTotRet-J10))/($E$10*YPER5)) -> 0 | H113: =IF($E$10=0,0,(YTotExp-(YTotExp+YTotRet-J10))/($E$10*YPER5)) -> 0
A115: Developed by Rob Hogan, Associate Professor and Extension Economist, Texas A&M AgriLife Extension, 830-278-9151.
A117: Information presented is prepared solely as a general guide and not intended to recognize or predict the costs and returns from any one operation. Brand names are mentioned only as examples and imply no endorsement.

Sheet PeanutsDryland
A1: Projections for Planning Purposes Only -- Not to be Used without Updating
A2: 2018 Estimated Costs and Returns per Acre
A3: Dryland Runner Peanuts
A4: Enter your name for this budget in the cell above.
A5: Enter Your Values in the cells highlighed in MAROON.
E6: Your Acres | R6: Your
C7: Crop Acres | D7: 100 | L7: Your | Q7: Enterprise | R7: Enterprise
E8: Your | H8: Your | I8: Cash | J8: Your | K8: Landlord | L8: Landlord | N8: Your | P8: Your | Q8: Total | R8: Total
A9: REVENUE | D9: Quantity | E9: Quantity | F9: Units | G9: $/Unit | H9: $/Unit | I9: Total | J9: Total | K9: Share | L9: Share | M9: Landlord | N9: Landlord | O9: Tenant | P9: Tenant | Q9: (100 acres) | R9: ="(" & E7 & " acres)" -> ( acres)
B10: Peanuts | D10: 15 | F10: CWT | G10: 23.75 | I10: 356.25 | J10: =E10*H10 -> 0 | K10: 0 | M10: 0 | N10: =J10*L10 -> 0 | O10: 356.25 | P10: =+J10-N10 -> 0 | Q10: 35625 | R10: =+J10*E$7 -> 0
D11: 0 | G11: 0 | I11: 0 | J11: 0 | K11: 0 | M11: 0 | N11: 0 | O11: 0 | P11: =+J11-N11 -> 0 | Q11: 0 | R11: 0
D12: 0 | G12: 0 | I12: 0 | J12: 0 | K12: 0 | M12: 0 | N12: 0 | O12: 0 | P12: 0 | Q12: 0 | R12: 0
A13: Total Revenue | I13: 356.25 | J13: =SUM(J10:J12) -> 0 | M13: 0 | N13: =SUM(N10:N12) -> 0 | O13: 356.25 | P13: =SUM(P10:P12) -> 0 | Q13: 35625 | R13: =SUM(R10:R12) -> 0
Q14: Enterprise | R14: Enterprise
A15: VARIABLE COSTS | D15: Quantity | E15: Quantity | F15: Units | G15: $/Unit | H15: $/Unit | I15: Total | J15: Total | K15: Share | L15: Share | M15: Landlord | N15: Landlord | O15: Tenant | P15: Tenant | Q15: Total | R15: Total
A16: Production Costs
B17: Herbicide
C18: Trifluralin | D18: 1 | F18: Pint | G18: 3.13 | I18: 3.13 | J18: =E18*H18 -> 0 | K18: 0 | M18: 0 | N18: =J18*L18 -> 0 | O18: 3.13 | P18: =+J18-N18 -> 0 | Q18: 313 | R18: =+J18*E$7 -> 0
B19: Miscellaneous
C20: Miscellaneous Peanut Overhead | D20: 1 | F20: Acre | G20: 4 | I20: 4 | J20: 0 | K20: 0 | M20: 0 | N20: 0 | O20: 4 | P20: 0 | Q20: 400 | R20: 0
C21: Crop Insurance - Sesame Dry | D21: 1 | F21: Acre | G21: 18 | I21: 18 | J21: 0 | K21: 0 | M21: 0 | N21: 0 | O21: 18 | P21: 0 | Q21: 1800 | R21: 0
B22: Seed
C23: Peanut Seed | D23: 65 | F23: Pound | G23: 0.65 | I23: 42.25 | J23: 0 | K23: 0 | M23: 0 | N23: 0 | O23: 42.25 | P23: 0 | Q23: 4225 | R23: 0
C24: Peanut Seed Treatment | D24: 1 | F24: Acre | G24: 5.91 | I24: 5.91 | J24: 0 | K24: 0 | M24: 0 | N24: 0 | O24: 5.91 | P24: 0 | Q24: 591 | R24: 0
B25: Fungicides
C26: Quadris | D26: 2 | F26: Ounce | G26: 2.46 | I26: 4.92 | J26: 0 | K26: 0 | M26: 0 | N26: 0 | O26: 4.92 | P26: 0 | Q26: 492 | R26: 0
B27: Custom
C28: Haul Peanuts | D28: 0.75 | F28: Ton | G28: 10.5 | I28: 7.875 | J28: 0 | K28: 0 | M28: 0 | N28: 0 | O28: 7.875 | P28: 0 | Q28: 787.5 | R28: 0
C29: Dry Peanuts | D29: 0.75 | F29: Ton | G29: 24 | I29: 18 | J29: 0 | K29: 0 | M29: 0 | N29: 0 | O29: 18 | P29: 0 | Q29: 1800 | R29: 0
D30: 0 | G30: 0 | I30: 0 | J30: 0 | K30: 0 | M30: 0 | N30: 0 | O30: 0 | P30: 0 | Q30: 0 | R30: 0
D31: 0 | G31: 0 | I31: 0 | J31: 0 | K31: 0 | M31: 0 | N31: 0 | O31: 0 | P31: 0 | Q31: 0 | R31: 0
D32: 0 | G32: 0 | I32: 0 | J32: =E32*H32 -> 0 | K32: 0 | M32: 0 | N32: =J32*L32 -> 0 | O32: 0 | P32: =+J32-N32 -> 0 | Q32: 0 | R32: =+J32*E$7 -> 0
B33: Machinery Labor
C34: Tractors/Self-Propelled | D34: 1.91 | F34: Hour | G34: 12 | I34: 22.92 | J34: =E34*H34 -> 0 | K34: 0 | M34: 0 | N34: =J34*L34 -> 0 | O34: 22.92 | P34: =+J34-N34 -> 0 | Q34: 2292 | R34: =+J34*E$7 -> 0
C35: Other Labor | D35: 0.15 | F35: Hour | G35: 8.5 | I35: 1.275 | J35: =E35*H35 -> 0 | K35: 0 | M35: 0 | N35: =J35*L35 -> 0 | O35: 1.275 | P35: =+J35-N35 -> 0 | Q35: 127.5 | R35: =+J35*E$7 -> 0
B37: Diesel Fuel
C38: Pickup/General Use Equipment | D38: 1 | F38: Acre | G38: 0 | I38: 0 | J38: =E38*H38 -> 0 | K38: 0 | M38: 0 | N38: =J38*L38 -> 0 | O38: 0 | P38: =+J38-N38 -> 0 | Q38: 0 | R38: =+J38*E$7 -> 0
C39: Tractors/Self-Propelled | D39: 19.34 | F39: Gallon | G39: 2.14 | I39: 41.3876 | J39: =E39*H39 -> 0 | K39: 0 | M39: 0 | N39: =J39*L39 -> 0 | O39: 41.3876 | P39: =+J39-N39 -> 0 | Q39: 4138.76 | R39: =+J39*E$7 -> 0
B41: Gasoline
C42: Pickup/General Use Equipment | D42: 1 | F42: Acre | G42: 23.12561132 | I42: 23.12561132 | J42: =E42*H42 -> 0 | K42: 0 | M42: 0 | N42: =J42*L42 -> 0 | O42: 23.12561132 | P42: =+J42-N42 -> 0 | Q42: 2312.561132 | R42: =+J42*E$7 -> 0
C43: Tractors/Self-Propelled | D43: 0 | F43: Gallon | G43: 2.39 | I43: 0 | J43: =E43*H43 -> 0 | K43: 0 | M43: 0 | N43: =J43*L43 -> 0 | O43: 0 | P43: =+J43-N43 -> 0 | Q43: 0 | R43: =+J43*E$7 -> 0
B45: Repairs & Maintenance
C46: Pickup/General Use Equipment | D46: 1 | F46: Acre | G46: 4.8384 | I46: 4.8384 | J46: =E46*H46 -> 0 | K46: 0 | M46: 0 | N46: =J46*L46 -> 0 | O46: 4.8384 | P46: =+J46-N46 -> 0 | Q46: 483.84 | R46: =+J46*E$7 -> 0
C47: Irrigation Equipment | D47: 1 | F47: Acre | G47: 0 | I47: 0 | J47: 0 | K47: 0 | M47: 0 | N47: 0 | O47: 0 | P47: 0 | Q47: 0 | R47: 0
C48: Tractors/Self-Propelled | D48: 1 | F48: Acre | G48: 44.517678 | I48: 44.517678 | J48: 0 | K48: 0 | M48: 0 | N48: 0 | O48: 44.517678 | P48: 0 | Q48: 4451.7678 | R48: 0
C49: Implements | D49: 1 | F49: Acre | G49: 20.81526925 | I49: 20.81526925 | J49: 0 | K49: 0 | M49: 0 | N49: 0 | O49: 20.81526925 | P49: 0 | Q49: 2081.526925 | R49: 0
I50: 0 | J50: 0 | K50: 0 | M50: 0 | N50: 0 | O50: 0 | P50: 0 | Q50: 0 | R50: 0
I51: 0 | J51: 0 | K51: 0 | M51: 0 | N51: 0 | O51: 0 | P51: 0 | Q51: 0 | R51: 0
B52: Interest on Credit Line | G52: 0.065 | I52: 5.212545715 | J52: =+SUM(J17:J51)/2*H52 -> 0 | M52: 0 | N52: =+SUM(N17:N51)/2*L52 -> 0 | O52: 5.212545715 | P52: =+SUM(P17:P51)/2*L52 -> 0 | Q52: 521.2545715 | R52: =+J52*E$7 -> 0
A53: Total Variable Costs | I53: 268.1771043 | J53: =SUM(J18:J52) -> 0 | M53: 0 | N53: =SUM(N18:N52) -> 0 | O53: 268.1771043 | P53: =SUM(P18:P52) -> 0 | Q53: 26817.71043 | R53: =SUM(R18:R52) -> 0
A54: Planned Returns Above Variable Costs: | I54: 88.07289572 | J54: =+J13-J53 -> 0 | M54: 0 | N54: =+N13-N53 -> 0 | O54: 88.07289572 | P54: =+P13-P53 -> 0 | Q54: 8807.289572 | R54: =+R13-R53 -> 0
B55: Breakeven Price to Cover Variable Costs | G55: 17.87847362 | H55: =IF(E10=0,"n/a",(YVarExp-(YTotExp+YTotRet-J10))/E10) -> n/a | I55: CWT
Q56: Enterprise | R56: Enterprise
A57: FIXED COSTS | D57: Quantity | E57: Quantity | F57: Units | G57: $/Unit | H57: $/Unit | I57: Total | J57: Total | K57: Share | L57: Share | M57: Landlord | N57: Landlord | O57: Tenant | P57: Tenant | Q57: Total | R57: Total
B58: Machinery Depreciation
C59: Pickup/General Use Equipment | D59: 1 | F59: Acre | G59: 25.2 | I59: 25.2 | J59: =E59*H59 -> 0 | K59: 0 | M59: 0 | N59: =J59*L59 -> 0 | O59: 25.2 | P59: =+J59-N59 -> 0 | Q59: 2520 | R59: =+J59*E$7 -> 0
C60: Tractors/Self-Propelled | D60: 1 | F60: Acre | G60: 48.85990954 | I60: 48.85990954 | J60: 0 | K60: 0 | M60: 0 | N60: =J60*L60 -> 0 | O60: 48.85990954 | P60: 0 | Q60: 4885.990954 | R60: 0
C61: Implements | D61: 1 | F61: Acre | G61: 27.79112557 | I61: 27.79112557 | J61: 0 | K61: 0 | M61: 0 | N61: =J61*L61 -> 0 | O61: 27.79112557 | P61: 0 | Q61: 2779.112557 | R61: 0
B62: Equipment Investment
C63: Pickup/General Use Equipment | D63: 105 | F63: Dollars | G63: 0.065 | I63: 6.825 | J63: =E63*H63 -> 0 | K63: 0 | M63: 0 | N63: =J63*L63 -> 0 | O63: 6.825 | P63: =+J63-N63 -> 0 | Q63: 682.5 | R63: =+J63*E$7 -> 0
C64: Tractors/Self-Propelled | D64: 379.3063876 | F64: Dollars | G64: 0.065 | I64: 24.65491519 | J64: 0 | K64: 0 | M64: 0 | N64: =J64*L64 -> 0 | O64: 24.65491519 | P64: 0 | Q64: 2465.491519 | R64: 0
C65: Implements | D65: 330.7337234 | F65: Dollars | G65: 0.065 | I65: 21.49769202 | J65: 0 | K65: 0 | M65: 0 | N65: =J65*L65 -> 0 | O65: 21.49769202 | P65: 0 | Q65: 2149.769202 | R65: 0
B66: Salaried Labor | D66: 1 | F66: Acre | G66: 0 | I66: 0 | J66: 0 | K66: 0 | M66: 0 | N66: =J66*L66 -> 0 | O66: 0 | P66: =+J66-N66 -> 0 | Q66: 0 | R66: =+J66*E$7 -> 0
B67: Management Fee, Owner/Operator Labor | D67: 1 | F67: Acre | G67: 0 | I67: 0 | J67: 0 | K67: 0 | M67: 0 | N67: 0 | O67: 0 | P67: 0 | Q67: 0 | R67: 0
B68: Allocated Establishment Cost | D68: 1 | F68: Acre | G68: 0 | I68: 0 | J68: 0 | K68: 0 | M68: 0 | N68: 0 | O68: 0 | P68: 0 | Q68: 0 | R68: 0
B69: Dryland Winter Garden Rent | D69: 1 | F69: Acre | G69: 20 | I69: 20 | J69: 0 | K69: 0 | M69: 0 | N69: 0 | O69: 20 | P69: 0 | Q69: 2000 | R69: 0
B70: Property Taxes | D70: 1 | F70: Acre | G70: 0 | I70: 0 | J70: 0 | K70: 0 | M70: 0 | N70: 0 | O70: 0 | P70: 0 | Q70: 0 | R70: 0
B71: Whole Farm Insurance | D71: 1 | F71: Acre | G71: 0 | I71: 0 | J71: 0 | K71: 0 | M71: 0 | N71: 0 | O71: 0 | P71: 0 | Q71: 0 | R71: 0
D72: 1 | G72: 0 | I72: 0 | J72: 0 | K72: 0 | M72: 0 | N72: 0 | O72: 0 | P72: 0 | Q72: 0 | R72: 0
D73: 1 | G73: 0 | I73: 0 | J73: =E73*H73 -> 0 | K73: 0 | M73: 0 | N73: 0 | O73: 0 | P73: 0 | Q73: 0 | R73: 0
A74: Total Fixed Costs | I74: 174.8286423 | J74: =+SUM(J59:J73) -> 0 | M74: 0 | N74: =+SUM(N59:N73) -> 0 | O74: 174.8286423 | P74: =+SUM(P59:P73) -> 0 | Q74: 17482.86423 | R74: =+SUM(R59:R73) -> 0
A75: Total Specified Costs | I75: 443.0057466 | J75: =+J53+J74 -> 0 | M75: 0 | N75: =+N53+N74 -> 0 | O75: 443.0057466 | P75: =+P53+P74 -> 0 | Q75: 44300.57466 | R75: =+R53+R74 -> 0
A77: Returns Above Specified Costs | I77: -86.7557466 | J77: =+J13-J75 -> 0 | M77: 0 | N77: =+N13-N75 -> 0 | O77: -86.7557466 | P77: =+P13-P75 -> 0 | Q77: -8675.57466 | R77: =+R13-R75 -> 0
A79: Breakeven Price to Cover Total Costs | G79: 29.53371644 | H79: =IF(E10=0,"n/a",(YTotExp-(YTotExp+YTotRet-J10))/E10) -> n/a | I79: CWT
D81: Example Breakeven Prices
B82: Example | C82: Example | D82: To Cover | G82: To Cover
B83: Yield | C83: Yield | D83: Variable | G83: Total
B84: Percent | C84: CWT | D84: Costs | G84: Costs
B85: 0.75 | C85: 11.25 | D85: 23.83796482 | G85: 39.37828859
B86: 0.9 | C86: 13.5 | D86: 19.86497069 | G86: 32.81524049
B87: 1 | C87: 15 | D87: 17.87847362 | G87: 29.53371644
B88: 1.1 | C88: 16.5 | D88: 16.25315784 | G88: 26.84883313
B89: 1.25 | C89: 18.75 | D89: 14.30277889 | G89: 23.62697315
D91: Your Breakeven Prices
B92: Your | C92: Your | E92: To Cover | H92: To Cover
B93: Yield | C93: Yield | E93: Variable | H93: Total
B94: Percent | C94: CWT | E94: Costs | H94: Costs
B95: 0.75 | C95: =E10*YPER1 -> 0 | E95: =IF($E$10=0,0,(YVarExp-(YTotExp+YTotRet-J10))/($E$10*YPER1)) -> 0 | H95: =IF($E$10=0,0,(YTotExp-(YTotExp+YTotRet-J10))/($E$10*YPER1)) -> 0
B96: 0.9 | C96: =E10*YPER2 -> 0 | E96: =IF($E$10=0,0,(YVarExp-(YTotExp+YTotRet-J10))/($E$10*YPER2)) -> 0 | H96: =IF($E$10=0,0,(YTotExp-(YTotExp+YTotRet-J10))/($E$10*YPER2)) -> 0
B97: 1 | C97: =+E10 -> 0 | E97: =IF($E$10=0,0,(YVarExp-(YTotExp+YTotRet-J10))/($E$10*YPER3)) -> 0 | H97: =IF($E$10=0,0,(YTotExp-(YTotExp+YTotRet-J10))/($E$10*YPER3)) -> 0
B98: 1.1 | C98: =E10*YPER4 -> 0 | E98: =IF($E$10=0,0,(YVarExp-(YTotExp+YTotRet-J10))/($E$10*YPER4)) -> 0 | H98: =IF($E$10=0,0,(YTotExp-(YTotExp+YTotRet-J10))/($E$10*YPER4)) -> 0
B99: 1.25 | C99: =E10*YPER5 -> 0 | E99: =IF($E$10=0,0,(YVarExp-(YTotExp+YTotRet-J10))/($E$10*YPER5)) -> 0 | H99: =IF($E$10=0,0,(YTotExp-(YTotExp+YTotRet-J10))/($E$10*YPER5)) -> 0
A101: Developed by Rob Hogan, Associate Professor and Extension Economist, Texas A&M AgriLife Extension, 830-278-9151.
A103: Information presented is prepared solely as a general guide and not intended to recognize or predict the costs and returns from any one operation. Brand names are mentioned only as examples and imply no endorsement.

Sheet PeanutsIrrigated
A1: Projections for Planning Purposes Only -- Not to be Used without Updating
A2: 2018 Estimated Costs and Returns per Acre
A3: Irrigated Runner Peanuts
A4: Enter your name for this budget in the cell above.
A5: Enter Your Values in the cells highlighed in MAROON.
E6: Your Acres | R6: Your
C7: Crop Acres | D7: 122 | L7: Your | Q7: Enterprise | R7: Enterprise
E8: Your | H8: Your | I8: Cash | J8: Your | K8: Landlord | L8: Landlord | N8: Your | P8: Your | Q8: Total | R8: Total
A9: REVENUE | D9: Quantity | E9: Quantity | F9: Units | G9: $/Unit | H9: $/Unit | I9: Total | J9: Total | K9: Share | L9: Share | M9: Landlord | N9: Landlord | O9: Tenant | P9: Tenant | Q9: (122 acres) | R9: ="(" & E7 & " acres)" -> ( acres)
B10: Peanuts | D10: 40 | F10: CWT | G10: 23.75 | I10: 950 | J10: =E10*H10 -> 0 | K10: 0 | M10: 0 | N10: =J10*L10 -> 0 | O10: 950 | P10: =+J10-N10 -> 0 | Q10: 115900 | R10: =+J10*E$7 -> 0
D11: 0 | G11: 0 | I11: 0 | J11: 0 | K11: 0 | M11: 0 | N11: 0 | O11: 0 | P11: =+J11-N11 -> 0 | Q11: 0 | R11: 0
D12: 0 | G12: 0 | I12: 0 | J12: 0 | K12: 0 | M12: 0 | N12: 0 | O12: 0 | P12: 0 | Q12: 0 | R12: 0
A13: Total Revenue | I13: 950 | J13: =SUM(J10:J12) -> 0 | M13: 0 | N13: =SUM(N10:N12) -> 0 | O13: 950 | P13: =SUM(P10:P12) -> 0 | Q13: 115900 | R13: =SUM(R10:R12) -> 0
Q14: Enterprise | R14: Enterprise
A15: VARIABLE COSTS | D15: Quantity | E15: Quantity | F15: Units | G15: $/Unit | H15: $/Unit | I15: Total | J15: Total | K15: Share | L15: Share | M15: Landlord | N15: Landlord | O15: Tenant | P15: Tenant | Q15: Total | R15: Total
A16: Production Costs
B17: Custom
C18: Haul Peanuts | D18: 2 | F18: Ton | G18: 10.5 | I18: 21 | J18: =E18*H18 -> 0 | K18: 0 | M18: 0 | N18: =J18*L18 -> 0 | O18: 21 | P18: =+J18-N18 -> 0 | Q18: 2562 | R18: =+J18*E$7 -> 0
C19: Dry Peanuts | D19: 2 | F19: Ton | G19: 24 | I19: 48 | J19: 0 | K19: 0 | M19: 0 | N19: 0 | O19: 48 | P19: 0 | Q19: 5856 | R19: 0
B20: Herbicide
C21: Trifluralin | D21: 2 | F21: Pint | G21: 3.13 | I21: 6.26 | J21: 0 | K21: 0 | M21: 0 | N21: 0 | O21: 6.26 | P21: 0 | Q21: 763.72 | R21: 0
C22: Glyphosate | D22: 1 | F22: Pint | G22: 2.25 | I22: 2.25 | J22: 0 | K22: 0 | M22: 0 | N22: 0 | O22: 2.25 | P22: 0 | Q22: 274.5 | R22: 0
B23: Miscellaneous
C24: Miscellaneous Peanut Overhead | D24: 1 | F24: Acre | G24: 4 | I24: 4 | J24: 0 | K24: 0 | M24: 0 | N24: 0 | O24: 4 | P24: 0 | Q24: 488 | R24: 0
C25: Crop Insurance - Peanuts irrigated | D25: 1 | F25: Acre | G25: 19 | I25: 19 | J25: 0 | K25: 0 | M25: 0 | N25: 0 | O25: 19 | P25: 0 | Q25: 2318 | R25: 0
B26: Seed
C27: Peanut Seed | D27: 85 | F27: Pound | G27: 0.65 | I27: 55.25 | J27: 0 | K27: 0 | M27: 0 | N27: 0 | O27: 55.25 | P27: 0 | Q27: 6740.5 | R27: 0
D28: 0 | G28: 0 | I28: 0 | J28: 0 | K28: 0 | M28: 0 | N28: 0 | O28: 0 | P28: 0 | Q28: 0 | R28: 0
D29: 0 | G29: 0 | I29: 0 | J29: 0 | K29: 0 | M29: 0 | N29: 0 | O29: 0 | P29: 0 | Q29: 0 | R29: 0
D30: 0 | G30: 0 | I30: 0 | J30: =E30*H30 -> 0 | K30: 0 | M30: 0 | N30: =J30*L30 -> 0 | O30: 0 | P30: =+J30-N30 -> 0 | Q30: 0 | R30: =+J30*E$7 -> 0
B31: Irrigation
C32: Energy Cost | D32: 747.01 | F32: kWh | G32: 0.17 | I32: 126.9917 | J32: =E32*H32 -> 0 | K32: 0 | M32: 0 | N32: =J32*L32 -> 0 | O32: 126.9917 | P32: =+J32-N32 -> 0 | Q32: 15492.9874 | R32: =+J32*E$7 -> 0
B33: Machinery Labor
C34: Tractors/Self-Propelled | D34: 2.51 | F34: Hour | G34: 12 | I34: 30.12 | J34: =E34*H34 -> 0 | K34: 0 | M34: 0 | N34: =J34*L34 -> 0 | O34: 30.12 | P34: =+J34-N34 -> 0 | Q34: 3674.64 | R34: =+J34*E$7 -> 0
C35: Other Labor | D35: 0.15 | F35: Hour | G35: 8.5 | I35: 1.275 | J35: =E35*H35 -> 0 | K35: 0 | M35: 0 | N35: =J35*L35 -> 0 | O35: 1.275 | P35: =+J35-N35 -> 0 | Q35: 155.55 | R35: =+J35*E$7 -> 0
B37: Diesel Fuel
C38: Pickup/General Use Equipment | D38: 1 | F38: Acre | G38: 0 | I38: 0 | J38: =E38*H38 -> 0 | K38: 0 | M38: 0 | N38: =J38*L38 -> 0 | O38: 0 | P38: =+J38-N38 -> 0 | Q38: 0 | R38: =+J38*E$7 -> 0
C39: Tractors/Self-Propelled | D39: 23.79 | F39: Gallon | G39: 2.14 | I39: 50.9106 | J39: =E39*H39 -> 0 | K39: 0 | M39: 0 | N39: =J39*L39 -> 0 | O39: 50.9106 | P39: =+J39-N39 -> 0 | Q39: 6211.0932 | R39: =+J39*E$7 -> 0
B41: Gasoline
C42: Pickup/General Use Equipment | D42: 1 | F42: Acre | G42: 23.12899622 | I42: 23.12899622 | J42: =E42*H42 -> 0 | K42: 0 | M42: 0 | N42: =J42*L42 -> 0 | O42: 23.12899622 | P42: =+J42-N42 -> 0 | Q42: 2821.737538 | R42: =+J42*E$7 -> 0
C43: Tractors/Self-Propelled | D43: 0 | F43: Gallon | G43: 2.39 | I43: 0 | J43: =E43*H43 -> 0 | K43: 0 | M43: 0 | N43: =J43*L43 -> 0 | O43: 0 | P43: =+J43-N43 -> 0 | Q43: 0 | R43: =+J43*E$7 -> 0
B45: Repairs & Maintenance
C46: Pickup/General Use Equipment | D46: 1 | F46: Acre | G46: 4.839108197 | I46: 4.839108197 | J46: =E46*H46 -> 0 | K46: 0 | M46: 0 | N46: =J46*L46 -> 0 | O46: 4.839108197 | P46: =+J46-N46 -> 0 | Q46: 590.3712 | R46: =+J46*E$7 -> 0
C47: Irrigation Equipment | D47: 1 | F47: Acre | G47: 7.768904 | I47: 7.768904 | J47: 0 | K47: 0 | M47: 0 | N47: 0 | O47: 7.768904 | P47: 0 | Q47: 947.806288 | R47: 0
C48: Tractors/Self-Propelled | D48: 1 | F48: Acre | G48: 57.85778414 | I48: 57.85778414 | J48: 0 | K48: 0 | M48: 0 | N48: 0 | O48: 57.85778414 | P48: 0 | Q48: 7058.649665 | R48: 0
C49: Implements | D49: 1 | F49: Acre | G49: 27.53967409 | I49: 27.53967409 | J49: 0 | K49: 0 | M49: 0 | N49: 0 | O49: 27.53967409 | P49: 0 | Q49: 3359.840239 | R49: 0
I50: 0 | J50: 0 | K50: 0 | M50: 0 | N50: 0 | O50: 0 | P50: 0 | Q50: 0 | R50: 0
I51: 0 | J51: 0 | K51: 0 | M51: 0 | N51: 0 | O51: 0 | P51: 0 | Q51: 0 | R51: 0
B52: Interest on Credit Line | G52: 0.065 | I52: 8.015472993 | J52: =+SUM(J17:J51)/2*H52 -> 0 | M52: 0 | N52: =+SUM(N17:N51)/2*L52 -> 0 | O52: 8.015472993 | P52: =+SUM(P17:P51)/2*L52 -> 0 | Q52: 977.8877051 | R52: =+J52*E$7 -> 0
A53: Total Variable Costs | I53: 494.2072396 | J53: =SUM(J18:J52) -> 0 | M53: 0 | N53: =SUM(N18:N52) -> 0 | O53: 494.2072396 | P53: =SUM(P18:P52) -> 0 | Q53: 60293.28324 | R53: =SUM(R18:R52) -> 0
A54: Planned Returns Above Variable Costs: | I54: 455.7927604 | J54: =+J13-J53 -> 0 | M54: 0 | N54: =+N13-N53 -> 0 | O54: 455.7927604 | P54: =+P13-P53 -> 0 | Q54: 55606.71676 | R54: =+R13-R53 -> 0
B55: Breakeven Price to Cover Variable Costs | G55: 12.35518099 | H55: =IF(E10=0,"n/a",(YVarExp-(YTotExp+YTotRet-J10))/E10) -> n/a | I55: CWT
Q56: Enterprise | R56: Enterprise
A57: FIXED COSTS | D57: Quantity | E57: Quantity | F57: Units | G57: $/Unit | H57: $/Unit | I57: Total | J57: Total | K57: Share | L57: Share | M57: Landlord | N57: Landlord | O57: Tenant | P57: Tenant | Q57: Total | R57: Total
B58: Machinery Depreciation
C59: Pickup/General Use Equipment | D59: 1 | F59: Acre | G59: 25.20368852 | I59: 25.20368852 | J59: =E59*H59 -> 0 | K59: 0 | M59: 0 | N59: =J59*L59 -> 0 | O59: 25.20368852 | P59: =+J59-N59 -> 0 | Q59: 3074.85 | R59: =+J59*E$7 -> 0
C60: Irrigation Equipment | D60: 1 | F60: Acre | G60: 66.12021858 | I60: 66.12021858 | J60: 0 | K60: 0 | M60: 0 | N60: =J60*L60 -> 0 | O60: 66.12021858 | P60: 0 | Q60: 8066.666667 | R60: 0
C61: Tractors/Self-Propelled | D61: 1 | F61: Acre | G61: 60.73914659 | I61: 60.73914659 | J61: 0 | K61: 0 | M61: 0 | N61: =J61*L61 -> 0 | O61: 60.73914659 | P61: 0 | Q61: 7410.175884 | R61: 0
C62: Implements | D62: 1 | F62: Acre | G62: 35.60274106 | I62: 35.60274106 | J62: 0 | K62: 0 | M62: 0 | N62: =J62*L62 -> 0 | O62: 35.60274106 | P62: 0 | Q62: 4343.534409 | R62: 0
B63: Equipment Investment
C64: Pickup/General Use Equipment | D64: 105.0153689 | F64: Dollars | G64: 0.065 | I64: 6.825998975 | J64: =E64*H64 -> 0 | K64: 0 | M64: 0 | N64: =J64*L64 -> 0 | O64: 6.825998975 | P64: =+J64-N64 -> 0 | Q64: 832.771875 | R64: =+J64*E$7 -> 0
C65: Irrigation Equipment | D65: 495.9016393 | F65: Dollars | G65: 0.065 | I65: 32.23360656 | J65: 0 | K65: 0 | M65: 0 | N65: =J65*L65 -> 0 | O65: 32.23360656 | P65: 0 | Q65: 3932.5 | R65: 0
C66: Tractors/Self-Propelled | D66: 472.7348556 | F66: Dollars | G66: 0.065 | I66: 30.72776561 | J66: 0 | K66: 0 | M66: 0 | N66: =J66*L66 -> 0 | O66: 30.72776561 | P66: 0 | Q66: 3748.787405 | R66: 0
C67: Implements | D67: 364.1892637 | F67: Dollars | G67: 0.065 | I67: 23.67230214 | J67: 0 | K67: 0 | M67: 0 | N67: =J67*L67 -> 0 | O67: 23.67230214 | P67: 0 | Q67: 2888.020861 | R67: 0
B68: Salaried Labor | D68: 1 | F68: Acre | G68: 0 | I68: 0 | J68: 0 | K68: 0 | M68: 0 | N68: =J68*L68 -> 0 | O68: 0 | P68: =+J68-N68 -> 0 | Q68: 0 | R68: =+J68*E$7 -> 0
B69: Management Fee, Owner/Operator Labor | D69: 1 | F69: Acre | G69: 0 | I69: 0 | J69: 0 | K69: 0 | M69: 0 | N69: 0 | O69: 0 | P69: 0 | Q69: 0 | R69: 0
B70: Allocated Establishment Cost | D70: 1 | F70: Acre | G70: 0 | I70: 0 | J70: 0 | K70: 0 | M70: 0 | N70: 0 | O70: 0 | P70: 0 | Q70: 0 | R70: 0
B71: Irrigated Winter Garden Rent | D71: 1 | F71: Acre | G71: 50 | I71: 50 | J71: 0 | K71: 0 | M71: 0 | N71: 0 | O71: 50 | P71: 0 | Q71: 6100 | R71: 0
B72: Property Taxes | D72: 1 | F72: Acre | G72: 0 | I72: 0 | J72: 0 | K72: 0 | M72: 0 | N72: 0 | O72: 0 | P72: 0 | Q72: 0 | R72: 0
B73: Whole Farm Insurance | D73: 1 | F73: Acre | G73: 0 | I73: 0 | J73: 0 | K73: 0 | M73: 0 | N73: 0 | O73: 0 | P73: 0 | Q73: 0 | R73: 0
D74: 1 | G74: 0 | I74: 0 | J74: 0 | K74: 0 | M74: 0 | N74: 0 | O74: 0 | P74: 0 | Q74: 0 | R74: 0
D75: 1 | G75: 0 | I75: 0 | J75: =E75*H75 -> 0 | K75: 0 | M75: 0 | N75: 0 | O75: 0 | P75: 0 | Q75: 0 | R75: 0
A76: Total Fixed Costs | I76: 331.125468 | J76: =+SUM(J59:J75) -> 0 | M76: 0 | N76: =+SUM(N59:N75) -> 0 | O76: 331.125468 | P76: =+SUM(P59:P75) -> 0 | Q76: 40397.3071 | R76: =+SUM(R59:R75) -> 0
A77: Total Specified Costs | I77: 825.3327077 | J77: =+J53+J76 -> 0 | M77: 0 | N77: =+N53+N76 -> 0 | O77: 825.3327077 | P77: =+P53+P76 -> 0 | Q77: 100690.5903 | R77: =+R53+R76 -> 0
A79: Returns Above Specified Costs | I79: 124.6672923 | J79: =+J13-J77 -> 0 | M79: 0 | N79: =+N13-N77 -> 0 | O79: 124.6672923 | P79: =+P13-P77 -> 0 | Q79: 15209.40966 | R79: =+R13-R77 -> 0
A81: Breakeven Price to Cover Total Costs | G81: 20.63331769 | H81: =IF(E10=0,"n/a",(YTotExp-(YTotExp+YTotRet-J10))/E10) -> n/a | I81: CWT
D83: Example Breakeven Prices
B84: Example | C84: Example | D84: To Cover | G84: To Cover
B85: Yield | C85: Yield | D85: Variable | G85: Total
B86: Percent | C86: CWT | D86: Costs | G86: Costs
B87: 0.75 | C87: 30 | D87: 16.47357465 | G87: 27.51109026
B88: 0.9 | C88: 36 | D88: 13.72797888 | G88: 22.92590855
B89: 1 | C89: 40 | D89: 12.35518099 | G89: 20.63331769
B90: 1.1 | C90: 44 | D90: 11.23198272 | G90: 18.75756154
B91: 1.25 | C91: 50 | D91: 9.884144793 | G91: 16.50665415
D93: Your Breakeven Prices
B94: Your | C94: Your | E94: To Cover | H94: To Cover
B95: Yield | C95: Yield | E95: Variable | H95: Total
B96: Percent | C96: CWT | E96: Costs | H96: Costs
B97: 0.75 | C97: =E10*YPER1 -> 0 | E97: =IF($E$10=0,0,(YVarExp-(YTotExp+YTotRet-J10))/($E$10*YPER1)) -> 0 | H97: =IF($E$10=0,0,(YTotExp-(YTotExp+YTotRet-J10))/($E$10*YPER1)) -> 0
B98: 0.9 | C98: =E10*YPER2 -> 0 | E98: =IF($E$10=0,0,(YVarExp-(YTotExp+YTotRet-J10))/($E$10*YPER2)) -> 0 | H98: =IF($E$10=0,0,(YTotExp-(YTotExp+YTotRet-J10))/($E$10*YPER2)) -> 0
B99: 1 | C99: =+E10 -> 0 | E99: =IF($E$10=0,0,(YVarExp-(YTotExp+YTotRet-J10))/($E$10*YPER3)) -> 0 | H99: =IF($E$10=0,0,(YTotExp-(YTotExp+YTotRet-J10))/($E$10*YPER3)) -> 0
B100: 1.1 | C100: =E10*YPER4 -> 0 | E100: =IF($E$10=0,0,(YVarExp-(YTotExp+YTotRet-J10))/($E$10*YPER4)) -> 0 | H100: =IF($E$10=0,0,(YTotExp-(YTotExp+YTotRet-J10))/($E$10*YPER4)) -> 0
B101: 1.25 | C101: =E10*YPER5 -> 0 | E101: =IF($E$10=0,0,(YVarExp-(YTotExp+YTotRet-J10))/($E$10*YPER5)) -> 0 | H101: =IF($E$10=0,0,(YTotExp-(YTotExp+YTotRet-J10))/($E$10*YPER5)) -> 0
A103: Developed by Rob Hogan, Associate Professor and Extension Economist, Texas A&M AgriLife Extension, 830-278-9151.
A105: Information presented is prepared solely as a general guide and not intended to recognize or predict the costs and returns from any one operation. Brand names are mentioned only as examples and imply no endorsement.

Sheet SesameDryland
A1: Projections for Planning Purposes Only -- Not to be Used without Updating
A2: 2018 Estimated Costs and Returns per Acre
A3: Dryland Sesame
A4: Enter your name for this budget in the cell above.
A5: Enter Your Values in the cells highlighed in MAROON.
E6: Your Acres | R6: Your
C7: Crop Acres | D7: 100 | L7: Your | Q7: Enterprise | R7: Enterprise
E8: Your | H8: Your | I8: Cash | J8: Your | K8: Landlord | L8: Landlord | N8: Your | P8: Your | Q8: Total | R8: Total
A9: REVENUE | D9: Quantity | E9: Quantity | F9: Units | G9: $/Unit | H9: $/Unit | I9: Total | J9: Total | K9: Share | L9: Share | M9: Landlord | N9: Landlord | O9: Tenant | P9: Tenant | Q9: (100 acres) | R9: ="(" & E7 & " acres)" -> ( acres)
B10: Sesame | D10: 5 | F10: CWT | G10: 35 | I10: 175 | J10: =E10*H10 -> 0 | K10: 0 | M10: 0 | N10: =J10*L10 -> 0 | O10: 175 | P10: =+J10-N10 -> 0 | Q10: 17500 | R10: =+J10*E$7 -> 0
D11: 0 | G11: 0 | I11: 0 | J11: 0 | K11: 0 | M11: 0 | N11: 0 | O11: 0 | P11: =+J11-N11 -> 0 | Q11: 0 | R11: 0
D12: 0 | G12: 0 | I12: 0 | J12: 0 | K12: 0 | M12: 0 | N12: 0 | O12: 0 | P12: 0 | Q12: 0 | R12: 0
A13: Total Revenue | I13: 175 | J13: =SUM(J10:J12) -> 0 | M13: 0 | N13: =SUM(N10:N12) -> 0 | O13: 175 | P13: =SUM(P10:P12) -> 0 | Q13: 17500 | R13: =SUM(R10:R12) -> 0
Q14: Enterprise | R14: Enterprise
A15: VARIABLE COSTS | D15: Quantity | E15: Quantity | F15: Units | G15: $/Unit | H15: $/Unit | I15: Total | J15: Total | K15: Share | L15: Share | M15: Landlord | N15: Landlord | O15: Tenant | P15: Tenant | Q15: Total | R15: Total
A16: Production Costs
B17: Seed
C18: Sesame Seed | D18: 2.5 | F18: Pound | G18: 3.5 | I18: 8.75 | J18: =E18*H18 -> 0 | K18: 0 | M18: 0 | N18: =J18*L18 -> 0 | O18: 8.75 | P18: =+J18-N18 -> 0 | Q18: 875 | R18: =+J18*E$7 -> 0
B19: Fertilizer
C20: UAN(32% N) | D20: 0.82 | F20: CWT | G20: 17 | I20: 13.94 | J20: 0 | K20: 0 | M20: 0 | N20: 0 | O20: 13.94 | P20: 0 | Q20: 1394 | R20: 0
C21: Fertilizer 18-46-0 | D21: 22 | F21: Pound | G21: 0.24 | I21: 5.28 | J21: 0 | K21: 0 | M21: 0 | N21: 0 | O21: 5.28 | P21: 0 | Q21: 528 | R21: 0
B22: Miscellaneous
C23: Crop Insurance - Sesame Dry | D23: 1 | F23: Acre | G23: 18 | I23: 18 | J23: 0 | K23: 0 | M23: 0 | N23: 0 | O23: 18 | P23: 0 | Q23: 1800 | R23: 0
C24: Miscellaneous Sesame Overhead | D24: 1 | F24: Acre | G24: 4 | I24: 4 | J24: 0 | K24: 0 | M24: 0 | N24: 0 | O24: 4 | P24: 0 | Q24: 400 | R24: 0
B25: Herbicide
C26: Select Max | D26: 0.1 | F26: Gallon | G26: 65 | I26: 6.5 | J26: 0 | K26: 0 | M26: 0 | N26: 0 | O26: 6.5 | P26: 0 | Q26: 650 | R26: 0
D27: 0 | G27: 0 | I27: 0 | J27: 0 | K27: 0 | M27: 0 | N27: 0 | O27: 0 | P27: 0 | Q27: 0 | R27: 0
D28: 0 | G28: 0 | I28: 0 | J28: 0 | K28: 0 | M28: 0 | N28: 0 | O28: 0 | P28: 0 | Q28: 0 | R28: 0
D29: 0 | G29: 0 | I29: 0 | J29: =E29*H29 -> 0 | K29: 0 | M29: 0 | N29: =J29*L29 -> 0 | O29: 0 | P29: =+J29-N29 -> 0 | Q29: 0 | R29: =+J29*E$7 -> 0
B30: Machinery Labor
C31: Tractors/Self-Propelled | D31: 0.79 | F31: Hour | G31: 12 | I31: 9.48 | J31: =E31*H31 -> 0 | K31: 0 | M31: 0 | N31: =J31*L31 -> 0 | O31: 9.48 | P31: =+J31-N31 -> 0 | Q31: 948 | R31: =+J31*E$7 -> 0
C32: Other Labor | D32: 0.23 | F32: Hour | G32: 8.5 | I32: 1.955 | J32: =E32*H32 -> 0 | K32: 0 | M32: 0 | N32: =J32*L32 -> 0 | O32: 1.955 | P32: =+J32-N32 -> 0 | Q32: 195.5 | R32: =+J32*E$7 -> 0
B34: Diesel Fuel
C35: Pickup/General Use Equipment | D35: 1 | F35: Acre | G35: 0 | I35: 0 | J35: =E35*H35 -> 0 | K35: 0 | M35: 0 | N35: =J35*L35 -> 0 | O35: 0 | P35: =+J35-N35 -> 0 | Q35: 0 | R35: =+J35*E$7 -> 0
C36: Tractors/Self-Propelled | D36: 7.3 | F36: Gallon | G36: 2.14 | I36: 15.622 | J36: =E36*H36 -> 0 | K36: 0 | M36: 0 | N36: =J36*L36 -> 0 | O36: 15.622 | P36: =+J36-N36 -> 0 | Q36: 1562.2 | R36: =+J36*E$7 -> 0
B38: Gasoline
C39: Pickup/General Use Equipment | D39: 1 | F39: Acre | G39: 23.12561132 | I39: 23.12561132 | J39: =E39*H39 -> 0 | K39: 0 | M39: 0 | N39: =J39*L39 -> 0 | O39: 23.12561132 | P39: =+J39-N39 -> 0 | Q39: 2312.561132 | R39: =+J39*E$7 -> 0
C40: Tractors/Self-Propelled | D40: 0 | F40: Gallon | G40: 2.39 | I40: 0 | J40: =E40*H40 -> 0 | K40: 0 | M40: 0 | N40: =J40*L40 -> 0 | O40: 0 | P40: =+J40-N40 -> 0 | Q40: 0 | R40: =+J40*E$7 -> 0
B42: Repairs & Maintenance
C43: Pickup/General Use Equipment | D43: 1 | F43: Acre | G43: 4.8384 | I43: 4.8384 | J43: =E43*H43 -> 0 | K43: 0 | M43: 0 | N43: =J43*L43 -> 0 | O43: 4.8384 | P43: =+J43-N43 -> 0 | Q43: 483.84 | R43: =+J43*E$7 -> 0
C44: Irrigation Equipment | D44: 1 | F44: Acre | G44: 0 | I44: 0 | J44: 0 | K44: 0 | M44: 0 | N44: 0 | O44: 0 | P44: 0 | Q44: 0 | R44: 0
C45: Tractors/Self-Propelled | D45: 1 | F45: Acre | G45: 24.19946772 | I45: 24.19946772 | J45: 0 | K45: 0 | M45: 0 | N45: 0 | O45: 24.19946772 | P45: 0 | Q45: 2419.946772 | R45: 0
C46: Implements | D46: 1 | F46: Acre | G46: 12.79366452 | I46: 12.79366452 | J46: 0 | K46: 0 | M46: 0 | N46: 0 | O46: 12.79366452 | P46: 0 | Q46: 1279.366452 | R46: 0
I47: 0 | J47: 0 | K47: 0 | M47: 0 | N47: 0 | O47: 0 | P47: 0 | Q47: 0 | R47: 0
I48: 0 | J48: 0 | K48: 0 | M48: 0 | N48: 0 | O48: 0 | P48: 0 | Q48: 0 | R48: 0
B49: Interest on Credit Line | G49: 0.065 | I49: 4.388343556 | J49: =+SUM(J17:J48)/2*H49 -> 0 | M49: 0 | N49: =+SUM(N17:N48)/2*L49 -> 0 | O49: 4.388343556 | P49: =+SUM(P17:P48)/2*L49 -> 0 | Q49: 438.8343556 | R49: =+J49*E$7 -> 0
A50: Total Variable Costs | I50: 152.8724871 | J50: =SUM(J18:J49) -> 0 | M50: 0 | N50: =SUM(N18:N49) -> 0 | O50: 152.8724871 | P50: =SUM(P18:P49) -> 0 | Q50: 15287.24871 | R50: =SUM(R18:R49) -> 0
A51: Planned Returns Above Variable Costs: | I51: 22.12751288 | J51: =+J13-J50 -> 0 | M51: 0 | N51: =+N13-N50 -> 0 | O51: 22.12751288 | P51: =+P13-P50 -> 0 | Q51: 2212.751288 | R51: =+R13-R50 -> 0
B52: Breakeven Price to Cover Variable Costs | G52: 30.57449742 | H52: =IF(E10=0,"n/a",(YVarExp-(YTotExp+YTotRet-J10))/E10) -> n/a | I52: CWT
Q53: Enterprise | R53: Enterprise
A54: FIXED COSTS | D54: Quantity | E54: Quantity | F54: Units | G54: $/Unit | H54: $/Unit | I54: Total | J54: Total | K54: Share | L54: Share | M54: Landlord | N54: Landlord | O54: Tenant | P54: Tenant | Q54: Total | R54: Total
B55: Machinery Depreciation
C56: Pickup/General Use Equipment | D56: 1 | F56: Acre | G56: 25.2 | I56: 25.2 | J56: =E56*H56 -> 0 | K56: 0 | M56: 0 | N56: =J56*L56 -> 0 | O56: 25.2 | P56: =+J56-N56 -> 0 | Q56: 2520 | R56: =+J56*E$7 -> 0
C57: Tractors/Self-Propelled | D57: 1 | F57: Acre | G57: 24.06107381 | I57: 24.06107381 | J57: 0 | K57: 0 | M57: 0 | N57: =J57*L57 -> 0 | O57: 24.06107381 | P57: 0 | Q57: 2406.107381 | R57: 0
C58: Implements | D58: 1 | F58: Acre | G58: 15.28268863 | I58: 15.28268863 | J58: 0 | K58: 0 | M58: 0 | N58: =J58*L58 -> 0 | O58: 15.28268863 | P58: 0 | Q58: 1528.268863 | R58: 0
B59: Equipment Investment
C60: Pickup/General Use Equipment | D60: 105 | F60: Dollars | G60: 0.065 | I60: 6.825 | J60: =E60*H60 -> 0 | K60: 0 | M60: 0 | N60: =J60*L60 -> 0 | O60: 6.825 | P60: =+J60-N60 -> 0 | Q60: 682.5 | R60: =+J60*E$7 -> 0
C61: Tractors/Self-Propelled | D61: 183.2955564 | F61: Dollars | G61: 0.065 | I61: 11.91421116 | J61: 0 | K61: 0 | M61: 0 | N61: =J61*L61 -> 0 | O61: 11.91421116 | P61: 0 | Q61: 1191.421116 | R61: 0
C62: Implements | D62: 80.22996008 | F62: Dollars | G62: 0.065 | I62: 5.214947405 | J62: 0 | K62: 0 | M62: 0 | N62: =J62*L62 -> 0 | O62: 5.214947405 | P62: 0 | Q62: 521.4947405 | R62: 0
B63: Salaried Labor | D63: 1 | F63: Acre | G63: 0 | I63: 0 | J63: 0 | K63: 0 | M63: 0 | N63: =J63*L63 -> 0 | O63: 0 | P63: =+J63-N63 -> 0 | Q63: 0 | R63: =+J63*E$7 -> 0
B64: Management Fee, Owner/Operator Labor | D64: 1 | F64: Acre | G64: 0 | I64: 0 | J64: 0 | K64: 0 | M64: 0 | N64: 0 | O64: 0 | P64: 0 | Q64: 0 | R64: 0
B65: Allocated Establishment Cost | D65: 1 | F65: Acre | G65: 0 | I65: 0 | J65: 0 | K65: 0 | M65: 0 | N65: 0 | O65: 0 | P65: 0 | Q65: 0 | R65: 0
B66: Dryland Winter Garden Rent | D66: 1 | F66: Acre | G66: 20 | I66: 20 | J66: 0 | K66: 0 | M66: 0 | N66: 0 | O66: 20 | P66: 0 | Q66: 2000 | R66: 0
B67: Property Taxes | D67: 1 | F67: Acre | G67: 0 | I67: 0 | J67: 0 | K67: 0 | M67: 0 | N67: 0 | O67: 0 | P67: 0 | Q67: 0 | R67: 0
B68: Whole Farm Insurance | D68: 1 | F68: Acre | G68: 0 | I68: 0 | J68: 0 | K68: 0 | M68: 0 | N68: 0 | O68: 0 | P68: 0 | Q68: 0 | R68: 0
D69: 1 | G69: 0 | I69: 0 | J69: 0 | K69: 0 | M69: 0 | N69: 0 | O69: 0 | P69: 0 | Q69: 0 | R69: 0
D70: 1 | G70: 0 | I70: 0 | J70: =E70*H70 -> 0 | K70: 0 | M70: 0 | N70: 0 | O70: 0 | P70: 0 | Q70: 0 | R70: 0
A71: Total Fixed Costs | I71: 108.497921 | J71: =+SUM(J56:J70) -> 0 | M71: 0 | N71: =+SUM(N56:N70) -> 0 | O71: 108.497921 | P71: =+SUM(P56:P70) -> 0 | Q71: 10849.7921 | R71: =+SUM(R56:R70) -> 0
A72: Total Specified Costs | I72: 261.3704081 | J72: =+J50+J71 -> 0 | M72: 0 | N72: =+N50+N71 -> 0 | O72: 261.3704081 | P72: =+P50+P71 -> 0 | Q72: 26137.04081 | R72: =+R50+R71 -> 0
A74: Returns Above Specified Costs | I74: -86.37040813 | J74: =+J13-J72 -> 0 | M74: 0 | N74: =+N13-N72 -> 0 | O74: -86.37040813 | P74: =+P13-P72 -> 0 | Q74: -8637.040813 | R74: =+R13-R72 -> 0
A76: Breakeven Price to Cover Total Costs | G76: 52.27408163 | H76: =IF(E10=0,"n/a",(YTotExp-(YTotExp+YTotRet-J10))/E10) -> n/a | I76: CWT
D78: Example Breakeven Prices
B79: Example | C79: Example | D79: To Cover | G79: To Cover
B80: Yield | C80: Yield | D80: Variable | G80: Total
B81: Percent | C81: CWT | D81: Costs | G81: Costs
B82: 0.75 | C82: 3.75 | D82: 40.76599656 | G82: 69.6987755
B83: 0.9 | C83: 4.5 | D83: 33.9716638 | G83: 58.08231292
B84: 1 | C84: 5 | D84: 30.57449742 | G84: 52.27408163
B85: 1.1 | C85: 5.5 | D85: 27.79499766 | G85: 47.52189239
B86: 1.25 | C86: 6.25 | D86: 24.45959794 | G86: 41.8192653
D88: Your Breakeven Prices
B89: Your | C89: Your | E89: To Cover | H89: To Cover
B90: Yield | C90: Yield | E90: Variable | H90: Total
B91: Percent | C91: CWT | E91: Costs | H91: Costs
B92: 0.75 | C92: =E10*YPER1 -> 0 | E92: =IF($E$10=0,0,(YVarExp-(YTotExp+YTotRet-J10))/($E$10*YPER1)) -> 0 | H92: =IF($E$10=0,0,(YTotExp-(YTotExp+YTotRet-J10))/($E$10*YPER1)) -> 0
B93: 0.9 | C93: =E10*YPER2 -> 0 | E93: =IF($E$10=0,0,(YVarExp-(YTotExp+YTotRet-J10))/($E$10*YPER2)) -> 0 | H93: =IF($E$10=0,0,(YTotExp-(YTotExp+YTotRet-J10))/($E$10*YPER2)) -> 0
B94: 1 | C94: =+E10 -> 0 | E94: =IF($E$10=0,0,(YVarExp-(YTotExp+YTotRet-J10))/($E$10*YPER3)) -> 0 | H94: =IF($E$10=0,0,(YTotExp-(YTotExp+YTotRet-J10))/($E$10*YPER3)) -> 0
B95: 1.1 | C95: =E10*YPER4 -> 0 | E95: =IF($E$10=0,0,(YVarExp-(YTotExp+YTotRet-J10))/($E$10*YPER4)) -> 0 | H95: =IF($E$10=0,0,(YTotExp-(YTotExp+YTotRet-J10))/($E$10*YPER4)) -> 0
B96: 1.25 | C96: =E10*YPER5 -> 0 | E96: =IF($E$10=0,0,(YVarExp-(YTotExp+YTotRet-J10))/($E$10*YPER5)) -> 0 | H96: =IF($E$10=0,0,(YTotExp-(YTotExp+YTotRet-J10))/($E$10*YPER5)) -> 0
A98: Developed by Rob Hogan, Associate Professor and Extension Economist, Texas A&M AgriLife Extension, 830-278-9151.
A100: Information presented is prepared solely as a general guide and not intended to recognize or predict the costs and returns from any one operation. Brand names are mentioned only as examples and imply no endorsement.

Sheet SesameIrrigated
A1: Projections for Planning Purposes Only -- Not to be Used without Updating
A2: 2018 Estimated Costs and Returns per Acre
A3: Irrigated Sesame
A4: Enter your name for this budget in the cell above.
A5: Enter Your Values in the cells highlighed in MAROON.
E6: Your Acres | R6: Your
C7: Crop Acres | D7: 122 | L7: Your | Q7: Enterprise | R7: Enterprise
E8: Your | H8: Your | I8: Cash | J8: Your | K8: Landlord | L8: Landlord | N8: Your | P8: Your | Q8: Total | R8: Total
A9: REVENUE | D9: Quantity | E9: Quantity | F9: Units | G9: $/Unit | H9: $/Unit | I9: Total | J9: Total | K9: Share | L9: Share | M9: Landlord | N9: Landlord | O9: Tenant | P9: Tenant | Q9: (122 acres) | R9: ="(" & E7 & " acres)" -> ( acres)
B10: Sesame | D10: 10 | F10: CWT | G10: 35 | I10: 350 | J10: =E10*H10 -> 0 | K10: 0 | M10: 0 | N10: =J10*L10 -> 0 | O10: 350 | P10: =+J10-N10 -> 0 | Q10: 42700 | R10: =+J10*E$7 -> 0
D11: 0 | G11: 0 | I11: 0 | J11: 0 | K11: 0 | M11: 0 | N11: 0 | O11: 0 | P11: =+J11-N11 -> 0 | Q11: 0 | R11: 0
D12: 0 | G12: 0 | I12: 0 | J12: 0 | K12: 0 | M12: 0 | N12: 0 | O12: 0 | P12: 0 | Q12: 0 | R12: 0
A13: Total Revenue | I13: 350 | J13: =SUM(J10:J12) -> 0 | M13: 0 | N13: =SUM(N10:N12) -> 0 | O13: 350 | P13: =SUM(P10:P12) -> 0 | Q13: 42700 | R13: =SUM(R10:R12) -> 0
Q14: Enterprise | R14: Enterprise
A15: VARIABLE COSTS | D15: Quantity | E15: Quantity | F15: Units | G15: $/Unit | H15: $/Unit | I15: Total | J15: Total | K15: Share | L15: Share | M15: Landlord | N15: Landlord | O15: Tenant | P15: Tenant | Q15: Total | R15: Total
A16: Production Costs
B17: Fertilizer
C18: UAN(32% N) | D18: 1.13 | F18: CWT | G18: 17 | I18: 19.21 | J18: =E18*H18 -> 0 | K18: 0 | M18: 0 | N18: =J18*L18 -> 0 | O18: 19.21 | P18: =+J18-N18 -> 0 | Q18: 2343.62 | R18: =+J18*E$7 -> 0
C19: Fertilizer 18-46-0 | D19: 76 | F19: Pound | G19: 0.24 | I19: 18.24 | J19: 0 | K19: 0 | M19: 0 | N19: 0 | O19: 18.24 | P19: 0 | Q19: 2225.28 | R19: 0
B20: Herbicide
C21: Select Max | D21: 0.1 | F21: Gallon | G21: 65 | I21: 6.5 | J21: 0 | K21: 0 | M21: 0 | N21: 0 | O21: 6.5 | P21: 0 | Q21: 793 | R21: 0
B22: Miscellaneous
C23: Crop Insurance - Sesame Irrigated | D23: 1 | F23: Acre | G23: 27 | I23: 27 | J23: 0 | K23: 0 | M23: 0 | N23: 0 | O23: 27 | P23: 0 | Q23: 3294 | R23: 0
C24: Miscellaneous Sesame Overhead | D24: 1 | F24: Acre | G24: 4 | I24: 4 | J24: 0 | K24: 0 | M24: 0 | N24: 0 | O24: 4 | P24: 0 | Q24: 488 | R24: 0
B25: Seed
C26: Sesame Seed | D26: 2.5 | F26: Pound | G26: 3.5 | I26: 8.75 | J26: 0 | K26: 0 | M26: 0 | N26: 0 | O26: 8.75 | P26: 0 | Q26: 1067.5 | R26: 0
D27: 0 | G27: 0 | I27: 0 | J27: 0 | K27: 0 | M27: 0 | N27: 0 | O27: 0 | P27: 0 | Q27: 0 | R27: 0
D28: 0 | G28: 0 | I28: 0 | J28: 0 | K28: 0 | M28: 0 | N28: 0 | O28: 0 | P28: 0 | Q28: 0 | R28: 0
D29: 0 | G29: 0 | I29: 0 | J29: =E29*H29 -> 0 | K29: 0 | M29: 0 | N29: =J29*L29 -> 0 | O29: 0 | P29: =+J29-N29 -> 0 | Q29: 0 | R29: =+J29*E$7 -> 0
B30: Irrigation
C31: Energy Cost | D31: 552.5 | F31: kWh | G31: 0.17 | I31: 93.925 | J31: =E31*H31 -> 0 | K31: 0 | M31: 0 | N31: =J31*L31 -> 0 | O31: 93.925 | P31: =+J31-N31 -> 0 | Q31: 11458.85 | R31: =+J31*E$7 -> 0
B32: Machinery Labor
C33: Tractors/Self-Propelled | D33: 0.79 | F33: Hour | G33: 12 | I33: 9.48 | J33: =E33*H33 -> 0 | K33: 0 | M33: 0 | N33: =J33*L33 -> 0 | O33: 9.48 | P33: =+J33-N33 -> 0 | Q33: 1156.56 | R33: =+J33*E$7 -> 0
C34: Other Labor | D34: 0.23 | F34: Hour | G34: 8.5 | I34: 1.955 | J34: =E34*H34 -> 0 | K34: 0 | M34: 0 | N34: =J34*L34 -> 0 | O34: 1.955 | P34: =+J34-N34 -> 0 | Q34: 238.51 | R34: =+J34*E$7 -> 0
B36: Diesel Fuel
C37: Pickup/General Use Equipment | D37: 1 | F37: Acre | G37: 0 | I37: 0 | J37: =E37*H37 -> 0 | K37: 0 | M37: 0 | N37: =J37*L37 -> 0 | O37: 0 | P37: =+J37-N37 -> 0 | Q37: 0 | R37: =+J37*E$7 -> 0
C38: Tractors/Self-Propelled | D38: 7.3 | F38: Gallon | G38: 2.14 | I38: 15.622 | J38: =E38*H38 -> 0 | K38: 0 | M38: 0 | N38: =J38*L38 -> 0 | O38: 15.622 | P38: =+J38-N38 -> 0 | Q38: 1905.884 | R38: =+J38*E$7 -> 0
B40: Gasoline
C41: Pickup/General Use Equipment | D41: 1 | F41: Acre | G41: 23.12899622 | I41: 23.12899622 | J41: =E41*H41 -> 0 | K41: 0 | M41: 0 | N41: =J41*L41 -> 0 | O41: 23.12899622 | P41: =+J41-N41 -> 0 | Q41: 2821.737538 | R41: =+J41*E$7 -> 0
C42: Tractors/Self-Propelled | D42: 0 | F42: Gallon | G42: 2.39 | I42: 0 | J42: =E42*H42 -> 0 | K42: 0 | M42: 0 | N42: =J42*L42 -> 0 | O42: 0 | P42: =+J42-N42 -> 0 | Q42: 0 | R42: =+J42*E$7 -> 0
B44: Repairs & Maintenance
C45: Pickup/General Use Equipment | D45: 1 | F45: Acre | G45: 4.839108197 | I45: 4.839108197 | J45: =E45*H45 -> 0 | K45: 0 | M45: 0 | N45: =J45*L45 -> 0 | O45: 4.839108197 | P45: =+J45-N45 -> 0 | Q45: 590.3712 | R45: =+J45*E$7 -> 0
C46: Irrigation Equipment | D46: 1 | F46: Acre | G46: 5.746 | I46: 5.746 | J46: 0 | K46: 0 | M46: 0 | N46: 0 | O46: 5.746 | P46: 0 | Q46: 701.012 | R46: 0
C47: Tractors/Self-Propelled | D47: 1 | F47: Acre | G47: 24.19946772 | I47: 24.19946772 | J47: 0 | K47: 0 | M47: 0 | N47: 0 | O47: 24.19946772 | P47: 0 | Q47: 2952.335061 | R47: 0
C48: Implements | D48: 1 | F48: Acre | G48: 12.79366452 | I48: 12.79366452 | J48: 0 | K48: 0 | M48: 0 | N48: 0 | O48: 12.79366452 | P48: 0 | Q48: 1560.827072 | R48: 0
I49: 0 | J49: 0 | K49: 0 | M49: 0 | N49: 0 | O49: 0 | P49: 0 | Q49: 0 | R49: 0
I50: 0 | J50: 0 | K50: 0 | M50: 0 | N50: 0 | O50: 0 | P50: 0 | Q50: 0 | R50: 0
B51: Interest on Credit Line | G51: 0.065 | I51: 7.752887753 | J51: =+SUM(J17:J50)/2*H51 -> 0 | M51: 0 | N51: =+SUM(N17:N50)/2*L51 -> 0 | O51: 7.752887753 | P51: =+SUM(P17:P50)/2*L51 -> 0 | Q51: 945.8523059 | R51: =+J51*E$7 -> 0
A52: Total Variable Costs | I52: 283.1421244 | J52: =SUM(J18:J51) -> 0 | M52: 0 | N52: =SUM(N18:N51) -> 0 | O52: 283.1421244 | P52: =SUM(P18:P51) -> 0 | Q52: 34543.33918 | R52: =SUM(R18:R51) -> 0
A53: Planned Returns Above Variable Costs: | I53: 66.85787559 | J53: =+J13-J52 -> 0 | M53: 0 | N53: =+N13-N52 -> 0 | O53: 66.85787559 | P53: =+P13-P52 -> 0 | Q53: 8156.660822 | R53: =+R13-R52 -> 0
B54: Breakeven Price to Cover Variable Costs | G54: 28.31421244 | H54: =IF(E10=0,"n/a",(YVarExp-(YTotExp+YTotRet-J10))/E10) -> n/a | I54: CWT
Q55: Enterprise | R55: Enterprise
A56: FIXED COSTS | D56: Quantity | E56: Quantity | F56: Units | G56: $/Unit | H56: $/Unit | I56: Total | J56: Total | K56: Share | L56: Share | M56: Landlord | N56: Landlord | O56: Tenant | P56: Tenant | Q56: Total | R56: Total
B57: Machinery Depreciation
C58: Pickup/General Use Equipment | D58: 1 | F58: Acre | G58: 25.20368852 | I58: 25.20368852 | J58: =E58*H58 -> 0 | K58: 0 | M58: 0 | N58: =J58*L58 -> 0 | O58: 25.20368852 | P58: =+J58-N58 -> 0 | Q58: 3074.85 | R58: =+J58*E$7 -> 0
C59: Irrigation Equipment | D59: 1 | F59: Acre | G59: 56.20218579 | I59: 56.20218579 | J59: 0 | K59: 0 | M59: 0 | N59: =J59*L59 -> 0 | O59: 56.20218579 | P59: 0 | Q59: 6856.666667 | R59: 0
C60: Tractors/Self-Propelled | D60: 1 | F60: Acre | G60: 24.06107381 | I60: 24.06107381 | J60: 0 | K60: 0 | M60: 0 | N60: =J60*L60 -> 0 | O60: 24.06107381 | P60: 0 | Q60: 2935.451005 | R60: 0
C61: Implements | D61: 1 | F61: Acre | G61: 15.28268863 | I61: 15.28268863 | J61: 0 | K61: 0 | M61: 0 | N61: =J61*L61 -> 0 | O61: 15.28268863 | P61: 0 | Q61: 1864.488013 | R61: 0
B62: Equipment Investment
C63: Pickup/General Use Equipment | D63: 105.0153689 | F63: Dollars | G63: 0.065 | I63: 6.825998975 | J63: =E63*H63 -> 0 | K63: 0 | M63: 0 | N63: =J63*L63 -> 0 | O63: 6.825998975 | P63: =+J63-N63 -> 0 | Q63: 832.771875 | R63: =+J63*E$7 -> 0
C64: Irrigation Equipment | D64: 421.5163934 | F64: Dollars | G64: 0.065 | I64: 27.39856557 | J64: 0 | K64: 0 | M64: 0 | N64: =J64*L64 -> 0 | O64: 27.39856557 | P64: 0 | Q64: 3342.625 | R64: 0
C65: Tractors/Self-Propelled | D65: 183.2955564 | F65: Dollars | G65: 0.065 | I65: 11.91421116 | J65: 0 | K65: 0 | M65: 0 | N65: =J65*L65 -> 0 | O65: 11.91421116 | P65: 0 | Q65: 1453.533762 | R65: 0
C66: Implements | D66: 80.22996008 | F66: Dollars | G66: 0.065 | I66: 5.214947405 | J66: 0 | K66: 0 | M66: 0 | N66: =J66*L66 -> 0 | O66: 5.214947405 | P66: 0 | Q66: 636.2235834 | R66: 0
B67: Salaried Labor | D67: 1 | F67: Acre | G67: 0 | I67: 0 | J67: 0 | K67: 0 | M67: 0 | N67: =J67*L67 -> 0 | O67: 0 | P67: =+J67-N67 -> 0 | Q67: 0 | R67: =+J67*E$7 -> 0
B68: Management Fee, Owner/Operator Labor | D68: 1 | F68: Acre | G68: 0 | I68: 0 | J68: 0 | K68: 0 | M68: 0 | N68: 0 | O68: 0 | P68: 0 | Q68: 0 | R68: 0
B69: Allocated Establishment Cost | D69: 1 | F69: Acre | G69: 0 | I69: 0 | J69: 0 | K69: 0 | M69: 0 | N69: 0 | O69: 0 | P69: 0 | Q69: 0 | R69: 0
B70: Irrigated Winter Garden Rent | D70: 1 | F70: Acre | G70: 50 | I70: 50 | J70: 0 | K70: 0 | M70: 0 | N70: 0 | O70: 50 | P70: 0 | Q70: 6100 | R70: 0
B71: Property Taxes | D71: 1 | F71: Acre | G71: 0 | I71: 0 | J71: 0 | K71: 0 | M71: 0 | N71: 0 | O71: 0 | P71: 0 | Q71: 0 | R71: 0
B72: Whole Farm Insurance | D72: 1 | F72: Acre | G72: 0 | I72: 0 | J72: 0 | K72: 0 | M72: 0 | N72: 0 | O72: 0 | P72: 0 | Q72: 0 | R72: 0
D73: 1 | G73: 0 | I73: 0 | J73: 0 | K73: 0 | M73: 0 | N73: 0 | O73: 0 | P73: 0 | Q73: 0 | R73: 0
D74: 1 | G74: 0 | I74: 0 | J74: =E74*H74 -> 0 | K74: 0 | M74: 0 | N74: 0 | O74: 0 | P74: 0 | Q74: 0 | R74: 0
A75: Total Fixed Costs | I75: 222.1033599 | J75: =+SUM(J58:J74) -> 0 | M75: 0 | N75: =+SUM(N58:N74) -> 0 | O75: 222.1033599 | P75: =+SUM(P58:P74) -> 0 | Q75: 27096.60991 | R75: =+SUM(R58:R74) -> 0
A76: Total Specified Costs | I76: 505.2454843 | J76: =+J52+J75 -> 0 | M76: 0 | N76: =+N52+N75 -> 0 | O76: 505.2454843 | P76: =+P52+P75 -> 0 | Q76: 61639.94908 | R76: =+R52+R75 -> 0
A78: Returns Above Specified Costs | I78: -155.2454843 | J78: =+J13-J76 -> 0 | M78: 0 | N78: =+N13-N76 -> 0 | O78: -155.2454843 | P78: =+P13-P76 -> 0 | Q78: -18939.94908 | R78: =+R13-R76 -> 0
A80: Breakeven Price to Cover Total Costs | G80: 50.52454843 | H80: =IF(E10=0,"n/a",(YTotExp-(YTotExp+YTotRet-J10))/E10) -> n/a | I80: CWT
D82: Example Breakeven Prices
B83: Example | C83: Example | D83: To Cover | G83: To Cover
B84: Yield | C84: Yield | D84: Variable | G84: Total
B85: Percent | C85: CWT | D85: Costs | G85: Costs
B86: 0.75 | C86: 7.5 | D86: 37.75228325 | G86: 67.36606457
B87: 0.9 | C87: 9 | D87: 31.46023605 | G87: 56.13838714
B88: 1 | C88: 10 | D88: 28.31421244 | G88: 50.52454843
B89: 1.1 | C89: 11 | D89: 25.74019313 | G89: 45.93140766
B90: 1.25 | C90: 12.5 | D90: 22.65136995 | G90: 40.41963874
D92: Your Breakeven Prices
B93: Your | C93: Your | E93: To Cover | H93: To Cover
B94: Yield | C94: Yield | E94: Variable | H94: Total
B95: Percent | C95: CWT | E95: Costs | H95: Costs
B96: 0.75 | C96: =E10*YPER1 -> 0 | E96: =IF($E$10=0,0,(YVarExp-(YTotExp+YTotRet-J10))/($E$10*YPER1)) -> 0 | H96: =IF($E$10=0,0,(YTotExp-(YTotExp+YTotRet-J10))/($E$10*YPER1)) -> 0
B97: 0.9 | C97: =E10*YPER2 -> 0 | E97: =IF($E$10=0,0,(YVarExp-(YTotExp+YTotRet-J10))/($E$10*YPER2)) -> 0 | H97: =IF($E$10=0,0,(YTotExp-(YTotExp+YTotRet-J10))/($E$10*YPER2)) -> 0
B98: 1 | C98: =+E10 -> 0 | E98: =IF($E$10=0,0,(YVarExp-(YTotExp+YTotRet-J10))/($E$10*YPER3)) -> 0 | H98: =IF($E$10=0,0,(YTotExp-(YTotExp+YTotRet-J10))/($E$10*YPER3)) -> 0
B99: 1.1 | C99: =E10*YPER4 -> 0 | E99: =IF($E$10=0,0,(YVarExp-(YTotExp+YTotRet-J10))/($E$10*YPER4)) -> 0 | H99: =IF($E$10=0,0,(YTotExp-(YTotExp+YTotRet-J10))/($E$10*YPER4)) -> 0
B100: 1.25 | C100: =E10*YPER5 -> 0 | E100: =IF($E$10=0,0,(YVarExp-(YTotExp+YTotRet-J10))/($E$10*YPER5)) -> 0 | H100: =IF($E$10=0,0,(YTotExp-(YTotExp+YTotRet-J10))/($E$10*YPER5)) -> 0
A102: Developed by Rob Hogan, Associate Professor and Extension Economist, Texas A&M AgriLife Extension, 830-278-9151.
A104: Information presented is prepared solely as a general guide and not intended to recognize or predict the costs and returns from any one operation. Brand names are mentioned only as examples and imply no endorsement.

Sheet SorghumDryland
A1: Projections for Planning Purposes Only -- Not to be Used without Updating
A2: 2018 Estimated Costs and Returns per Acre
A3: Dryland Sorghum
A4: Enter your name for this budget in the cell above.
A5: Enter Your Values in the cells highlighed in MAROON.
E6: Your Acres | R6: Your
C7: Crop Acres | D7: 100 | L7: Your | Q7: Enterprise | R7: Enterprise
E8: Your | H8: Your | I8: Cash | J8: Your | K8: Landlord | L8: Landlord | N8: Your | P8: Your | Q8: Total | R8: Total
A9: REVENUE | D9: Quantity | E9: Quantity | F9: Units | G9: $/Unit | H9: $/Unit | I9: Total | J9: Total | K9: Share | L9: Share | M9: Landlord | N9: Landlord | O9: Tenant | P9: Tenant | Q9: (100 acres) | R9: ="(" & E7 & " acres)" -> ( acres)
B10: Sorghum | D10: 30 | F10: CWT | G10: 6.68 | I10: 200.4 | J10: =E10*H10 -> 0 | K10: 0 | M10: 0 | N10: =J10*L10 -> 0 | O10: 200.4 | P10: =+J10-N10 -> 0 | Q10: 20040 | R10: =+J10*E$7 -> 0
D11: 0 | G11: 0 | I11: 0 | J11: 0 | K11: 0 | M11: 0 | N11: 0 | O11: 0 | P11: =+J11-N11 -> 0 | Q11: 0 | R11: 0
D12: 0 | G12: 0 | I12: 0 | J12: 0 | K12: 0 | M12: 0 | N12: 0 | O12: 0 | P12: 0 | Q12: 0 | R12: 0
A13: Total Revenue | I13: 200.4 | J13: =SUM(J10:J12) -> 0 | M13: 0 | N13: =SUM(N10:N12) -> 0 | O13: 200.4 | P13: =SUM(P10:P12) -> 0 | Q13: 20040 | R13: =SUM(R10:R12) -> 0
Q14: Enterprise | R14: Enterprise
A15: VARIABLE COSTS | D15: Quantity | E15: Quantity | F15: Units | G15: $/Unit | H15: $/Unit | I15: Total | J15: Total | K15: Share | L15: Share | M15: Landlord | N15: Landlord | O15: Tenant | P15: Tenant | Q15: Total | R15: Total
A16: Production Costs
B17: Herbicide
C18: Atrazine 4L | D18: 4 | F18: Pint | G18: 1.92 | I18: 7.68 | J18: =E18*H18 -> 0 | K18: 0 | M18: 0 | N18: =J18*L18 -> 0 | O18: 7.68 | P18: =+J18-N18 -> 0 | Q18: 768 | R18: =+J18*E$7 -> 0
B19: Seed
C20: Sorghum Concept Seed | D20: 4 | F20: Pound | G20: 3.5 | I20: 14 | J20: 0 | K20: 0 | M20: 0 | N20: 0 | O20: 14 | P20: 0 | Q20: 1400 | R20: 0
B21: Fertilizer
C22: UAN(32% N) | D22: 0.88 | F22: CWT | G22: 17 | I22: 14.96 | J22: 0 | K22: 0 | M22: 0 | N22: 0 | O22: 14.96 | P22: 0 | Q22: 1496 | R22: 0
C23: Fertilizer 18-46-0 | D23: 65 | F23: Pound | G23: 0.24 | I23: 15.6 | J23: 0 | K23: 0 | M23: 0 | N23: 0 | O23: 15.6 | P23: 0 | Q23: 1560 | R23: 0
B24: Custom
C25: Haul Sorghum | D25: 30 | F25: CWT | G25: 0.18 | I25: 5.4 | J25: 0 | K25: 0 | M25: 0 | N25: 0 | O25: 5.4 | P25: 0 | Q25: 540 | R25: 0
B26: Miscellaneous
C27: Crop Insurance - Grain Sorghum Dry | D27: 1 | F27: Acre | G27: 11 | I27: 11 | J27: 0 | K27: 0 | M27: 0 | N27: 0 | O27: 11 | P27: 0 | Q27: 1100 | R27: 0
C28: Miscellaneous Sorghum Overhead | D28: 1 | F28: Acre | G28: 4 | I28: 4 | J28: 0 | K28: 0 | M28: 0 | N28: 0 | O28: 4 | P28: 0 | Q28: 400 | R28: 0
B29: Insecticide
C30: Lorsban 4E | D30: 1 | F30: Pint | G30: 5.03 | I30: 5.03 | J30: 0 | K30: 0 | M30: 0 | N30: 0 | O30: 5.03 | P30: 0 | Q30: 503 | R30: 0
C31: Dimethoate 4E | D31: 0.5 | F31: Pint | G31: 5.5 | I31: 2.75 | J31: 0 | K31: 0 | M31: 0 | N31: 0 | O31: 2.75 | P31: 0 | Q31: 275 | R31: 0
D32: 0 | G32: 0 | I32: 0 | J32: 0 | K32: 0 | M32: 0 | N32: 0 | O32: 0 | P32: 0 | Q32: 0 | R32: 0
D33: 0 | G33: 0 | I33: 0 | J33: 0 | K33: 0 | M33: 0 | N33: 0 | O33: 0 | P33: 0 | Q33: 0 | R33: 0
D34: 0 | G34: 0 | I34: 0 | J34: =E34*H34 -> 0 | K34: 0 | M34: 0 | N34: =J34*L34 -> 0 | O34: 0 | P34: =+J34-N34 -> 0 | Q34: 0 | R34: =+J34*E$7 -> 0
B35: Machinery Labor
C36: Tractors/Self-Propelled | D36: 1.06 | F36: Hour | G36: 12 | I36: 12.72 | J36: =E36*H36 -> 0 | K36: 0 | M36: 0 | N36: =J36*L36 -> 0 | O36: 12.72 | P36: =+J36-N36 -> 0 | Q36: 1272 | R36: =+J36*E$7 -> 0
C37: Other Labor | D37: 0.28 | F37: Hour | G37: 8.5 | I37: 2.38 | J37: =E37*H37 -> 0 | K37: 0 | M37: 0 | N37: =J37*L37 -> 0 | O37: 2.38 | P37: =+J37-N37 -> 0 | Q37: 238 | R37: =+J37*E$7 -> 0
B39: Diesel Fuel
C40: Pickup/General Use Equipment | D40: 1 | F40: Acre | G40: 0 | I40: 0 | J40: =E40*H40 -> 0 | K40: 0 | M40: 0 | N40: =J40*L40 -> 0 | O40: 0 | P40: =+J40-N40 -> 0 | Q40: 0 | R40: =+J40*E$7 -> 0
C41: Tractors/Self-Propelled | D41: 9.65 | F41: Gallon | G41: 2.14 | I41: 20.651 | J41: =E41*H41 -> 0 | K41: 0 | M41: 0 | N41: =J41*L41 -> 0 | O41: 20.651 | P41: =+J41-N41 -> 0 | Q41: 2065.1 | R41: =+J41*E$7 -> 0
B43: Gasoline
C44: Pickup/General Use Equipment | D44: 1 | F44: Acre | G44: 23.12561132 | I44: 23.12561132 | J44: =E44*H44 -> 0 | K44: 0 | M44: 0 | N44: =J44*L44 -> 0 | O44: 23.12561132 | P44: =+J44-N44 -> 0 | Q44: 2312.561132 | R44: =+J44*E$7 -> 0
C45: Tractors/Self-Propelled | D45: 0 | F45: Gallon | G45: 2.39 | I45: 0 | J45: =E45*H45 -> 0 | K45: 0 | M45: 0 | N45: =J45*L45 -> 0 | O45: 0 | P45: =+J45-N45 -> 0 | Q45: 0 | R45: =+J45*E$7 -> 0
B47: Repairs & Maintenance
C48: Pickup/General Use Equipment | D48: 1 | F48: Acre | G48: 4.8384 | I48: 4.8384 | J48: =E48*H48 -> 0 | K48: 0 | M48: 0 | N48: =J48*L48 -> 0 | O48: 4.8384 | P48: =+J48-N48 -> 0 | Q48: 483.84 | R48: =+J48*E$7 -> 0
C49: Irrigation Equipment | D49: 1 | F49: Acre | G49: 0 | I49: 0 | J49: 0 | K49: 0 | M49: 0 | N49: 0 | O49: 0 | P49: 0 | Q49: 0 | R49: 0
C50: Tractors/Self-Propelled | D50: 1 | F50: Acre | G50: 28.81307128 | I50: 28.81307128 | J50: 0 | K50: 0 | M50: 0 | N50: 0 | O50: 28.81307128 | P50: 0 | Q50: 2881.307128 | R50: 0
C51: Implements | D51: 1 | F51: Acre | G51: 16.84927641 | I51: 16.84927641 | J51: 0 | K51: 0 | M51: 0 | N51: 0 | O51: 16.84927641 | P51: 0 | Q51: 1684.927641 | R51: 0
I52: 0 | J52: 0 | K52: 0 | M52: 0 | N52: 0 | O52: 0 | P52: 0 | Q52: 0 | R52: 0
I53: 0 | J53: 0 | K53: 0 | M53: 0 | N53: 0 | O53: 0 | P53: 0 | Q53: 0 | R53: 0
B54: Interest on Credit Line | G54: 0.065 | I54: 6.314727616 | J54: =+SUM(J17:J53)/2*H54 -> 0 | M54: 0 | N54: =+SUM(N17:N53)/2*L54 -> 0 | O54: 6.314727616 | P54: =+SUM(P17:P53)/2*L54 -> 0 | Q54: 631.4727616 | R54: =+J54*E$7 -> 0
A55: Total Variable Costs | I55: 196.1120866 | J55: =SUM(J18:J54) -> 0 | M55: 0 | N55: =SUM(N18:N54) -> 0 | O55: 196.1120866 | P55: =SUM(P18:P54) -> 0 | Q55: 19611.20866 | R55: =SUM(R18:R54) -> 0
A56: Planned Returns Above Variable Costs: | I56: 4.287913371 | J56: =+J13-J55 -> 0 | M56: 0 | N56: =+N13-N55 -> 0 | O56: 4.287913371 | P56: =+P13-P55 -> 0 | Q56: 428.7913371 | R56: =+R13-R55 -> 0
B57: Breakeven Price to Cover Variable Costs | G57: 6.537069554 | H57: =IF(E10=0,"n/a",(YVarExp-(YTotExp+YTotRet-J10))/E10) -> n/a | I57: CWT
Q58: Enterprise | R58: Enterprise
A59: FIXED COSTS | D59: Quantity | E59: Quantity | F59: Units | G59: $/Unit | H59: $/Unit | I59: Total | J59: Total | K59: Share | L59: Share | M59: Landlord | N59: Landlord | O59: Tenant | P59: Tenant | Q59: Total | R59: Total
B60: Machinery Depreciation
C61: Pickup/General Use Equipment | D61: 1 | F61: Acre | G61: 25.2 | I61: 25.2 | J61: =E61*H61 -> 0 | K61: 0 | M61: 0 | N61: =J61*L61 -> 0 | O61: 25.2 | P61: =+J61-N61 -> 0 | Q61: 2520 | R61: =+J61*E$7 -> 0
C62: Tractors/Self-Propelled | D62: 1 | F62: Acre | G62: 30.73400346 | I62: 30.73400346 | J62: 0 | K62: 0 | M62: 0 | N62: =J62*L62 -> 0 | O62: 30.73400346 | P62: 0 | Q62: 3073.400346 | R62: 0
C63: Implements | D63: 1 | F63: Acre | G63: 20.37382088 | I63: 20.37382088 | J63: 0 | K63: 0 | M63: 0 | N63: =J63*L63 -> 0 | O63: 20.37382088 | P63: 0 | Q63: 2037.382088 | R63: 0
B64: Equipment Investment
C65: Pickup/General Use Equipment | D65: 105 | F65: Dollars | G65: 0.065 | I65: 6.825 | J65: =E65*H65 -> 0 | K65: 0 | M65: 0 | N65: =J65*L65 -> 0 | O65: 6.825 | P65: =+J65-N65 -> 0 | Q65: 682.5 | R65: =+J65*E$7 -> 0
C66: Tractors/Self-Propelled | D66: 234.3944515 | F66: Dollars | G66: 0.065 | I66: 15.23563935 | J66: 0 | K66: 0 | M66: 0 | N66: =J66*L66 -> 0 | O66: 15.23563935 | P66: 0 | Q66: 1523.563935 | R66: 0
C67: Implements | D67: 96.03187492 | F67: Dollars | G67: 0.065 | I67: 6.24207187 | J67: 0 | K67: 0 | M67: 0 | N67: =J67*L67 -> 0 | O67: 6.24207187 | P67: 0 | Q67: 624.207187 | R67: 0
B68: Salaried Labor | D68: 1 | F68: Acre | G68: 0 | I68: 0 | J68: 0 | K68: 0 | M68: 0 | N68: =J68*L68 -> 0 | O68: 0 | P68: =+J68-N68 -> 0 | Q68: 0 | R68: =+J68*E$7 -> 0
B69: Management Fee, Owner/Operator Labor | D69: 1 | F69: Acre | G69: 0 | I69: 0 | J69: 0 | K69: 0 | M69: 0 | N69: 0 | O69: 0 | P69: 0 | Q69: 0 | R69: 0
B70: Allocated Establishment Cost | D70: 1 | F70: Acre | G70: 0 | I70: 0 | J70: 0 | K70: 0 | M70: 0 | N70: 0 | O70: 0 | P70: 0 | Q70: 0 | R70: 0
B71: Dryland Winter Garden Rent | D71: 1 | F71: Acre | G71: 20 | I71: 20 | J71: 0 | K71: 0 | M71: 0 | N71: 0 | O71: 20 | P71: 0 | Q71: 2000 | R71: 0
B72: Property Taxes | D72: 1 | F72: Acre | G72: 0 | I72: 0 | J72: 0 | K72: 0 | M72: 0 | N72: 0 | O72: 0 | P72: 0 | Q72: 0 | R72: 0
B73: Whole Farm Insurance | D73: 1 | F73: Acre | G73: 0 | I73: 0 | J73: 0 | K73: 0 | M73: 0 | N73: 0 | O73: 0 | P73: 0 | Q73: 0 | R73: 0
D74: 1 | G74: 0 | I74: 0 | J74: 0 | K74: 0 | M74: 0 | N74: 0 | O74: 0 | P74: 0 | Q74: 0 | R74: 0
D75: 1 | G75: 0 | I75: 0 | J75: =E75*H75 -> 0 | K75: 0 | M75: 0 | N75: 0 | O75: 0 | P75: 0 | Q75: 0 | R75: 0
A76: Total Fixed Costs | I76: 124.6105356 | J76: =+SUM(J61:J75) -> 0 | M76: 0 | N76: =+SUM(N61:N75) -> 0 | O76: 124.6105356 | P76: =+SUM(P61:P75) -> 0 | Q76: 12461.05356 | R76: =+SUM(R61:R75) -> 0
A77: Total Specified Costs | I77: 320.7226222 | J77: =+J55+J76 -> 0 | M77: 0 | N77: =+N55+N76 -> 0 | O77: 320.7226222 | P77: =+P55+P76 -> 0 | Q77: 32072.26222 | R77: =+R55+R76 -> 0
A79: Returns Above Specified Costs | I79: -120.3226222 | J79: =+J13-J77 -> 0 | M79: 0 | N79: =+N13-N77 -> 0 | O79: -120.3226222 | P79: =+P13-P77 -> 0 | Q79: -12032.26222 | R79: =+R13-R77 -> 0
A81: Breakeven Price to Cover Total Costs | G81: 10.69075407 | H81: =IF(E10=0,"n/a",(YTotExp-(YTotExp+YTotRet-J10))/E10) -> n/a | I81: CWT
D83: Example Breakeven Prices
B84: Example | C84: Example | D84: To Cover | G84: To Cover
B85: Yield | C85: Yield | D85: Variable | G85: Total
B86: Percent | C86: CWT | D86: Costs | G86: Costs
B87: 0.75 | C87: 22.5 | D87: 8.716092739 | G87: 14.25433876
B88: 0.9 | C88: 27 | D88: 7.263410616 | G88: 11.87861564
B89: 1 | C89: 30 | D89: 6.537069554 | G89: 10.69075407
B90: 1.1 | C90: 33 | D90: 5.942790504 | G90: 9.718867339
B91: 1.25 | C91: 37.5 | D91: 5.229655643 | G91: 8.552603258
D93: Your Breakeven Prices
B94: Your | C94: Your | E94: To Cover | H94: To Cover
B95: Yield | C95: Yield | E95: Variable | H95: Total
B96: Percent | C96: CWT | E96: Costs | H96: Costs
B97: 0.75 | C97: =E10*YPER1 -> 0 | E97: =IF($E$10=0,0,(YVarExp-(YTotExp+YTotRet-J10))/($E$10*YPER1)) -> 0 | H97: =IF($E$10=0,0,(YTotExp-(YTotExp+YTotRet-J10))/($E$10*YPER1)) -> 0
B98: 0.9 | C98: =E10*YPER2 -> 0 | E98: =IF($E$10=0,0,(YVarExp-(YTotExp+YTotRet-J10))/($E$10*YPER2)) -> 0 | H98: =IF($E$10=0,0,(YTotExp-(YTotExp+YTotRet-J10))/($E$10*YPER2)) -> 0
B99: 1 | C99: =+E10 -> 0 | E99: =IF($E$10=0,0,(YVarExp-(YTotExp+YTotRet-J10))/($E$10*YPER3)) -> 0 | H99: =IF($E$10=0,0,(YTotExp-(YTotExp+YTotRet-J10))/($E$10*YPER3)) -> 0
B100: 1.1 | C100: =E10*YPER4 -> 0 | E100: =IF($E$10=0,0,(YVarExp-(YTotExp+YTotRet-J10))/($E$10*YPER4)) -> 0 | H100: =IF($E$10=0,0,(YTotExp-(YTotExp+YTotRet-J10))/($E$10*YPER4)) -> 0
B101: 1.25 | C101: =E10*YPER5 -> 0 | E101: =IF($E$10=0,0,(YVarExp-(YTotExp+YTotRet-J10))/($E$10*YPER5)) -> 0 | H101: =IF($E$10=0,0,(YTotExp-(YTotExp+YTotRet-J10))/($E$10*YPER5)) -> 0
A103: Developed by Rob Hogan, Associate Professor and Extension Economist, Texas A&M AgriLife Extension, 830-278-9151.
A105: Information presented is prepared solely as a general guide and not intended to recognize or predict the costs and returns from any one operation. Brand names are mentioned only as examples and imply no endorsement.

Sheet SorghumIrrigated
A1: Projections for Planning Purposes Only -- Not to be Used without Updating
A2: 2018 Estimated Costs and Returns per Acre
A3: Irrigated Sorghum
A4: Enter your name for this budget in the cell above.
A5: Enter Your Values in the cells highlighed in MAROON.
E6: Your Acres | R6: Your
C7: Crop Acres | D7: 122 | L7: Your | Q7: Enterprise | R7: Enterprise
E8: Your | H8: Your | I8: Cash | J8: Your | K8: Landlord | L8: Landlord | N8: Your | P8: Your | Q8: Total | R8: Total
A9: REVENUE | D9: Quantity | E9: Quantity | F9: Units | G9: $/Unit | H9: $/Unit | I9: Total | J9: Total | K9: Share | L9: Share | M9: Landlord | N9: Landlord | O9: Tenant | P9: Tenant | Q9: (122 acres) | R9: ="(" & E7 & " acres)" -> ( acres)
B10: Sorghum | D10: 65 | F10: CWT | G10: 6.68 | I10: 434.2 | J10: =E10*H10 -> 0 | K10: 0 | M10: 0 | N10: =J10*L10 -> 0 | O10: 434.2 | P10: =+J10-N10 -> 0 | Q10: 52972.4 | R10: =+J10*E$7 -> 0
D11: 0 | G11: 0 | I11: 0 | J11: 0 | K11: 0 | M11: 0 | N11: 0 | O11: 0 | P11: =+J11-N11 -> 0 | Q11: 0 | R11: 0
D12: 0 | G12: 0 | I12: 0 | J12: 0 | K12: 0 | M12: 0 | N12: 0 | O12: 0 | P12: 0 | Q12: 0 | R12: 0
A13: Total Revenue | I13: 434.2 | J13: =SUM(J10:J12) -> 0 | M13: 0 | N13: =SUM(N10:N12) -> 0 | O13: 434.2 | P13: =SUM(P10:P12) -> 0 | Q13: 52972.4 | R13: =SUM(R10:R12) -> 0
Q14: Enterprise | R14: Enterprise
A15: VARIABLE COSTS | D15: Quantity | E15: Quantity | F15: Units | G15: $/Unit | H15: $/Unit | I15: Total | J15: Total | K15: Share | L15: Share | M15: Landlord | N15: Landlord | O15: Tenant | P15: Tenant | Q15: Total | R15: Total
A16: Production Costs
B17: Herbicide
C18: Atrazine 4L | D18: 4 | F18: Pint | G18: 1.92 | I18: 7.68 | J18: =E18*H18 -> 0 | K18: 0 | M18: 0 | N18: =J18*L18 -> 0 | O18: 7.68 | P18: =+J18-N18 -> 0 | Q18: 936.96 | R18: =+J18*E$7 -> 0
C19: Prowl H2O | D19: 2.5 | F19: Pint | G19: 5.63 | I19: 14.075 | J19: 0 | K19: 0 | M19: 0 | N19: 0 | O19: 14.075 | P19: 0 | Q19: 1717.15 | R19: 0
B20: Seed
C21: Sorghum Concept Seed | D21: 8 | F21: Pound | G21: 3.5 | I21: 28 | J21: 0 | K21: 0 | M21: 0 | N21: 0 | O21: 28 | P21: 0 | Q21: 3416 | R21: 0
B22: Fertilizer
C23: UAN(32% N) | D23: 1.77 | F23: CWT | G23: 17 | I23: 30.09 | J23: 0 | K23: 0 | M23: 0 | N23: 0 | O23: 30.09 | P23: 0 | Q23: 3670.98 | R23: 0
C24: Fertilizer 18-46-0 | D24: 130 | F24: Pound | G24: 0.24 | I24: 31.2 | J24: 0 | K24: 0 | M24: 0 | N24: 0 | O24: 31.2 | P24: 0 | Q24: 3806.4 | R24: 0
B25: Custom
C26: Haul Sorghum | D26: 65 | F26: CWT | G26: 0.18 | I26: 11.7 | J26: 0 | K26: 0 | M26: 0 | N26: 0 | O26: 11.7 | P26: 0 | Q26: 1427.4 | R26: 0
B27: Miscellaneous
C28: Crop Insurance - Grain Sorghum Irrigated | D28: 1 | F28: Acre | G28: 17 | I28: 17 | J28: 0 | K28: 0 | M28: 0 | N28: 0 | O28: 17 | P28: 0 | Q28: 2074 | R28: 0
C29: Miscellaneous Sorghum Overhead | D29: 1 | F29: Acre | G29: 4 | I29: 4 | J29: 0 | K29: 0 | M29: 0 | N29: 0 | O29: 4 | P29: 0 | Q29: 488 | R29: 0
B30: Insecticide
C31: Lorsban 4E | D31: 1 | F31: Pint | G31: 5.03 | I31: 5.03 | J31: 0 | K31: 0 | M31: 0 | N31: 0 | O31: 5.03 | P31: 0 | Q31: 613.66 | R31: 0
C32: Dimethoate 4E | D32: 1 | F32: Pint | G32: 5.5 | I32: 5.5 | J32: 0 | K32: 0 | M32: 0 | N32: 0 | O32: 5.5 | P32: 0 | Q32: 671 | R32: 0
D33: 0 | G33: 0 | I33: 0 | J33: 0 | K33: 0 | M33: 0 | N33: 0 | O33: 0 | P33: 0 | Q33: 0 | R33: 0
D34: 0 | G34: 0 | I34: 0 | J34: 0 | K34: 0 | M34: 0 | N34: 0 | O34: 0 | P34: 0 | Q34: 0 | R34: 0
D35: 0 | G35: 0 | I35: 0 | J35: =E35*H35 -> 0 | K35: 0 | M35: 0 | N35: =J35*L35 -> 0 | O35: 0 | P35: =+J35-N35 -> 0 | Q35: 0 | R35: =+J35*E$7 -> 0
B36: Irrigation
C37: Energy Cost | D37: 552.5 | F37: kWh | G37: 0.17 | I37: 93.925 | J37: =E37*H37 -> 0 | K37: 0 | M37: 0 | N37: =J37*L37 -> 0 | O37: 93.925 | P37: =+J37-N37 -> 0 | Q37: 11458.85 | R37: =+J37*E$7 -> 0
B38: Machinery Labor
C39: Tractors/Self-Propelled | D39: 1.18 | F39: Hour | G39: 12 | I39: 14.16 | J39: =E39*H39 -> 0 | K39: 0 | M39: 0 | N39: =J39*L39 -> 0 | O39: 14.16 | P39: =+J39-N39 -> 0 | Q39: 1727.52 | R39: =+J39*E$7 -> 0
C40: Other Labor | D40: 0.28 | F40: Hour | G40: 8.5 | I40: 2.38 | J40: =E40*H40 -> 0 | K40: 0 | M40: 0 | N40: =J40*L40 -> 0 | O40: 2.38 | P40: =+J40-N40 -> 0 | Q40: 290.36 | R40: =+J40*E$7 -> 0
B42: Diesel Fuel
C43: Pickup/General Use Equipment | D43: 1 | F43: Acre | G43: 0 | I43: 0 | J43: =E43*H43 -> 0 | K43: 0 | M43: 0 | N43: =J43*L43 -> 0 | O43: 0 | P43: =+J43-N43 -> 0 | Q43: 0 | R43: =+J43*E$7 -> 0
C44: Tractors/Self-Propelled | D44: 10.69 | F44: Gallon | G44: 2.14 | I44: 22.8766 | J44: =E44*H44 -> 0 | K44: 0 | M44: 0 | N44: =J44*L44 -> 0 | O44: 22.8766 | P44: =+J44-N44 -> 0 | Q44: 2790.9452 | R44: =+J44*E$7 -> 0
B46: Gasoline
C47: Pickup/General Use Equipment | D47: 1 | F47: Acre | G47: 23.12899622 | I47: 23.12899622 | J47: =E47*H47 -> 0 | K47: 0 | M47: 0 | N47: =J47*L47 -> 0 | O47: 23.12899622 | P47: =+J47-N47 -> 0 | Q47: 2821.737538 | R47: =+J47*E$7 -> 0
C48: Tractors/Self-Propelled | D48: 0 | F48: Gallon | G48: 2.39 | I48: 0 | J48: =E48*H48 -> 0 | K48: 0 | M48: 0 | N48: =J48*L48 -> 0 | O48: 0 | P48: =+J48-N48 -> 0 | Q48: 0 | R48: =+J48*E$7 -> 0
B50: Repairs & Maintenance
C51: Pickup/General Use Equipment | D51: 1 | F51: Acre | G51: 4.839108197 | I51: 4.839108197 | J51: =E51*H51 -> 0 | K51: 0 | M51: 0 | N51: =J51*L51 -> 0 | O51: 4.839108197 | P51: =+J51-N51 -> 0 | Q51: 590.3712 | R51: =+J51*E$7 -> 0
C52: Irrigation Equipment | D52: 1 | F52: Acre | G52: 5.746 | I52: 5.746 | J52: 0 | K52: 0 | M52: 0 | N52: 0 | O52: 5.746 | P52: 0 | Q52: 701.012 | R52: 0
C53: Tractors/Self-Propelled | D53: 1 | F53: Acre | G53: 31.23069677 | I53: 31.23069677 | J53: 0 | K53: 0 | M53: 0 | N53: 0 | O53: 31.23069677 | P53: 0 | Q53: 3810.145006 | R53: 0
C54: Implements | D54: 1 | F54: Acre | G54: 17.7328131 | I54: 17.7328131 | J54: 0 | K54: 0 | M54: 0 | N54: 0 | O54: 17.7328131 | P54: 0 | Q54: 2163.403198 | R54: 0
I55: 0 | J55: 0 | K55: 0 | M55: 0 | N55: 0 | O55: 0 | P55: 0 | Q55: 0 | R55: 0
I56: 0 | J56: 0 | K56: 0 | M56: 0 | N56: 0 | O56: 0 | P56: 0 | Q56: 0 | R56: 0
B57: Interest on Credit Line | G57: 0.065 | I57: 12.75071598 | J57: =+SUM(J17:J56)/2*H57 -> 0 | M57: 0 | N57: =+SUM(N17:N56)/2*L57 -> 0 | O57: 12.75071598 | P57: =+SUM(P17:P56)/2*L57 -> 0 | Q57: 1555.58735 | R57: =+J57*E$7 -> 0
A58: Total Variable Costs | I58: 383.0449303 | J58: =SUM(J18:J57) -> 0 | M58: 0 | N58: =SUM(N18:N57) -> 0 | O58: 383.0449303 | P58: =SUM(P18:P57) -> 0 | Q58: 46731.48149 | R58: =SUM(R18:R57) -> 0
A59: Planned Returns Above Variable Costs: | I59: 51.15506974 | J59: =+J13-J58 -> 0 | M59: 0 | N59: =+N13-N58 -> 0 | O59: 51.15506974 | P59: =+P13-P58 -> 0 | Q59: 6240.918508 | R59: =+R13-R58 -> 0
B60: Breakeven Price to Cover Variable Costs | G60: 5.892998927 | H60: =IF(E10=0,"n/a",(YVarExp-(YTotExp+YTotRet-J10))/E10) -> n/a | I60: CWT
Q61: Enterprise | R61: Enterprise
A62: FIXED COSTS | D62: Quantity | E62: Quantity | F62: Units | G62: $/Unit | H62: $/Unit | I62: Total | J62: Total | K62: Share | L62: Share | M62: Landlord | N62: Landlord | O62: Tenant | P62: Tenant | Q62: Total | R62: Total
B63: Machinery Depreciation
C64: Pickup/General Use Equipment | D64: 1 | F64: Acre | G64: 25.20368852 | I64: 25.20368852 | J64: =E64*H64 -> 0 | K64: 0 | M64: 0 | N64: =J64*L64 -> 0 | O64: 25.20368852 | P64: =+J64-N64 -> 0 | Q64: 3074.85 | R64: =+J64*E$7 -> 0
C65: Irrigation Equipment | D65: 1 | F65: Acre | G65: 56.20218579 | I65: 56.20218579 | J65: 0 | K65: 0 | M65: 0 | N65: =J65*L65 -> 0 | O65: 56.20218579 | P65: 0 | Q65: 6856.666667 | R65: 0
C66: Tractors/Self-Propelled | D66: 1 | F66: Acre | G66: 33.23221646 | I66: 33.23221646 | J66: 0 | K66: 0 | M66: 0 | N66: =J66*L66 -> 0 | O66: 33.23221646 | P66: 0 | Q66: 4054.330408 | R66: 0
C67: Implements | D67: 1 | F67: Acre | G67: 21.36779966 | I67: 21.36779966 | J67: 0 | K67: 0 | M67: 0 | N67: =J67*L67 -> 0 | O67: 21.36779966 | P67: 0 | Q67: 2606.871559 | R67: 0
B68: Equipment Investment
C69: Pickup/General Use Equipment | D69: 105.0153689 | F69: Dollars | G69: 0.065 | I69: 6.825998975 | J69: =E69*H69 -> 0 | K69: 0 | M69: 0 | N69: =J69*L69 -> 0 | O69: 6.825998975 | P69: =+J69-N69 -> 0 | Q69: 832.771875 | R69: =+J69*E$7 -> 0
C70: Irrigation Equipment | D70: 421.5163934 | F70: Dollars | G70: 0.065 | I70: 27.39856557 | J70: 0 | K70: 0 | M70: 0 | N70: =J70*L70 -> 0 | O70: 27.39856557 | P70: 0 | Q70: 3342.625 | R70: 0
C71: Tractors/Self-Propelled | D71: 253.8563367 | F71: Dollars | G71: 0.065 | I71: 16.50066188 | J71: 0 | K71: 0 | M71: 0 | N71: =J71*L71 -> 0 | O71: 16.50066188 | P71: 0 | Q71: 2013.08075 | R71: 0
C72: Implements | D72: 100.2838953 | F72: Dollars | G72: 0.065 | I72: 6.518453192 | J72: 0 | K72: 0 | M72: 0 | N72: =J72*L72 -> 0 | O72: 6.518453192 | P72: 0 | Q72: 795.2512894 | R72: 0
B73: Salaried Labor | D73: 1 | F73: Acre | G73: 0 | I73: 0 | J73: 0 | K73: 0 | M73: 0 | N73: =J73*L73 -> 0 | O73: 0 | P73: =+J73-N73 -> 0 | Q73: 0 | R73: =+J73*E$7 -> 0
B74: Management Fee, Owner/Operator Labor | D74: 1 | F74: Acre | G74: 0 | I74: 0 | J74: 0 | K74: 0 | M74: 0 | N74: 0 | O74: 0 | P74: 0 | Q74: 0 | R74: 0
B75: Allocated Establishment Cost | D75: 1 | F75: Acre | G75: 0 | I75: 0 | J75: 0 | K75: 0 | M75: 0 | N75: 0 | O75: 0 | P75: 0 | Q75: 0 | R75: 0
B76: Irrigated Winter Garden Rent | D76: 1 | F76: Acre | G76: 50 | I76: 50 | J76: 0 | K76: 0 | M76: 0 | N76: 0 | O76: 50 | P76: 0 | Q76: 6100 | R76: 0
B77: Property Taxes | D77: 1 | F77: Acre | G77: 0 | I77: 0 | J77: 0 | K77: 0 | M77: 0 | N77: 0 | O77: 0 | P77: 0 | Q77: 0 | R77: 0
B78: Whole Farm Insurance | D78: 1 | F78: Acre | G78: 0 | I78: 0 | J78: 0 | K78: 0 | M78: 0 | N78: 0 | O78: 0 | P78: 0 | Q78: 0 | R78: 0
D79: 1 | G79: 0 | I79: 0 | J79: 0 | K79: 0 | M79: 0 | N79: 0 | O79: 0 | P79: 0 | Q79: 0 | R79: 0
D80: 1 | G80: 0 | I80: 0 | J80: =E80*H80 -> 0 | K80: 0 | M80: 0 | N80: 0 | O80: 0 | P80: 0 | Q80: 0 | R80: 0
A81: Total Fixed Costs | I81: 243.2495701 | J81: =+SUM(J64:J80) -> 0 | M81: 0 | N81: =+SUM(N64:N80) -> 0 | O81: 243.2495701 | P81: =+SUM(P64:P80) -> 0 | Q81: 29676.44755 | R81: =+SUM(R64:R80) -> 0
A82: Total Specified Costs | I82: 626.2945003 | J82: =+J58+J81 -> 0 | M82: 0 | N82: =+N58+N81 -> 0 | O82: 626.2945003 | P82: =+P58+P81 -> 0 | Q82: 76407.92904 | R82: =+R58+R81 -> 0
A84: Returns Above Specified Costs | I84: -192.0945003 | J84: =+J13-J82 -> 0 | M84: 0 | N84: =+N13-N82 -> 0 | O84: -192.0945003 | P84: =+P13-P82 -> 0 | Q84: -23435.52904 | R84: =+R13-R82 -> 0
A86: Breakeven Price to Cover Total Costs | G86: 9.635300005 | H86: =IF(E10=0,"n/a",(YTotExp-(YTotExp+YTotRet-J10))/E10) -> n/a | I86: CWT
D88: Example Breakeven Prices
B89: Example | C89: Example | D89: To Cover | G89: To Cover
B90: Yield | C90: Yield | D90: Variable | G90: Total
B91: Percent | C91: CWT | D91: Costs | G91: Costs
B92: 0.75 | C92: 48.75 | D92: 7.857331903 | G92: 12.84706667
B93: 0.9 | C93: 58.5 | D93: 6.547776586 | G93: 10.70588889
B94: 1 | C94: 65 | D94: 5.892998927 | G94: 9.635300005
B95: 1.1 | C95: 71.5 | D95: 5.357271752 | G95: 8.759363641
B96: 1.25 | C96: 81.25 | D96: 4.714399142 | G96: 7.708240004
D98: Your Breakeven Prices
B99: Your | C99: Your | E99: To Cover | H99: To Cover
B100: Yield | C100: Yield | E100: Variable | H100: Total
B101: Percent | C101: CWT | E101: Costs | H101: Costs
B102: 0.75 | C102: =E10*YPER1 -> 0 | E102: =IF($E$10=0,0,(YVarExp-(YTotExp+YTotRet-J10))/($E$10*YPER1)) -> 0 | H102: =IF($E$10=0,0,(YTotExp-(YTotExp+YTotRet-J10))/($E$10*YPER1)) -> 0
B103: 0.9 | C103: =E10*YPER2 -> 0 | E103: =IF($E$10=0,0,(YVarExp-(YTotExp+YTotRet-J10))/($E$10*YPER2)) -> 0 | H103: =IF($E$10=0,0,(YTotExp-(YTotExp+YTotRet-J10))/($E$10*YPER2)) -> 0
B104: 1 | C104: =+E10 -> 0 | E104: =IF($E$10=0,0,(YVarExp-(YTotExp+YTotRet-J10))/($E$10*YPER3)) -> 0 | H104: =IF($E$10=0,0,(YTotExp-(YTotExp+YTotRet-J10))/($E$10*YPER3)) -> 0
B105: 1.1 | C105: =E10*YPER4 -> 0 | E105: =IF($E$10=0,0,(YVarExp-(YTotExp+YTotRet-J10))/($E$10*YPER4)) -> 0 | H105: =IF($E$10=0,0,(YTotExp-(YTotExp+YTotRet-J10))/($E$10*YPER4)) -> 0
B106: 1.25 | C106: =E10*YPER5 -> 0 | E106: =IF($E$10=0,0,(YVarExp-(YTotExp+YTotRet-J10))/($E$10*YPER5)) -> 0 | H106: =IF($E$10=0,0,(YTotExp-(YTotExp+YTotRet-J10))/($E$10*YPER5)) -> 0
A108: Developed by Rob Hogan, Associate Professor and Extension Economist, Texas A&M AgriLife Extension, 830-278-9151.
A110: Information presented is prepared solely as a general guide and not intended to recognize or predict the costs and returns from any one operation. Brand names are mentioned only as examples and imply no endorsement.

Sheet WinterWheatDryland
A1: Projections for Planning Purposes Only -- Not to be Used without Updating
A2: 2018 Estimated Costs and Returns per Acre
A3: Dryland Winter Wheat
A4: Enter your name for this budget in the cell above.
A5: Enter Your Values in the cells highlighed in MAROON.
E6: Your Acres | R6: Your
C7: Crop Acres | D7: 100 | L7: Your | Q7: Enterprise | R7: Enterprise
E8: Your | H8: Your | I8: Cash | J8: Your | K8: Landlord | L8: Landlord | N8: Your | P8: Your | Q8: Total | R8: Total
A9: REVENUE | D9: Quantity | E9: Quantity | F9: Units | G9: $/Unit | H9: $/Unit | I9: Total | J9: Total | K9: Share | L9: Share | M9: Landlord | N9: Landlord | O9: Tenant | P9: Tenant | Q9: (100 acres) | R9: ="(" & E7 & " acres)" -> ( acres)
B10: Winter Wheat | D10: 30 | F10: Bushel | G10: 3.86 | I10: 115.8 | J10: =E10*H10 -> 0 | K10: 0 | M10: 0 | N10: =J10*L10 -> 0 | O10: 115.8 | P10: =+J10-N10 -> 0 | Q10: 11580 | R10: =+J10*E$7 -> 0
D11: 0 | G11: 0 | I11: 0 | J11: 0 | K11: 0 | M11: 0 | N11: 0 | O11: 0 | P11: =+J11-N11 -> 0 | Q11: 0 | R11: 0
D12: 0 | G12: 0 | I12: 0 | J12: 0 | K12: 0 | M12: 0 | N12: 0 | O12: 0 | P12: 0 | Q12: 0 | R12: 0
A13: Total Revenue | I13: 115.8 | J13: =SUM(J10:J12) -> 0 | M13: 0 | N13: =SUM(N10:N12) -> 0 | O13: 115.8 | P13: =SUM(P10:P12) -> 0 | Q13: 11580 | R13: =SUM(R10:R12) -> 0
Q14: Enterprise | R14: Enterprise
A15: VARIABLE COSTS | D15: Quantity | E15: Quantity | F15: Units | G15: $/Unit | H15: $/Unit | I15: Total | J15: Total | K15: Share | L15: Share | M15: Landlord | N15: Landlord | O15: Tenant | P15: Tenant | Q15: Total | R15: Total
A16: Production Costs
B17: Seed
C18: Wheat Seed Public | D18: 60 | F18: Pound | G18: 0.175 | I18: 10.5 | J18: =E18*H18 -> 0 | K18: 0 | M18: 0 | N18: =J18*L18 -> 0 | O18: 10.5 | P18: =+J18-N18 -> 0 | Q18: 1050 | R18: =+J18*E$7 -> 0
B19: Fertilizer
C20: UAN(32% N) | D20: 1.22 | F20: CWT | G20: 17 | I20: 20.74 | J20: 0 | K20: 0 | M20: 0 | N20: 0 | O20: 20.74 | P20: 0 | Q20: 2074 | R20: 0
C21: Fertilizer 18-46-0 | D21: 33 | F21: Pound | G21: 0.24 | I21: 7.92 | J21: 0 | K21: 0 | M21: 0 | N21: 0 | O21: 7.92 | P21: 0 | Q21: 792 | R21: 0
B22: Custom
C23: Haul Wheat | D23: 30 | F23: Bushel | G23: 0.14 | I23: 4.2 | J23: 0 | K23: 0 | M23: 0 | N23: 0 | O23: 4.2 | P23: 0 | Q23: 420 | R23: 0
B24: Miscellaneous
C25: Crop Insurance - Wheat Dry | D25: 1 | F25: Acre | G25: 10 | I25: 10 | J25: 0 | K25: 0 | M25: 0 | N25: 0 | O25: 10 | P25: 0 | Q25: 1000 | R25: 0
B26: Herbicide
C27: 2, 4-D Amine 4 | D27: 16 | F27: Ounce | G27: 0.14 | I27: 2.24 | J27: 0 | K27: 0 | M27: 0 | N27: 0 | O27: 2.24 | P27: 0 | Q27: 224 | R27: 0
B28: Insecticide
C29: Lorsban 4E | D29: 1 | F29: Pint | G29: 5.03 | I29: 5.03 | J29: 0 | K29: 0 | M29: 0 | N29: 0 | O29: 5.03 | P29: 0 | Q29: 503 | R29: 0
D30: 0 | G30: 0 | I30: 0 | J30: 0 | K30: 0 | M30: 0 | N30: 0 | O30: 0 | P30: 0 | Q30: 0 | R30: 0
D31: 0 | G31: 0 | I31: 0 | J31: 0 | K31: 0 | M31: 0 | N31: 0 | O31: 0 | P31: 0 | Q31: 0 | R31: 0
D32: 0 | G32: 0 | I32: 0 | J32: =E32*H32 -> 0 | K32: 0 | M32: 0 | N32: =J32*L32 -> 0 | O32: 0 | P32: =+J32-N32 -> 0 | Q32: 0 | R32: =+J32*E$7 -> 0
B33: Machinery Labor
C34: Tractors/Self-Propelled | D34: 0.55 | F34: Hour | G34: 12 | I34: 6.6 | J34: =E34*H34 -> 0 | K34: 0 | M34: 0 | N34: =J34*L34 -> 0 | O34: 6.6 | P34: =+J34-N34 -> 0 | Q34: 660 | R34: =+J34*E$7 -> 0
C35: Other Labor | D35: 0.28 | F35: Hour | G35: 8.5 | I35: 2.38 | J35: =E35*H35 -> 0 | K35: 0 | M35: 0 | N35: =J35*L35 -> 0 | O35: 2.38 | P35: =+J35-N35 -> 0 | Q35: 238 | R35: =+J35*E$7 -> 0
B37: Diesel Fuel
C38: Pickup/General Use Equipment | D38: 1 | F38: Acre | G38: 0 | I38: 0 | J38: =E38*H38 -> 0 | K38: 0 | M38: 0 | N38: =J38*L38 -> 0 | O38: 0 | P38: =+J38-N38 -> 0 | Q38: 0 | R38: =+J38*E$7 -> 0
C39: Tractors/Self-Propelled | D39: 5.17 | F39: Gallon | G39: 2.14 | I39: 11.0638 | J39: =E39*H39 -> 0 | K39: 0 | M39: 0 | N39: =J39*L39 -> 0 | O39: 11.0638 | P39: =+J39-N39 -> 0 | Q39: 1106.38 | R39: =+J39*E$7 -> 0
B41: Gasoline
C42: Pickup/General Use Equipment | D42: 1 | F42: Acre | G42: 23.12561132 | I42: 23.12561132 | J42: =E42*H42 -> 0 | K42: 0 | M42: 0 | N42: =J42*L42 -> 0 | O42: 23.12561132 | P42: =+J42-N42 -> 0 | Q42: 2312.561132 | R42: =+J42*E$7 -> 0
C43: Tractors/Self-Propelled | D43: 0 | F43: Gallon | G43: 2.39 | I43: 0 | J43: =E43*H43 -> 0 | K43: 0 | M43: 0 | N43: =J43*L43 -> 0 | O43: 0 | P43: =+J43-N43 -> 0 | Q43: 0 | R43: =+J43*E$7 -> 0
B45: Repairs & Maintenance
C46: Pickup/General Use Equipment | D46: 1 | F46: Acre | G46: 4.8384 | I46: 4.8384 | J46: =E46*H46 -> 0 | K46: 0 | M46: 0 | N46: =J46*L46 -> 0 | O46: 4.8384 | P46: =+J46-N46 -> 0 | Q46: 483.84 | R46: =+J46*E$7 -> 0
C47: Irrigation Equipment | D47: 1 | F47: Acre | G47: 0 | I47: 0 | J47: 0 | K47: 0 | M47: 0 | N47: 0 | O47: 0 | P47: 0 | Q47: 0 | R47: 0
C48: Tractors/Self-Propelled | D48: 1 | F48: Acre | G48: 19.37125912 | I48: 19.37125912 | J48: 0 | K48: 0 | M48: 0 | N48: 0 | O48: 19.37125912 | P48: 0 | Q48: 1937.125912 | R48: 0
C49: Implements | D49: 1 | F49: Acre | G49: 11.44283765 | I49: 11.44283765 | J49: 0 | K49: 0 | M49: 0 | N49: 0 | O49: 11.44283765 | P49: 0 | Q49: 1144.283765 | R49: 0
I50: 0 | J50: 0 | K50: 0 | M50: 0 | N50: 0 | O50: 0 | P50: 0 | Q50: 0 | R50: 0
I51: 0 | J51: 0 | K51: 0 | M51: 0 | N51: 0 | O51: 0 | P51: 0 | Q51: 0 | R51: 0
B52: Interest on Credit Line | G52: 0.065 | I52: 4.184403822 | J52: =+SUM(J17:J51)/2*H52 -> 0 | M52: 0 | N52: =+SUM(N17:N51)/2*L52 -> 0 | O52: 4.184403822 | P52: =+SUM(P17:P51)/2*L52 -> 0 | Q52: 418.4403822 | R52: =+J52*E$7 -> 0
A53: Total Variable Costs | I53: 143.6363119 | J53: =SUM(J18:J52) -> 0 | M53: 0 | N53: =SUM(N18:N52) -> 0 | O53: 143.6363119 | P53: =SUM(P18:P52) -> 0 | Q53: 14363.63119 | R53: =SUM(R18:R52) -> 0
A54: Planned Returns Above Variable Costs: | I54: -27.83631191 | J54: =+J13-J53 -> 0 | M54: 0 | N54: =+N13-N53 -> 0 | O54: -27.83631191 | P54: =+P13-P53 -> 0 | Q54: -2783.631191 | R54: =+R13-R53 -> 0
B55: Breakeven Price to Cover Variable Costs | G55: 4.787877064 | H55: =IF(E10=0,"n/a",(YVarExp-(YTotExp+YTotRet-J10))/E10) -> n/a | I55: Bushel
Q56: Enterprise | R56: Enterprise
A57: FIXED COSTS | D57: Quantity | E57: Quantity | F57: Units | G57: $/Unit | H57: $/Unit | I57: Total | J57: Total | K57: Share | L57: Share | M57: Landlord | N57: Landlord | O57: Tenant | P57: Tenant | Q57: Total | R57: Total
B58: Machinery Depreciation
C59: Pickup/General Use Equipment | D59: 1 | F59: Acre | G59: 25.2 | I59: 25.2 | J59: =E59*H59 -> 0 | K59: 0 | M59: 0 | N59: =J59*L59 -> 0 | O59: 25.2 | P59: =+J59-N59 -> 0 | Q59: 2520 | R59: =+J59*E$7 -> 0
C60: Tractors/Self-Propelled | D60: 1 | F60: Acre | G60: 19.07192493 | I60: 19.07192493 | J60: 0 | K60: 0 | M60: 0 | N60: =J60*L60 -> 0 | O60: 19.07192493 | P60: 0 | Q60: 1907.192493 | R60: 0
C61: Implements | D61: 1 | F61: Acre | G61: 13.75888849 | I61: 13.75888849 | J61: 0 | K61: 0 | M61: 0 | N61: =J61*L61 -> 0 | O61: 13.75888849 | P61: 0 | Q61: 1375.888849 | R61: 0
B62: Equipment Investment
C63: Pickup/General Use Equipment | D63: 105 | F63: Dollars | G63: 0.065 | I63: 6.825 | J63: =E63*H63 -> 0 | K63: 0 | M63: 0 | N63: =J63*L63 -> 0 | O63: 6.825 | P63: =+J63-N63 -> 0 | Q63: 682.5 | R63: =+J63*E$7 -> 0
C64: Tractors/Self-Propelled | D64: 144.4284771 | F64: Dollars | G64: 0.065 | I64: 9.387851014 | J64: 0 | K64: 0 | M64: 0 | N64: =J64*L64 -> 0 | O64: 9.387851014 | P64: 0 | Q64: 938.7851014 | R64: 0
C65: Implements | D65: 67.73466414 | F65: Dollars | G65: 0.065 | I65: 4.402753169 | J65: 0 | K65: 0 | M65: 0 | N65: =J65*L65 -> 0 | O65: 4.402753169 | P65: 0 | Q65: 440.2753169 | R65: 0
B66: Salaried Labor | D66: 1 | F66: Acre | G66: 0 | I66: 0 | J66: 0 | K66: 0 | M66: 0 | N66: =J66*L66 -> 0 | O66: 0 | P66: =+J66-N66 -> 0 | Q66: 0 | R66: =+J66*E$7 -> 0
B67: Management Fee, Owner/Operator Labor | D67: 1 | F67: Acre | G67: 0 | I67: 0 | J67: 0 | K67: 0 | M67: 0 | N67: 0 | O67: 0 | P67: 0 | Q67: 0 | R67: 0
B68: Allocated Establishment Cost | D68: 1 | F68: Acre | G68: 0 | I68: 0 | J68: 0 | K68: 0 | M68: 0 | N68: 0 | O68: 0 | P68: 0 | Q68: 0 | R68: 0
B69: Dryland Winter Garden Rent | D69: 1 | F69: Acre | G69: 20 | I69: 20 | J69: 0 | K69: 0 | M69: 0 | N69: 0 | O69: 20 | P69: 0 | Q69: 2000 | R69: 0
B70: Property Taxes | D70: 1 | F70: Acre | G70: 0 | I70: 0 | J70: 0 | K70: 0 | M70: 0 | N70: 0 | O70: 0 | P70: 0 | Q70: 0 | R70: 0
B71: Whole Farm Insurance | D71: 1 | F71: Acre | G71: 0 | I71: 0 | J71: 0 | K71: 0 | M71: 0 | N71: 0 | O71: 0 | P71: 0 | Q71: 0 | R71: 0
D72: 1 | G72: 0 | I72: 0 | J72: 0 | K72: 0 | M72: 0 | N72: 0 | O72: 0 | P72: 0 | Q72: 0 | R72: 0
D73: 1 | G73: 0 | I73: 0 | J73: =E73*H73 -> 0 | K73: 0 | M73: 0 | N73: 0 | O73: 0 | P73: 0 | Q73: 0 | R73: 0
A74: Total Fixed Costs | I74: 98.6464176 | J74: =+SUM(J59:J73) -> 0 | M74: 0 | N74: =+SUM(N59:N73) -> 0 | O74: 98.6464176 | P74: =+SUM(P59:P73) -> 0 | Q74: 9864.64176 | R74: =+SUM(R59:R73) -> 0
A75: Total Specified Costs | I75: 242.2827295 | J75: =+J53+J74 -> 0 | M75: 0 | N75: =+N53+N74 -> 0 | O75: 242.2827295 | P75: =+P53+P74 -> 0 | Q75: 24228.27295 | R75: =+R53+R74 -> 0
A77: Returns Above Specified Costs | I77: -126.4827295 | J77: =+J13-J75 -> 0 | M77: 0 | N77: =+N13-N75 -> 0 | O77: -126.4827295 | P77: =+P13-P75 -> 0 | Q77: -12648.27295 | R77: =+R13-R75 -> 0
A79: Breakeven Price to Cover Total Costs | G79: 8.076090984 | H79: =IF(E10=0,"n/a",(YTotExp-(YTotExp+YTotRet-J10))/E10) -> n/a | I79: Bushel
D81: Example Breakeven Prices
B82: Example | C82: Example | D82: To Cover | G82: To Cover
B83: Yield | C83: Yield | D83: Variable | G83: Total
B84: Percent | C84: Bushel | D84: Costs | G84: Costs
B85: 0.75 | C85: 22.5 | D85: 6.383836085 | G85: 10.76812131
B86: 0.9 | C86: 27 | D86: 5.319863404 | G86: 8.973434427
B87: 1 | C87: 30 | D87: 4.787877064 | G87: 8.076090984
B88: 1.1 | C88: 33 | D88: 4.352615512 | G88: 7.341900894
B89: 1.25 | C89: 37.5 | D89: 3.830301651 | G89: 6.460872787
D91: Your Breakeven Prices
B92: Your | C92: Your | E92: To Cover | H92: To Cover
B93: Yield | C93: Yield | E93: Variable | H93: Total
B94: Percent | C94: Bushel | E94: Costs | H94: Costs
B95: 0.75 | C95: =E10*YPER1 -> 0 | E95: =IF($E$10=0,0,(YVarExp-(YTotExp+YTotRet-J10))/($E$10*YPER1)) -> 0 | H95: =IF($E$10=0,0,(YTotExp-(YTotExp+YTotRet-J10))/($E$10*YPER1)) -> 0
B96: 0.9 | C96: =E10*YPER2 -> 0 | E96: =IF($E$10=0,0,(YVarExp-(YTotExp+YTotRet-J10))/($E$10*YPER2)) -> 0 | H96: =IF($E$10=0,0,(YTotExp-(YTotExp+YTotRet-J10))/($E$10*YPER2)) -> 0
B97: 1 | C97: =+E10 -> 0 | E97: =IF($E$10=0,0,(YVarExp-(YTotExp+YTotRet-J10))/($E$10*YPER3)) -> 0 | H97: =IF($E$10=0,0,(YTotExp-(YTotExp+YTotRet-J10))/($E$10*YPER3)) -> 0
B98: 1.1 | C98: =E10*YPER4 -> 0 | E98: =IF($E$10=0,0,(YVarExp-(YTotExp+YTotRet-J10))/($E$10*YPER4)) -> 0 | H98: =IF($E$10=0,0,(YTotExp-(YTotExp+YTotRet-J10))/($E$10*YPER4)) -> 0
B99: 1.25 | C99: =E10*YPER5 -> 0 | E99: =IF($E$10=0,0,(YVarExp-(YTotExp+YTotRet-J10))/($E$10*YPER5)) -> 0 | H99: =IF($E$10=0,0,(YTotExp-(YTotExp+YTotRet-J10))/($E$10*YPER5)) -> 0
A101: Developed by Rob Hogan, Associate Professor and Extension Economist, Texas A&M AgriLife Extension, 830-278-9151.
A103: Information presented is prepared solely as a general guide and not intended to recognize or predict the costs and returns from any one operation. Brand names are mentioned only as examples and imply no endorsement.

Sheet WinterWheatIrrigated
A1: Projections for Planning Purposes Only -- Not to be Used without Updating
A2: 2018 Estimated Costs and Returns per Acre
A3: Irrigated Winter Wheat
A4: Enter your name for this budget in the cell above.
A5: Enter Your Values in the cells highlighed in MAROON.
E6: Your Acres | R6: Your
C7: Crop Acres | D7: 122 | L7: Your | Q7: Enterprise | R7: Enterprise
E8: Your | H8: Your | I8: Cash | J8: Your | K8: Landlord | L8: Landlord | N8: Your | P8: Your | Q8: Total | R8: Total
A9: REVENUE | D9: Quantity | E9: Quantity | F9: Units | G9: $/Unit | H9: $/Unit | I9: Total | J9: Total | K9: Share | L9: Share | M9: Landlord | N9: Landlord | O9: Tenant | P9: Tenant | Q9: (122 acres) | R9: ="(" & E7 & " acres)" -> ( acres)
B10: Winter Wheat | D10: 70 | F10: Bushel | G10: 3.86 | I10: 270.2 | J10: =E10*H10 -> 0 | K10: 0 | M10: 0 | N10: =J10*L10 -> 0 | O10: 270.2 | P10: =+J10-N10 -> 0 | Q10: 32964.4 | R10: =+J10*E$7 -> 0
D11: 0 | G11: 0 | I11: 0 | J11: 0 | K11: 0 | M11: 0 | N11: 0 | O11: 0 | P11: =+J11-N11 -> 0 | Q11: 0 | R11: 0
D12: 0 | G12: 0 | I12: 0 | J12: 0 | K12: 0 | M12: 0 | N12: 0 | O12: 0 | P12: 0 | Q12: 0 | R12: 0
A13: Total Revenue | I13: 270.2 | J13: =SUM(J10:J12) -> 0 | M13: 0 | N13: =SUM(N10:N12) -> 0 | O13: 270.2 | P13: =SUM(P10:P12) -> 0 | Q13: 32964.4 | R13: =SUM(R10:R12) -> 0
Q14: Enterprise | R14: Enterprise
A15: VARIABLE COSTS | D15: Quantity | E15: Quantity | F15: Units | G15: $/Unit | H15: $/Unit | I15: Total | J15: Total | K15: Share | L15: Share | M15: Landlord | N15: Landlord | O15: Tenant | P15: Tenant | Q15: Total | R15: Total
A16: Production Costs
B17: Seed
C18: Wheat Seed Public | D18: 60 | F18: Pound | G18: 0.175 | I18: 10.5 | J18: =E18*H18 -> 0 | K18: 0 | M18: 0 | N18: =J18*L18 -> 0 | O18: 10.5 | P18: =+J18-N18 -> 0 | Q18: 1281 | R18: =+J18*E$7 -> 0
B19: Fertilizer
C20: UAN(32% N) | D20: 2.8 | F20: CWT | G20: 17 | I20: 47.6 | J20: 0 | K20: 0 | M20: 0 | N20: 0 | O20: 47.6 | P20: 0 | Q20: 5807.2 | R20: 0
C21: Fertilizer 18-46-0 | D21: 87 | F21: Pound | G21: 0.24 | I21: 20.88 | J21: 0 | K21: 0 | M21: 0 | N21: 0 | O21: 20.88 | P21: 0 | Q21: 2547.36 | R21: 0
B22: Custom
C23: Haul Wheat | D23: 70 | F23: Bushel | G23: 0.14 | I23: 9.8 | J23: 0 | K23: 0 | M23: 0 | N23: 0 | O23: 9.8 | P23: 0 | Q23: 1195.6 | R23: 0
B24: Miscellaneous
C25: Crop Insurance - Wheat Irrigated | D25: 1 | F25: Acre | G25: 9 | I25: 9 | J25: 0 | K25: 0 | M25: 0 | N25: 0 | O25: 9 | P25: 0 | Q25: 1098 | R25: 0
B26: Insecticide
C27: Lorsban 4E | D27: 1 | F27: Pint | G27: 5.03 | I27: 5.03 | J27: 0 | K27: 0 | M27: 0 | N27: 0 | O27: 5.03 | P27: 0 | Q27: 613.66 | R27: 0
B28: Fungicides
C29: Quilt | D29: 10.5 | F29: Ounce | G29: 1.8 | I29: 18.9 | J29: 0 | K29: 0 | M29: 0 | N29: 0 | O29: 18.9 | P29: 0 | Q29: 2305.8 | R29: 0
B30: Herbicide
C31: 2, 4-D Amine 4 | D31: 16 | F31: Ounce | G31: 0.14 | I31: 2.24 | J31: 0 | K31: 0 | M31: 0 | N31: 0 | O31: 2.24 | P31: 0 | Q31: 273.28 | R31: 0
D32: 0 | G32: 0 | I32: 0 | J32: 0 | K32: 0 | M32: 0 | N32: 0 | O32: 0 | P32: 0 | Q32: 0 | R32: 0
D33: 0 | G33: 0 | I33: 0 | J33: 0 | K33: 0 | M33: 0 | N33: 0 | O33: 0 | P33: 0 | Q33: 0 | R33: 0
D34: 0 | G34: 0 | I34: 0 | J34: =E34*H34 -> 0 | K34: 0 | M34: 0 | N34: =J34*L34 -> 0 | O34: 0 | P34: =+J34-N34 -> 0 | Q34: 0 | R34: =+J34*E$7 -> 0
B35: Irrigation
C36: Energy Cost | D36: 390 | F36: kWh | G36: 0.17 | I36: 66.3 | J36: =E36*H36 -> 0 | K36: 0 | M36: 0 | N36: =J36*L36 -> 0 | O36: 66.3 | P36: =+J36-N36 -> 0 | Q36: 8088.6 | R36: =+J36*E$7 -> 0
B37: Machinery Labor
C38: Tractors/Self-Propelled | D38: 0.85 | F38: Hour | G38: 12 | I38: 10.2 | J38: =E38*H38 -> 0 | K38: 0 | M38: 0 | N38: =J38*L38 -> 0 | O38: 10.2 | P38: =+J38-N38 -> 0 | Q38: 1244.4 | R38: =+J38*E$7 -> 0
C39: Other Labor | D39: 0.28 | F39: Hour | G39: 8.5 | I39: 2.38 | J39: =E39*H39 -> 0 | K39: 0 | M39: 0 | N39: =J39*L39 -> 0 | O39: 2.38 | P39: =+J39-N39 -> 0 | Q39: 290.36 | R39: =+J39*E$7 -> 0
B41: Diesel Fuel
C42: Pickup/General Use Equipment | D42: 1 | F42: Acre | G42: 0 | I42: 0 | J42: =E42*H42 -> 0 | K42: 0 | M42: 0 | N42: =J42*L42 -> 0 | O42: 0 | P42: =+J42-N42 -> 0 | Q42: 0 | R42: =+J42*E$7 -> 0
C43: Tractors/Self-Propelled | D43: 7.95 | F43: Gallon | G43: 2.14 | I43: 17.013 | J43: =E43*H43 -> 0 | K43: 0 | M43: 0 | N43: =J43*L43 -> 0 | O43: 17.013 | P43: =+J43-N43 -> 0 | Q43: 2075.586 | R43: =+J43*E$7 -> 0
B45: Gasoline
C46: Pickup/General Use Equipment | D46: 1 | F46: Acre | G46: 23.12899622 | I46: 23.12899622 | J46: =E46*H46 -> 0 | K46: 0 | M46: 0 | N46: =J46*L46 -> 0 | O46: 23.12899622 | P46: =+J46-N46 -> 0 | Q46: 2821.737538 | R46: =+J46*E$7 -> 0
C47: Tractors/Self-Propelled | D47: 0 | F47: Gallon | G47: 2.39 | I47: 0 | J47: =E47*H47 -> 0 | K47: 0 | M47: 0 | N47: =J47*L47 -> 0 | O47: 0 | P47: =+J47-N47 -> 0 | Q47: 0 | R47: =+J47*E$7 -> 0
B49: Repairs & Maintenance
C50: Pickup/General Use Equipment | D50: 1 | F50: Acre | G50: 4.839108197 | I50: 4.839108197 | J50: =E50*H50 -> 0 | K50: 0 | M50: 0 | N50: =J50*L50 -> 0 | O50: 4.839108197 | P50: =+J50-N50 -> 0 | Q50: 590.3712 | R50: =+J50*E$7 -> 0
C51: Irrigation Equipment | D51: 1 | F51: Acre | G51: 4.056 | I51: 4.056 | J51: 0 | K51: 0 | M51: 0 | N51: 0 | O51: 4.056 | P51: 0 | Q51: 494.832 | R51: 0
C52: Tractors/Self-Propelled | D52: 1 | F52: Acre | G52: 25.36656184 | I52: 25.36656184 | J52: 0 | K52: 0 | M52: 0 | N52: 0 | O52: 25.36656184 | P52: 0 | Q52: 3094.720544 | R52: 0
C53: Implements | D53: 1 | F53: Acre | G53: 15.8653989 | I53: 15.8653989 | J53: 0 | K53: 0 | M53: 0 | N53: 0 | O53: 15.8653989 | P53: 0 | Q53: 1935.578666 | R53: 0
I54: 0 | J54: 0 | K54: 0 | M54: 0 | N54: 0 | O54: 0 | P54: 0 | Q54: 0 | R54: 0
I55: 0 | J55: 0 | K55: 0 | M55: 0 | N55: 0 | O55: 0 | P55: 0 | Q55: 0 | R55: 0
B56: Interest on Credit Line | G56: 0.065 | I56: 7.901964308 | J56: =+SUM(J17:J55)/2*H56 -> 0 | M56: 0 | N56: =+SUM(N17:N55)/2*L56 -> 0 | O56: 7.901964308 | P56: =+SUM(P17:P55)/2*L56 -> 0 | Q56: 964.0396455 | R56: =+J56*E$7 -> 0
A57: Total Variable Costs | I57: 301.0010295 | J57: =SUM(J18:J56) -> 0 | M57: 0 | N57: =SUM(N18:N56) -> 0 | O57: 301.0010295 | P57: =SUM(P18:P56) -> 0 | Q57: 36722.12559 | R57: =SUM(R18:R56) -> 0
A58: Planned Returns Above Variable Costs: | I58: -30.80102946 | J58: =+J13-J57 -> 0 | M58: 0 | N58: =+N13-N57 -> 0 | O58: -30.80102946 | P58: =+P13-P57 -> 0 | Q58: -3757.725594 | R58: =+R13-R57 -> 0
B59: Breakeven Price to Cover Variable Costs | G59: 4.300014707 | H59: =IF(E10=0,"n/a",(YVarExp-(YTotExp+YTotRet-J10))/E10) -> n/a | I59: Bushel
Q60: Enterprise | R60: Enterprise
A61: FIXED COSTS | D61: Quantity | E61: Quantity | F61: Units | G61: $/Unit | H61: $/Unit | I61: Total | J61: Total | K61: Share | L61: Share | M61: Landlord | N61: Landlord | O61: Tenant | P61: Tenant | Q61: Total | R61: Total
B62: Machinery Depreciation
C63: Pickup/General Use Equipment | D63: 1 | F63: Acre | G63: 25.20368852 | I63: 25.20368852 | J63: =E63*H63 -> 0 | K63: 0 | M63: 0 | N63: =J63*L63 -> 0 | O63: 25.20368852 | P63: =+J63-N63 -> 0 | Q63: 3074.85 | R63: =+J63*E$7 -> 0
C64: Irrigation Equipment | D64: 1 | F64: Acre | G64: 34.74948087 | I64: 34.74948087 | J64: 0 | K64: 0 | M64: 0 | N64: =J64*L64 -> 0 | O64: 34.74948087 | P64: 0 | Q64: 4239.436667 | R64: 0
C65: Tractors/Self-Propelled | D65: 1 | F65: Acre | G65: 26.21984072 | I65: 26.21984072 | J65: 0 | K65: 0 | M65: 0 | N65: =J65*L65 -> 0 | O65: 26.21984072 | P65: 0 | Q65: 3198.820568 | R65: 0
C66: Implements | D66: 1 | F66: Acre | G66: 19.84587868 | I66: 19.84587868 | J66: 0 | K66: 0 | M66: 0 | N66: =J66*L66 -> 0 | O66: 19.84587868 | P66: 0 | Q66: 2421.197199 | R66: 0
B67: Equipment Investment
C68: Pickup/General Use Equipment | D68: 105.0153689 | F68: Dollars | G68: 0.065 | I68: 6.825998975 | J68: =E68*H68 -> 0 | K68: 0 | M68: 0 | N68: =J68*L68 -> 0 | O68: 6.825998975 | P68: =+J68-N68 -> 0 | Q68: 832.771875 | R68: =+J68*E$7 -> 0
C69: Irrigation Equipment | D69: 260.6211066 | F69: Dollars | G69: 0.065 | I69: 16.94037193 | J69: 0 | K69: 0 | M69: 0 | N69: =J69*L69 -> 0 | O69: 16.94037193 | P69: 0 | Q69: 2066.725375 | R69: 0
C70: Tractors/Self-Propelled | D70: 199.6703573 | F70: Dollars | G70: 0.065 | I70: 12.97857322 | J70: 0 | K70: 0 | M70: 0 | N70: =J70*L70 -> 0 | O70: 12.97857322 | P70: 0 | Q70: 1583.385933 | R70: 0
C71: Implements | D71: 93.77345551 | F71: Dollars | G71: 0.065 | I71: 6.095274608 | J71: 0 | K71: 0 | M71: 0 | N71: =J71*L71 -> 0 | O71: 6.095274608 | P71: 0 | Q71: 743.6235022 | R71: 0
B72: Salaried Labor | D72: 1 | F72: Acre | G72: 0 | I72: 0 | J72: 0 | K72: 0 | M72: 0 | N72: =J72*L72 -> 0 | O72: 0 | P72: =+J72-N72 -> 0 | Q72: 0 | R72: =+J72*E$7 -> 0
B73: Management Fee, Owner/Operator Labor | D73: 1 | F73: Acre | G73: 0 | I73: 0 | J73: 0 | K73: 0 | M73: 0 | N73: 0 | O73: 0 | P73: 0 | Q73: 0 | R73: 0
B74: Allocated Establishment Cost | D74: 1 | F74: Acre | G74: 0 | I74: 0 | J74: 0 | K74: 0 | M74: 0 | N74: 0 | O74: 0 | P74: 0 | Q74: 0 | R74: 0
B75: Irrigated Winter Garden Rent | D75: 1 | F75: Acre | G75: 50 | I75: 50 | J75: 0 | K75: 0 | M75: 0 | N75: 0 | O75: 50 | P75: 0 | Q75: 6100 | R75: 0
B76: Property Taxes | D76: 1 | F76: Acre | G76: 0 | I76: 0 | J76: 0 | K76: 0 | M76: 0 | N76: 0 | O76: 0 | P76: 0 | Q76: 0 | R76: 0
B77: Whole Farm Insurance | D77: 1 | F77: Acre | G77: 0 | I77: 0 | J77: 0 | K77: 0 | M77: 0 | N77: 0 | O77: 0 | P77: 0 | Q77: 0 | R77: 0
D78: 1 | G78: 0 | I78: 0 | J78: 0 | K78: 0 | M78: 0 | N78: 0 | O78: 0 | P78: 0 | Q78: 0 | R78: 0
D79: 1 | G79: 0 | I79: 0 | J79: =E79*H79 -> 0 | K79: 0 | M79: 0 | N79: 0 | O79: 0 | P79: 0 | Q79: 0 | R79: 0
A80: Total Fixed Costs | I80: 198.8591075 | J80: =+SUM(J63:J79) -> 0 | M80: 0 | N80: =+SUM(N63:N79) -> 0 | O80: 198.8591075 | P80: =+SUM(P63:P79) -> 0 | Q80: 24260.81112 | R80: =+SUM(R63:R79) -> 0
A81: Total Specified Costs | I81: 499.860137 | J81: =+J57+J80 -> 0 | M81: 0 | N81: =+N57+N80 -> 0 | O81: 499.860137 | P81: =+P57+P80 -> 0 | Q81: 60982.93671 | R81: =+R57+R80 -> 0
A83: Returns Above Specified Costs | I83: -229.660137 | J83: =+J13-J81 -> 0 | M83: 0 | N83: =+N13-N81 -> 0 | O83: -229.660137 | P83: =+P13-P81 -> 0 | Q83: -28018.53671 | R83: =+R13-R81 -> 0
A85: Breakeven Price to Cover Total Costs | G85: 7.1408591 | H85: =IF(E10=0,"n/a",(YTotExp-(YTotExp+YTotRet-J10))/E10) -> n/a | I85: Bushel
D87: Example Breakeven Prices
B88: Example | C88: Example | D88: To Cover | G88: To Cover
B89: Yield | C89: Yield | D89: Variable | G89: Total
B90: Percent | C90: Bushel | D90: Costs | G90: Costs
B91: 0.75 | C91: 52.5 | D91: 5.733352942 | G91: 9.521145467
B92: 0.9 | C92: 63 | D92: 4.777794118 | G92: 7.934287889
B93: 1 | C93: 70 | D93: 4.300014707 | G93: 7.1408591
B94: 1.1 | C94: 77 | D94: 3.909104279 | G94: 6.491690091
B95: 1.25 | C95: 87.5 | D95: 3.440011765 | G95: 5.71268728
D97: Your Breakeven Prices
B98: Your | C98: Your | E98: To Cover | H98: To Cover
B99: Yield | C99: Yield | E99: Variable | H99: Total
B100: Percent | C100: Bushel | E100: Costs | H100: Costs
B101: 0.75 | C101: =E10*YPER1 -> 0 | E101: =IF($E$10=0,0,(YVarExp-(YTotExp+YTotRet-J10))/($E$10*YPER1)) -> 0 | H101: =IF($E$10=0,0,(YTotExp-(YTotExp+YTotRet-J10))/($E$10*YPER1)) -> 0
B102: 0.9 | C102: =E10*YPER2 -> 0 | E102: =IF($E$10=0,0,(YVarExp-(YTotExp+YTotRet-J10))/($E$10*YPER2)) -> 0 | H102: =IF($E$10=0,0,(YTotExp-(YTotExp+YTotRet-J10))/($E$10*YPER2)) -> 0
B103: 1 | C103: =+E10 -> 0 | E103: =IF($E$10=0,0,(YVarExp-(YTotExp+YTotRet-J10))/($E$10*YPER3)) -> 0 | H103: =IF($E$10=0,0,(YTotExp-(YTotExp+YTotRet-J10))/($E$10*YPER3)) -> 0
B104: 1.1 | C104: =E10*YPER4 -> 0 | E104: =IF($E$10=0,0,(YVarExp-(YTotExp+YTotRet-J10))/($E$10*YPER4)) -> 0 | H104: =IF($E$10=0,0,(YTotExp-(YTotExp+YTotRet-J10))/($E$10*YPER4)) -> 0
B105: 1.25 | C105: =E10*YPER5 -> 0 | E105: =IF($E$10=0,0,(YVarExp-(YTotExp+YTotRet-J10))/($E$10*YPER5)) -> 0 | H105: =IF($E$10=0,0,(YTotExp-(YTotExp+YTotRet-J10))/($E$10*YPER5)) -> 0
A107: Developed by Rob Hogan, Associate Professor and Extension Economist, Texas A&M AgriLife Extension, 830-278-9151.
A109: Information presented is prepared solely as a general guide and not intended to recognize or predict the costs and returns from any one operation. Brand names are mentioned only as examples and imply no endorsement.

Sheet CanolaIrrigated
A1: Projections for Planning Purposes Only -- Not to be Used without Updating
A2: 2018 Estimated Costs and Returns per Acre
A3: Irrigated Canola
A4: Enter your name for this budget in the cell above.
A5: Enter Your Values in the cells highlighed in MAROON.
E6: Your Acres | R6: Your
C7: Crop Acres | D7: 122 | L7: Your | Q7: Enterprise | R7: Enterprise
E8: Your | H8: Your | I8: Cash | J8: Your | K8: Landlord | L8: Landlord | N8: Your | P8: Your | Q8: Total | R8: Total
A9: REVENUE | D9: Quantity | E9: Quantity | F9: Units | G9: $/Unit | H9: $/Unit | I9: Total | J9: Total | K9: Share | L9: Share | M9: Landlord | N9: Landlord | O9: Tenant | P9: Tenant | Q9: (122 acres) | R9: ="(" & E7 & " acres)" -> ( acres)
B10: Canola | D10: 55 | F10: Bushel | G10: 7.48 | I10: 411.4 | J10: =E10*H10 -> 0 | K10: 0 | M10: 0 | N10: =J10*L10 -> 0 | O10: 411.4 | P10: =+J10-N10 -> 0 | Q10: 50190.8 | R10: =+J10*E$7 -> 0
D11: 0 | G11: 0 | I11: 0 | J11: 0 | K11: 0 | M11: 0 | N11: 0 | O11: 0 | P11: =+J11-N11 -> 0 | Q11: 0 | R11: 0
D12: 0 | G12: 0 | I12: 0 | J12: 0 | K12: 0 | M12: 0 | N12: 0 | O12: 0 | P12: 0 | Q12: 0 | R12: 0
A13: Total Revenue | I13: 411.4 | J13: =SUM(J10:J12) -> 0 | M13: 0 | N13: =SUM(N10:N12) -> 0 | O13: 411.4 | P13: =SUM(P10:P12) -> 0 | Q13: 50190.8 | R13: =SUM(R10:R12) -> 0
Q14: Enterprise | R14: Enterprise
A15: VARIABLE COSTS | D15: Quantity | E15: Quantity | F15: Units | G15: $/Unit | H15: $/Unit | I15: Total | J15: Total | K15: Share | L15: Share | M15: Landlord | N15: Landlord | O15: Tenant | P15: Tenant | Q15: Total | R15: Total
A16: Production Costs
B17: Fertilizer
C18: UAN(32% N) | D18: 3.72 | F18: CWT | G18: 17 | I18: 63.24 | J18: =E18*H18 -> 0 | K18: 0 | M18: 0 | N18: =J18*L18 -> 0 | O18: 63.24 | P18: =+J18-N18 -> 0 | Q18: 7715.28 | R18: =+J18*E$7 -> 0
C19: Fertilizer 18-46-0 | D19: 108 | F19: Pound | G19: 0.24 | I19: 25.92 | J19: 0 | K19: 0 | M19: 0 | N19: 0 | O19: 25.92 | P19: 0 | Q19: 3162.24 | R19: 0
B20: Custom
C21: Haul Canola | D21: 55 | F21: Bushel | G21: 0.14 | I21: 7.7 | J21: 0 | K21: 0 | M21: 0 | N21: 0 | O21: 7.7 | P21: 0 | Q21: 939.4 | R21: 0
B22: Insecticide
C23: Lorsban 4E | D23: 2 | F23: Pint | G23: 5.03 | I23: 10.06 | J23: 0 | K23: 0 | M23: 0 | N23: 0 | O23: 10.06 | P23: 0 | Q23: 1227.32 | R23: 0
B24: Seed
C25: Canola RR Seed | D25: 4 | F25: Pound | G25: 6.8 | I25: 27.2 | J25: 0 | K25: 0 | M25: 0 | N25: 0 | O25: 27.2 | P25: 0 | Q25: 3318.4 | R25: 0
B26: Herbicide
C27: Glyphosate | D27: 2.75 | F27: Pint | G27: 2.25 | I27: 6.1875 | J27: 0 | K27: 0 | M27: 0 | N27: 0 | O27: 6.1875 | P27: 0 | Q27: 754.875 | R27: 0
C28: 2, 4-D Amine 4 | D28: 16 | F28: Ounce | G28: 0.14 | I28: 2.24 | J28: 0 | K28: 0 | M28: 0 | N28: 0 | O28: 2.24 | P28: 0 | Q28: 273.28 | R28: 0
B29: Miscellaneous
C30: Crop Insurance - Canola Irrigated | D30: 1 | F30: Acre | G30: 18 | I30: 18 | J30: 0 | K30: 0 | M30: 0 | N30: 0 | O30: 18 | P30: 0 | Q30: 2196 | R30: 0
C31: Miscellaneous Canola Overhead | D31: 1 | F31: Acre | G31: 4 | I31: 4 | J31: 0 | K31: 0 | M31: 0 | N31: 0 | O31: 4 | P31: 0 | Q31: 488 | R31: 0
B32: Other Labor
C33: Hand Labor | D33: 0.1167 | F33: Hour | G33: 8.5 | I33: 0.99195 | J33: 0 | K33: 0 | M33: 0 | N33: 0 | O33: 0.99195 | P33: 0 | Q33: 121.0179 | R33: 0
D34: 0 | G34: 0 | I34: 0 | J34: 0 | K34: 0 | M34: 0 | N34: 0 | O34: 0 | P34: 0 | Q34: 0 | R34: 0
D35: 0 | G35: 0 | I35: 0 | J35: 0 | K35: 0 | M35: 0 | N35: 0 | O35: 0 | P35: 0 | Q35: 0 | R35: 0
D36: 0 | G36: 0 | I36: 0 | J36: =E36*H36 -> 0 | K36: 0 | M36: 0 | N36: =J36*L36 -> 0 | O36: 0 | P36: =+J36-N36 -> 0 | Q36: 0 | R36: =+J36*E$7 -> 0
B37: Irrigation
C38: Energy Cost | D38: 390 | F38: kWh | G38: 0.17 | I38: 66.3 | J38: =E38*H38 -> 0 | K38: 0 | M38: 0 | N38: =J38*L38 -> 0 | O38: 66.3 | P38: =+J38-N38 -> 0 | Q38: 8088.6 | R38: =+J38*E$7 -> 0
C39: Irrigation Labor | D39: 0.024 | F39: Hour | G39: 11 | I39: 0.264 | J39: 0 | K39: 0 | M39: 0 | N39: 0 | O39: 0.264 | P39: 0 | Q39: 32.208 | R39: 0
B40: Machinery Labor
C41: Tractors/Self-Propelled | D41: 0.85 | F41: Hour | G41: 12 | I41: 10.2 | J41: =E41*H41 -> 0 | K41: 0 | M41: 0 | N41: =J41*L41 -> 0 | O41: 10.2 | P41: =+J41-N41 -> 0 | Q41: 1244.4 | R41: =+J41*E$7 -> 0
C42: Other Labor | D42: 0.28 | F42: Hour | G42: 8.5 | I42: 2.38 | J42: =E42*H42 -> 0 | K42: 0 | M42: 0 | N42: =J42*L42 -> 0 | O42: 2.38 | P42: =+J42-N42 -> 0 | Q42: 290.36 | R42: =+J42*E$7 -> 0
B44: Diesel Fuel
C45: Pickup/General Use Equipment | D45: 1 | F45: Acre | G45: 0 | I45: 0 | J45: =E45*H45 -> 0 | K45: 0 | M45: 0 | N45: =J45*L45 -> 0 | O45: 0 | P45: =+J45-N45 -> 0 | Q45: 0 | R45: =+J45*E$7 -> 0
C46: Tractors/Self-Propelled | D46: 7.95 | F46: Gallon | G46: 2.14 | I46: 17.013 | J46: =E46*H46 -> 0 | K46: 0 | M46: 0 | N46: =J46*L46 -> 0 | O46: 17.013 | P46: =+J46-N46 -> 0 | Q46: 2075.586 | R46: =+J46*E$7 -> 0
B48: Gasoline
C49: Pickup/General Use Equipment | D49: 1 | F49: Acre | G49: 23.12899622 | I49: 23.12899622 | J49: =E49*H49 -> 0 | K49: 0 | M49: 0 | N49: =J49*L49 -> 0 | O49: 23.12899622 | P49: =+J49-N49 -> 0 | Q49: 2821.737538 | R49: =+J49*E$7 -> 0
C50: Tractors/Self-Propelled | D50: 0 | F50: Gallon | G50: 2.39 | I50: 0 | J50: =E50*H50 -> 0 | K50: 0 | M50: 0 | N50: =J50*L50 -> 0 | O50: 0 | P50: =+J50-N50 -> 0 | Q50: 0 | R50: =+J50*E$7 -> 0
B52: Repairs & Maintenance
C53: Pickup/General Use Equipment | D53: 1 | F53: Acre | G53: 4.839108197 | I53: 4.839108197 | J53: =E53*H53 -> 0 | K53: 0 | M53: 0 | N53: =J53*L53 -> 0 | O53: 4.839108197 | P53: =+J53-N53 -> 0 | Q53: 590.3712 | R53: =+J53*E$7 -> 0
C54: Irrigation Equipment | D54: 1 | F54: Acre | G54: 4.056 | I54: 4.056 | J54: 0 | K54: 0 | M54: 0 | N54: 0 | O54: 4.056 | P54: 0 | Q54: 494.832 | R54: 0
C55: Tractors/Self-Propelled | D55: 1 | F55: Acre | G55: 25.36656184 | I55: 25.36656184 | J55: 0 | K55: 0 | M55: 0 | N55: 0 | O55: 25.36656184 | P55: 0 | Q55: 3094.720544 | R55: 0
C56: Implements | D56: 1 | F56: Acre | G56: 15.8653989 | I56: 15.8653989 | J56: 0 | K56: 0 | M56: 0 | N56: 0 | O56: 15.8653989 | P56: 0 | Q56: 1935.578666 | R56: 0
I57: 0 | J57: 0 | K57: 0 | M57: 0 | N57: 0 | O57: 0 | P57: 0 | Q57: 0 | R57: 0
I58: 0 | J58: 0 | K58: 0 | M58: 0 | N58: 0 | O58: 0 | P58: 0 | Q58: 0 | R58: 0
B59: Interest on Credit Line | G59: 0.065 | I59: 9.582713915 | J59: =+SUM(J17:J58)/2*H59 -> 0 | M59: 0 | N59: =+SUM(N17:N58)/2*L59 -> 0 | O59: 9.582713915 | P59: =+SUM(P17:P58)/2*L59 -> 0 | Q59: 1169.091098 | R59: =+J59*E$7 -> 0
A60: Total Variable Costs | I60: 344.5352291 | J60: =SUM(J18:J59) -> 0 | M60: 0 | N60: =SUM(N18:N59) -> 0 | O60: 344.5352291 | P60: =SUM(P18:P59) -> 0 | Q60: 42033.29795 | R60: =SUM(R18:R59) -> 0
A61: Planned Returns Above Variable Costs: | I61: 66.86477093 | J61: =+J13-J60 -> 0 | M61: 0 | N61: =+N13-N60 -> 0 | O61: 66.86477093 | P61: =+P13-P60 -> 0 | Q61: 8157.502054 | R61: =+R13-R60 -> 0
B62: Breakeven Price to Cover Variable Costs | G62: 6.264276892 | H62: =IF(E10=0,"n/a",(YVarExp-(YTotExp+YTotRet-J10))/E10) -> n/a | I62: Bushel
Q63: Enterprise | R63: Enterprise
A64: FIXED COSTS | D64: Quantity | E64: Quantity | F64: Units | G64: $/Unit | H64: $/Unit | I64: Total | J64: Total | K64: Share | L64: Share | M64: Landlord | N64: Landlord | O64: Tenant | P64: Tenant | Q64: Total | R64: Total
B65: Machinery Depreciation
C66: Pickup/General Use Equipment | D66: 1 | F66: Acre | G66: 25.20368852 | I66: 25.20368852 | J66: =E66*H66 -> 0 | K66: 0 | M66: 0 | N66: =J66*L66 -> 0 | O66: 25.20368852 | P66: =+J66-N66 -> 0 | Q66: 3074.85 | R66: =+J66*E$7 -> 0
C67: Irrigation Equipment | D67: 1 | F67: Acre | G67: 34.74948087 | I67: 34.74948087 | J67: 0 | K67: 0 | M67: 0 | N67: =J67*L67 -> 0 | O67: 34.74948087 | P67: 0 | Q67: 4239.436667 | R67: 0
C68: Tractors/Self-Propelled | D68: 1 | F68: Acre | G68: 26.21984072 | I68: 26.21984072 | J68: 0 | K68: 0 | M68: 0 | N68: =J68*L68 -> 0 | O68: 26.21984072 | P68: 0 | Q68: 3198.820568 | R68: 0
C69: Implements | D69: 1 | F69: Acre | G69: 19.84587868 | I69: 19.84587868 | J69: 0 | K69: 0 | M69: 0 | N69: =J69*L69 -> 0 | O69: 19.84587868 | P69: 0 | Q69: 2421.197199 | R69: 0
B70: Equipment Investment
C71: Pickup/General Use Equipment | D71: 105.0153689 | F71: Dollars | G71: 0.065 | I71: 6.825998975 | J71: =E71*H71 -> 0 | K71: 0 | M71: 0 | N71: =J71*L71 -> 0 | O71: 6.825998975 | P71: =+J71-N71 -> 0 | Q71: 832.771875 | R71: =+J71*E$7 -> 0
C72: Irrigation Equipment | D72: 260.6211066 | F72: Dollars | G72: 0.065 | I72: 16.94037193 | J72: 0 | K72: 0 | M72: 0 | N72: =J72*L72 -> 0 | O72: 16.94037193 | P72: 0 | Q72: 2066.725375 | R72: 0
C73: Tractors/Self-Propelled | D73: 199.6703573 | F73: Dollars | G73: 0.065 | I73: 12.97857322 | J73: 0 | K73: 0 | M73: 0 | N73: =J73*L73 -> 0 | O73: 12.97857322 | P73: 0 | Q73: 1583.385933 | R73: 0
C74: Implements | D74: 93.77345551 | F74: Dollars | G74: 0.065 | I74: 6.095274608 | J74: 0 | K74: 0 | M74: 0 | N74: =J74*L74 -> 0 | O74: 6.095274608 | P74: 0 | Q74: 743.6235022 | R74: 0
B75: Salaried Labor | D75: 1 | F75: Acre | G75: 0 | I75: 0 | J75: 0 | K75: 0 | M75: 0 | N75: =J75*L75 -> 0 | O75: 0 | P75: =+J75-N75 -> 0 | Q75: 0 | R75: =+J75*E$7 -> 0
B76: Management Fee, Owner/Operator Labor | D76: 1 | F76: Acre | G76: 0 | I76: 0 | J76: 0 | K76: 0 | M76: 0 | N76: 0 | O76: 0 | P76: 0 | Q76: 0 | R76: 0
B77: Allocated Establishment Cost | D77: 1 | F77: Acre | G77: 0 | I77: 0 | J77: 0 | K77: 0 | M77: 0 | N77: 0 | O77: 0 | P77: 0 | Q77: 0 | R77: 0
B78: Irrigated Winter Garden Rent | D78: 1 | F78: Acre | G78: 50 | I78: 50 | J78: 0 | K78: 0 | M78: 0 | N78: 0 | O78: 50 | P78: 0 | Q78: 6100 | R78: 0
B79: Property Taxes | D79: 1 | F79: Acre | G79: 0 | I79: 0 | J79: 0 | K79: 0 | M79: 0 | N79: 0 | O79: 0 | P79: 0 | Q79: 0 | R79: 0
B80: Whole Farm Insurance | D80: 1 | F80: Acre | G80: 0 | I80: 0 | J80: 0 | K80: 0 | M80: 0 | N80: 0 | O80: 0 | P80: 0 | Q80: 0 | R80: 0
D81: 1 | G81: 0 | I81: 0 | J81: 0 | K81: 0 | M81: 0 | N81: 0 | O81: 0 | P81: 0 | Q81: 0 | R81: 0
D82: 1 | G82: 0 | I82: 0 | J82: =E82*H82 -> 0 | K82: 0 | M82: 0 | N82: 0 | O82: 0 | P82: 0 | Q82: 0 | R82: 0
A83: Total Fixed Costs | I83: 198.8591075 | J83: =+SUM(J66:J82) -> 0 | M83: 0 | N83: =+SUM(N66:N82) -> 0 | O83: 198.8591075 | P83: =+SUM(P66:P82) -> 0 | Q83: 24260.81112 | R83: =+SUM(R66:R82) -> 0
A84: Total Specified Costs | I84: 543.3943366 | J84: =+J60+J83 -> 0 | M84: 0 | N84: =+N60+N83 -> 0 | O84: 543.3943366 | P84: =+P60+P83 -> 0 | Q84: 66294.10907 | R84: =+R60+R83 -> 0
A86: Returns Above Specified Costs | I86: -131.9943366 | J86: =+J13-J84 -> 0 | M86: 0 | N86: =+N13-N84 -> 0 | O86: -131.9943366 | P86: =+P13-P84 -> 0 | Q86: -16103.30907 | R86: =+R13-R84 -> 0
A88: Breakeven Price to Cover Total Costs | G88: 9.879897029 | H88: =IF(E10=0,"n/a",(YTotExp-(YTotExp+YTotRet-J10))/E10) -> n/a | I88: Bushel
D90: Example Breakeven Prices
B91: Example | C91: Example | D91: To Cover | G91: To Cover
B92: Yield | C92: Yield | D92: Variable | G92: Total
B93: Percent | C93: Bushel | D93: Costs | G93: Costs
B94: 0.75 | C94: 41.25 | D94: 8.35236919 | G94: 13.17319604
B95: 0.9 | C95: 49.5 | D95: 6.960307658 | G95: 10.97766337
B96: 1 | C96: 55 | D96: 6.264276892 | G96: 9.879897029
B97: 1.1 | C97: 60.5 | D97: 5.694797175 | G97: 8.981724572
B98: 1.25 | C98: 68.75 | D98: 5.011421514 | G98: 7.903917623
D100: Your Breakeven Prices
B101: Your | C101: Your | E101: To Cover | H101: To Cover
B102: Yield | C102: Yield | E102: Variable | H102: Total
B103: Percent | C103: Bushel | E103: Costs | H103: Costs
B104: 0.75 | C104: =E10*YPER1 -> 0 | E104: =IF($E$10=0,0,(YVarExp-(YTotExp+YTotRet-J10))/($E$10*YPER1)) -> 0 | H104: =IF($E$10=0,0,(YTotExp-(YTotExp+YTotRet-J10))/($E$10*YPER1)) -> 0
B105: 0.9 | C105: =E10*YPER2 -> 0 | E105: =IF($E$10=0,0,(YVarExp-(YTotExp+YTotRet-J10))/($E$10*YPER2)) -> 0 | H105: =IF($E$10=0,0,(YTotExp-(YTotExp+YTotRet-J10))/($E$10*YPER2)) -> 0
B106: 1 | C106: =+E10 -> 0 | E106: =IF($E$10=0,0,(YVarExp-(YTotExp+YTotRet-J10))/($E$10*YPER3)) -> 0 | H106: =IF($E$10=0,0,(YTotExp-(YTotExp+YTotRet-J10))/($E$10*YPER3)) -> 0
B107: 1.1 | C107: =E10*YPER4 -> 0 | E107: =IF($E$10=0,0,(YVarExp-(YTotExp+YTotRet-J10))/($E$10*YPER4)) -> 0 | H107: =IF($E$10=0,0,(YTotExp-(YTotExp+YTotRet-J10))/($E$10*YPER4)) -> 0
B108: 1.25 | C108: =E10*YPER5 -> 0 | E108: =IF($E$10=0,0,(YVarExp-(YTotExp+YTotRet-J10))/($E$10*YPER5)) -> 0 | H108: =IF($E$10=0,0,(YTotExp-(YTotExp+YTotRet-J10))/($E$10*YPER5)) -> 0
A110: Developed by Rob Hogan, Associate Professor and Extension Economist, Texas A&M AgriLife Extension, 830-278-9151.
A112: Information presented is prepared solely as a general guide and not intended to recognize or predict the costs and returns from any one operation. Brand names are mentioned only as examples and imply no endorsement.

Sheet BarleyIrrigated
A1: Projections for Planning Purposes Only -- Not to be Used without Updating
A2: 2018 Estimated Costs and Returns per Acre
A3: Irrigated Malting Barley
A4: Enter your name for this budget in the cell above.
A5: Enter Your Values in the cells highlighed in MAROON.
E6: Your Acres | R6: Your
C7: Crop Acres | D7: 122 | L7: Your | Q7: Enterprise | R7: Enterprise
E8: Your | H8: Your | I8: Cash | J8: Your | K8: Landlord | L8: Landlord | N8: Your | P8: Your | Q8: Total | R8: Total
A9: REVENUE | D9: Quantity | E9: Quantity | F9: Units | G9: $/Unit | H9: $/Unit | I9: Total | J9: Total | K9: Share | L9: Share | M9: Landlord | N9: Landlord | O9: Tenant | P9: Tenant | Q9: (122 acres) | R9: ="(" & E7 & " acres)" -> ( acres)
B10: Malting Barley | D10: 1.92 | F10: Ton | G10: 208.3333333 | I10: 400 | J10: =E10*H10 -> 0 | K10: 0 | M10: 0 | N10: =J10*L10 -> 0 | O10: 400 | P10: =+J10-N10 -> 0 | Q10: 48800 | R10: =+J10*E$7 -> 0
D11: 0 | G11: 0 | I11: 0 | J11: 0 | K11: 0 | M11: 0 | N11: 0 | O11: 0 | P11: =+J11-N11 -> 0 | Q11: 0 | R11: 0
D12: 0 | G12: 0 | I12: 0 | J12: 0 | K12: 0 | M12: 0 | N12: 0 | O12: 0 | P12: 0 | Q12: 0 | R12: 0
A13: Total Revenue | I13: 400 | J13: =SUM(J10:J12) -> 0 | M13: 0 | N13: =SUM(N10:N12) -> 0 | O13: 400 | P13: =SUM(P10:P12) -> 0 | Q13: 48800 | R13: =SUM(R10:R12) -> 0
Q14: Enterprise | R14: Enterprise
A15: VARIABLE COSTS | D15: Quantity | E15: Quantity | F15: Units | G15: $/Unit | H15: $/Unit | I15: Total | J15: Total | K15: Share | L15: Share | M15: Landlord | N15: Landlord | O15: Tenant | P15: Tenant | Q15: Total | R15: Total
A16: Production Costs
B17: Custom
C18: Haul Barley | D18: 1.58 | F18: Ton | G18: 5.85 | I18: 9.243 | J18: =E18*H18 -> 0 | K18: 0 | M18: 0 | N18: =J18*L18 -> 0 | O18: 9.243 | P18: =+J18-N18 -> 0 | Q18: 1127.646 | R18: =+J18*E$7 -> 0
B19: Fertilizer
C20: UAN(32% N) | D20: 2 | F20: CWT | G20: 17 | I20: 34 | J20: 0 | K20: 0 | M20: 0 | N20: 0 | O20: 34 | P20: 0 | Q20: 4148 | R20: 0
C21: Fertilizer 18-46-0 | D21: 87 | F21: Pound | G21: 0.24 | I21: 20.88 | J21: 0 | K21: 0 | M21: 0 | N21: 0 | O21: 20.88 | P21: 0 | Q21: 2547.36 | R21: 0
B22: Herbicide
C23: 2, 4-D Amine 4 | D23: 16 | F23: Ounce | G23: 0.14 | I23: 2.24 | J23: 0 | K23: 0 | M23: 0 | N23: 0 | O23: 2.24 | P23: 0 | Q23: 273.28 | R23: 0
B24: Insecticide
C25: Lorsban 4E | D25: 1 | F25: Pint | G25: 5.03 | I25: 5.03 | J25: 0 | K25: 0 | M25: 0 | N25: 0 | O25: 5.03 | P25: 0 | Q25: 613.66 | R25: 0
B26: Miscellaneous
C27: Crop Insurance - M. Barley Irrigated | D27: 1 | F27: Acre | G27: 27 | I27: 27 | J27: 0 | K27: 0 | M27: 0 | N27: 0 | O27: 27 | P27: 0 | Q27: 3294 | R27: 0
C28: Miscellaneous Barley Overhead | D28: 1 | F28: Acre | G28: 4 | I28: 4 | J28: 0 | K28: 0 | M28: 0 | N28: 0 | O28: 4 | P28: 0 | Q28: 488 | R28: 0
B29: Seed
C30: Malting Barley Seed | D30: 60 | F30: Pound | G30: 0.8 | I30: 48 | J30: 0 | K30: 0 | M30: 0 | N30: 0 | O30: 48 | P30: 0 | Q30: 5856 | R30: 0
B31: Fungicides
C32: Quilt | D32: 10.5 | F32: Ounce | G32: 1.8 | I32: 18.9 | J32: 0 | K32: 0 | M32: 0 | N32: 0 | O32: 18.9 | P32: 0 | Q32: 2305.8 | R32: 0
B33: Other Labor
C34: Hand Labor | D34: 0.1167 | F34: Hour | G34: 8.5 | I34: 0.99195 | J34: 0 | K34: 0 | M34: 0 | N34: 0 | O34: 0.99195 | P34: 0 | Q34: 121.0179 | R34: 0
D35: 0 | G35: 0 | I35: 0 | J35: 0 | K35: 0 | M35: 0 | N35: 0 | O35: 0 | P35: 0 | Q35: 0 | R35: 0
D36: 0 | G36: 0 | I36: 0 | J36: 0 | K36: 0 | M36: 0 | N36: 0 | O36: 0 | P36: 0 | Q36: 0 | R36: 0
D37: 0 | G37: 0 | I37: 0 | J37: =E37*H37 -> 0 | K37: 0 | M37: 0 | N37: =J37*L37 -> 0 | O37: 0 | P37: =+J37-N37 -> 0 | Q37: 0 | R37: =+J37*E$7 -> 0
B38: Irrigation
C39: Energy Cost | D39: 390 | F39: kWh | G39: 0.17 | I39: 66.3 | J39: =E39*H39 -> 0 | K39: 0 | M39: 0 | N39: =J39*L39 -> 0 | O39: 66.3 | P39: =+J39-N39 -> 0 | Q39: 8088.6 | R39: =+J39*E$7 -> 0
C40: Irrigation Labor | D40: 0.024 | F40: Hour | G40: 11 | I40: 0.264 | J40: 0 | K40: 0 | M40: 0 | N40: 0 | O40: 0.264 | P40: 0 | Q40: 32.208 | R40: 0
B41: Machinery Labor
C42: Tractors/Self-Propelled | D42: 0.85 | F42: Hour | G42: 12 | I42: 10.2 | J42: =E42*H42 -> 0 | K42: 0 | M42: 0 | N42: =J42*L42 -> 0 | O42: 10.2 | P42: =+J42-N42 -> 0 | Q42: 1244.4 | R42: =+J42*E$7 -> 0
C43: Other Labor | D43: 0.28 | F43: Hour | G43: 8.5 | I43: 2.38 | J43: =E43*H43 -> 0 | K43: 0 | M43: 0 | N43: =J43*L43 -> 0 | O43: 2.38 | P43: =+J43-N43 -> 0 | Q43: 290.36 | R43: =+J43*E$7 -> 0
B45: Diesel Fuel
C46: Pickup/General Use Equipment | D46: 1 | F46: Acre | G46: 0 | I46: 0 | J46: =E46*H46 -> 0 | K46: 0 | M46: 0 | N46: =J46*L46 -> 0 | O46: 0 | P46: =+J46-N46 -> 0 | Q46: 0 | R46: =+J46*E$7 -> 0
C47: Tractors/Self-Propelled | D47: 7.95 | F47: Gallon | G47: 2.14 | I47: 17.013 | J47: =E47*H47 -> 0 | K47: 0 | M47: 0 | N47: =J47*L47 -> 0 | O47: 17.013 | P47: =+J47-N47 -> 0 | Q47: 2075.586 | R47: =+J47*E$7 -> 0
B49: Gasoline
C50: Pickup/General Use Equipment | D50: 1 | F50: Acre | G50: 23.12899622 | I50: 23.12899622 | J50: =E50*H50 -> 0 | K50: 0 | M50: 0 | N50: =J50*L50 -> 0 | O50: 23.12899622 | P50: =+J50-N50 -> 0 | Q50: 2821.737538 | R50: =+J50*E$7 -> 0
C51: Tractors/Self-Propelled | D51: 0 | F51: Gallon | G51: 2.39 | I51: 0 | J51: =E51*H51 -> 0 | K51: 0 | M51: 0 | N51: =J51*L51 -> 0 | O51: 0 | P51: =+J51-N51 -> 0 | Q51: 0 | R51: =+J51*E$7 -> 0
B53: Repairs & Maintenance
C54: Pickup/General Use Equipment | D54: 1 | F54: Acre | G54: 4.839108197 | I54: 4.839108197 | J54: =E54*H54 -> 0 | K54: 0 | M54: 0 | N54: =J54*L54 -> 0 | O54: 4.839108197 | P54: =+J54-N54 -> 0 | Q54: 590.3712 | R54: =+J54*E$7 -> 0
C55: Irrigation Equipment | D55: 1 | F55: Acre | G55: 4.056 | I55: 4.056 | J55: 0 | K55: 0 | M55: 0 | N55: 0 | O55: 4.056 | P55: 0 | Q55: 494.832 | R55: 0
C56: Tractors/Self-Propelled | D56: 1 | F56: Acre | G56: 25.36656184 | I56: 25.36656184 | J56: 0 | K56: 0 | M56: 0 | N56: 0 | O56: 25.36656184 | P56: 0 | Q56: 3094.720544 | R56: 0
C57: Implements | D57: 1 | F57: Acre | G57: 15.8653989 | I57: 15.8653989 | J57: 0 | K57: 0 | M57: 0 | N57: 0 | O57: 15.8653989 | P57: 0 | Q57: 1935.578666 | R57: 0
I58: 0 | J58: 0 | K58: 0 | M58: 0 | N58: 0 | O58: 0 | P58: 0 | Q58: 0 | R58: 0
I59: 0 | J59: 0 | K59: 0 | M59: 0 | N59: 0 | O59: 0 | P59: 0 | Q59: 0 | R59: 0
B60: Interest on Credit Line | G60: 0.065 | I60: 9.373860715 | J60: =+SUM(J17:J59)/2*H60 -> 0 | M60: 0 | N60: =+SUM(N17:N59)/2*L60 -> 0 | O60: 9.373860715 | P60: =+SUM(P17:P59)/2*L60 -> 0 | Q60: 1143.611007 | R60: =+J60*E$7 -> 0
A61: Total Variable Costs | I61: 349.0718759 | J61: =SUM(J18:J60) -> 0 | M61: 0 | N61: =SUM(N18:N60) -> 0 | O61: 349.0718759 | P61: =SUM(P18:P60) -> 0 | Q61: 42586.76886 | R61: =SUM(R18:R60) -> 0
A62: Planned Returns Above Variable Costs: | I62: 50.92812413 | J62: =+J13-J61 -> 0 | M62: 0 | N62: =+N13-N61 -> 0 | O62: 50.92812413 | P62: =+P13-P61 -> 0 | Q62: 6213.231144 | R62: =+R13-R61 -> 0
B63: Breakeven Price to Cover Variable Costs | G63: 181.8082687 | H63: =IF(E10=0,"n/a",(YVarExp-(YTotExp+YTotRet-J10))/E10) -> n/a | I63: Ton
Q64: Enterprise | R64: Enterprise
A65: FIXED COSTS | D65: Quantity | E65: Quantity | F65: Units | G65: $/Unit | H65: $/Unit | I65: Total | J65: Total | K65: Share | L65: Share | M65: Landlord | N65: Landlord | O65: Tenant | P65: Tenant | Q65: Total | R65: Total
B66: Machinery Depreciation
C67: Pickup/General Use Equipment | D67: 1 | F67: Acre | G67: 25.20368852 | I67: 25.20368852 | J67: =E67*H67 -> 0 | K67: 0 | M67: 0 | N67: =J67*L67 -> 0 | O67: 25.20368852 | P67: =+J67-N67 -> 0 | Q67: 3074.85 | R67: =+J67*E$7 -> 0
C68: Irrigation Equipment | D68: 1 | F68: Acre | G68: 34.74948087 | I68: 34.74948087 | J68: 0 | K68: 0 | M68: 0 | N68: =J68*L68 -> 0 | O68: 34.74948087 | P68: 0 | Q68: 4239.436667 | R68: 0
C69: Tractors/Self-Propelled | D69: 1 | F69: Acre | G69: 26.21984072 | I69: 26.21984072 | J69: 0 | K69: 0 | M69: 0 | N69: =J69*L69 -> 0 | O69: 26.21984072 | P69: 0 | Q69: 3198.820568 | R69: 0
C70: Implements | D70: 1 | F70: Acre | G70: 19.84587868 | I70: 19.84587868 | J70: 0 | K70: 0 | M70: 0 | N70: =J70*L70 -> 0 | O70: 19.84587868 | P70: 0 | Q70: 2421.197199 | R70: 0
B71: Equipment Investment
C72: Pickup/General Use Equipment | D72: 105.0153689 | F72: Dollars | G72: 0.065 | I72: 6.825998975 | J72: =E72*H72 -> 0 | K72: 0 | M72: 0 | N72: =J72*L72 -> 0 | O72: 6.825998975 | P72: =+J72-N72 -> 0 | Q72: 832.771875 | R72: =+J72*E$7 -> 0
C73: Irrigation Equipment | D73: 260.6211066 | F73: Dollars | G73: 0.065 | I73: 16.94037193 | J73: 0 | K73: 0 | M73: 0 | N73: =J73*L73 -> 0 | O73: 16.94037193 | P73: 0 | Q73: 2066.725375 | R73: 0
C74: Tractors/Self-Propelled | D74: 199.6703573 | F74: Dollars | G74: 0.065 | I74: 12.97857322 | J74: 0 | K74: 0 | M74: 0 | N74: =J74*L74 -> 0 | O74: 12.97857322 | P74: 0 | Q74: 1583.385933 | R74: 0
C75: Implements | D75: 93.77345551 | F75: Dollars | G75: 0.065 | I75: 6.095274608 | J75: 0 | K75: 0 | M75: 0 | N75: =J75*L75 -> 0 | O75: 6.095274608 | P75: 0 | Q75: 743.6235022 | R75: 0
B76: Salaried Labor | D76: 1 | F76: Acre | G76: 0 | I76: 0 | J76: 0 | K76: 0 | M76: 0 | N76: =J76*L76 -> 0 | O76: 0 | P76: =+J76-N76 -> 0 | Q76: 0 | R76: =+J76*E$7 -> 0
B77: Management Fee, Owner/Operator Labor | D77: 1 | F77: Acre | G77: 0 | I77: 0 | J77: 0 | K77: 0 | M77: 0 | N77: 0 | O77: 0 | P77: 0 | Q77: 0 | R77: 0
B78: Allocated Establishment Cost | D78: 1 | F78: Acre | G78: 0 | I78: 0 | J78: 0 | K78: 0 | M78: 0 | N78: 0 | O78: 0 | P78: 0 | Q78: 0 | R78: 0
B79: Irrigated Winter Garden Rent | D79: 1 | F79: Acre | G79: 50 | I79: 50 | J79: 0 | K79: 0 | M79: 0 | N79: 0 | O79: 50 | P79: 0 | Q79: 6100 | R79: 0
B80: Property Taxes | D80: 1 | F80: Acre | G80: 0 | I80: 0 | J80: 0 | K80: 0 | M80: 0 | N80: 0 | O80: 0 | P80: 0 | Q80: 0 | R80: 0
B81: Whole Farm Insurance | D81: 1 | F81: Acre | G81: 0 | I81: 0 | J81: 0 | K81: 0 | M81: 0 | N81: 0 | O81: 0 | P81: 0 | Q81: 0 | R81: 0
D82: 1 | G82: 0 | I82: 0 | J82: 0 | K82: 0 | M82: 0 | N82: 0 | O82: 0 | P82: 0 | Q82: 0 | R82: 0
D83: 1 | G83: 0 | I83: 0 | J83: =E83*H83 -> 0 | K83: 0 | M83: 0 | N83: 0 | O83: 0 | P83: 0 | Q83: 0 | R83: 0
A84: Total Fixed Costs | I84: 198.8591075 | J84: =+SUM(J67:J83) -> 0 | M84: 0 | N84: =+SUM(N67:N83) -> 0 | O84: 198.8591075 | P84: =+SUM(P67:P83) -> 0 | Q84: 24260.81112 | R84: =+SUM(R67:R83) -> 0
A85: Total Specified Costs | I85: 547.9309834 | J85: =+J61+J84 -> 0 | M85: 0 | N85: =+N61+N84 -> 0 | O85: 547.9309834 | P85: =+P61+P84 -> 0 | Q85: 66847.57997 | R85: =+R61+R84 -> 0
A87: Returns Above Specified Costs | I87: -147.9309834 | J87: =+J13-J85 -> 0 | M87: 0 | N87: =+N13-N85 -> 0 | O87: -147.9309834 | P87: =+P13-P85 -> 0 | Q87: -18047.57997 | R87: =+R13-R85 -> 0
A89: Breakeven Price to Cover Total Costs | G89: 285.3807205 | H89: =IF(E10=0,"n/a",(YTotExp-(YTotExp+YTotRet-J10))/E10) -> n/a | I89: Ton
D91: Example Breakeven Prices
B92: Example | C92: Example | D92: To Cover | G92: To Cover
B93: Yield | C93: Yield | D93: Variable | G93: Total
B94: Percent | C94: Ton | D94: Costs | G94: Costs
B95: 0.75 | C95: 1.44 | D95: 242.4110249 | G95: 380.5076274
B96: 0.9 | C96: 1.728 | D96: 202.0091874 | G96: 317.0896895
B97: 1 | C97: 1.92 | D97: 181.8082687 | G97: 285.3807205
B98: 1.1 | C98: 2.112 | D98: 165.2802443 | G98: 259.4370187
B99: 1.25 | C99: 2.4 | D99: 145.4466149 | G99: 228.3045764
D101: Your Breakeven Prices
B102: Your | C102: Your | E102: To Cover | H102: To Cover
B103: Yield | C103: Yield | E103: Variable | H103: Total
B104: Percent | C104: Ton | E104: Costs | H104: Costs
B105: 0.75 | C105: =E10*YPER1 -> 0 | E105: =IF($E$10=0,0,(YVarExp-(YTotExp+YTotRet-J10))/($E$10*YPER1)) -> 0 | H105: =IF($E$10=0,0,(YTotExp-(YTotExp+YTotRet-J10))/($E$10*YPER1)) -> 0
B106: 0.9 | C106: =E10*YPER2 -> 0 | E106: =IF($E$10=0,0,(YVarExp-(YTotExp+YTotRet-J10))/($E$10*YPER2)) -> 0 | H106: =IF($E$10=0,0,(YTotExp-(YTotExp+YTotRet-J10))/($E$10*YPER2)) -> 0
B107: 1 | C107: =+E10 -> 0 | E107: =IF($E$10=0,0,(YVarExp-(YTotExp+YTotRet-J10))/($E$10*YPER3)) -> 0 | H107: =IF($E$10=0,0,(YTotExp-(YTotExp+YTotRet-J10))/($E$10*YPER3)) -> 0
B108: 1.1 | C108: =E10*YPER4 -> 0 | E108: =IF($E$10=0,0,(YVarExp-(YTotExp+YTotRet-J10))/($E$10*YPER4)) -> 0 | H108: =IF($E$10=0,0,(YTotExp-(YTotExp+YTotRet-J10))/($E$10*YPER4)) -> 0
B109: 1.25 | C109: =E10*YPER5 -> 0 | E109: =IF($E$10=0,0,(YVarExp-(YTotExp+YTotRet-J10))/($E$10*YPER5)) -> 0 | H109: =IF($E$10=0,0,(YTotExp-(YTotExp+YTotRet-J10))/($E$10*YPER5)) -> 0
A111: Developed by Rob Hogan, Associate Professor and Extension Economist, Texas A&M AgriLife Extension, 830-278-9151.
A113: Information presented is prepared solely as a general guide and not intended to recognize or predict the costs and returns from any one operation. Brand names are mentioned only as examples and imply no endorsement.

Sheet Cabbage
A1: Projections for Planning Purposes Only -- Not to be Used without Updating
A2: 2018 Estimated Costs and Returns per Acre
A3: Irrigated Cabbage
A4: Enter your name for this budget in the cell above.
A5: Enter Your Values in the cells highlighed in MAROON.
E6: Your Acres | R6: Your
C7: Crop Acres | D7: 122 | L7: Your | Q7: Enterprise | R7: Enterprise
E8: Your | H8: Your | I8: Cash | J8: Your | K8: Landlord | L8: Landlord | N8: Your | P8: Your | Q8: Total | R8: Total
A9: REVENUE | D9: Quantity | E9: Quantity | F9: Units | G9: $/Unit | H9: $/Unit | I9: Total | J9: Total | K9: Share | L9: Share | M9: Landlord | N9: Landlord | O9: Tenant | P9: Tenant | Q9: (122 acres) | R9: ="(" & E7 & " acres)" -> ( acres)
B10: Cabbage | D10: 700 | F10: Bag | G10: 7.5 | I10: 5250 | J10: =E10*H10 -> 0 | K10: 0 | M10: 0 | N10: =J10*L10 -> 0 | O10: 5250 | P10: =+J10-N10 -> 0 | Q10: 640500 | R10: =+J10*E$7 -> 0
D11: 0 | G11: 0 | I11: 0 | J11: 0 | K11: 0 | M11: 0 | N11: 0 | O11: 0 | P11: =+J11-N11 -> 0 | Q11: 0 | R11: 0
D12: 0 | G12: 0 | I12: 0 | J12: 0 | K12: 0 | M12: 0 | N12: 0 | O12: 0 | P12: 0 | Q12: 0 | R12: 0
A13: Total Revenue | I13: 5250 | J13: =SUM(J10:J12) -> 0 | M13: 0 | N13: =SUM(N10:N12) -> 0 | O13: 5250 | P13: =SUM(P10:P12) -> 0 | Q13: 640500 | R13: =SUM(R10:R12) -> 0
Q14: Enterprise | R14: Enterprise
A15: VARIABLE COSTS | D15: Quantity | E15: Quantity | F15: Units | G15: $/Unit | H15: $/Unit | I15: Total | J15: Total | K15: Share | L15: Share | M15: Landlord | N15: Landlord | O15: Tenant | P15: Tenant | Q15: Total | R15: Total
A16: Production Costs
B17: Herbicide
C18: Dual Magnum | D18: 2 | F18: Pint | G18: 12.13 | I18: 24.26 | J18: =E18*H18 -> 0 | K18: 0 | M18: 0 | N18: =J18*L18 -> 0 | O18: 24.26 | P18: =+J18-N18 -> 0 | Q18: 2959.72 | R18: =+J18*E$7 -> 0
B19: Seed
C20: Cabbage Seed | D20: 1 | F20: Acre | G20: 150 | I20: 150 | J20: 0 | K20: 0 | M20: 0 | N20: 0 | O20: 150 | P20: 0 | Q20: 18300 | R20: 0
B21: Fertilizer
C22: UAN(32% N) | D22: 2.52 | F22: CWT | G22: 17 | I22: 42.84 | J22: 0 | K22: 0 | M22: 0 | N22: 0 | O22: 42.84 | P22: 0 | Q22: 5226.48 | R22: 0
C23: Fertilizer 18-46-0 | D23: 109 | F23: Pound | G23: 0.24 | I23: 26.16 | J23: 0 | K23: 0 | M23: 0 | N23: 0 | O23: 26.16 | P23: 0 | Q23: 3191.52 | R23: 0
C24: N-32 in Water | D24: 313 | F24: Pound | G24: 0.17 | I24: 53.21 | J24: 0 | K24: 0 | M24: 0 | N24: 0 | O24: 53.21 | P24: 0 | Q24: 6491.62 | R24: 0
B25: Custom
C26: Cabbage Custom Plant | D26: 1 | F26: Acre | G26: 30 | I26: 30 | J26: 0 | K26: 0 | M26: 0 | N26: 0 | O26: 30 | P26: 0 | Q26: 3660 | R26: 0
C27: Custom Harvest Cabbage | D27: 700 | F27: Bag | G27: 3 | I27: 2100 | J27: 0 | K27: 0 | M27: 0 | N27: 0 | O27: 2100 | P27: 0 | Q27: 256200 | R27: 0
B28: Miscellaneous
C29: Miscellaneous Cabbage Overhead | D29: 1 | F29: Acre | G29: 4 | I29: 4 | J29: 0 | K29: 0 | M29: 0 | N29: 0 | O29: 4 | P29: 0 | Q29: 488 | R29: 0
C30: Crop Insurance - Cabbage | D30: 1 | F30: Acre | G30: 134 | I30: 134 | J30: 0 | K30: 0 | M30: 0 | N30: 0 | O30: 134 | P30: 0 | Q30: 16348 | R30: 0
B31: Insecticide
C32: Lorsban 4E | D32: 5 | F32: Pint | G32: 5.03 | I32: 25.15 | J32: 0 | K32: 0 | M32: 0 | N32: 0 | O32: 25.15 | P32: 0 | Q32: 3068.3 | R32: 0
C33: Asana XL | D33: 32 | F33: Ounce | G33: 0.59 | I33: 18.88 | J33: 0 | K33: 0 | M33: 0 | N33: 0 | O33: 18.88 | P33: 0 | Q33: 2303.36 | R33: 0
B34: Other Labor
C35: Hand Labor | D35: 12.5 | F35: Hour | G35: 8.5 | I35: 106.25 | J35: 0 | K35: 0 | M35: 0 | N35: 0 | O35: 106.25 | P35: 0 | Q35: 12962.5 | R35: 0
B36: Fungicides
C37: Echo 720 | D37: 4.5 | F37: Pint | G37: 3.63 | I37: 16.335 | J37: 0 | K37: 0 | M37: 0 | N37: 0 | O37: 16.335 | P37: 0 | Q37: 1992.87 | R37: 0
D38: 0 | G38: 0 | I38: 0 | J38: 0 | K38: 0 | M38: 0 | N38: 0 | O38: 0 | P38: 0 | Q38: 0 | R38: 0
D39: 0 | G39: 0 | I39: 0 | J39: 0 | K39: 0 | M39: 0 | N39: 0 | O39: 0 | P39: 0 | Q39: 0 | R39: 0
D40: 0 | G40: 0 | I40: 0 | J40: =E40*H40 -> 0 | K40: 0 | M40: 0 | N40: =J40*L40 -> 0 | O40: 0 | P40: =+J40-N40 -> 0 | Q40: 0 | R40: =+J40*E$7 -> 0
B41: Irrigation
C42: Energy Cost | D42: 845 | F42: kWh | G42: 0.17 | I42: 143.65 | J42: =E42*H42 -> 0 | K42: 0 | M42: 0 | N42: =J42*L42 -> 0 | O42: 143.65 | P42: =+J42-N42 -> 0 | Q42: 17525.3 | R42: =+J42*E$7 -> 0
B43: Machinery Labor
C44: Tractors/Self-Propelled | D44: 1.5 | F44: Hour | G44: 12 | I44: 18 | J44: =E44*H44 -> 0 | K44: 0 | M44: 0 | N44: =J44*L44 -> 0 | O44: 18 | P44: =+J44-N44 -> 0 | Q44: 2196 | R44: =+J44*E$7 -> 0
C45: Other Labor | D45: 0.05 | F45: Hour | G45: 8.5 | I45: 0.425 | J45: =E45*H45 -> 0 | K45: 0 | M45: 0 | N45: =J45*L45 -> 0 | O45: 0.425 | P45: =+J45-N45 -> 0 | Q45: 51.85 | R45: =+J45*E$7 -> 0
B47: Diesel Fuel
C48: Pickup/General Use Equipment | D48: 1 | F48: Acre | G48: 0 | I48: 0 | J48: =E48*H48 -> 0 | K48: 0 | M48: 0 | N48: =J48*L48 -> 0 | O48: 0 | P48: =+J48-N48 -> 0 | Q48: 0 | R48: =+J48*E$7 -> 0
C49: Tractors/Self-Propelled | D49: 12.9 | F49: Gallon | G49: 2.14 | I49: 27.606 | J49: =E49*H49 -> 0 | K49: 0 | M49: 0 | N49: =J49*L49 -> 0 | O49: 27.606 | P49: =+J49-N49 -> 0 | Q49: 3367.932 | R49: =+J49*E$7 -> 0
B51: Gasoline
C52: Pickup/General Use Equipment | D52: 1 | F52: Acre | G52: 70.31106533 | I52: 70.31106533 | J52: =E52*H52 -> 0 | K52: 0 | M52: 0 | N52: =J52*L52 -> 0 | O52: 70.31106533 | P52: =+J52-N52 -> 0 | Q52: 8577.94997 | R52: =+J52*E$7 -> 0
C53: Tractors/Self-Propelled | D53: 0 | F53: Gallon | G53: 2.39 | I53: 0 | J53: =E53*H53 -> 0 | K53: 0 | M53: 0 | N53: =J53*L53 -> 0 | O53: 0 | P53: =+J53-N53 -> 0 | Q53: 0 | R53: =+J53*E$7 -> 0
B55: Repairs & Maintenance
C56: Pickup/General Use Equipment | D56: 1 | F56: Acre | G56: 14.7106623 | I56: 14.7106623 | J56: =E56*H56 -> 0 | K56: 0 | M56: 0 | N56: =J56*L56 -> 0 | O56: 14.7106623 | P56: =+J56-N56 -> 0 | Q56: 1794.7008 | R56: =+J56*E$7 -> 0
C57: Irrigation Equipment | D57: 1 | F57: Acre | G57: 14.12420437 | I57: 14.12420437 | J57: 0 | K57: 0 | M57: 0 | N57: 0 | O57: 14.12420437 | P57: 0 | Q57: 1723.152933 | R57: 0
C58: Tractors/Self-Propelled | D58: 1 | F58: Acre | G58: 27.54778684 | I58: 27.54778684 | J58: 0 | K58: 0 | M58: 0 | N58: 0 | O58: 27.54778684 | P58: 0 | Q58: 3360.829994 | R58: 0
C59: Implements | D59: 1 | F59: Acre | G59: 19.84793892 | I59: 19.84793892 | J59: 0 | K59: 0 | M59: 0 | N59: 0 | O59: 19.84793892 | P59: 0 | Q59: 2421.448548 | R59: 0
I60: 0 | J60: 0 | K60: 0 | M60: 0 | N60: 0 | O60: 0 | P60: 0 | Q60: 0 | R60: 0
I61: 0 | J61: 0 | K61: 0 | M61: 0 | N61: 0 | O61: 0 | P61: 0 | Q61: 0 | R61: 0
B62: Interest on Credit Line | G62: 0.065 | I62: 14.4379046 | J62: =+SUM(J17:J61)/2*H62 -> 0 | M62: 0 | N62: =+SUM(N17:N61)/2*L62 -> 0 | O62: 14.4379046 | P62: =+SUM(P17:P61)/2*L62 -> 0 | Q62: 1761.424361 | R62: =+J62*E$7 -> 0
A63: Total Variable Costs | I63: 3081.745562 | J63: =SUM(J18:J62) -> 0 | M63: 0 | N63: =SUM(N18:N62) -> 0 | O63: 3081.745562 | P63: =SUM(P18:P62) -> 0 | Q63: 375972.9586 | R63: =SUM(R18:R62) -> 0
A64: Planned Returns Above Variable Costs: | I64: 2168.254438 | J64: =+J13-J63 -> 0 | M64: 0 | N64: =+N13-N63 -> 0 | O64: 2168.254438 | P64: =+P13-P63 -> 0 | Q64: 264527.0414 | R64: =+R13-R63 -> 0
B65: Breakeven Price to Cover Variable Costs | G65: 4.402493661 | H65: =IF(E10=0,"n/a",(YVarExp-(YTotExp+YTotRet-J10))/E10) -> n/a | I65: Bag
Q66: Enterprise | R66: Enterprise
A67: FIXED COSTS | D67: Quantity | E67: Quantity | F67: Units | G67: $/Unit | H67: $/Unit | I67: Total | J67: Total | K67: Share | L67: Share | M67: Landlord | N67: Landlord | O67: Tenant | P67: Tenant | Q67: Total | R67: Total
B68: Machinery Depreciation
C69: Pickup/General Use Equipment | D69: 1 | F69: Acre | G69: 76.61803279 | I69: 76.61803279 | J69: =E69*H69 -> 0 | K69: 0 | M69: 0 | N69: =J69*L69 -> 0 | O69: 76.61803279 | P69: =+J69-N69 -> 0 | Q69: 9347.4 | R69: =+J69*E$7 -> 0
C70: Irrigation Equipment | D70: 1 | F70: Acre | G70: 55.60710383 | I70: 55.60710383 | J70: 0 | K70: 0 | M70: 0 | N70: =J70*L70 -> 0 | O70: 55.60710383 | P70: 0 | Q70: 6784.066667 | R70: 0
C71: Tractors/Self-Propelled | D71: 1 | F71: Acre | G71: 33.18550916 | I71: 33.18550916 | J71: 0 | K71: 0 | M71: 0 | N71: =J71*L71 -> 0 | O71: 33.18550916 | P71: 0 | Q71: 4048.632118 | R71: 0
C72: Implements | D72: 1 | F72: Acre | G72: 23.24663887 | I72: 23.24663887 | J72: 0 | K72: 0 | M72: 0 | N72: =J72*L72 -> 0 | O72: 23.24663887 | P72: 0 | Q72: 2836.089942 | R72: 0
B73: Equipment Investment
C74: Pickup/General Use Equipment | D74: 319.2418033 | F74: Dollars | G74: 0.065 | I74: 20.75071721 | J74: =E74*H74 -> 0 | K74: 0 | M74: 0 | N74: =J74*L74 -> 0 | O74: 20.75071721 | P74: =+J74-N74 -> 0 | Q74: 2531.5875 | R74: =+J74*E$7 -> 0
C75: Irrigation Equipment | D75: 417.0532787 | F75: Dollars | G75: 0.065 | I75: 27.10846311 | J75: 0 | K75: 0 | M75: 0 | N75: =J75*L75 -> 0 | O75: 27.10846311 | P75: 0 | Q75: 3307.2325 | R75: 0
C76: Tractors/Self-Propelled | D76: 256.3123731 | F76: Dollars | G76: 0.065 | I76: 16.66030425 | J76: 0 | K76: 0 | M76: 0 | N76: =J76*L76 -> 0 | O76: 16.66030425 | P76: 0 | Q76: 2032.557119 | R76: 0
C77: Implements | D77: 113.1272781 | F77: Dollars | G77: 0.065 | I77: 7.353273074 | J77: 0 | K77: 0 | M77: 0 | N77: =J77*L77 -> 0 | O77: 7.353273074 | P77: 0 | Q77: 897.099315 | R77: 0
B78: Salaried Labor | D78: 1 | F78: Acre | G78: 0 | I78: 0 | J78: 0 | K78: 0 | M78: 0 | N78: =J78*L78 -> 0 | O78: 0 | P78: =+J78-N78 -> 0 | Q78: 0 | R78: =+J78*E$7 -> 0
B79: Management Fee, Owner/Operator Labor | D79: 1 | F79: Acre | G79: 0 | I79: 0 | J79: 0 | K79: 0 | M79: 0 | N79: 0 | O79: 0 | P79: 0 | Q79: 0 | R79: 0
B80: Allocated Establishment Cost | D80: 1 | F80: Acre | G80: 0 | I80: 0 | J80: 0 | K80: 0 | M80: 0 | N80: 0 | O80: 0 | P80: 0 | Q80: 0 | R80: 0
B81: Irrigated Winter Garden Rent | D81: 1 | F81: Acre | G81: 50 | I81: 50 | J81: 0 | K81: 0 | M81: 0 | N81: 0 | O81: 50 | P81: 0 | Q81: 6100 | R81: 0
B82: Property Taxes | D82: 1 | F82: Acre | G82: 0 | I82: 0 | J82: 0 | K82: 0 | M82: 0 | N82: 0 | O82: 0 | P82: 0 | Q82: 0 | R82: 0
B83: Whole Farm Insurance | D83: 1 | F83: Acre | G83: 0 | I83: 0 | J83: 0 | K83: 0 | M83: 0 | N83: 0 | O83: 0 | P83: 0 | Q83: 0 | R83: 0
D84: 1 | G84: 0 | I84: 0 | J84: 0 | K84: 0 | M84: 0 | N84: 0 | O84: 0 | P84: 0 | Q84: 0 | R84: 0
D85: 1 | G85: 0 | I85: 0 | J85: =E85*H85 -> 0 | K85: 0 | M85: 0 | N85: 0 | O85: 0 | P85: 0 | Q85: 0 | R85: 0
A86: Total Fixed Costs | I86: 310.5300423 | J86: =+SUM(J69:J85) -> 0 | M86: 0 | N86: =+SUM(N69:N85) -> 0 | O86: 310.5300423 | P86: =+SUM(P69:P85) -> 0 | Q86: 37884.66516 | R86: =+SUM(R69:R85) -> 0
A87: Total Specified Costs | I87: 3392.275605 | J87: =+J63+J86 -> 0 | M87: 0 | N87: =+N63+N86 -> 0 | O87: 3392.275605 | P87: =+P63+P86 -> 0 | Q87: 413857.6238 | R87: =+R63+R86 -> 0
A89: Returns Above Specified Costs | I89: 1857.724395 | J89: =+J13-J87 -> 0 | M89: 0 | N89: =+N13-N87 -> 0 | O89: 1857.724395 | P89: =+P13-P87 -> 0 | Q89: 226642.3762 | R89: =+R13-R87 -> 0
A91: Breakeven Price to Cover Total Costs | G91: 4.846108007 | H91: =IF(E10=0,"n/a",(YTotExp-(YTotExp+YTotRet-J10))/E10) -> n/a | I91: Bag
D93: Example Breakeven Prices
B94: Example | C94: Example | D94: To Cover | G94: To Cover
B95: Yield | C95: Yield | D95: Variable | G95: Total
B96: Percent | C96: Bag | D96: Costs | G96: Costs
B97: 0.75 | C97: 525 | D97: 5.869991547 | G97: 6.461477342
B98: 0.9 | C98: 630 | D98: 4.891659623 | G98: 5.384564452
B99: 1 | C99: 700 | D99: 4.402493661 | G99: 4.846108007
B100: 1.1 | C100: 770 | D100: 4.002266964 | G100: 4.405552733
B101: 1.25 | C101: 875 | D101: 3.521994928 | G101: 3.876886405
D103: Your Breakeven Prices
B104: Your | C104: Your | E104: To Cover | H104: To Cover
B105: Yield | C105: Yield | E105: Variable | H105: Total
B106: Percent | C106: Bag | E106: Costs | H106: Costs
B107: 0.75 | C107: =E10*YPER1 -> 0 | E107: =IF($E$10=0,0,(YVarExp-(YTotExp+YTotRet-J10))/($E$10*YPER1)) -> 0 | H107: =IF($E$10=0,0,(YTotExp-(YTotExp+YTotRet-J10))/($E$10*YPER1)) -> 0
B108: 0.9 | C108: =E10*YPER2 -> 0 | E108: =IF($E$10=0,0,(YVarExp-(YTotExp+YTotRet-J10))/($E$10*YPER2)) -> 0 | H108: =IF($E$10=0,0,(YTotExp-(YTotExp+YTotRet-J10))/($E$10*YPER2)) -> 0
B109: 1 | C109: =+E10 -> 0 | E109: =IF($E$10=0,0,(YVarExp-(YTotExp+YTotRet-J10))/($E$10*YPER3)) -> 0 | H109: =IF($E$10=0,0,(YTotExp-(YTotExp+YTotRet-J10))/($E$10*YPER3)) -> 0
B110: 1.1 | C110: =E10*YPER4 -> 0 | E110: =IF($E$10=0,0,(YVarExp-(YTotExp+YTotRet-J10))/($E$10*YPER4)) -> 0 | H110: =IF($E$10=0,0,(YTotExp-(YTotExp+YTotRet-J10))/($E$10*YPER4)) -> 0
B111: 1.25 | C111: =E10*YPER5 -> 0 | E111: =IF($E$10=0,0,(YVarExp-(YTotExp+YTotRet-J10))/($E$10*YPER5)) -> 0 | H111: =IF($E$10=0,0,(YTotExp-(YTotExp+YTotRet-J10))/($E$10*YPER5)) -> 0
A113: Developed by Rob Hogan, Associate Professor and Extension Economist, Texas A&M AgriLife Extension, 830-278-9151.
A115: Information presented is prepared solely as a general guide and not intended to recognize or predict the costs and returns from any one operation. Brand names are mentioned only as examples and imply no endorsement.

Sheet Cucumbers
A1: Projections for Planning Purposes Only -- Not to be Used without Updating
A2: 2018 Estimated Costs and Returns per Acre
A3: Irrigated Pickling Cucumbers
A4: Enter your name for this budget in the cell above.
A5: Enter Your Values in the cells highlighed in MAROON.
E6: Your Acres | R6: Your
C7: Crop Acres | D7: 122 | L7: Your | Q7: Enterprise | R7: Enterprise
E8: Your | H8: Your | I8: Cash | J8: Your | K8: Landlord | L8: Landlord | N8: Your | P8: Your | Q8: Total | R8: Total
A9: REVENUE | D9: Quantity | E9: Quantity | F9: Units | G9: $/Unit | H9: $/Unit | I9: Total | J9: Total | K9: Share | L9: Share | M9: Landlord | N9: Landlord | O9: Tenant | P9: Tenant | Q9: (122 acres) | R9: ="(" & E7 & " acres)" -> ( acres)
B10: Cucumbers (Pickles) | D10: 150 | F10: CWT | G10: 6.5 | I10: 975 | J10: =E10*H10 -> 0 | K10: 0 | M10: 0 | N10: =J10*L10 -> 0 | O10: 975 | P10: =+J10-N10 -> 0 | Q10: 118950 | R10: =+J10*E$7 -> 0
D11: 0 | G11: 0 | I11: 0 | J11: 0 | K11: 0 | M11: 0 | N11: 0 | O11: 0 | P11: =+J11-N11 -> 0 | Q11: 0 | R11: 0
D12: 0 | G12: 0 | I12: 0 | J12: 0 | K12: 0 | M12: 0 | N12: 0 | O12: 0 | P12: 0 | Q12: 0 | R12: 0
A13: Total Revenue | I13: 975 | J13: =SUM(J10:J12) -> 0 | M13: 0 | N13: =SUM(N10:N12) -> 0 | O13: 975 | P13: =SUM(P10:P12) -> 0 | Q13: 118950 | R13: =SUM(R10:R12) -> 0
Q14: Enterprise | R14: Enterprise
A15: VARIABLE COSTS | D15: Quantity | E15: Quantity | F15: Units | G15: $/Unit | H15: $/Unit | I15: Total | J15: Total | K15: Share | L15: Share | M15: Landlord | N15: Landlord | O15: Tenant | P15: Tenant | Q15: Total | R15: Total
A16: Production Costs
B17: Herbicide
C18: Prefar | D18: 6 | F18: Quart | G18: 18.75 | I18: 112.5 | J18: =E18*H18 -> 0 | K18: 0 | M18: 0 | N18: =J18*L18 -> 0 | O18: 112.5 | P18: =+J18-N18 -> 0 | Q18: 13725 | R18: =+J18*E$7 -> 0
B19: Seed
C20: Cucumber Seed | D20: 10 | F20: Pound | G20: 11 | I20: 110 | J20: 0 | K20: 0 | M20: 0 | N20: 0 | O20: 110 | P20: 0 | Q20: 13420 | R20: 0
B21: Fertilizer
C22: UAN(32% N) | D22: 1.52 | F22: CWT | G22: 17 | I22: 25.84 | J22: 0 | K22: 0 | M22: 0 | N22: 0 | O22: 25.84 | P22: 0 | Q22: 3152.48 | R22: 0
C23: Fertilizer 18-46-0 | D23: 174 | F23: Pound | G23: 0.24 | I23: 41.76 | J23: 0 | K23: 0 | M23: 0 | N23: 0 | O23: 41.76 | P23: 0 | Q23: 5094.72 | R23: 0
B24: Custom
C25: Custom Haul/Pack Cucumbers | D25: 150 | F25: CWT | G25: 0.43 | I25: 64.5 | J25: 0 | K25: 0 | M25: 0 | N25: 0 | O25: 64.5 | P25: 0 | Q25: 7869 | R25: 0
B26: Miscellaneous
C27: Miscellaneous Cucumber Overhead | D27: 1 | F27: Acre | G27: 4 | I27: 4 | J27: 0 | K27: 0 | M27: 0 | N27: 0 | O27: 4 | P27: 0 | Q27: 488 | R27: 0
C28: Crop Insurance - Cucumbers | D28: 1 | F28: Acre | G28: 5 | I28: 5 | J28: 0 | K28: 0 | M28: 0 | N28: 0 | O28: 5 | P28: 0 | Q28: 610 | R28: 0
B29: Insecticide
C30: Admire | D30: 8.5 | F30: Ounce | G30: 2.55 | I30: 21.675 | J30: 0 | K30: 0 | M30: 0 | N30: 0 | O30: 21.675 | P30: 0 | Q30: 2644.35 | R30: 0
C31: Asana XL | D31: 8 | F31: Ounce | G31: 0.59 | I31: 4.72 | J31: 0 | K31: 0 | M31: 0 | N31: 0 | O31: 4.72 | P31: 0 | Q31: 575.84 | R31: 0
B32: Fungicides
C33: Echo 720 | D33: 4.5 | F33: Pint | G33: 3.63 | I33: 16.335 | J33: 0 | K33: 0 | M33: 0 | N33: 0 | O33: 16.335 | P33: 0 | Q33: 1992.87 | R33: 0
D34: 0 | G34: 0 | I34: 0 | J34: 0 | K34: 0 | M34: 0 | N34: 0 | O34: 0 | P34: 0 | Q34: 0 | R34: 0
D35: 0 | G35: 0 | I35: 0 | J35: 0 | K35: 0 | M35: 0 | N35: 0 | O35: 0 | P35: 0 | Q35: 0 | R35: 0
D36: 0 | G36: 0 | I36: 0 | J36: =E36*H36 -> 0 | K36: 0 | M36: 0 | N36: =J36*L36 -> 0 | O36: 0 | P36: =+J36-N36 -> 0 | Q36: 0 | R36: =+J36*E$7 -> 0
B37: Irrigation
C38: Energy Cost | D38: 390 | F38: kWh | G38: 0.17 | I38: 66.3 | J38: =E38*H38 -> 0 | K38: 0 | M38: 0 | N38: =J38*L38 -> 0 | O38: 66.3 | P38: =+J38-N38 -> 0 | Q38: 8088.6 | R38: =+J38*E$7 -> 0
B39: Machinery Labor
C40: Tractors/Self-Propelled | D40: 1.34 | F40: Hour | G40: 12 | I40: 16.08 | J40: =E40*H40 -> 0 | K40: 0 | M40: 0 | N40: =J40*L40 -> 0 | O40: 16.08 | P40: =+J40-N40 -> 0 | Q40: 1961.76 | R40: =+J40*E$7 -> 0
C41: Other Labor | D41: 0.05 | F41: Hour | G41: 8.5 | I41: 0.425 | J41: =E41*H41 -> 0 | K41: 0 | M41: 0 | N41: =J41*L41 -> 0 | O41: 0.425 | P41: =+J41-N41 -> 0 | Q41: 51.85 | R41: =+J41*E$7 -> 0
B43: Diesel Fuel
C44: Pickup/General Use Equipment | D44: 1 | F44: Acre | G44: 0 | I44: 0 | J44: =E44*H44 -> 0 | K44: 0 | M44: 0 | N44: =J44*L44 -> 0 | O44: 0 | P44: =+J44-N44 -> 0 | Q44: 0 | R44: =+J44*E$7 -> 0
C45: Tractors/Self-Propelled | D45: 11.3 | F45: Gallon | G45: 2.14 | I45: 24.182 | J45: =E45*H45 -> 0 | K45: 0 | M45: 0 | N45: =J45*L45 -> 0 | O45: 24.182 | P45: =+J45-N45 -> 0 | Q45: 2950.204 | R45: =+J45*E$7 -> 0
B47: Gasoline
C48: Pickup/General Use Equipment | D48: 1 | F48: Acre | G48: 37.78559707 | I48: 37.78559707 | J48: =E48*H48 -> 0 | K48: 0 | M48: 0 | N48: =J48*L48 -> 0 | O48: 37.78559707 | P48: =+J48-N48 -> 0 | Q48: 4609.842842 | R48: =+J48*E$7 -> 0
C49: Tractors/Self-Propelled | D49: 0 | F49: Gallon | G49: 2.39 | I49: 0 | J49: =E49*H49 -> 0 | K49: 0 | M49: 0 | N49: =J49*L49 -> 0 | O49: 0 | P49: =+J49-N49 -> 0 | Q49: 0 | R49: =+J49*E$7 -> 0
B51: Repairs & Maintenance
C52: Pickup/General Use Equipment | D52: 1 | F52: Acre | G52: 7.9056 | I52: 7.9056 | J52: =E52*H52 -> 0 | K52: 0 | M52: 0 | N52: =J52*L52 -> 0 | O52: 7.9056 | P52: =+J52-N52 -> 0 | Q52: 964.4832 | R52: =+J52*E$7 -> 0
C53: Irrigation Equipment | D53: 1 | F53: Acre | G53: 4.056 | I53: 4.056 | J53: 0 | K53: 0 | M53: 0 | N53: 0 | O53: 4.056 | P53: 0 | Q53: 494.832 | R53: 0
C54: Tractors/Self-Propelled | D54: 1 | F54: Acre | G54: 25.65891794 | I54: 25.65891794 | J54: 0 | K54: 0 | M54: 0 | N54: 0 | O54: 25.65891794 | P54: 0 | Q54: 3130.387989 | R54: 0
C55: Implements | D55: 1 | F55: Acre | G55: 20.48294397 | I55: 20.48294397 | J55: 0 | K55: 0 | M55: 0 | N55: 0 | O55: 20.48294397 | P55: 0 | Q55: 2498.919165 | R55: 0
I56: 0 | J56: 0 | K56: 0 | M56: 0 | N56: 0 | O56: 0 | P56: 0 | Q56: 0 | R56: 0
I57: 0 | J57: 0 | K57: 0 | M57: 0 | N57: 0 | O57: 0 | P57: 0 | Q57: 0 | R57: 0
B58: Interest on Credit Line | G58: 0.065 | I58: 7.148166551 | J58: =+SUM(J17:J57)/2*H58 -> 0 | M58: 0 | N58: =+SUM(N17:N57)/2*L58 -> 0 | O58: 7.148166551 | P58: =+SUM(P17:P57)/2*L58 -> 0 | Q58: 872.0763192 | R58: =+J58*E$7 -> 0
A59: Total Variable Costs | I59: 616.3542255 | J59: =SUM(J18:J58) -> 0 | M59: 0 | N59: =SUM(N18:N58) -> 0 | O59: 616.3542255 | P59: =SUM(P18:P58) -> 0 | Q59: 75195.21551 | R59: =SUM(R18:R58) -> 0
A60: Planned Returns Above Variable Costs: | I60: 358.6457745 | J60: =+J13-J59 -> 0 | M60: 0 | N60: =+N13-N59 -> 0 | O60: 358.6457745 | P60: =+P13-P59 -> 0 | Q60: 43754.78449 | R60: =+R13-R59 -> 0
B61: Breakeven Price to Cover Variable Costs | G61: 4.10902817 | H61: =IF(E10=0,"n/a",(YVarExp-(YTotExp+YTotRet-J10))/E10) -> n/a | I61: CWT
Q62: Enterprise | R62: Enterprise
A63: FIXED COSTS | D63: Quantity | E63: Quantity | F63: Units | G63: $/Unit | H63: $/Unit | I63: Total | J63: Total | K63: Share | L63: Share | M63: Landlord | N63: Landlord | O63: Tenant | P63: Tenant | Q63: Total | R63: Total
B64: Machinery Depreciation
C65: Pickup/General Use Equipment | D65: 1 | F65: Acre | G65: 41.175 | I65: 41.175 | J65: =E65*H65 -> 0 | K65: 0 | M65: 0 | N65: =J65*L65 -> 0 | O65: 41.175 | P65: =+J65-N65 -> 0 | Q65: 5023.35 | R65: =+J65*E$7 -> 0
C66: Irrigation Equipment | D66: 1 | F66: Acre | G66: 55.60710383 | I66: 55.60710383 | J66: 0 | K66: 0 | M66: 0 | N66: =J66*L66 -> 0 | O66: 55.60710383 | P66: 0 | Q66: 6784.066667 | R66: 0
C67: Tractors/Self-Propelled | D67: 1 | F67: Acre | G67: 27.42259938 | I67: 27.42259938 | J67: 0 | K67: 0 | M67: 0 | N67: =J67*L67 -> 0 | O67: 27.42259938 | P67: 0 | Q67: 3345.557125 | R67: 0
C68: Implements | D68: 1 | F68: Acre | G68: 24.32425699 | I68: 24.32425699 | J68: 0 | K68: 0 | M68: 0 | N68: =J68*L68 -> 0 | O68: 24.32425699 | P68: 0 | Q68: 2967.559353 | R68: 0
B69: Equipment Investment
C70: Pickup/General Use Equipment | D70: 171.5625 | F70: Dollars | G70: 0.065 | I70: 11.1515625 | J70: =E70*H70 -> 0 | K70: 0 | M70: 0 | N70: =J70*L70 -> 0 | O70: 11.1515625 | P70: =+J70-N70 -> 0 | Q70: 1360.490625 | R70: =+J70*E$7 -> 0
C71: Irrigation Equipment | D71: 417.0532787 | F71: Dollars | G71: 0.065 | I71: 27.10846311 | J71: 0 | K71: 0 | M71: 0 | N71: =J71*L71 -> 0 | O71: 27.10846311 | P71: 0 | Q71: 3307.2325 | R71: 0
C72: Tractors/Self-Propelled | D72: 213.1882055 | F72: Dollars | G72: 0.065 | I72: 13.85723336 | J72: 0 | K72: 0 | M72: 0 | N72: =J72*L72 -> 0 | O72: 13.85723336 | P72: 0 | Q72: 1690.58247 | R72: 0
C73: Implements | D73: 107.4039771 | F73: Dollars | G73: 0.065 | I73: 6.981258509 | J73: 0 | K73: 0 | M73: 0 | N73: =J73*L73 -> 0 | O73: 6.981258509 | P73: 0 | Q73: 851.7135381 | R73: 0
B74: Salaried Labor | D74: 1 | F74: Acre | G74: 0 | I74: 0 | J74: 0 | K74: 0 | M74: 0 | N74: =J74*L74 -> 0 | O74: 0 | P74: =+J74-N74 -> 0 | Q74: 0 | R74: =+J74*E$7 -> 0
B75: Management Fee, Owner/Operator Labor | D75: 1 | F75: Acre | G75: 0 | I75: 0 | J75: 0 | K75: 0 | M75: 0 | N75: 0 | O75: 0 | P75: 0 | Q75: 0 | R75: 0
B76: Allocated Establishment Cost | D76: 1 | F76: Acre | G76: 0 | I76: 0 | J76: 0 | K76: 0 | M76: 0 | N76: 0 | O76: 0 | P76: 0 | Q76: 0 | R76: 0
B77: Irrigated Winter Garden Rent | D77: 1 | F77: Acre | G77: 50 | I77: 50 | J77: 0 | K77: 0 | M77: 0 | N77: 0 | O77: 50 | P77: 0 | Q77: 6100 | R77: 0
B78: Property Taxes | D78: 1 | F78: Acre | G78: 0 | I78: 0 | J78: 0 | K78: 0 | M78: 0 | N78: 0 | O78: 0 | P78: 0 | Q78: 0 | R78: 0
B79: Whole Farm Insurance | D79: 1 | F79: Acre | G79: 0 | I79: 0 | J79: 0 | K79: 0 | M79: 0 | N79: 0 | O79: 0 | P79: 0 | Q79: 0 | R79: 0
D80: 1 | G80: 0 | I80: 0 | J80: 0 | K80: 0 | M80: 0 | N80: 0 | O80: 0 | P80: 0 | Q80: 0 | R80: 0
D81: 1 | G81: 0 | I81: 0 | J81: =E81*H81 -> 0 | K81: 0 | M81: 0 | N81: 0 | O81: 0 | P81: 0 | Q81: 0 | R81: 0
A82: Total Fixed Costs | I82: 257.6274777 | J82: =+SUM(J65:J81) -> 0 | M82: 0 | N82: =+SUM(N65:N81) -> 0 | O82: 257.6274777 | P82: =+SUM(P65:P81) -> 0 | Q82: 31430.55228 | R82: =+SUM(R65:R81) -> 0
A83: Total Specified Costs | I83: 873.9817032 | J83: =+J59+J82 -> 0 | M83: 0 | N83: =+N59+N82 -> 0 | O83: 873.9817032 | P83: =+P59+P82 -> 0 | Q83: 106625.7678 | R83: =+R59+R82 -> 0
A85: Returns Above Specified Costs | I85: 101.0182968 | J85: =+J13-J83 -> 0 | M85: 0 | N85: =+N13-N83 -> 0 | O85: 101.0182968 | P85: =+P13-P83 -> 0 | Q85: 12324.23221 | R85: =+R13-R83 -> 0
A87: Breakeven Price to Cover Total Costs | G87: 5.826544688 | H87: =IF(E10=0,"n/a",(YTotExp-(YTotExp+YTotRet-J10))/E10) -> n/a | I87: CWT
D89: Example Breakeven Prices
B90: Example | C90: Example | D90: To Cover | G90: To Cover
B91: Yield | C91: Yield | D91: Variable | G91: Total
B92: Percent | C92: CWT | D92: Costs | G92: Costs
B93: 0.75 | C93: 112.5 | D93: 5.478704227 | G93: 7.768726251
B94: 0.9 | C94: 135 | D94: 4.565586856 | G94: 6.473938542
B95: 1 | C95: 150 | D95: 4.10902817 | G95: 5.826544688
B96: 1.1 | C96: 165 | D96: 3.735480155 | G96: 5.296858807
B97: 1.25 | C97: 187.5 | D97: 3.287222536 | G97: 4.66123575
D99: Your Breakeven Prices
B100: Your | C100: Your | E100: To Cover | H100: To Cover
B101: Yield | C101: Yield | E101: Variable | H101: Total
B102: Percent | C102: CWT | E102: Costs | H102: Costs
B103: 0.75 | C103: =E10*YPER1 -> 0 | E103: =IF($E$10=0,0,(YVarExp-(YTotExp+YTotRet-J10))/($E$10*YPER1)) -> 0 | H103: =IF($E$10=0,0,(YTotExp-(YTotExp+YTotRet-J10))/($E$10*YPER1)) -> 0
B104: 0.9 | C104: =E10*YPER2 -> 0 | E104: =IF($E$10=0,0,(YVarExp-(YTotExp+YTotRet-J10))/($E$10*YPER2)) -> 0 | H104: =IF($E$10=0,0,(YTotExp-(YTotExp+YTotRet-J10))/($E$10*YPER2)) -> 0
B105: 1 | C105: =+E10 -> 0 | E105: =IF($E$10=0,0,(YVarExp-(YTotExp+YTotRet-J10))/($E$10*YPER3)) -> 0 | H105: =IF($E$10=0,0,(YTotExp-(YTotExp+YTotRet-J10))/($E$10*YPER3)) -> 0
B106: 1.1 | C106: =E10*YPER4 -> 0 | E106: =IF($E$10=0,0,(YVarExp-(YTotExp+YTotRet-J10))/($E$10*YPER4)) -> 0 | H106: =IF($E$10=0,0,(YTotExp-(YTotExp+YTotRet-J10))/($E$10*YPER4)) -> 0
B107: 1.25 | C107: =E10*YPER5 -> 0 | E107: =IF($E$10=0,0,(YVarExp-(YTotExp+YTotRet-J10))/($E$10*YPER5)) -> 0 | H107: =IF($E$10=0,0,(YTotExp-(YTotExp+YTotRet-J10))/($E$10*YPER5)) -> 0
A109: Developed by Rob Hogan, Associate Professor and Extension Economist, Texas A&M AgriLife Extension, 830-278-9151.
A111: Information presented is prepared solely as a general guide and not intended to recognize or predict the costs and returns from any one operation. Brand names are mentioned only as examples and imply no endorsement.

Sheet Onions
A1: Projections for Planning Purposes Only -- Not to be Used without Updating
A2: 2018 Estimated Costs and Returns per Acre
A3: Irrigated Onions
A4: Enter your name for this budget in the cell above.
A5: Enter Your Values in the cells highlighed in MAROON.
E6: Your Acres | R6: Your
C7: Crop Acres | D7: 122 | L7: Your | Q7: Enterprise | R7: Enterprise
E8: Your | H8: Your | I8: Cash | J8: Your | K8: Landlord | L8: Landlord | N8: Your | P8: Your | Q8: Total | R8: Total
A9: REVENUE | D9: Quantity | E9: Quantity | F9: Units | G9: $/Unit | H9: $/Unit | I9: Total | J9: Total | K9: Share | L9: Share | M9: Landlord | N9: Landlord | O9: Tenant | P9: Tenant | Q9: (122 acres) | R9: ="(" & E7 & " acres)" -> ( acres)
B10: Onions | D10: 700 | F10: Bags | G10: 9 | I10: 6300 | J10: =E10*H10 -> 0 | K10: 0 | M10: 0 | N10: =J10*L10 -> 0 | O10: 6300 | P10: =+J10-N10 -> 0 | Q10: 768600 | R10: =+J10*E$7 -> 0
D11: 0 | G11: 0 | I11: 0 | J11: 0 | K11: 0 | M11: 0 | N11: 0 | O11: 0 | P11: =+J11-N11 -> 0 | Q11: 0 | R11: 0
D12: 0 | G12: 0 | I12: 0 | J12: 0 | K12: 0 | M12: 0 | N12: 0 | O12: 0 | P12: 0 | Q12: 0 | R12: 0
A13: Total Revenue | I13: 6300 | J13: =SUM(J10:J12) -> 0 | M13: 0 | N13: =SUM(N10:N12) -> 0 | O13: 6300 | P13: =SUM(P10:P12) -> 0 | Q13: 768600 | R13: =SUM(R10:R12) -> 0
Q14: Enterprise | R14: Enterprise
A15: VARIABLE COSTS | D15: Quantity | E15: Quantity | F15: Units | G15: $/Unit | H15: $/Unit | I15: Total | J15: Total | K15: Share | L15: Share | M15: Landlord | N15: Landlord | O15: Tenant | P15: Tenant | Q15: Total | R15: Total
A16: Production Costs
B17: Herbicide
C18: Prefar | D18: 18 | F18: Quart | G18: 18.75 | I18: 337.5 | J18: =E18*H18 -> 0 | K18: 0 | M18: 0 | N18: =J18*L18 -> 0 | O18: 337.5 | P18: =+J18-N18 -> 0 | Q18: 41175 | R18: =+J18*E$7 -> 0
B19: Seed
C20: Onion Seed | D20: 2 | F20: Pound | G20: 60 | I20: 120 | J20: 0 | K20: 0 | M20: 0 | N20: 0 | O20: 120 | P20: 0 | Q20: 14640 | R20: 0
B21: Fertilizer
C22: UAN(32% N) | D22: 0.34 | F22: CWT | G22: 17 | I22: 5.78 | J22: 0 | K22: 0 | M22: 0 | N22: 0 | O22: 5.78 | P22: 0 | Q22: 705.16 | R22: 0
C23: Fertilizer 18-46-0 | D23: 217 | F23: Pound | G23: 0.24 | I23: 52.08 | J23: 0 | K23: 0 | M23: 0 | N23: 0 | O23: 52.08 | P23: 0 | Q23: 6353.76 | R23: 0
C24: N-32 in Water | D24: 156 | F24: Pound | G24: 0.17 | I24: 26.52 | J24: 0 | K24: 0 | M24: 0 | N24: 0 | O24: 26.52 | P24: 0 | Q24: 3235.44 | R24: 0
B25: Custom
C26: Harvest/Pack/Market Onions | D26: 700 | F26: Bag | G26: 4.02 | I26: 2814 | J26: 0 | K26: 0 | M26: 0 | N26: 0 | O26: 2814 | P26: 0 | Q26: 343308 | R26: 0
B27: Miscellaneous
C28: Miscellaneous Onion Overhead | D28: 1 | F28: Acre | G28: 4 | I28: 4 | J28: 0 | K28: 0 | M28: 0 | N28: 0 | O28: 4 | P28: 0 | Q28: 488 | R28: 0
C29: Crop Insurance - Onions | D29: 1 | F29: Acre | G29: 541 | I29: 541 | J29: 0 | K29: 0 | M29: 0 | N29: 0 | O29: 541 | P29: 0 | Q29: 66002 | R29: 0
B30: Insecticide
C31: Mustang Max | D31: 15 | F31: Ounce | G31: 1.54 | I31: 23.1 | J31: 0 | K31: 0 | M31: 0 | N31: 0 | O31: 23.1 | P31: 0 | Q31: 2818.2 | R31: 0
B32: Fungicides
C33: Echo 720 | D33: 9 | F33: Pint | G33: 3.63 | I33: 32.67 | J33: 0 | K33: 0 | M33: 0 | N33: 0 | O33: 32.67 | P33: 0 | Q33: 3985.74 | R33: 0
B34: Other Labor
C35: Hand Labor | D35: 4.375 | F35: Hour | G35: 8.5 | I35: 37.1875 | J35: 0 | K35: 0 | M35: 0 | N35: 0 | O35: 37.1875 | P35: 0 | Q35: 4536.875 | R35: 0
D36: 0 | G36: 0 | I36: 0 | J36: 0 | K36: 0 | M36: 0 | N36: 0 | O36: 0 | P36: 0 | Q36: 0 | R36: 0
D37: 0 | G37: 0 | I37: 0 | J37: 0 | K37: 0 | M37: 0 | N37: 0 | O37: 0 | P37: 0 | Q37: 0 | R37: 0
D38: 0 | G38: 0 | I38: 0 | J38: =E38*H38 -> 0 | K38: 0 | M38: 0 | N38: =J38*L38 -> 0 | O38: 0 | P38: =+J38-N38 -> 0 | Q38: 0 | R38: =+J38*E$7 -> 0
B39: Irrigation
C40: Energy Cost | D40: 1560 | F40: kWh | G40: 0.17 | I40: 265.2 | J40: =E40*H40 -> 0 | K40: 0 | M40: 0 | N40: =J40*L40 -> 0 | O40: 265.2 | P40: =+J40-N40 -> 0 | Q40: 32354.4 | R40: =+J40*E$7 -> 0
B41: Machinery Labor
C42: Tractors/Self-Propelled | D42: 2.08 | F42: Hour | G42: 12 | I42: 24.96 | J42: =E42*H42 -> 0 | K42: 0 | M42: 0 | N42: =J42*L42 -> 0 | O42: 24.96 | P42: =+J42-N42 -> 0 | Q42: 3045.12 | R42: =+J42*E$7 -> 0
C43: Other Labor | D43: 0.23 | F43: Hour | G43: 8.5 | I43: 1.955 | J43: =E43*H43 -> 0 | K43: 0 | M43: 0 | N43: =J43*L43 -> 0 | O43: 1.955 | P43: =+J43-N43 -> 0 | Q43: 238.51 | R43: =+J43*E$7 -> 0
B45: Diesel Fuel
C46: Pickup/General Use Equipment | D46: 1 | F46: Acre | G46: 0 | I46: 0 | J46: =E46*H46 -> 0 | K46: 0 | M46: 0 | N46: =J46*L46 -> 0 | O46: 0 | P46: =+J46-N46 -> 0 | Q46: 0 | R46: =+J46*E$7 -> 0
C47: Tractors/Self-Propelled | D47: 17.76 | F47: Gallon | G47: 2.14 | I47: 38.0064 | J47: =E47*H47 -> 0 | K47: 0 | M47: 0 | N47: =J47*L47 -> 0 | O47: 38.0064 | P47: =+J47-N47 -> 0 | Q47: 4636.7808 | R47: =+J47*E$7 -> 0
B49: Gasoline
C50: Pickup/General Use Equipment | D50: 1 | F50: Acre | G50: 37.78559707 | I50: 37.78559707 | J50: =E50*H50 -> 0 | K50: 0 | M50: 0 | N50: =J50*L50 -> 0 | O50: 37.78559707 | P50: =+J50-N50 -> 0 | Q50: 4609.842842 | R50: =+J50*E$7 -> 0
C51: Tractors/Self-Propelled | D51: 0 | F51: Gallon | G51: 2.39 | I51: 0 | J51: =E51*H51 -> 0 | K51: 0 | M51: 0 | N51: =J51*L51 -> 0 | O51: 0 | P51: =+J51-N51 -> 0 | Q51: 0 | R51: =+J51*E$7 -> 0
B53: Repairs & Maintenance
C54: Pickup/General Use Equipment | D54: 1 | F54: Acre | G54: 7.9056 | I54: 7.9056 | J54: =E54*H54 -> 0 | K54: 0 | M54: 0 | N54: =J54*L54 -> 0 | O54: 7.9056 | P54: =+J54-N54 -> 0 | Q54: 964.4832 | R54: =+J54*E$7 -> 0
C55: Irrigation Equipment | D55: 1 | F55: Acre | G55: 16.224 | I55: 16.224 | J55: 0 | K55: 0 | M55: 0 | N55: 0 | O55: 16.224 | P55: 0 | Q55: 1979.328 | R55: 0
C56: Tractors/Self-Propelled | D56: 1 | F56: Acre | G56: 37.91989758 | I56: 37.91989758 | J56: 0 | K56: 0 | M56: 0 | N56: 0 | O56: 37.91989758 | P56: 0 | Q56: 4626.227505 | R56: 0
C57: Implements | D57: 1 | F57: Acre | G57: 30.2778689 | I57: 30.2778689 | J57: 0 | K57: 0 | M57: 0 | N57: 0 | O57: 30.2778689 | P57: 0 | Q57: 3693.900005 | R57: 0
I58: 0 | J58: 0 | K58: 0 | M58: 0 | N58: 0 | O58: 0 | P58: 0 | Q58: 0 | R58: 0
I59: 0 | J59: 0 | K59: 0 | M59: 0 | N59: 0 | O59: 0 | P59: 0 | Q59: 0 | R59: 0
B60: Interest on Credit Line | G60: 0.065 | I60: 51.52594645 | J60: =+SUM(J17:J59)/2*H60 -> 0 | M60: 0 | N60: =+SUM(N17:N59)/2*L60 -> 0 | O60: 51.52594645 | P60: =+SUM(P17:P59)/2*L60 -> 0 | Q60: 6286.165467 | R60: =+J60*E$7 -> 0
A61: Total Variable Costs | I61: 4505.59781 | J61: =SUM(J18:J60) -> 0 | M61: 0 | N61: =SUM(N18:N60) -> 0 | O61: 4505.59781 | P61: =SUM(P18:P60) -> 0 | Q61: 549682.9328 | R61: =SUM(R18:R60) -> 0
A62: Planned Returns Above Variable Costs: | I62: 1794.40219 | J62: =+J13-J61 -> 0 | M62: 0 | N62: =+N13-N61 -> 0 | O62: 1794.40219 | P62: =+P13-P61 -> 0 | Q62: 218917.0672 | R62: =+R13-R61 -> 0
B63: Breakeven Price to Cover Variable Costs | G63: 6.4365683 | H63: =IF(E10=0,"n/a",(YVarExp-(YTotExp+YTotRet-J10))/E10) -> n/a | I63: Bags
Q64: Enterprise | R64: Enterprise
A65: FIXED COSTS | D65: Quantity | E65: Quantity | F65: Units | G65: $/Unit | H65: $/Unit | I65: Total | J65: Total | K65: Share | L65: Share | M65: Landlord | N65: Landlord | O65: Tenant | P65: Tenant | Q65: Total | R65: Total
B66: Machinery Depreciation
C67: Pickup/General Use Equipment | D67: 1 | F67: Acre | G67: 41.175 | I67: 41.175 | J67: =E67*H67 -> 0 | K67: 0 | M67: 0 | N67: =J67*L67 -> 0 | O67: 41.175 | P67: =+J67-N67 -> 0 | Q67: 5023.35 | R67: =+J67*E$7 -> 0
C68: Irrigation Equipment | D68: 1 | F68: Acre | G68: 55.60710383 | I68: 55.60710383 | J68: 0 | K68: 0 | M68: 0 | N68: =J68*L68 -> 0 | O68: 55.60710383 | P68: 0 | Q68: 6784.066667 | R68: 0
C69: Tractors/Self-Propelled | D69: 1 | F69: Acre | G69: 45.80889622 | I69: 45.80889622 | J69: 0 | K69: 0 | M69: 0 | N69: =J69*L69 -> 0 | O69: 45.80889622 | P69: 0 | Q69: 5588.685339 | R69: 0
C70: Implements | D70: 1 | F70: Acre | G70: 35.82124663 | I70: 35.82124663 | J70: 0 | K70: 0 | M70: 0 | N70: =J70*L70 -> 0 | O70: 35.82124663 | P70: 0 | Q70: 4370.192089 | R70: 0
B71: Equipment Investment
C72: Pickup/General Use Equipment | D72: 171.5625 | F72: Dollars | G72: 0.065 | I72: 11.1515625 | J72: =E72*H72 -> 0 | K72: 0 | M72: 0 | N72: =J72*L72 -> 0 | O72: 11.1515625 | P72: =+J72-N72 -> 0 | Q72: 1360.490625 | R72: =+J72*E$7 -> 0
C73: Irrigation Equipment | D73: 417.0532787 | F73: Dollars | G73: 0.065 | I73: 27.10846311 | J73: 0 | K73: 0 | M73: 0 | N73: =J73*L73 -> 0 | O73: 27.10846311 | P73: 0 | Q73: 3307.2325 | R73: 0
C74: Tractors/Self-Propelled | D74: 353.7672511 | F74: Dollars | G74: 0.065 | I74: 22.99487132 | J74: 0 | K74: 0 | M74: 0 | N74: =J74*L74 -> 0 | O74: 22.99487132 | P74: 0 | Q74: 2805.374301 | R74: 0
C75: Implements | D75: 166.9186557 | F75: Dollars | G75: 0.065 | I75: 10.84971262 | J75: 0 | K75: 0 | M75: 0 | N75: =J75*L75 -> 0 | O75: 10.84971262 | P75: 0 | Q75: 1323.66494 | R75: 0
B76: Salaried Labor | D76: 1 | F76: Acre | G76: 0 | I76: 0 | J76: 0 | K76: 0 | M76: 0 | N76: =J76*L76 -> 0 | O76: 0 | P76: =+J76-N76 -> 0 | Q76: 0 | R76: =+J76*E$7 -> 0
B77: Management Fee, Owner/Operator Labor | D77: 1 | F77: Acre | G77: 0 | I77: 0 | J77: 0 | K77: 0 | M77: 0 | N77: 0 | O77: 0 | P77: 0 | Q77: 0 | R77: 0
B78: Allocated Establishment Cost | D78: 1 | F78: Acre | G78: 0 | I78: 0 | J78: 0 | K78: 0 | M78: 0 | N78: 0 | O78: 0 | P78: 0 | Q78: 0 | R78: 0
B79: Irrigated Winter Garden Rent | D79: 1 | F79: Acre | G79: 50 | I79: 50 | J79: 0 | K79: 0 | M79: 0 | N79: 0 | O79: 50 | P79: 0 | Q79: 6100 | R79: 0
B80: Property Taxes | D80: 1 | F80: Acre | G80: 0 | I80: 0 | J80: 0 | K80: 0 | M80: 0 | N80: 0 | O80: 0 | P80: 0 | Q80: 0 | R80: 0
B81: Whole Farm Insurance | D81: 1 | F81: Acre | G81: 0 | I81: 0 | J81: 0 | K81: 0 | M81: 0 | N81: 0 | O81: 0 | P81: 0 | Q81: 0 | R81: 0
D82: 1 | G82: 0 | I82: 0 | J82: 0 | K82: 0 | M82: 0 | N82: 0 | O82: 0 | P82: 0 | Q82: 0 | R82: 0
D83: 1 | G83: 0 | I83: 0 | J83: =E83*H83 -> 0 | K83: 0 | M83: 0 | N83: 0 | O83: 0 | P83: 0 | Q83: 0 | R83: 0
A84: Total Fixed Costs | I84: 300.5168562 | J84: =+SUM(J67:J83) -> 0 | M84: 0 | N84: =+SUM(N67:N83) -> 0 | O84: 300.5168562 | P84: =+SUM(P67:P83) -> 0 | Q84: 36663.05646 | R84: =+SUM(R67:R83) -> 0
A85: Total Specified Costs | I85: 4806.114666 | J85: =+J61+J84 -> 0 | M85: 0 | N85: =+N61+N84 -> 0 | O85: 4806.114666 | P85: =+P61+P84 -> 0 | Q85: 586345.9893 | R85: =+R61+R84 -> 0
A87: Returns Above Specified Costs | I87: 1493.885334 | J87: =+J13-J85 -> 0 | M87: 0 | N87: =+N13-N85 -> 0 | O87: 1493.885334 | P87: =+P13-P85 -> 0 | Q87: 182254.0107 | R87: =+R13-R85 -> 0
A89: Breakeven Price to Cover Total Costs | G89: 6.865878095 | H89: =IF(E10=0,"n/a",(YTotExp-(YTotExp+YTotRet-J10))/E10) -> n/a | I89: Bags
D91: Example Breakeven Prices
B92: Example | C92: Example | D92: To Cover | G92: To Cover
B93: Yield | C93: Yield | D93: Variable | G93: Total
B94: Percent | C94: Bags | D94: Costs | G94: Costs
B95: 0.75 | C95: 525 | D95: 8.582091067 | G95: 9.154504126
B96: 0.9 | C96: 630 | D96: 7.151742556 | G96: 7.628753438
B97: 1 | C97: 700 | D97: 6.4365683 | G97: 6.865878095
B98: 1.1 | C98: 770 | D98: 5.851425727 | G98: 6.241707359
B99: 1.25 | C99: 875 | D99: 5.14925464 | G99: 5.492702476
D101: Your Breakeven Prices
B102: Your | C102: Your | E102: To Cover | H102: To Cover
B103: Yield | C103: Yield | E103: Variable | H103: Total
B104: Percent | C104: Bags | E104: Costs | H104: Costs
B105: 0.75 | C105: =E10*YPER1 -> 0 | E105: =IF($E$10=0,0,(YVarExp-(YTotExp+YTotRet-J10))/($E$10*YPER1)) -> 0 | H105: =IF($E$10=0,0,(YTotExp-(YTotExp+YTotRet-J10))/($E$10*YPER1)) -> 0
B106: 0.9 | C106: =E10*YPER2 -> 0 | E106: =IF($E$10=0,0,(YVarExp-(YTotExp+YTotRet-J10))/($E$10*YPER2)) -> 0 | H106: =IF($E$10=0,0,(YTotExp-(YTotExp+YTotRet-J10))/($E$10*YPER2)) -> 0
B107: 1 | C107: =+E10 -> 0 | E107: =IF($E$10=0,0,(YVarExp-(YTotExp+YTotRet-J10))/($E$10*YPER3)) -> 0 | H107: =IF($E$10=0,0,(YTotExp-(YTotExp+YTotRet-J10))/($E$10*YPER3)) -> 0
B108: 1.1 | C108: =E10*YPER4 -> 0 | E108: =IF($E$10=0,0,(YVarExp-(YTotExp+YTotRet-J10))/($E$10*YPER4)) -> 0 | H108: =IF($E$10=0,0,(YTotExp-(YTotExp+YTotRet-J10))/($E$10*YPER4)) -> 0
B109: 1.25 | C109: =E10*YPER5 -> 0 | E109: =IF($E$10=0,0,(YVarExp-(YTotExp+YTotRet-J10))/($E$10*YPER5)) -> 0 | H109: =IF($E$10=0,0,(YTotExp-(YTotExp+YTotRet-J10))/($E$10*YPER5)) -> 0
A111: Developed by Rob Hogan, Associate Professor and Extension Economist, Texas A&M AgriLife Extension, 830-278-9151.
A113: Information presented is prepared solely as a general guide and not intended to recognize or predict the costs and returns from any one operation. Brand names are mentioned only as examples and imply no endorsement.

Sheet FreshSpinach
A1: Projections for Planning Purposes Only -- Not to be Used without Updating
A2: 2018 Estimated Costs and Returns per Acre
A3: Fresh Market Spinach
A4: Enter your name for this budget in the cell above.
A5: Enter Your Values in the cells highlighed in MAROON.
E6: Your Acres | R6: Your
C7: Crop Acres | D7: 122 | L7: Your | Q7: Enterprise | R7: Enterprise
E8: Your | H8: Your | I8: Cash | J8: Your | K8: Landlord | L8: Landlord | N8: Your | P8: Your | Q8: Total | R8: Total
A9: REVENUE | D9: Quantity | E9: Quantity | F9: Units | G9: $/Unit | H9: $/Unit | I9: Total | J9: Total | K9: Share | L9: Share | M9: Landlord | N9: Landlord | O9: Tenant | P9: Tenant | Q9: (122 acres) | R9: ="(" & E7 & " acres)" -> ( acres)
B10: Fresh Spinach | D10: 400 | F10: Carton | G10: 14 | I10: 5600 | J10: =E10*H10 -> 0 | K10: 0 | M10: 0 | N10: =J10*L10 -> 0 | O10: 5600 | P10: =+J10-N10 -> 0 | Q10: 683200 | R10: =+J10*E$7 -> 0
D11: 0 | G11: 0 | I11: 0 | J11: 0 | K11: 0 | M11: 0 | N11: 0 | O11: 0 | P11: =+J11-N11 -> 0 | Q11: 0 | R11: 0
D12: 0 | G12: 0 | I12: 0 | J12: 0 | K12: 0 | M12: 0 | N12: 0 | O12: 0 | P12: 0 | Q12: 0 | R12: 0
A13: Total Revenue | I13: 5600 | J13: =SUM(J10:J12) -> 0 | M13: 0 | N13: =SUM(N10:N12) -> 0 | O13: 5600 | P13: =SUM(P10:P12) -> 0 | Q13: 683200 | R13: =SUM(R10:R12) -> 0
Q14: Enterprise | R14: Enterprise
A15: VARIABLE COSTS | D15: Quantity | E15: Quantity | F15: Units | G15: $/Unit | H15: $/Unit | I15: Total | J15: Total | K15: Share | L15: Share | M15: Landlord | N15: Landlord | O15: Tenant | P15: Tenant | Q15: Total | R15: Total
A16: Production Costs
B17: Seed
C18: Spinach Seed | D18: 600 | F18: Thousand | G18: 0.29 | I18: 174 | J18: =E18*H18 -> 0 | K18: 0 | M18: 0 | N18: =J18*L18 -> 0 | O18: 174 | P18: =+J18-N18 -> 0 | Q18: 21228 | R18: =+J18*E$7 -> 0
B19: Fertilizer
C20: Fertilizer 18-46-0 | D20: 260 | F20: Pound | G20: 0.24 | I20: 62.4 | J20: 0 | K20: 0 | M20: 0 | N20: 0 | O20: 62.4 | P20: 0 | Q20: 7612.8 | R20: 0
C21: Fertilizer 0-0-22 Kmag | D21: 90 | F21: Pound | G21: 0.22 | I21: 19.8 | J21: 0 | K21: 0 | M21: 0 | N21: 0 | O21: 19.8 | P21: 0 | Q21: 2415.6 | R21: 0
C22: UAN + Sulfur (28% N) | D22: 2.11 | F22: CWT | G22: 8.93 | I22: 18.8423 | J22: 0 | K22: 0 | M22: 0 | N22: 0 | O22: 18.8423 | P22: 0 | Q22: 2298.7606 | R22: 0
C23: Mg, 4% Liquid | D23: 5.5 | F23: Gallon | G23: 8.5 | I23: 46.75 | J23: 0 | K23: 0 | M23: 0 | N23: 0 | O23: 46.75 | P23: 0 | Q23: 5703.5 | R23: 0
C24: N-32 in Water | D24: 469 | F24: Pound | G24: 0.17 | I24: 79.73 | J24: 0 | K24: 0 | M24: 0 | N24: 0 | O24: 79.73 | P24: 0 | Q24: 9727.06 | R24: 0
B25: Custom
C26: Custom Harvest Spinach | D26: 400 | F26: Carton | G26: 6.65 | I26: 2660 | J26: 0 | K26: 0 | M26: 0 | N26: 0 | O26: 2660 | P26: 0 | Q26: 324520 | R26: 0
B27: Herbicide
C28: Dual Magnum | D28: 1 | F28: Pint | G28: 12.13 | I28: 12.13 | J28: 0 | K28: 0 | M28: 0 | N28: 0 | O28: 12.13 | P28: 0 | Q28: 1479.86 | R28: 0
B29: Insecticide
C30: Mustang Max | D30: 9 | F30: Ounce | G30: 1.54 | I30: 13.86 | J30: 0 | K30: 0 | M30: 0 | N30: 0 | O30: 13.86 | P30: 0 | Q30: 1690.92 | R30: 0
C31: Diazinon | D31: 2.5 | F31: Quart | G31: 10.75 | I31: 26.875 | J31: 0 | K31: 0 | M31: 0 | N31: 0 | O31: 26.875 | P31: 0 | Q31: 3278.75 | R31: 0
B32: Miscellaneous
C33: Miscellaneous Spinach Overhead | D33: 2 | F33: Acre | G33: 4 | I33: 8 | J33: 0 | K33: 0 | M33: 0 | N33: 0 | O33: 8 | P33: 0 | Q33: 976 | R33: 0
B34: Fungicides
C35: Ridomil Gold Bravo | D35: 1 | F35: Pound | G35: 2 | I35: 2 | J35: 0 | K35: 0 | M35: 0 | N35: 0 | O35: 2 | P35: 0 | Q35: 244 | R35: 0
C36: Quadris | D36: 24 | F36: Ounce | G36: 2.46 | I36: 59.04 | J36: 0 | K36: 0 | M36: 0 | N36: 0 | O36: 59.04 | P36: 0 | Q36: 7202.88 | R36: 0
B37: Other Labor
C38: Hand Labor | D38: 3.5 | F38: Hour | G38: 8.5 | I38: 29.75 | J38: 0 | K38: 0 | M38: 0 | N38: 0 | O38: 29.75 | P38: 0 | Q38: 3629.5 | R38: 0
D39: 0 | G39: 0 | I39: 0 | J39: 0 | K39: 0 | M39: 0 | N39: 0 | O39: 0 | P39: 0 | Q39: 0 | R39: 0
D40: 0 | G40: 0 | I40: 0 | J40: 0 | K40: 0 | M40: 0 | N40: 0 | O40: 0 | P40: 0 | Q40: 0 | R40: 0
D41: 0 | G41: 0 | I41: 0 | J41: =E41*H41 -> 0 | K41: 0 | M41: 0 | N41: =J41*L41 -> 0 | O41: 0 | P41: =+J41-N41 -> 0 | Q41: 0 | R41: =+J41*E$7 -> 0
B42: Irrigation
C43: Energy Cost | D43: 1040 | F43: kWh | G43: 0.17 | I43: 176.8 | J43: =E43*H43 -> 0 | K43: 0 | M43: 0 | N43: =J43*L43 -> 0 | O43: 176.8 | P43: =+J43-N43 -> 0 | Q43: 21569.6 | R43: =+J43*E$7 -> 0
B44: Machinery Labor
C45: Tractors/Self-Propelled | D45: 1.75 | F45: Hour | G45: 12 | I45: 21 | J45: =E45*H45 -> 0 | K45: 0 | M45: 0 | N45: =J45*L45 -> 0 | O45: 21 | P45: =+J45-N45 -> 0 | Q45: 2562 | R45: =+J45*E$7 -> 0
C46: Other Labor | D46: 0.23 | F46: Hour | G46: 8.5 | I46: 1.955 | J46: =E46*H46 -> 0 | K46: 0 | M46: 0 | N46: =J46*L46 -> 0 | O46: 1.955 | P46: =+J46-N46 -> 0 | Q46: 238.51 | R46: =+J46*E$7 -> 0
B48: Diesel Fuel
C49: Pickup/General Use Equipment | D49: 1 | F49: Acre | G49: 0 | I49: 0 | J49: =E49*H49 -> 0 | K49: 0 | M49: 0 | N49: =J49*L49 -> 0 | O49: 0 | P49: =+J49-N49 -> 0 | Q49: 0 | R49: =+J49*E$7 -> 0
C50: Tractors/Self-Propelled | D50: 15 | F50: Gallon | G50: 2.14 | I50: 32.1 | J50: =E50*H50 -> 0 | K50: 0 | M50: 0 | N50: =J50*L50 -> 0 | O50: 32.1 | P50: =+J50-N50 -> 0 | Q50: 3916.2 | R50: =+J50*E$7 -> 0
B52: Gasoline
C53: Pickup/General Use Equipment | D53: 1 | F53: Acre | G53: 37.78559707 | I53: 37.78559707 | J53: =E53*H53 -> 0 | K53: 0 | M53: 0 | N53: =J53*L53 -> 0 | O53: 37.78559707 | P53: =+J53-N53 -> 0 | Q53: 4609.842842 | R53: =+J53*E$7 -> 0
C54: Tractors/Self-Propelled | D54: 0 | F54: Gallon | G54: 2.39 | I54: 0 | J54: =E54*H54 -> 0 | K54: 0 | M54: 0 | N54: =J54*L54 -> 0 | O54: 0 | P54: =+J54-N54 -> 0 | Q54: 0 | R54: =+J54*E$7 -> 0
B56: Repairs & Maintenance
C57: Pickup/General Use Equipment | D57: 1 | F57: Acre | G57: 7.9056 | I57: 7.9056 | J57: =E57*H57 -> 0 | K57: 0 | M57: 0 | N57: =J57*L57 -> 0 | O57: 7.9056 | P57: =+J57-N57 -> 0 | Q57: 964.4832 | R57: =+J57*E$7 -> 0
C58: Irrigation Equipment | D58: 1 | F58: Acre | G58: 10.816 | I58: 10.816 | J58: 0 | K58: 0 | M58: 0 | N58: 0 | O58: 10.816 | P58: 0 | Q58: 1319.552 | R58: 0
C59: Tractors/Self-Propelled | D59: 1 | F59: Acre | G59: 32.90554255 | I59: 32.90554255 | J59: 0 | K59: 0 | M59: 0 | N59: 0 | O59: 32.90554255 | P59: 0 | Q59: 4014.476191 | R59: 0
C60: Implements | D60: 1 | F60: Acre | G60: 28.18658161 | I60: 28.18658161 | J60: 0 | K60: 0 | M60: 0 | N60: 0 | O60: 28.18658161 | P60: 0 | Q60: 3438.762956 | R60: 0
I61: 0 | J61: 0 | K61: 0 | M61: 0 | N61: 0 | O61: 0 | P61: 0 | Q61: 0 | R61: 0
I62: 0 | J62: 0 | K62: 0 | M62: 0 | N62: 0 | O62: 0 | P62: 0 | Q62: 0 | R62: 0
B63: Interest on Credit Line | G63: 0.065 | I63: 31.62015231 | J63: =+SUM(J17:J62)/2*H63 -> 0 | M63: 0 | N63: =+SUM(N17:N62)/2*L63 -> 0 | O63: 31.62015231 | P63: =+SUM(P17:P62)/2*L63 -> 0 | Q63: 3857.658582 | R63: =+J63*E$7 -> 0
A64: Total Variable Costs | I64: 3594.251774 | J64: =SUM(J18:J63) -> 0 | M64: 0 | N64: =SUM(N18:N63) -> 0 | O64: 3594.251774 | P64: =SUM(P18:P63) -> 0 | Q64: 438498.7164 | R64: =SUM(R18:R63) -> 0
A65: Planned Returns Above Variable Costs: | I65: 2005.748226 | J65: =+J13-J64 -> 0 | M65: 0 | N65: =+N13-N64 -> 0 | O65: 2005.748226 | P65: =+P13-P64 -> 0 | Q65: 244701.2836 | R65: =+R13-R64 -> 0
B66: Breakeven Price to Cover Variable Costs | G66: 8.985629434 | H66: =IF(E10=0,"n/a",(YVarExp-(YTotExp+YTotRet-J10))/E10) -> n/a | I66: Carton
Q67: Enterprise | R67: Enterprise
A68: FIXED COSTS | D68: Quantity | E68: Quantity | F68: Units | G68: $/Unit | H68: $/Unit | I68: Total | J68: Total | K68: Share | L68: Share | M68: Landlord | N68: Landlord | O68: Tenant | P68: Tenant | Q68: Total | R68: Total
B69: Machinery Depreciation
C70: Pickup/General Use Equipment | D70: 1 | F70: Acre | G70: 41.175 | I70: 41.175 | J70: =E70*H70 -> 0 | K70: 0 | M70: 0 | N70: =J70*L70 -> 0 | O70: 41.175 | P70: =+J70-N70 -> 0 | Q70: 5023.35 | R70: =+J70*E$7 -> 0
C71: Irrigation Equipment | D71: 1 | F71: Acre | G71: 55.60710383 | I71: 55.60710383 | J71: 0 | K71: 0 | M71: 0 | N71: =J71*L71 -> 0 | O71: 55.60710383 | P71: 0 | Q71: 6784.066667 | R71: 0
C72: Tractors/Self-Propelled | D72: 1 | F72: Acre | G72: 37.76908709 | I72: 37.76908709 | J72: 0 | K72: 0 | M72: 0 | N72: =J72*L72 -> 0 | O72: 37.76908709 | P72: 0 | Q72: 4607.828624 | R72: 0
C73: Implements | D73: 1 | F73: Acre | G73: 32.77269803 | I73: 32.77269803 | J73: 0 | K73: 0 | M73: 0 | N73: =J73*L73 -> 0 | O73: 32.77269803 | P73: 0 | Q73: 3998.26916 | R73: 0
B74: Equipment Investment
C75: Pickup/General Use Equipment | D75: 171.5625 | F75: Dollars | G75: 0.065 | I75: 11.1515625 | J75: =E75*H75 -> 0 | K75: 0 | M75: 0 | N75: =J75*L75 -> 0 | O75: 11.1515625 | P75: =+J75-N75 -> 0 | Q75: 1360.490625 | R75: =+J75*E$7 -> 0
C76: Irrigation Equipment | D76: 417.0532787 | F76: Dollars | G76: 0.065 | I76: 27.10846311 | J76: 0 | K76: 0 | M76: 0 | N76: =J76*L76 -> 0 | O76: 27.10846311 | P76: 0 | Q76: 3307.2325 | R76: 0
C77: Tractors/Self-Propelled | D77: 292.4626134 | F77: Dollars | G77: 0.065 | I77: 19.01006987 | J77: 0 | K77: 0 | M77: 0 | N77: =J77*L77 -> 0 | O77: 19.01006987 | P77: 0 | Q77: 2319.228524 | R77: 0
C78: Implements | D78: 148.0523474 | F78: Dollars | G78: 0.065 | I78: 9.623402581 | J78: 0 | K78: 0 | M78: 0 | N78: =J78*L78 -> 0 | O78: 9.623402581 | P78: 0 | Q78: 1174.055115 | R78: 0
B79: Salaried Labor | D79: 1 | F79: Acre | G79: 0 | I79: 0 | J79: 0 | K79: 0 | M79: 0 | N79: =J79*L79 -> 0 | O79: 0 | P79: =+J79-N79 -> 0 | Q79: 0 | R79: =+J79*E$7 -> 0
B80: Management Fee, Owner/Operator Labor | D80: 1 | F80: Acre | G80: 0 | I80: 0 | J80: 0 | K80: 0 | M80: 0 | N80: 0 | O80: 0 | P80: 0 | Q80: 0 | R80: 0
B81: Allocated Establishment Cost | D81: 1 | F81: Acre | G81: 0 | I81: 0 | J81: 0 | K81: 0 | M81: 0 | N81: 0 | O81: 0 | P81: 0 | Q81: 0 | R81: 0
B82: Irrigated Winter Garden Rent | D82: 1 | F82: Acre | G82: 50 | I82: 50 | J82: 0 | K82: 0 | M82: 0 | N82: 0 | O82: 50 | P82: 0 | Q82: 6100 | R82: 0
B83: Property Taxes | D83: 1 | F83: Acre | G83: 0 | I83: 0 | J83: 0 | K83: 0 | M83: 0 | N83: 0 | O83: 0 | P83: 0 | Q83: 0 | R83: 0
B84: Whole Farm Insurance | D84: 1 | F84: Acre | G84: 0 | I84: 0 | J84: 0 | K84: 0 | M84: 0 | N84: 0 | O84: 0 | P84: 0 | Q84: 0 | R84: 0
D85: 1 | G85: 0 | I85: 0 | J85: 0 | K85: 0 | M85: 0 | N85: 0 | O85: 0 | P85: 0 | Q85: 0 | R85: 0
D86: 1 | G86: 0 | I86: 0 | J86: =E86*H86 -> 0 | K86: 0 | M86: 0 | N86: 0 | O86: 0 | P86: 0 | Q86: 0 | R86: 0
A87: Total Fixed Costs | I87: 284.217387 | J87: =+SUM(J70:J86) -> 0 | M87: 0 | N87: =+SUM(N70:N86) -> 0 | O87: 284.217387 | P87: =+SUM(P70:P86) -> 0 | Q87: 34674.52121 | R87: =+SUM(R70:R86) -> 0
A88: Total Specified Costs | I88: 3878.469161 | J88: =+J64+J87 -> 0 | M88: 0 | N88: =+N64+N87 -> 0 | O88: 3878.469161 | P88: =+P64+P87 -> 0 | Q88: 473173.2376 | R88: =+R64+R87 -> 0
A90: Returns Above Specified Costs | I90: 1721.530839 | J90: =+J13-J88 -> 0 | M90: 0 | N90: =+N13-N88 -> 0 | O90: 1721.530839 | P90: =+P13-P88 -> 0 | Q90: 210026.7624 | R90: =+R13-R88 -> 0
A92: Breakeven Price to Cover Total Costs | G92: 9.696172901 | H92: =IF(E10=0,"n/a",(YTotExp-(YTotExp+YTotRet-J10))/E10) -> n/a | I92: Carton
D94: Example Breakeven Prices
B95: Example | C95: Example | D95: To Cover | G95: To Cover
B96: Yield | C96: Yield | D96: Variable | G96: Total
B97: Percent | C97: Carton | D97: Costs | G97: Costs
B98: 0.75 | C98: 300 | D98: 11.98083925 | G98: 12.92823054
B99: 0.9 | C99: 360 | D99: 9.984032704 | G99: 10.77352545
B100: 1 | C100: 400 | D100: 8.985629434 | G100: 9.696172901
B101: 1.1 | C101: 440 | D101: 8.168754031 | G101: 8.814702638
B102: 1.25 | C102: 500 | D102: 7.188503547 | G102: 7.756938321
D104: Your Breakeven Prices
B105: Your | C105: Your | E105: To Cover | H105: To Cover
B106: Yield | C106: Yield | E106: Variable | H106: Total
B107: Percent | C107: Carton | E107: Costs | H107: Costs
B108: 0.75 | C108: =E10*YPER1 -> 0 | E108: =IF($E$10=0,0,(YVarExp-(YTotExp+YTotRet-J10))/($E$10*YPER1)) -> 0 | H108: =IF($E$10=0,0,(YTotExp-(YTotExp+YTotRet-J10))/($E$10*YPER1)) -> 0
B109: 0.9 | C109: =E10*YPER2 -> 0 | E109: =IF($E$10=0,0,(YVarExp-(YTotExp+YTotRet-J10))/($E$10*YPER2)) -> 0 | H109: =IF($E$10=0,0,(YTotExp-(YTotExp+YTotRet-J10))/($E$10*YPER2)) -> 0
B110: 1 | C110: =+E10 -> 0 | E110: =IF($E$10=0,0,(YVarExp-(YTotExp+YTotRet-J10))/($E$10*YPER3)) -> 0 | H110: =IF($E$10=0,0,(YTotExp-(YTotExp+YTotRet-J10))/($E$10*YPER3)) -> 0
B111: 1.1 | C111: =E10*YPER4 -> 0 | E111: =IF($E$10=0,0,(YVarExp-(YTotExp+YTotRet-J10))/($E$10*YPER4)) -> 0 | H111: =IF($E$10=0,0,(YTotExp-(YTotExp+YTotRet-J10))/($E$10*YPER4)) -> 0
B112: 1.25 | C112: =E10*YPER5 -> 0 | E112: =IF($E$10=0,0,(YVarExp-(YTotExp+YTotRet-J10))/($E$10*YPER5)) -> 0 | H112: =IF($E$10=0,0,(YTotExp-(YTotExp+YTotRet-J10))/($E$10*YPER5)) -> 0
A114: Developed by Rob Hogan, Associate Professor and Extension Economist, Texas A&M AgriLife Extension, 830-278-9151.
A116: Information presented is prepared solely as a general guide and not intended to recognize or predict the costs and returns from any one operation. Brand names are mentioned only as examples and imply no endorsement.

Sheet Pecans
A1: Projections for Planning Purposes Only -- Not to be Used without Updating
A2: 2018 Estimated Costs and Returns per Acre
A3: Pecan, Drip Irrigated Years 10-20
A4: Enter your name for this budget in the cell above.
A5: Enter Your Values in the cells highlighed in MAROON.
E6: Your Acres | R6: Your
C7: Crop Acres | D7: 120 | L7: Your | Q7: Enterprise | R7: Enterprise
E8: Your | H8: Your | I8: Cash | J8: Your | K8: Landlord | L8: Landlord | N8: Your | P8: Your | Q8: Total | R8: Total
A9: REVENUE | D9: Quantity | E9: Quantity | F9: Units | G9: $/Unit | H9: $/Unit | I9: Total | J9: Total | K9: Share | L9: Share | M9: Landlord | N9: Landlord | O9: Tenant | P9: Tenant | Q9: (120 acres) | R9: ="(" & E7 & " acres)" -> ( acres)
B10: Pecans | D10: 950 | F10: Pound | G10: 2.5 | I10: 2375 | J10: =E10*H10 -> 0 | K10: 0 | M10: 0 | N10: =J10*L10 -> 0 | O10: 2375 | P10: =+J10-N10 -> 0 | Q10: 285000 | R10: =+J10*E$7 -> 0
D11: 0 | G11: 0 | I11: 0 | J11: 0 | K11: 0 | M11: 0 | N11: 0 | O11: 0 | P11: =+J11-N11 -> 0 | Q11: 0 | R11: 0
D12: 0 | G12: 0 | I12: 0 | J12: 0 | K12: 0 | M12: 0 | N12: 0 | O12: 0 | P12: 0 | Q12: 0 | R12: 0
A13: Total Revenue | I13: 2375 | J13: =SUM(J10:J12) -> 0 | M13: 0 | N13: =SUM(N10:N12) -> 0 | O13: 2375 | P13: =SUM(P10:P12) -> 0 | Q13: 285000 | R13: =SUM(R10:R12) -> 0
Q14: Enterprise | R14: Enterprise
A15: VARIABLE COSTS | D15: Quantity | E15: Quantity | F15: Units | G15: $/Unit | H15: $/Unit | I15: Total | J15: Total | K15: Share | L15: Share | M15: Landlord | N15: Landlord | O15: Tenant | P15: Tenant | Q15: Total | R15: Total
A16: Production Costs
B17: Herbicide
C18: Glyphosate | D18: 16.98 | F18: Pint | G18: 2.25 | I18: 38.205 | J18: =E18*H18 -> 0 | K18: 0 | M18: 0 | N18: =J18*L18 -> 0 | O18: 38.205 | P18: =+J18-N18 -> 0 | Q18: 4584.6 | R18: =+J18*E$7 -> 0
B19: Fertilizer
C20: Fertilizer 11-52-0 | D20: 80 | F20: Pound | G20: 0.25 | I20: 20 | J20: 0 | K20: 0 | M20: 0 | N20: 0 | O20: 20 | P20: 0 | Q20: 2400 | R20: 0
C21: N-32 in Water | D21: 263.11 | F21: Pound | G21: 0.17 | I21: 44.7287 | J21: 0 | K21: 0 | M21: 0 | N21: 0 | O21: 44.7287 | P21: 0 | Q21: 5367.444 | R21: 0
C22: Zinc, Chelated 10% | D22: 17.32 | F22: Pint | G22: 1.31 | I22: 22.6892 | J22: 0 | K22: 0 | M22: 0 | N22: 0 | O22: 22.6892 | P22: 0 | Q22: 2722.704 | R22: 0
B23: Custom
C24: Hedging | D24: 0.33 | F24: Acre | G24: 100 | I24: 33 | J24: 0 | K24: 0 | M24: 0 | N24: 0 | O24: 33 | P24: 0 | Q24: 3960 | R24: 0
B25: Miscellaneous
C26: Miscellaneous Pecan Overhead | D26: 1 | F26: Acre | G26: 4 | I26: 4 | J26: 0 | K26: 0 | M26: 0 | N26: 0 | O26: 4 | P26: 0 | Q26: 480 | R26: 0
C27: Crop Insurance - Pecans | D27: 1 | F27: Acre | G27: 118 | I27: 118 | J27: 0 | K27: 0 | M27: 0 | N27: 0 | O27: 118 | P27: 0 | Q27: 14160 | R27: 0
C28: Electricity - Pecan Cleaning | D28: 641.25 | F28: KWhour | G28: 0.17 | I28: 109.0125 | J28: 0 | K28: 0 | M28: 0 | N28: 0 | O28: 109.0125 | P28: 0 | Q28: 13081.5 | R28: 0
C29: Pecan Cleaning Repairs | D29: 950 | F29: Pound | G29: 0.1695684211 | I29: 161.09 | J29: 0 | K29: 0 | M29: 0 | N29: 0 | O29: 161.09 | P29: 0 | Q29: 19330.8 | R29: 0
B30: Insecticide
C31: Confirm 2F | D31: 12 | F31: Ounce | G31: 1.95 | I31: 23.4 | J31: 0 | K31: 0 | M31: 0 | N31: 0 | O31: 23.4 | P31: 0 | Q31: 2808 | R31: 0
C32: Lorsban 4E | D32: 4.5 | F32: Pint | G32: 5.03 | I32: 22.635 | J32: 0 | K32: 0 | M32: 0 | N32: 0 | O32: 22.635 | P32: 0 | Q32: 2716.2 | R32: 0
B33: Other Labor
C34: Pecan Cleaning | D34: 2.85 | F34: Hour | G34: 8.5 | I34: 24.225 | J34: 0 | K34: 0 | M34: 0 | N34: 0 | O34: 24.225 | P34: 0 | Q34: 2907 | R34: 0
D35: 0 | G35: 0 | I35: 0 | J35: 0 | K35: 0 | M35: 0 | N35: 0 | O35: 0 | P35: 0 | Q35: 0 | R35: 0
D36: 0 | G36: 0 | I36: 0 | J36: 0 | K36: 0 | M36: 0 | N36: 0 | O36: 0 | P36: 0 | Q36: 0 | R36: 0
D37: 0 | G37: 0 | I37: 0 | J37: =E37*H37 -> 0 | K37: 0 | M37: 0 | N37: =J37*L37 -> 0 | O37: 0 | P37: =+J37-N37 -> 0 | Q37: 0 | R37: =+J37*E$7 -> 0
B38: Irrigation
C39: Energy Cost | D39: 2192.32 | F39: kWh | G39: 0.17 | I39: 372.6944 | J39: =E39*H39 -> 0 | K39: 0 | M39: 0 | N39: =J39*L39 -> 0 | O39: 372.6944 | P39: =+J39-N39 -> 0 | Q39: 44723.328 | R39: =+J39*E$7 -> 0
B40: Machinery Labor
C41: Tractors/Self-Propelled | D41: 3.04 | F41: Hour | G41: 12 | I41: 36.48 | J41: =E41*H41 -> 0 | K41: 0 | M41: 0 | N41: =J41*L41 -> 0 | O41: 36.48 | P41: =+J41-N41 -> 0 | Q41: 4377.6 | R41: =+J41*E$7 -> 0
C42: Other Labor | D42: 0.75 | F42: Hour | G42: 8.5 | I42: 6.375 | J42: =E42*H42 -> 0 | K42: 0 | M42: 0 | N42: =J42*L42 -> 0 | O42: 6.375 | P42: =+J42-N42 -> 0 | Q42: 765 | R42: =+J42*E$7 -> 0
B44: Diesel Fuel
C45: Pickup/General Use Equipment | D45: 1 | F45: Acre | G45: 0 | I45: 0 | J45: =E45*H45 -> 0 | K45: 0 | M45: 0 | N45: =J45*L45 -> 0 | O45: 0 | P45: =+J45-N45 -> 0 | Q45: 0 | R45: =+J45*E$7 -> 0
C46: Tractors/Self-Propelled | D46: 15.45 | F46: Gallon | G46: 2.14 | I46: 33.063 | J46: =E46*H46 -> 0 | K46: 0 | M46: 0 | N46: =J46*L46 -> 0 | O46: 33.063 | P46: =+J46-N46 -> 0 | Q46: 3967.56 | R46: =+J46*E$7 -> 0
B48: Gasoline
C49: Pickup/General Use Equipment | D49: 1 | F49: Acre | G49: 34.41311208 | I49: 34.41311208 | J49: =E49*H49 -> 0 | K49: 0 | M49: 0 | N49: =J49*L49 -> 0 | O49: 34.41311208 | P49: =+J49-N49 -> 0 | Q49: 4129.57345 | R49: =+J49*E$7 -> 0
C50: Tractors/Self-Propelled | D50: 0.818452381 | F50: Gallon | G50: 2.39 | I50: 1.95610119 | J50: =E50*H50 -> 0 | K50: 0 | M50: 0 | N50: =J50*L50 -> 0 | O50: 1.95610119 | P50: =+J50-N50 -> 0 | Q50: 234.7321429 | R50: =+J50*E$7 -> 0
B52: Repairs & Maintenance
C53: Pickup/General Use Equipment | D53: 1 | F53: Acre | G53: 14.4 | I53: 14.4 | J53: =E53*H53 -> 0 | K53: 0 | M53: 0 | N53: =J53*L53 -> 0 | O53: 14.4 | P53: =+J53-N53 -> 0 | Q53: 1728 | R53: =+J53*E$7 -> 0
C54: Irrigation Equipment | D54: 1 | F54: Acre | G54: 16.003936 | I54: 16.003936 | J54: 0 | K54: 0 | M54: 0 | N54: 0 | O54: 16.003936 | P54: 0 | Q54: 1920.47232 | R54: 0
C55: Tractors/Self-Propelled | D55: 1 | F55: Acre | G55: 26.83914035 | I55: 26.83914035 | J55: 0 | K55: 0 | M55: 0 | N55: 0 | O55: 26.83914035 | P55: 0 | Q55: 3220.696842 | R55: 0
C56: Implements | D56: 1 | F56: Acre | G56: 8.525157672 | I56: 8.525157672 | J56: 0 | K56: 0 | M56: 0 | N56: 0 | O56: 8.525157672 | P56: 0 | Q56: 1023.018921 | R56: 0
I57: 0 | J57: 0 | K57: 0 | M57: 0 | N57: 0 | O57: 0 | P57: 0 | Q57: 0 | R57: 0
I58: 0 | J58: 0 | K58: 0 | M58: 0 | N58: 0 | O58: 0 | P58: 0 | Q58: 0 | R58: 0
B59: Interest on Credit Line | G59: 0.065 | I59: 33.23388375 | J59: =+SUM(J17:J58)/2*H59 -> 0 | M59: 0 | N59: =+SUM(N17:N58)/2*L59 -> 0 | O59: 33.23388375 | P59: =+SUM(P17:P58)/2*L59 -> 0 | Q59: 3988.066051 | R59: =+J59*E$7 -> 0
A60: Total Variable Costs | I60: 1204.969131 | J60: =SUM(J18:J59) -> 0 | M60: 0 | N60: =SUM(N18:N59) -> 0 | O60: 1204.969131 | P60: =SUM(P18:P59) -> 0 | Q60: 144596.2957 | R60: =SUM(R18:R59) -> 0
A61: Planned Returns Above Variable Costs: | I61: 1170.030869 | J61: =+J13-J60 -> 0 | M61: 0 | N61: =+N13-N60 -> 0 | O61: 1170.030869 | P61: =+P13-P60 -> 0 | Q61: 140403.7043 | R61: =+R13-R60 -> 0
B62: Breakeven Price to Cover Variable Costs | G62: 1.268388559 | H62: =IF(E10=0,"n/a",(YVarExp-(YTotExp+YTotRet-J10))/E10) -> n/a | I62: Pound
Q63: Enterprise | R63: Enterprise
A64: FIXED COSTS | D64: Quantity | E64: Quantity | F64: Units | G64: $/Unit | H64: $/Unit | I64: Total | J64: Total | K64: Share | L64: Share | M64: Landlord | N64: Landlord | O64: Tenant | P64: Tenant | Q64: Total | R64: Total
B65: Machinery Depreciation
C66: Irrigation Equipment | D66: 1 | F66: Acre | G66: 56.11458333 | I66: 56.11458333 | J66: =E66*H66 -> 0 | K66: 0 | M66: 0 | N66: =J66*L66 -> 0 | O66: 56.11458333 | P66: =+J66-N66 -> 0 | Q66: 6733.75 | R66: =+J66*E$7 -> 0
C67: Tractors/Self-Propelled | D67: 1 | F67: Acre | G67: 31.70867686 | I67: 31.70867686 | J67: 0 | K67: 0 | M67: 0 | N67: =J67*L67 -> 0 | O67: 31.70867686 | P67: 0 | Q67: 3805.041223 | R67: 0
C68: Implements | D68: 1 | F68: Acre | G68: 15.71473507 | I68: 15.71473507 | J68: 0 | K68: 0 | M68: 0 | N68: =J68*L68 -> 0 | O68: 15.71473507 | P68: 0 | Q68: 1885.768209 | R68: 0
B69: Equipment Investment
C70: Irrigation Equipment | D70: 112.2291667 | F70: Dollars | G70: 0.065 | I70: 7.294895833 | J70: =E70*H70 -> 0 | K70: 0 | M70: 0 | N70: =J70*L70 -> 0 | O70: 7.294895833 | P70: =+J70-N70 -> 0 | Q70: 875.3875 | R70: =+J70*E$7 -> 0
C71: Tractors/Self-Propelled | D71: 261.761397 | F71: Dollars | G71: 0.065 | I71: 17.0144908 | J71: 0 | K71: 0 | M71: 0 | N71: =J71*L71 -> 0 | O71: 17.0144908 | P71: 0 | Q71: 2041.738896 | R71: 0
C72: Implements | D72: 75.55353819 | F72: Dollars | G72: 0.065 | I72: 4.910979982 | J72: 0 | K72: 0 | M72: 0 | N72: =J72*L72 -> 0 | O72: 4.910979982 | P72: 0 | Q72: 589.3175979 | R72: 0
B73: Equipment Fixed Costs
C74: Pickup/General Use Equipment | D74: 1 | F74: Acre | G74: 48.44 | I74: 48.44 | J74: =E74*H74 -> 0 | K74: 0 | M74: 0 | N74: =J74*L74 -> 0 | O74: 48.44 | P74: =+J74-N74 -> 0 | Q74: 5812.8 | R74: =+J74*E$7 -> 0
B75: Salaried Labor | D75: 1 | F75: Acre | G75: 0 | I75: 0 | J75: 0 | K75: 0 | M75: 0 | N75: 0 | O75: 0 | P75: 0 | Q75: 0 | R75: 0
B76: Management Fee, Owner/Operator Labor | D76: 1 | F76: Acre | G76: 0 | I76: 0 | J76: 0 | K76: 0 | M76: 0 | N76: 0 | O76: 0 | P76: 0 | Q76: 0 | R76: 0
B77: Allocated Establishment Cost | D77: 1 | F77: Acre | G77: 311.01 | I77: 311.01 | J77: 0 | K77: 0 | M77: 0 | N77: 0 | O77: 311.01 | P77: 0 | Q77: 37321.2 | R77: 0
B78: Irrigated Winter Garden Rent | D78: 1 | F78: Acre | G78: 50 | I78: 50 | J78: 0 | K78: 0 | M78: 0 | N78: 0 | O78: 50 | P78: 0 | Q78: 6000 | R78: 0
B79: Property Taxes | D79: 1 | F79: Acre | G79: 0 | I79: 0 | J79: 0 | K79: 0 | M79: 0 | N79: 0 | O79: 0 | P79: 0 | Q79: 0 | R79: 0
B80: Whole Farm Insurance | D80: 1 | F80: Acre | G80: 0 | I80: 0 | J80: 0 | K80: 0 | M80: 0 | N80: 0 | O80: 0 | P80: 0 | Q80: 0 | R80: 0
D81: 1 | G81: 0 | I81: 0 | J81: 0 | K81: 0 | M81: 0 | N81: 0 | O81: 0 | P81: 0 | Q81: 0 | R81: 0
D82: 1 | G82: 0 | I82: 0 | J82: =E82*H82 -> 0 | K82: 0 | M82: 0 | N82: 0 | O82: 0 | P82: 0 | Q82: 0 | R82: 0
A83: Total Fixed Costs | I83: 542.2083619 | J83: =+SUM(J66:J82) -> 0 | M83: 0 | N83: =+SUM(N66:N82) -> 0 | O83: 542.2083619 | P83: =+SUM(P66:P82) -> 0 | Q83: 65065.00343 | R83: =+SUM(R66:R82) -> 0
A84: Total Specified Costs | I84: 1747.177493 | J84: =+J60+J83 -> 0 | M84: 0 | N84: =+N60+N83 -> 0 | O84: 1747.177493 | P84: =+P60+P83 -> 0 | Q84: 209661.2992 | R84: =+R60+R83 -> 0
A86: Returns Above Specified Costs | I86: 627.8225071 | J86: =+J13-J84 -> 0 | M86: 0 | N86: =+N13-N84 -> 0 | O86: 627.8225071 | P86: =+P13-P84 -> 0 | Q86: 75338.70085 | R86: =+R13-R84 -> 0
A88: Breakeven Price to Cover Total Costs | G88: 1.839134203 | H88: =IF(E10=0,"n/a",(YTotExp-(YTotExp+YTotRet-J10))/E10) -> n/a | I88: Pound
D90: Example Breakeven Prices
B91: Example | C91: Example | D91: To Cover | G91: To Cover
B92: Yield | C92: Yield | D92: Variable | G92: Total
B93: Percent | C93: Pound | D93: Costs | G93: Costs
B94: 0.75 | C94: 712.5 | D94: 1.691184745 | G94: 2.452178937
B95: 0.9 | C95: 855 | D95: 1.409320621 | G95: 2.043482448
B96: 1 | C96: 950 | D96: 1.268388559 | G96: 1.839134203
B97: 1.1 | C97: 1045 | D97: 1.153080508 | G97: 1.671940185
B98: 1.25 | C98: 1187.5 | D98: 1.014710847 | G98: 1.471307362
D100: Your Breakeven Prices
B101: Your | C101: Your | E101: To Cover | H101: To Cover
B102: Yield | C102: Yield | E102: Variable | H102: Total
B103: Percent | C103: Pound | E103: Costs | H103: Costs
B104: 0.75 | C104: =E10*YPER1 -> 0 | E104: =IF($E$10=0,0,(YVarExp-(YTotExp+YTotRet-J10))/($E$10*YPER1)) -> 0 | H104: =IF($E$10=0,0,(YTotExp-(YTotExp+YTotRet-J10))/($E$10*YPER1)) -> 0
B105: 0.9 | C105: =E10*YPER2 -> 0 | E105: =IF($E$10=0,0,(YVarExp-(YTotExp+YTotRet-J10))/($E$10*YPER2)) -> 0 | H105: =IF($E$10=0,0,(YTotExp-(YTotExp+YTotRet-J10))/($E$10*YPER2)) -> 0
B106: 1 | C106: =+E10 -> 0 | E106: =IF($E$10=0,0,(YVarExp-(YTotExp+YTotRet-J10))/($E$10*YPER3)) -> 0 | H106: =IF($E$10=0,0,(YTotExp-(YTotExp+YTotRet-J10))/($E$10*YPER3)) -> 0
B107: 1.1 | C107: =E10*YPER4 -> 0 | E107: =IF($E$10=0,0,(YVarExp-(YTotExp+YTotRet-J10))/($E$10*YPER4)) -> 0 | H107: =IF($E$10=0,0,(YTotExp-(YTotExp+YTotRet-J10))/($E$10*YPER4)) -> 0
B108: 1.25 | C108: =E10*YPER5 -> 0 | E108: =IF($E$10=0,0,(YVarExp-(YTotExp+YTotRet-J10))/($E$10*YPER5)) -> 0 | H108: =IF($E$10=0,0,(YTotExp-(YTotExp+YTotRet-J10))/($E$10*YPER5)) -> 0
A110: Developed by Rob Hogan, Associate Professor and Extension Economist, Texas A&M AgriLife Extension, 830-278-9151.
A112: Information presented is prepared solely as a general guide and not intended to recognize or predict the costs and returns from any one operation. Brand names are mentioned only as examples and imply no endorsement.

Sheet Peaches
A1: Projections for Planning Purposes Only -- Not to be Used without Updating
A2: 2018 Estimated Costs and Returns per Acre
A3: Peaches, Drip Irrigated, Years 5-20
A4: Enter your name for this budget in the cell above.
A5: Enter Your Values in the cells highlighed in MAROON.
E6: Your Acres | R6: Your
C7: Crop Acres | D7: 50 | L7: Your | Q7: Enterprise | R7: Enterprise
E8: Your | H8: Your | I8: Cash | J8: Your | K8: Landlord | L8: Landlord | N8: Your | P8: Your | Q8: Total | R8: Total
A9: REVENUE | D9: Quantity | E9: Quantity | F9: Units | G9: $/Unit | H9: $/Unit | I9: Total | J9: Total | K9: Share | L9: Share | M9: Landlord | N9: Landlord | O9: Tenant | P9: Tenant | Q9: (50 acres) | R9: ="(" & E7 & " acres)" -> ( acres)
B10: Peaches | D10: 202 | F10: Bushel | G10: 40 | I10: 8080 | J10: =E10*H10 -> 0 | K10: 0 | M10: 0 | N10: =J10*L10 -> 0 | O10: 8080 | P10: =+J10-N10 -> 0 | Q10: 404000 | R10: =+J10*E$7 -> 0
D11: 0 | G11: 0 | I11: 0 | J11: 0 | K11: 0 | M11: 0 | N11: 0 | O11: 0 | P11: =+J11-N11 -> 0 | Q11: 0 | R11: 0
D12: 0 | G12: 0 | I12: 0 | J12: 0 | K12: 0 | M12: 0 | N12: 0 | O12: 0 | P12: 0 | Q12: 0 | R12: 0
A13: Total Revenue | I13: 8080 | J13: =SUM(J10:J12) -> 0 | M13: 0 | N13: =SUM(N10:N12) -> 0 | O13: 8080 | P13: =SUM(P10:P12) -> 0 | Q13: 404000 | R13: =SUM(R10:R12) -> 0
Q14: Enterprise | R14: Enterprise
A15: VARIABLE COSTS | D15: Quantity | E15: Quantity | F15: Units | G15: $/Unit | H15: $/Unit | I15: Total | J15: Total | K15: Share | L15: Share | M15: Landlord | N15: Landlord | O15: Tenant | P15: Tenant | Q15: Total | R15: Total
A16: Production Costs
B17: Herbicide
C18: Glyphosate | D18: 12 | F18: Pint | G18: 2.25 | I18: 27 | J18: =E18*H18 -> 0 | K18: 0 | M18: 0 | N18: =J18*L18 -> 0 | O18: 27 | P18: =+J18-N18 -> 0 | Q18: 1350 | R18: =+J18*E$7 -> 0
B19: Fertilizer
C20: Ammonium Sulfate (21% N) | D20: 2.55 | F20: CWT | G20: 16 | I20: 40.8 | J20: 0 | K20: 0 | M20: 0 | N20: 0 | O20: 40.8 | P20: 0 | Q20: 2040 | R20: 0
B21: Miscellaneous
C22: Miscellaneous Peach Overhead | D22: 1 | F22: Acre | G22: 4 | I22: 4 | J22: 0 | K22: 0 | M22: 0 | N22: 0 | O22: 4 | P22: 0 | Q22: 200 | R22: 0
B23: Insecticide
C24: Dormant Oil | D24: 6.5 | F24: Gallon | G24: 15.98 | I24: 103.87 | J24: 0 | K24: 0 | M24: 0 | N24: 0 | O24: 103.87 | P24: 0 | Q24: 5193.5 | R24: 0
C25: Permethrin 36.8% | D25: 0.4 | F25: Ounce | G25: 0.5 | I25: 0.2 | J25: 0 | K25: 0 | M25: 0 | N25: 0 | O25: 0.2 | P25: 0 | Q25: 10 | R25: 0
C26: Carbaryl 4L | D26: 2.5 | F26: Quart | G26: 13.3 | I26: 33.25 | J26: 0 | K26: 0 | M26: 0 | N26: 0 | O26: 33.25 | P26: 0 | Q26: 1662.5 | R26: 0
B27: Other Labor
C28: Hand Labor | D28: 140 | F28: Hour | G28: 8.5 | I28: 1190 | J28: 0 | K28: 0 | M28: 0 | N28: 0 | O28: 1190 | P28: 0 | Q28: 59500 | R28: 0
B29: Fungicides
C30: Captan 4L | D30: 3 | F30: Quart | G30: 6.5 | I30: 19.5 | J30: 0 | K30: 0 | M30: 0 | N30: 0 | O30: 19.5 | P30: 0 | Q30: 975 | R30: 0
D31: 0 | G31: 0 | I31: 0 | J31: 0 | K31: 0 | M31: 0 | N31: 0 | O31: 0 | P31: 0 | Q31: 0 | R31: 0
D32: 0 | G32: 0 | I32: 0 | J32: 0 | K32: 0 | M32: 0 | N32: 0 | O32: 0 | P32: 0 | Q32: 0 | R32: 0
D33: 0 | G33: 0 | I33: 0 | J33: =E33*H33 -> 0 | K33: 0 | M33: 0 | N33: =J33*L33 -> 0 | O33: 0 | P33: =+J33-N33 -> 0 | Q33: 0 | R33: =+J33*E$7 -> 0
B34: Irrigation
C35: Energy Cost | D35: 940.8 | F35: kWh | G35: 0.17 | I35: 159.936 | J35: =E35*H35 -> 0 | K35: 0 | M35: 0 | N35: =J35*L35 -> 0 | O35: 159.936 | P35: =+J35-N35 -> 0 | Q35: 7996.8 | R35: =+J35*E$7 -> 0
B36: Machinery Labor
C37: Tractors/Self-Propelled | D37: 1.11 | F37: Hour | G37: 12 | I37: 13.32 | J37: =E37*H37 -> 0 | K37: 0 | M37: 0 | N37: =J37*L37 -> 0 | O37: 13.32 | P37: =+J37-N37 -> 0 | Q37: 666 | R37: =+J37*E$7 -> 0
C38: Other Labor | D38: 0 | F38: Hour | G38: 8.5 | I38: 0 | J38: =E38*H38 -> 0 | K38: 0 | M38: 0 | N38: =J38*L38 -> 0 | O38: 0 | P38: =+J38-N38 -> 0 | Q38: 0 | R38: =+J38*E$7 -> 0
B40: Diesel Fuel
C41: Pickup/General Use Equipment | D41: 1 | F41: Acre | G41: 0 | I41: 0 | J41: =E41*H41 -> 0 | K41: 0 | M41: 0 | N41: =J41*L41 -> 0 | O41: 0 | P41: =+J41-N41 -> 0 | Q41: 0 | R41: =+J41*E$7 -> 0
C42: Tractors/Self-Propelled | D42: 4.19 | F42: Gallon | G42: 2.14 | I42: 8.9666 | J42: =E42*H42 -> 0 | K42: 0 | M42: 0 | N42: =J42*L42 -> 0 | O42: 8.9666 | P42: =+J42-N42 -> 0 | Q42: 448.33 | R42: =+J42*E$7 -> 0
B44: Gasoline
C45: Pickup/General Use Equipment | D45: 1 | F45: Acre | G45: 82.591469 | I45: 82.591469 | J45: =E45*H45 -> 0 | K45: 0 | M45: 0 | N45: =J45*L45 -> 0 | O45: 82.591469 | P45: =+J45-N45 -> 0 | Q45: 4129.57345 | R45: =+J45*E$7 -> 0
C46: Tractors/Self-Propelled | D46: 0.4092261905 | F46: Gallon | G46: 2.39 | I46: 0.9780505952 | J46: =E46*H46 -> 0 | K46: 0 | M46: 0 | N46: =J46*L46 -> 0 | O46: 0.9780505952 | P46: =+J46-N46 -> 0 | Q46: 48.90252976 | R46: =+J46*E$7 -> 0
B48: Repairs & Maintenance
C49: Pickup/General Use Equipment | D49: 1 | F49: Acre | G49: 17.28 | I49: 17.28 | J49: =E49*H49 -> 0 | K49: 0 | M49: 0 | N49: =J49*L49 -> 0 | O49: 17.28 | P49: =+J49-N49 -> 0 | Q49: 864 | R49: =+J49*E$7 -> 0
C50: Irrigation Equipment | D50: 1 | F50: Acre | G50: 7.36 | I50: 7.36 | J50: 0 | K50: 0 | M50: 0 | N50: 0 | O50: 7.36 | P50: 0 | Q50: 368 | R50: 0
C51: Tractors/Self-Propelled | D51: 1 | F51: Acre | G51: 9.151488321 | I51: 9.151488321 | J51: 0 | K51: 0 | M51: 0 | N51: 0 | O51: 9.151488321 | P51: 0 | Q51: 457.574416 | R51: 0
C52: Implements | D52: 1 | F52: Acre | G52: 2.540903741 | I52: 2.540903741 | J52: 0 | K52: 0 | M52: 0 | N52: 0 | O52: 2.540903741 | P52: 0 | Q52: 127.045187 | R52: 0
I53: 0 | J53: 0 | K53: 0 | M53: 0 | N53: 0 | O53: 0 | P53: 0 | Q53: 0 | R53: 0
I54: 0 | J54: 0 | K54: 0 | M54: 0 | N54: 0 | O54: 0 | P54: 0 | Q54: 0 | R54: 0
B55: Interest on Credit Line | G55: 0.065 | I55: 46.92333318 | J55: =+SUM(J17:J54)/2*H55 -> 0 | M55: 0 | N55: =+SUM(N17:N54)/2*L55 -> 0 | O55: 46.92333318 | P55: =+SUM(P17:P54)/2*L55 -> 0 | Q55: 2346.166659 | R55: =+J55*E$7 -> 0
A56: Total Variable Costs | I56: 1767.667845 | J56: =SUM(J18:J55) -> 0 | M56: 0 | N56: =SUM(N18:N55) -> 0 | O56: 1767.667845 | P56: =SUM(P18:P55) -> 0 | Q56: 88383.39224 | R56: =SUM(R18:R55) -> 0
A57: Planned Returns Above Variable Costs: | I57: 6312.332155 | J57: =+J13-J56 -> 0 | M57: 0 | N57: =+N13-N56 -> 0 | O57: 6312.332155 | P57: =+P13-P56 -> 0 | Q57: 315616.6078 | R57: =+R13-R56 -> 0
B58: Breakeven Price to Cover Variable Costs | G58: 8.750830915 | H58: =IF(E10=0,"n/a",(YVarExp-(YTotExp+YTotRet-J10))/E10) -> n/a | I58: Bushel
Q59: Enterprise | R59: Enterprise
A60: FIXED COSTS | D60: Quantity | E60: Quantity | F60: Units | G60: $/Unit | H60: $/Unit | I60: Total | J60: Total | K60: Share | L60: Share | M60: Landlord | N60: Landlord | O60: Tenant | P60: Tenant | Q60: Total | R60: Total
B61: Machinery Depreciation
C62: Pickup/General Use Equipment | D62: 1 | F62: Acre | G62: 90 | I62: 90 | J62: =E62*H62 -> 0 | K62: 0 | M62: 0 | N62: =J62*L62 -> 0 | O62: 90 | P62: =+J62-N62 -> 0 | Q62: 4500 | R62: =+J62*E$7 -> 0
C63: Irrigation Equipment | D63: 1 | F63: Acre | G63: 134.675 | I63: 134.675 | J63: 0 | K63: 0 | M63: 0 | N63: =J63*L63 -> 0 | O63: 134.675 | P63: 0 | Q63: 6733.75 | R63: 0
C64: Tractors/Self-Propelled | D64: 1 | F64: Acre | G64: 10.79778488 | I64: 10.79778488 | J64: 0 | K64: 0 | M64: 0 | N64: =J64*L64 -> 0 | O64: 10.79778488 | P64: 0 | Q64: 539.8892441 | R64: 0
C65: Implements | D65: 1 | F65: Acre | G65: 5.327387572 | I65: 5.327387572 | J65: 0 | K65: 0 | M65: 0 | N65: =J65*L65 -> 0 | O65: 5.327387572 | P65: 0 | Q65: 266.3693786 | R65: 0
B66: Equipment Investment
C67: Pickup/General Use Equipment | D67: 375 | F67: Dollars | G67: 0.065 | I67: 24.375 | J67: =E67*H67 -> 0 | K67: 0 | M67: 0 | N67: =J67*L67 -> 0 | O67: 24.375 | P67: =+J67-N67 -> 0 | Q67: 1218.75 | R67: =+J67*E$7 -> 0
C68: Irrigation Equipment | D68: 269.35 | F68: Dollars | G68: 0.065 | I68: 17.50775 | J68: 0 | K68: 0 | M68: 0 | N68: =J68*L68 -> 0 | O68: 17.50775 | P68: 0 | Q68: 875.3875 | R68: 0
C69: Tractors/Self-Propelled | D69: 85.47617238 | F69: Dollars | G69: 0.065 | I69: 5.555951205 | J69: 0 | K69: 0 | M69: 0 | N69: =J69*L69 -> 0 | O69: 5.555951205 | P69: 0 | Q69: 277.7975602 | R69: 0
C70: Implements | D70: 26.60275398 | F70: Dollars | G70: 0.065 | I70: 1.729179009 | J70: 0 | K70: 0 | M70: 0 | N70: =J70*L70 -> 0 | O70: 1.729179009 | P70: 0 | Q70: 86.45895043 | R70: 0
B71: Salaried Labor | D71: 1 | F71: Acre | G71: 0 | I71: 0 | J71: 0 | K71: 0 | M71: 0 | N71: =J71*L71 -> 0 | O71: 0 | P71: =+J71-N71 -> 0 | Q71: 0 | R71: =+J71*E$7 -> 0
B72: Management Fee, Owner/Operator Labor | D72: 1 | F72: Acre | G72: 0 | I72: 0 | J72: 0 | K72: 0 | M72: 0 | N72: 0 | O72: 0 | P72: 0 | Q72: 0 | R72: 0
B73: Allocated Establishment Cost | D73: 1 | F73: Acre | G73: 581.04 | I73: 581.04 | J73: 0 | K73: 0 | M73: 0 | N73: 0 | O73: 581.04 | P73: 0 | Q73: 29052 | R73: 0
B74: Irrigated Winter Garden Rent | D74: 1 | F74: Acre | G74: 50 | I74: 50 | J74: 0 | K74: 0 | M74: 0 | N74: 0 | O74: 50 | P74: 0 | Q74: 2500 | R74: 0
B75: Property Taxes | D75: 1 | F75: Acre | G75: 0 | I75: 0 | J75: 0 | K75: 0 | M75: 0 | N75: 0 | O75: 0 | P75: 0 | Q75: 0 | R75: 0
B76: Whole Farm Insurance | D76: 1 | F76: Acre | G76: 0 | I76: 0 | J76: 0 | K76: 0 | M76: 0 | N76: 0 | O76: 0 | P76: 0 | Q76: 0 | R76: 0
D77: 1 | G77: 0 | I77: 0 | J77: 0 | K77: 0 | M77: 0 | N77: 0 | O77: 0 | P77: 0 | Q77: 0 | R77: 0
D78: 1 | G78: 0 | I78: 0 | J78: =E78*H78 -> 0 | K78: 0 | M78: 0 | N78: 0 | O78: 0 | P78: 0 | Q78: 0 | R78: 0
A79: Total Fixed Costs | I79: 921.0080527 | J79: =+SUM(J62:J78) -> 0 | M79: 0 | N79: =+SUM(N62:N78) -> 0 | O79: 921.0080527 | P79: =+SUM(P62:P78) -> 0 | Q79: 46050.40263 | R79: =+SUM(R62:R78) -> 0
A80: Total Specified Costs | I80: 2688.675898 | J80: =+J56+J79 -> 0 | M80: 0 | N80: =+N56+N79 -> 0 | O80: 2688.675898 | P80: =+P56+P79 -> 0 | Q80: 134433.7949 | R80: =+R56+R79 -> 0
A82: Returns Above Specified Costs | I82: 5391.324102 | J82: =+J13-J80 -> 0 | M82: 0 | N82: =+N13-N80 -> 0 | O82: 5391.324102 | P82: =+P13-P80 -> 0 | Q82: 269566.2051 | R82: =+R13-R80 -> 0
A84: Breakeven Price to Cover Total Costs | G84: 13.31027672 | H84: =IF(E10=0,"n/a",(YTotExp-(YTotExp+YTotRet-J10))/E10) -> n/a | I84: Bushel
D86: Example Breakeven Prices
B87: Example | C87: Example | D87: To Cover | G87: To Cover
B88: Yield | C88: Yield | D88: Variable | G88: Total
B89: Percent | C89: Bushel | D89: Costs | G89: Costs
B90: 0.75 | C90: 151.5 | D90: 11.66777455 | G90: 17.74703563
B91: 0.9 | C91: 181.8 | D91: 9.723145461 | G91: 14.78919636
B92: 1 | C92: 202 | D92: 8.750830915 | G92: 13.31027672
B93: 1.1 | C93: 222.2 | D93: 7.955300832 | G93: 12.10025156
B94: 1.25 | C94: 252.5 | D94: 7.000664732 | G94: 10.64822138
D96: Your Breakeven Prices
B97: Your | C97: Your | E97: To Cover | H97: To Cover
B98: Yield | C98: Yield | E98: Variable | H98: Total
B99: Percent | C99: Bushel | E99: Costs | H99: Costs
B100: 0.75 | C100: =E10*YPER1 -> 0 | E100: =IF($E$10=0,0,(YVarExp-(YTotExp+YTotRet-J10))/($E$10*YPER1)) -> 0 | H100: =IF($E$10=0,0,(YTotExp-(YTotExp+YTotRet-J10))/($E$10*YPER1)) -> 0
B101: 0.9 | C101: =E10*YPER2 -> 0 | E101: =IF($E$10=0,0,(YVarExp-(YTotExp+YTotRet-J10))/($E$10*YPER2)) -> 0 | H101: =IF($E$10=0,0,(YTotExp-(YTotExp+YTotRet-J10))/($E$10*YPER2)) -> 0
B102: 1 | C102: =+E10 -> 0 | E102: =IF($E$10=0,0,(YVarExp-(YTotExp+YTotRet-J10))/($E$10*YPER3)) -> 0 | H102: =IF($E$10=0,0,(YTotExp-(YTotExp+YTotRet-J10))/($E$10*YPER3)) -> 0
B103: 1.1 | C103: =E10*YPER4 -> 0 | E103: =IF($E$10=0,0,(YVarExp-(YTotExp+YTotRet-J10))/($E$10*YPER4)) -> 0 | H103: =IF($E$10=0,0,(YTotExp-(YTotExp+YTotRet-J10))/($E$10*YPER4)) -> 0
B104: 1.25 | C104: =E10*YPER5 -> 0 | E104: =IF($E$10=0,0,(YVarExp-(YTotExp+YTotRet-J10))/($E$10*YPER5)) -> 0 | H104: =IF($E$10=0,0,(YTotExp-(YTotExp+YTotRet-J10))/($E$10*YPER5)) -> 0
A106: Developed by Rob Hogan, Associate Professor and Extension Economist, Texas A&M AgriLife Extension, 830-278-9151.
A108: Information presented is prepared solely as a general guide and not intended to recognize or predict the costs and returns from any one operation. Brand names are mentioned only as examples and imply no endorsement.

Sheet CowCalfWest
A1: Projections for Planning Purposes Only -- Not to be Used without Updating
A2: 2018 Estimated Costs and Returns per Animal Unit
